{"text_format":"1","workbook":"xlsx","n_sheets":9,"sheets":["Cover","Navigator","Style Guide","Model Parameters","Basic Dpdnt DV","Multi-input Dep DV on-sheet","Multi-input Dependent DV","Multi-input data","Error Checks"],"not_rendered":{"charts":0,"images":1,"macros":1,"external_links":0,"defined_names":73,"comments":0,"pivot_tables":0},"unopened":[],"bounds":{"document_bytes":16777216,"sheet_cells":100000,"rows_first":2000,"rows_last":500,"rows_between":2000,"halvings":0,"cell_chars":16384,"cell_head_chars":4096},"cells_cut":0,"cells_raw":0,"read":"whole","date_system":"1900"}

{"sheet":"Cover","index":0,"n_rows":22,"n_cols":7,"rows_kept":22,"cut":false,"hidden":false,"merged":[[16,2,16,9],[17,2,17,9],[20,6,20,8],[21,6,21,8]]}
[]
[]
["Navigator"]
[]
[null,null,{"$f":"Client_Name","v":"SumProduct Pty Limited"}]
[null,null,{"$f":"Model_Name","v":"SP Multi-input Dependent DV Food.xlsm"}]
[]
[]
[]
[]
[]
[]
[]
[null,null,"Primary Developer:  Steve Kraynak"]
[]
[null,null,"General Cover Notes:"]
[null,null,"This requires Excel 365 to work."]
[]
[]
[]
[null,null,"Any queries, please e-mail:",null,null,null,"steve.kraynak@sumproduct.com"]
[null,null,"Website:",null,null,null,"www.sumproduct.com"]

{"sheet":"Navigator","index":1,"n_rows":22,"n_cols":7,"rows_kept":22,"cut":false,"hidden":false,"merged":[]}
["Navigator"]
[{"$f":"Model_Name","v":"SP Multi-input Dependent DV Food.xlsm"}]
["Navigator"]
[null,null,null,null,"Error Checks:",null,{"$f":"Overall_Error_Check","v":0}]
[]
[]
[null,1,"Table of Contents"]
[]
[null,null,null,null,null,"Cover"]
[null,null,null,null,null,"Style Guide"]
[null,null,null,null,null,"Model Parameters"]
[null,null,null,null,null,"Hierarchical Data Validation"]
[null,null,null,null,null,"Multi-input Dependent DV"]
[null,null,null,null,null,"Multi-input data"]
[null,null,null,null,null,"Products"]
[null,null,null,null,null,"Interdependent Data Validation"]
[null,null,null,null,null,"Data"]
[null,null,null,null,null,"Quarter Data Validation"]
[null,null,null,null,null,"Division Data Validation"]
[null,null,null,null,null,"Unit No Data Validation"]
[null,null,null,null,null,"Manager Data Validation"]
[null,null,null,null,null,"Error Checks"]

{"sheet":"Style Guide","index":2,"n_rows":74,"n_cols":11,"rows_kept":74,"cut":false,"hidden":false,"merged":[[80,2,80,6],[74,2,74,6],[75,2,75,6],[76,2,76,6],[77,2,77,6],[78,2,78,6],[79,2,79,6],[73,2,73,6],[62,2,62,6],[63,2,63,6],[64,2,64,6],[65,2,65,6],[66,2,66,6],[67,2,67,6],[68,2,68,6],[69,2,69,6],[70,2,70,6],[71,2,71,6],[72,2,72,6],[61,2,61,6],[47,2,47,6],[48,2,48,6],[49,2,49,6],[50,2,50,6],[51,2,51,6],[52,2,52,6],[53,2,53,6],[54,2,54,6],[57,2,57,6],[59,2,59,6],[60,2,60,6],[46,2,46,6],[35,2,35,6],[36,2,36,6],[37,2,37,6],[38,2,38,6],[39,2,39,6],[40,2,40,6],[41,2,41,6],[42,2,42,6],[43,2,43,6],[44,2,44,6],[45,2,45,6],[34,2,34,6],[17,2,17,6],[18,2,18,6],[19,2,19,6],[24,2,24,6],[25,2,25,6],[26,2,26,6],[27,2,27,6],[28,2,28,6],[29,2,29,6],[30,2,30,6],[31,2,31,6],[16,2,16,6],[2,0,2,4],[7,2,7,6],[8,2,8,6],[9,2,9,6],[10,2,10,6],[11,2,11,6],[12,2,12,6],[13,2,13,6],[14,2,14,6],[15,2,15,6]]}
[{"$f":"IF(ISERROR(RIGHT(CELL(\"filename\",A1),LEN(CELL(\"filename\",A1))-FIND(\"]\",CELL(\"filename\",A1)))),\n\"\",\nRIGHT(CELL(\"filename\",A1),LEN(CELL(\"filename\",A1))-FIND(\"]\",CELL(\"filename\",A1))))","v":"Style Guide"}]
[{"$f":"Model_Name","v":"SP Multi-input Dependent DV Food.xlsm"}]
["Navigator"]
[null,null,null,null,"Error Checks:",null,null,null,{"$f":"Overall_Error_Check","v":0}]
[]
[null,{"$f":"MAX($B$5:$B5)+1","v":1},"Formatting of Headers / Dividers"]
[]
[null,null,"Description",null,null,null,null,null,"Display",null,"Style Name"]
[]
[null,null,"Sheet Title",null,null,null,null,null,{"$f":"C10","v":"Sheet Title"},null,"Sheet Title"]
[null,null,"Model Name",null,null,null,null,null,{"$f":"C11","v":"Model Name"},null,"Model Name"]
[]
[null,null,"Header 1",null,null,null,null,null,{"$f":"C13","v":"Header 1"},null,"Header 1"]
[null,null,"Header 2",null,null,null,null,null,{"$f":"C14","v":"Header 2"},null,"Header 2"]
[null,null,"Header 3",null,null,null,null,null,{"$f":"C15","v":"Header 3"},null,"Header 3"]
[null,null,"Header 4",null,null,null,null,null,{"$f":"C16","v":"Header 4"},null,"Header 4"]
[]
[null,null,"Notes",null,null,null,null,null,{"$f":"C18","v":"Notes"},null,"Notes"]
[]
[null,null,"Table Heading",null,null,null,null,null,{"$f":"C20","v":"Table Heading"},null,"Table Heading"]
[]
[]
[null,{"$f":"MAX($B$5:$B22)+1","v":2},"Individual Cell Styles"]
[]
[null,null,"Description",null,null,null,null,null,"Display",null,"Style Name"]
[]
[null,null,"Assumption",null,null,null,null,null,"Assumption",null,{"$f":"C27","v":"Assumption"}]
[]
[null,null,"Constraint",null,null,null,null,null,{"$f":"C29","v":"Constraint"},null,{"$f":"C29","v":"Constraint"}]
[]
[null,null,"Empty",null,null,null,null,null,null,null,{"$f":"C31","v":"Empty"}]
[]
[null,null,"Error Check",null,null,null,null,null,0,null,{"$f":"C33","v":"Error Check"}]
[]
[null,null,"Hyperlink",null,null,null,null,null,"Hyperlink",null,{"$f":"C35","v":"Hyperlink"}]
[]
[null,null,"Internal Reference",null,null,null,null,null,{"$f":"'Error Checks'!I15","v":0},null,{"$f":"C37","v":"Internal Reference"}]
[]
[null,null,"Line Calculation",null,null,null,null,null,77,null,"Line Calc"]
[]
[null,null,"Line Total",null,null,null,null,null,{"$f":"I39","v":77},null,{"$f":"C41","v":"Line Total"}]
[]
[null,null,"Parameter",null,null,null,null,null,365,null,{"$f":"C43","v":"Parameter"}]
[]
[null,null,"Range Name Description",null,null,null,null,null,"Not_Named",null,{"$f":"C45","v":"Range Name Description"}]
[]
[null,null,"Row Reference",null,null,null,null,null,{"$f":"ROW(C47)","v":47},null,"Row Ref"]
[]
[null,null,"Row Summary",null,null,null,null,null,{"$f":"I41","v":77},null,{"$f":"C49","v":"Row Summary"}]
[]
[null,null,"Units",null,null,null,null,null,"A$",null,{"$f":"C51","v":"Units"}]
[]
[null,null,"WIP",null,null,null,null,null,null,null,{"$f":"C53","v":"WIP"}]
[]
[]
[null,{"$f":"MAX($B$5:$B55)+1","v":3},"Numerical Styles"]
[]
[null,null,"Description",null,null,null,null,null,"Display",null,"Style Name"]
[]
[null,null,"Comma",null,null,null,null,null,123456.789,null,{"$f":"C60","v":"Comma"}]
[]
[null,null,"Comma [0]",null,null,null,null,null,-123456.789,null,"Comma [0]"]
[]
[null,null,"Currency",null,null,null,null,null,123456.789,null,"Currency"]
[]
[null,null,"Currency [0]",null,null,null,null,null,123456.789,null,"Currency [0]"]
[]
[null,null,"Date",null,null,null,null,null,{"$f":"TODAY()","v":"2024-01-09"},null,{"$f":"C68","v":"Date"}]
[]
[null,null,"Date Heading",null,null,null,null,null,{"$f":"TODAY()","v":"2024-01-09"},null,{"$f":"C70","v":"Date Heading"}]
[]
[null,null,"Numbers 0",null,null,null,null,null,-123456.789,null,{"$f":"C72","v":"Numbers 0"}]
[]
[null,null,"Percent",null,null,null,null,null,0.5,null,{"$f":"C74","v":"Percent"}]

{"sheet":"Model Parameters","index":3,"n_rows":31,"n_cols":9,"rows_kept":31,"cut":false,"hidden":false,"merged":[[0,9,0,10],[2,0,2,4],[10,6,10,13],[11,6,11,13]]}
[{"$f":"IF(ISERROR(RIGHT(CELL(\"filename\",A1),LEN(CELL(\"filename\",A1))-FIND(\"]\",CELL(\"filename\",A1)))),\n\"\",\nRIGHT(CELL(\"filename\",A1),LEN(CELL(\"filename\",A1))-FIND(\"]\",CELL(\"filename\",A1))))","v":"Model Parameters"}]
[{"$f":"Model_Name","v":"SP Multi-input Dependent DV Food.xlsm"}]
["Navigator"]
[null,null,null,null,"Error Checks:",null,null,null,{"$f":"Overall_Error_Check","v":0}]
[]
[null,{"$f":"MAX($B$5:$B5)+1","v":1},"General"]
[]
[null,null,"Key Inputs"]
[]
[null,null,null,null,"General"]
[null,null,null,null,"Model Name",null,{"$f":"IF(ISERROR(OR(FIND(\"[\",CELL(\"filename\",A1)),FIND(\"]\",CELL(\"filename\",A1)))),\"\",MID(CELL(\"filename\",A1),FIND(\"[\",CELL(\"filename\",A1))+1,FIND(\"]\",CELL(\"filename\",A1))-FIND(\"[\",CELL(\"filename\",A1))-1))","v":"SP Multi-input Dependent DV Food.xlsm"}]
[null,null,null,null,"Client Name",null,"SumProduct Pty Limited"]
[]
[]
[null,{"$f":"MAX($B$5:$B14)+1","v":2},"General Range Names"]
[]
[null,null,"Technical Assumptions"]
[]
[null,null,null,null,"Days in Year",null,365]
[null,null,null,null,"Months in Month",null,1]
[null,null,null,null,"Months in Quarter",null,3]
[null,null,null,null,"Months in Half Yr",null,6]
[null,null,null,null,"Months in Year",null,12]
[null,null,null,null,"Quarters in Year",null,4]
[]
[null,null,null,null,"Rounding Accuracy",null,5]
[]
[null,null,null,null,"Very Large Number",null,9.9999999999999997E+98]
[null,null,null,null,"Very Small Number",null,1E-8]
[]
[null,null,null,null,"Thousand",null,1000]

{"sheet":"Basic Dpdnt DV","index":4,"n_rows":137,"n_cols":14,"rows_kept":137,"cut":false,"hidden":false,"merged":[[2,0,2,4]]}
[{"$f":"IF(ISERROR(RIGHT(CELL(\"filename\",A1),LEN(CELL(\"filename\",A1))-FIND(\"]\",CELL(\"filename\",A1)))),\n\"\",\nRIGHT(CELL(\"filename\",A1),LEN(CELL(\"filename\",A1))-FIND(\"]\",CELL(\"filename\",A1))))","v":"Basic Dpdnt DV"}]
[{"$f":"Model_Name","v":"SP Multi-input Dependent DV Food.xlsm"}]
["Navigator"]
[null,null,null,null,"Error Checks:",null,null,{"$f":"Overall_Error_Check","v":0}]
[]
[null,{"$f":"MAX($B$5:$B5)+1","v":1},"Dependent DV for multiple rows in a table"]
[]
[null,null,"Assumptions"]
[]
[null,null,null,"Pick a category first, then an item",null,null,null,null,"Category on last row edited:",{"$f":"INDIRECT(ADDRESS(CELL(\"row\"),COLUMN(I13)))","v":0}]
[]
[null,null,null,null,null,{"$f":"\"Item list for the category chosen in \" & CELL(\"address\",F14)","v":"Item list for the category chosen in $F$14"},null,null,"Flexible Item list for the category last chosen on any row."]
[null,null,null,null,null,"Category","Item",null,"Category","Item",null,"Check Selection"]
[null,null,null,null,null,"Fruit","Blueberries",null,"Baking","Cocoa Powder",null,{"$f":"_xlfn.SWITCH(ISBLANK(I14:I22)+ISBLANK(J14:J22),2,\"\",1,\"Partial\",0,IF(ISNA(_xlfn.XMATCH(I14:I22&J14:J22,tblFoods[Category]&tblFoods[Item],0)),\"Invalid\",\"Valid\"))","v":"Valid"},null,{"$f":"NOT(ISBLANK(I14:I22)*ISBLANK(J14:J22))*ISNA(_xlfn.XMATCH(I14:I22&J14:J22,tblFoods[Category]&tblFoods[Item]))","v":0}]
[null,null,null,null,null,null,null,null,"Candy","Chocolate Bars",null,"Valid",null,0]
[null,null,null,null,null,null,null,null,"Baking","Baking Powder",null,"Valid",null,0]
[null,null,null,null,null,null,null,null,null,null,null,"",null,0]
[null,null,null,null,null,null,null,null,null,null,null,"",null,0]
[null,null,null,null,null,null,null,null,null,null,null,"",null,0]
[null,null,null,null,null,null,null,null,null,null,null,"",null,0]
[null,null,null,null,null,null,null,null,null,null,null,"",null,0]
[null,null,null,null,null,null,null,null,null,null,null,"",null,0]
[]
[null,null,null,null,null,{"$f":"I13","v":"Category"},{"$f":"J13","v":"Item"},null,{"$f":"I13","v":"Category"},{"$f":"J13","v":"Item"}]
[]
[null,null,null,null,null,"Check",{"$f":"MIN(1, SUM((F14:F22&G14:G22<>\"\")*ISNA(_xlfn.XMATCH(F14:F22&G14:G22,tblFoods[Category]&tblFoods[Item]))))","v":0},null,null,{"$f":"MIN(1, SUM((I14:I22&J14:J22<>\"\")*ISNA(_xlfn.XMATCH(I14:I22&J14:J22,tblFoods[Category]&tblFoods[Item]))))","v":0}]
[]
[]
[]
[]
[null,{"$f":"MAX($B$5:$B30)+1","v":2},"Lists for Data Validation Rules"]
[]
[null,null,"Dependent Lists"]
[]
[null,null,null,null,null,null,null,null,"Category on row of active cell:",{"$f":"INDIRECT(ADDRESS(CELL(\"row\"),COLUMN(_xlfn.XLOOKUP(\"Category\",$I$13:$J$13,$I$13:$J$13))))","v":0},null,"The list below can be used to limit the items drop-down to items that haven't already been selected."]
[null,null,null,null,null,null,{"$f":"\"Items for category in \" & CELL(\"address\",F14)","v":"Items for category in $F$14"},null,null,"Dynamic Items list.",null,"Modify the DVFoodItemsList named item to refer to L38# to use the list below. "]
[null,null,null,null,null,"Categories","Items",null,"Categories","Items",null,"Items not used"]
[null,null,null,null,null,{"$f":"_xlfn._xlws.SORT(_xlfn.UNIQUE(tblFoods[Category]))","v":"Baking"},{"$f":"_xlfn._xlws.SORT(_xlfn.UNIQUE(_xlfn._xlws.FILTER(tblFoods[Item],tblFoods[Category]=F14)))","v":"Apples"},null,{"$f":"_xlfn._xlws.SORT(_xlfn.UNIQUE(tblFoods[Category]))","v":"Baking"},{"$f":"_xlfn._xlws.SORT(_xlfn.UNIQUE(_xlfn._xlws.FILTER(tblFoods[Item],tblFoods[Category]=J10,\"Pick a category first.\")))","v":"Pick a category first."},null,{"$f":"_xlfn.LET(_xlpm.AllowUsed,FALSE,_xlpm.items,_xlfn._xlws.SORT(_xlfn.UNIQUE(_xlfn._xlws.FILTER(tblFoods[Item],tblFoods[Category]=J10,\"Pick a category first.\"))),IF(_xlpm.AllowUsed,_xlpm.items,_xlfn._xlws.FILTER(_xlpm.items,ISNA(_xlfn.XMATCH(_xlpm.items,J14:J22,0)))))","v":"Pick a category first."}]
[null,null,null,null,null,"Candy","Bananas",null,"Candy"]
[null,null,null,null,null,"Dairy","Blueberries",null,"Dairy"]
[null,null,null,null,null,"Frozen food","Grapes",null,"Frozen food"]
[null,null,null,null,null,"Fruit","Kiwi",null,"Fruit"]
[null,null,null,null,null,"Meat","Mangos",null,"Meat"]
[null,null,null,null,null,"Snacks","Oranges",null,"Snacks"]
[null,null,null,null,null,"Vegetables","Pears",null,"Vegetables"]
[null,null,null,null,null,null,"Pineapples"]
[null,null,null,null,null,null,"Strawberries"]
[]
[]
[]
[null,{"$f":"MAX($B$5:$B50)+1","v":3},"Source Data"]
[]
[null,null,"Example"]
[]
[null,null,null,{"$f":"\"For Use with \"&A1","v":"For Use with Basic Dpdnt DV"}]
[]
[null,null,null,null,null,"Category","Item"]
[null,null,null,null,null,"Fruit","Apples"]
[null,null,null,null,null,"Fruit","Bananas"]
[null,null,null,null,null,"Fruit","Oranges"]
[null,null,null,null,null,"Dairy","Milk"]
[null,null,null,null,null,"Dairy","Cheese"]
[null,null,null,null,null,"Dairy","Butter"]
[null,null,null,null,null,"Vegetables","Potatoes"]
[null,null,null,null,null,"Vegetables","Onions"]
[null,null,null,null,null,"Vegetables","Carrots"]
[null,null,null,null,null,"Frozen food","Frozen Pizza"]
[null,null,null,null,null,"Frozen food","Frozen Vegetables"]
[null,null,null,null,null,"Frozen food","Frozen Fruits"]
[null,null,null,null,null,"Fruit","Grapes"]
[null,null,null,null,null,"Fruit","Strawberries"]
[null,null,null,null,null,"Fruit","Blueberries"]
[null,null,null,null,null,"Fruit","Pineapples"]
[null,null,null,null,null,"Fruit","Mangos"]
[null,null,null,null,null,"Fruit","Pears"]
[null,null,null,null,null,"Fruit","Kiwi"]
[null,null,null,null,null,"Dairy","Yogurt"]
[null,null,null,null,null,"Dairy","Cream"]
[null,null,null,null,null,"Dairy","Sour Cream"]
[null,null,null,null,null,"Dairy","Cottage Cheese"]
[null,null,null,null,null,"Dairy","Kefir"]
[null,null,null,null,null,"Dairy","Whipped Cream"]
[null,null,null,null,null,"Dairy","Cream Cheese"]
[null,null,null,null,null,"Vegetables","Salad Greens"]
[null,null,null,null,null,"Vegetables","Broccoli"]
[null,null,null,null,null,"Vegetables","Peppers"]
[null,null,null,null,null,"Vegetables","Tomatoes"]
[null,null,null,null,null,"Vegetables","Cucumbers"]
[null,null,null,null,null,"Vegetables","Spinach"]
[null,null,null,null,null,"Vegetables","Zucchini"]
[null,null,null,null,null,"Frozen food","Frozen Chicken"]
[null,null,null,null,null,"Frozen food","Frozen Fish"]
[null,null,null,null,null,"Frozen food","Frozen Waffles"]
[null,null,null,null,null,"Frozen food","Frozen French Fries"]
[null,null,null,null,null,"Frozen food","Frozen Burritos"]
[null,null,null,null,null,"Frozen food","Frozen Lasagna"]
[null,null,null,null,null,"Frozen food","Frozen Meatballs"]
[null,null,null,null,null,"Candy","Chocolate Bars"]
[null,null,null,null,null,"Candy","Gummy Bears"]
[null,null,null,null,null,"Candy","Lollipops"]
[null,null,null,null,null,"Candy","Jelly Beans"]
[null,null,null,null,null,"Candy","Candy Canes"]
[null,null,null,null,null,"Candy","Sour Candy"]
[null,null,null,null,null,"Candy","Licorice"]
[null,null,null,null,null,"Candy","Taffy"]
[null,null,null,null,null,"Candy","Hard Candy"]
[null,null,null,null,null,"Candy","Chocolate Peanuts"]
[null,null,null,null,null,"Snacks","Potato Chips"]
[null,null,null,null,null,"Snacks","Popcorn"]
[null,null,null,null,null,"Snacks","Pretzels"]
[null,null,null,null,null,"Snacks","Trail Mix"]
[null,null,null,null,null,"Snacks","Beef Jerky"]
[null,null,null,null,null,"Snacks","Rice Cakes"]
[null,null,null,null,null,"Snacks","Granola Bars"]
[null,null,null,null,null,"Snacks","Crackers"]
[null,null,null,null,null,"Snacks","Cheese Puffs"]
[null,null,null,null,null,"Snacks","Corn Chips"]
[null,null,null,null,null,"Baking","Flour"]
[null,null,null,null,null,"Baking","Sugar"]
[null,null,null,null,null,"Baking","Baking Powder"]
[null,null,null,null,null,"Baking","Baking Soda"]
[null,null,null,null,null,"Baking","Yeast"]
[null,null,null,null,null,"Baking","Vanilla Extract"]
[null,null,null,null,null,"Baking","Chocolate Chips"]
[null,null,null,null,null,"Baking","Cocoa Powder"]
[null,null,null,null,null,"Baking","Cake Mix"]
[null,null,null,null,null,"Baking","Brownie Mix"]
[null,null,null,null,null,"Meat","Beef"]
[null,null,null,null,null,"Meat","Chicken"]
[null,null,null,null,null,"Meat","Pork"]
[null,null,null,null,null,"Meat","Lamb"]
[null,null,null,null,null,"Meat","Turkey"]
[null,null,null,null,null,"Meat","Bacon"]
[null,null,null,null,null,"Meat","Sausage"]
[null,null,null,null,null,"Meat","Ham"]
[null,null,null,null,null,"Meat","Ground Beef"]
[null,null,null,null,null,"Meat","Steak"]

{"sheet":"Multi-input Dep DV on-sheet","index":5,"n_rows":69,"n_cols":13,"rows_kept":69,"cut":false,"hidden":false,"merged":[[2,0,2,4]]}
[{"$f":"IF(ISERROR(RIGHT(CELL(\"filename\",A1),LEN(CELL(\"filename\",A1))-FIND(\"]\",CELL(\"filename\",A1)))),\n\"\",\nRIGHT(CELL(\"filename\",A1),LEN(CELL(\"filename\",A1))-FIND(\"]\",CELL(\"filename\",A1))))","v":"Multi-input Dep DV on-sheet"}]
[{"$f":"Model_Name","v":"SP Multi-input Dependent DV Food.xlsm"}]
["Navigator"]
[null,null,null,null,"Error Checks:",null,null,null,{"$f":"Overall_Error_Check","v":0}]
[]
[null,{"$f":"MAX($B$5:$B5)+1","v":1},{"$f":"A1","v":"Multi-input Dep DV on-sheet"}]
[]
[null,null,"Example"]
[null,null,null,null,null,null,null,null,{"$f":"GESTEP(15, 15)","v":1}]
[null,null,null,"For each row, select Category, then Product, Color and Size."]
[null,null,null,"Quantity can be entered at any time. Please only change yellow 'Assumptions' cells, the others are automatic."]
[null,null,null,"If any cells are highlighted in red, start with the Category for that row, then select Product, Color and Size."]
[]
[null,null,null,null,null,"Customer:"]
[null,null,null,null,null,"Project:",null,null,"Ship to: "]
[]
[null,null,null,null,null,"Quantity","Category","Product","Color","Size","Brand","Unit Price","Ext. Price"]
[null,null,null,null,null,3,"Lamp","Brushed nickel two light wall sconce, mount up or down","Blue","5 x 4 x 6.5",{"$f":"_xlfn.XLOOKUP(_xlfn.CONCAT($G18:$J18),tblProducts[Category]&tblProducts[ProductName]&tblProducts[Color]&tblProducts[SizeDesc],tblProducts[Brand],\"\")","v":"Litware"},{"$f":"_xlfn.XLOOKUP(_xlfn.CONCAT($G18:$J18),tblProducts[Category]&tblProducts[ProductName]&tblProducts[Color]&tblProducts[SizeDesc],tblProducts[Price],\"\")","v":119.99},{"$f":"IF(L18<>\"\",MAX(F18,1)*L18,\"\")","v":359.96999999999997}]
[null,null,null,null,null,1,"Accessories","33 ft range, recharges while in use.","Grey","Blu",{"$f":"_xlfn.XLOOKUP(_xlfn.CONCAT($G19:$J19),tblProducts[Category]&tblProducts[ProductName]&tblProducts[Color]&tblProducts[SizeDesc],tblProducts[Brand],\"\")","v":"Southridge Video"},{"$f":"_xlfn.XLOOKUP(_xlfn.CONCAT($G19:$J19),tblProducts[Category]&tblProducts[ProductName]&tblProducts[Color]&tblProducts[SizeDesc],tblProducts[Price],\"\")","v":59.99},{"$f":"IF(L19<>\"\",MAX(F19,1)*L19,\"\")","v":59.99}]
[null,null,null,null,null,null,"Air Conditioner","12,000-BTU air conditioner for rooms up to 640 square feet","Silver","24 x 23.8 x 18.8",{"$f":"_xlfn.XLOOKUP(_xlfn.CONCAT($G20:$J20),tblProducts[Category]&tblProducts[ProductName]&tblProducts[Color]&tblProducts[SizeDesc],tblProducts[Brand],\"\")","v":"Proseware"},{"$f":"_xlfn.XLOOKUP(_xlfn.CONCAT($G20:$J20),tblProducts[Category]&tblProducts[ProductName]&tblProducts[Color]&tblProducts[SizeDesc],tblProducts[Price],\"\")","v":459.99},459.99]
[null,null,null,null,null,null,null,null,null,null,{"$f":"_xlfn.XLOOKUP(_xlfn.CONCAT($G21:$J21),tblProducts[Category]&tblProducts[ProductName]&tblProducts[Color]&tblProducts[SizeDesc],tblProducts[Brand],\"\")","v":""},{"$f":"_xlfn.XLOOKUP(_xlfn.CONCAT($G21:$J21),tblProducts[Category]&tblProducts[ProductName]&tblProducts[Color]&tblProducts[SizeDesc],tblProducts[Price],\"\")","v":""},""]
[null,null,null,null,null,null,null,null,null,null,{"$f":"_xlfn.XLOOKUP(_xlfn.CONCAT($G22:$J22),tblProducts[Category]&tblProducts[ProductName]&tblProducts[Color]&tblProducts[SizeDesc],tblProducts[Brand],\"\")","v":""},{"$f":"_xlfn.XLOOKUP(_xlfn.CONCAT($G22:$J22),tblProducts[Category]&tblProducts[ProductName]&tblProducts[Color]&tblProducts[SizeDesc],tblProducts[Price],\"\")","v":""},""]
[null,null,null,null,null,null,null,null,null,null,{"$f":"_xlfn.XLOOKUP(_xlfn.CONCAT($G23:$J23),tblProducts[Category]&tblProducts[ProductName]&tblProducts[Color]&tblProducts[SizeDesc],tblProducts[Brand],\"\")","v":""},{"$f":"_xlfn.XLOOKUP(_xlfn.CONCAT($G23:$J23),tblProducts[Category]&tblProducts[ProductName]&tblProducts[Color]&tblProducts[SizeDesc],tblProducts[Price],\"\")","v":""},""]
[null,null,null,null,null,null,null,null,null,null,{"$f":"_xlfn.XLOOKUP(_xlfn.CONCAT($G24:$J24),tblProducts[Category]&tblProducts[ProductName]&tblProducts[Color]&tblProducts[SizeDesc],tblProducts[Brand],\"\")","v":""},{"$f":"_xlfn.XLOOKUP(_xlfn.CONCAT($G24:$J24),tblProducts[Category]&tblProducts[ProductName]&tblProducts[Color]&tblProducts[SizeDesc],tblProducts[Price],\"\")","v":""},""]
[]
[null,null,null,null,null,"Overall",{"$f":"MIN(1, SUM((G18:G24&H18:H24&I18:I24&J18:J24<>\"\")*ISNA(_xlfn.XMATCH(G18:G24&H18:H24&I18:I24&J18:J24,Col_Category&Col_Product&Col_Color&Col_Size))))","v":0}]
[]
[]
[null,null,"Workings"]
[null,null,null,null,null,null,"CELL(\"address\")",{"$f":"CELL(\"address\")","v":"'[SP Multi-input Dependent DV Food.xlsm]Cover'!$A$1"}]
[null,null,null,null,null,null,"Last Active Cell",{"$f":"ADDRESS(CELL(\"row\"),CELL(\"col\"),4)","v":"A1"},null,"DVActiveCell"]
[]
[null,null,null,null,null,null,{"$f":"G17","v":"Category"},{"$f":"H17","v":"Product"},"Color","Size"]
[null,null,null,null,null,null,{"$f":"INDIRECT(ADDRESS(CELL(\"row\"),COLUMN(_xlfn.XLOOKUP(G33,$F$17:$M$17,$F$17:$M$17))))","v":0},{"$f":"INDIRECT(ADDRESS(CELL(\"row\"),COLUMN(_xlfn.XLOOKUP(H33,$F$17:$M$17,$F$17:$M$17))))","v":0},{"$f":"INDIRECT(ADDRESS(CELL(\"row\"),COLUMN(_xlfn.XLOOKUP(I33,$F$17:$M$17,$F$17:$M$17))))","v":0},{"$f":"INDIRECT(ADDRESS(CELL(\"row\"),COLUMN(_xlfn.XLOOKUP(J33,$F$17:$M$17,$F$17:$M$17))))","v":0}]
[]
[null,null,null,null,null,null,"DVCategoriesList","DVProductList","DVColorsList","DVSizeList"]
[null,null,null,null,null,null,{"$f":"G17","v":"Category"},{"$f":"H17","v":"Product"},"Color","Size"]
[null,null,null,null,null,null,{"$f":"_xlfn._xlws.SORT(_xlfn.UNIQUE(tblProducts[Category]))","v":"Accessories"},{"$f":"_xlfn._xlws.SORT(_xlfn.UNIQUE(_xlfn._xlws.FILTER(tblProducts[ProductName],tblProducts[Category]=G34,\"Pick category first\")))","v":"Pick category first"},{"$f":"_xlfn._xlws.SORT(_xlfn.UNIQUE(_xlfn._xlws.FILTER(tblProducts[Color],(tblProducts[Category]=G34)*(tblProducts[ProductName]=H34),\"Pick product first\")))","v":"Pick product first"},{"$f":"_xlfn._xlws.SORT(_xlfn.UNIQUE(_xlfn._xlws.FILTER(tblProducts[SizeDesc],(tblProducts[Category]=G34)*(tblProducts[ProductName]=H34)*(tblProducts[Color]=I34),\"Pick color first\")))","v":"Pick color first"}]
[null,null,null,null,null,null,"Air Conditioner"]
[null,null,null,null,null,null,"Camera add-ons"]
[null,null,null,null,null,null,"Car video"]
[null,null,null,null,null,null,"Coffee Maker"]
[null,null,null,null,null,null,"Desktop"]
[null,null,null,null,null,null,"Digital Camera"]
[null,null,null,null,null,null,"Display"]
[null,null,null,null,null,null,"DVD"]
[null,null,null,null,null,null,"DVD Player"]
[null,null,null,null,null,null,"Fan"]
[null,null,null,null,null,null,"Game"]
[null,null,null,null,null,null,"Game device"]
[null,null,null,null,null,null,"Headphones"]
[null,null,null,null,null,null,"Home Theater"]
[null,null,null,null,null,null,"Lamp"]
[null,null,null,null,null,null,"Laptop"]
[null,null,null,null,null,null,"Microwave"]
[null,null,null,null,null,null,"Personal audio"]
[null,null,null,null,null,null,"Phone"]
[null,null,null,null,null,null,"Phone - touch"]
[null,null,null,null,null,null,"Phone case"]
[null,null,null,null,null,null,"Printer"]
[null,null,null,null,null,null,"Refrigerator"]
[null,null,null,null,null,null,"SLR Camera"]
[null,null,null,null,null,null,"Smart Phone"]
[null,null,null,null,null,null,"Sound system"]
[null,null,null,null,null,null,"TV"]
[null,null,null,null,null,null,"Video camera"]
[null,null,null,null,null,null,"Video Equipment"]
[null,null,null,null,null,null,"Washer/Dryer"]
[null,null,null,null,null,null,"Water Heater"]

{"sheet":"Multi-input Dependent DV","index":6,"n_rows":69,"n_cols":13,"rows_kept":69,"cut":false,"hidden":false,"merged":[[2,0,2,4]]}
[{"$f":"IF(ISERROR(RIGHT(CELL(\"filename\",A1),LEN(CELL(\"filename\",A1))-FIND(\"]\",CELL(\"filename\",A1)))),\n\"\",\nRIGHT(CELL(\"filename\",A1),LEN(CELL(\"filename\",A1))-FIND(\"]\",CELL(\"filename\",A1))))","v":"Multi-input Dependent DV"}]
[{"$f":"Model_Name","v":"SP Multi-input Dependent DV Food.xlsm"}]
["Navigator"]
[null,null,null,null,"Error Checks:",null,null,null,{"$f":"Overall_Error_Check","v":0}]
[]
[null,{"$f":"MAX($B$5:$B5)+1","v":1},{"$f":"A1","v":"Multi-input Dependent DV"}]
[]
[null,null,"Example"]
[null,null,null,null,null,null,null,null,{"$f":"GESTEP(15, 15)","v":1}]
[null,null,null,"For each row, select Category, then Product, Color and Size."]
[null,null,null,"Quantity can be entered at any time. Please only change yellow 'Assumptions' cells, the others are automatic."]
[null,null,null,"If any cells are highlighted in red, start with the Category for that row, then select Product, Color and Size."]
[]
[null,null,null,null,null,"Customer:"]
[null,null,null,null,null,"Project:",null,null,"Ship to: "]
[]
[null,null,null,null,null,"Quantity","Category","Product","Color","Size","Brand","Unit Price","Ext. Price"]
[null,null,null,null,null,3,"Coffee Maker","Brushed nickel two light wall sconce, mount up or down","Blue","5 x 4 x 6.5",{"$f":"_xlfn.XLOOKUP(_xlfn.CONCAT($G18:$J18),tblProducts[Category]&tblProducts[ProductName]&tblProducts[Color]&tblProducts[SizeDesc],tblProducts[Brand],\"\")","v":""},{"$f":"_xlfn.XLOOKUP(_xlfn.CONCAT($G18:$J18),tblProducts[Category]&tblProducts[ProductName]&tblProducts[Color]&tblProducts[SizeDesc],tblProducts[Price],\"\")","v":""},{"$f":"IF(L18<>\"\",MAX(F18,1)*L18,\"\")","v":""}]
[null,null,null,null,null,1,"Air Conditioner","25,000-BTU air conditioner for large rooms up to 1672 square feet","Grey","19 x 34 x 21.7",{"$f":"_xlfn.XLOOKUP(_xlfn.CONCAT($G19:$J19),tblProducts[Category]&tblProducts[ProductName]&tblProducts[Color]&tblProducts[SizeDesc],tblProducts[Brand],\"\")","v":"Proseware"},{"$f":"_xlfn.XLOOKUP(_xlfn.CONCAT($G19:$J19),tblProducts[Category]&tblProducts[ProductName]&tblProducts[Color]&tblProducts[SizeDesc],tblProducts[Price],\"\")","v":635.99},{"$f":"IF(L19<>\"\",MAX(F19,1)*L19,\"\")","v":635.99}]
[null,null,null,null,null,null,"Accessories","33 ft range, recharges while in use.","Grey","Blu",{"$f":"_xlfn.XLOOKUP(_xlfn.CONCAT($G20:$J20),tblProducts[Category]&tblProducts[ProductName]&tblProducts[Color]&tblProducts[SizeDesc],tblProducts[Brand],\"\")","v":"Southridge Video"},{"$f":"_xlfn.XLOOKUP(_xlfn.CONCAT($G20:$J20),tblProducts[Category]&tblProducts[ProductName]&tblProducts[Color]&tblProducts[SizeDesc],tblProducts[Price],\"\")","v":59.99},59.99]
[null,null,null,null,null,null,null,null,null,null,{"$f":"_xlfn.XLOOKUP(_xlfn.CONCAT($G21:$J21),tblProducts[Category]&tblProducts[ProductName]&tblProducts[Color]&tblProducts[SizeDesc],tblProducts[Brand],\"\")","v":""},{"$f":"_xlfn.XLOOKUP(_xlfn.CONCAT($G21:$J21),tblProducts[Category]&tblProducts[ProductName]&tblProducts[Color]&tblProducts[SizeDesc],tblProducts[Price],\"\")","v":""},""]
[null,null,null,null,null,null,null,null,null,null,{"$f":"_xlfn.XLOOKUP(_xlfn.CONCAT($G22:$J22),tblProducts[Category]&tblProducts[ProductName]&tblProducts[Color]&tblProducts[SizeDesc],tblProducts[Brand],\"\")","v":""},{"$f":"_xlfn.XLOOKUP(_xlfn.CONCAT($G22:$J22),tblProducts[Category]&tblProducts[ProductName]&tblProducts[Color]&tblProducts[SizeDesc],tblProducts[Price],\"\")","v":""},{"$f":"IF(L22<>\"\",MAX(F22,1)*L22,\"\")","v":""}]
[null,null,null,null,null,null,null,null,null,null,{"$f":"_xlfn.XLOOKUP(_xlfn.CONCAT($G23:$J23),tblProducts[Category]&tblProducts[ProductName]&tblProducts[Color]&tblProducts[SizeDesc],tblProducts[Brand],\"\")","v":""},{"$f":"_xlfn.XLOOKUP(_xlfn.CONCAT($G23:$J23),tblProducts[Category]&tblProducts[ProductName]&tblProducts[Color]&tblProducts[SizeDesc],tblProducts[Price],\"\")","v":""},""]
[null,null,null,null,null,null,null,null,null,null,{"$f":"_xlfn.XLOOKUP(_xlfn.CONCAT($G24:$J24),tblProducts[Category]&tblProducts[ProductName]&tblProducts[Color]&tblProducts[SizeDesc],tblProducts[Brand],\"\")","v":""},{"$f":"_xlfn.XLOOKUP(_xlfn.CONCAT($G24:$J24),tblProducts[Category]&tblProducts[ProductName]&tblProducts[Color]&tblProducts[SizeDesc],tblProducts[Price],\"\")","v":""},""]
[]
[null,null,null,null,null,"Overall",{"$f":"MIN(1, SUM((G18:G24&H18:H24&I18:I24&J18:J24<>\"\")*ISNA(_xlfn.XMATCH(G18:G24&H18:H24&I18:I24&J18:J24,Col_Category&Col_Product&Col_Color&Col_Size))))","v":1}]
[]
[]
[null,null,"Workings"]
[null,null,null,null,null,null,"CELL(\"address\")",{"$f":"CELL(\"address\")","v":"'[SP Multi-input Dependent DV Food.xlsm]Cover'!$A$1"}]
[null,null,null,null,null,null,"Last Active Cell",{"$f":"\"'\"&IF($A$1=\"\",\"Multi-input Dependent DV\",$A$1)&\"'!\"&ADDRESS(CELL(\"row\"),CELL(\"col\"),4)","v":"'Multi-input Dependent DV'!A1"},null,"DVActiveCell"]
[]
[null,null,null,null,null,null,{"$f":"G17","v":"Category"},{"$f":"H17","v":"Product"},"Color","Size"]
[null,null,null,null,null,null,{"$f":"INDIRECT(\"'\"&IF($A$1=\"\",\"Multi-input Dependent DV\",$A$1)&\"'!\"&ADDRESS(CELL(\"row\"),COLUMN(_xlfn.XLOOKUP(G33,'Multi-input Dependent DV'!$F$17:$M$17,'Multi-input Dependent DV'!$F$17:$M$17))))","v":0},{"$f":"INDIRECT(\"'\"&IF($A$1=\"\",\"Multi-input Dependent DV\",$A$1)&\"'!\"&ADDRESS(CELL(\"row\"),COLUMN(_xlfn.XLOOKUP(H33,'Multi-input Dependent DV'!$F$17:$M$17,'Multi-input Dependent DV'!$F$17:$M$17))))","v":0},{"$f":"INDIRECT(\"'\"&IF($A$1=\"\",\"Multi-input Dependent DV\",$A$1)&\"'!\"&ADDRESS(CELL(\"row\"),COLUMN(_xlfn.XLOOKUP(I33,'Multi-input Dependent DV'!$F$17:$M$17,'Multi-input Dependent DV'!$F$17:$M$17))))","v":0},{"$f":"INDIRECT(\"'\"&IF($A$1=\"\",\"Multi-input Dependent DV\",$A$1)&\"'!\"&ADDRESS(CELL(\"row\"),COLUMN(_xlfn.XLOOKUP(J33,'Multi-input Dependent DV'!$F$17:$M$17,'Multi-input Dependent DV'!$F$17:$M$17))))","v":0}]
[]
[null,null,null,null,null,null,"DVCategoriesList","DVProductList","DVColorsList","DVSizeList"]
[null,null,null,null,null,null,{"$f":"G17","v":"Category"},{"$f":"H17","v":"Product"},"Color","Size"]
[null,null,null,null,null,null,{"$f":"_xlfn._xlws.SORT(_xlfn.UNIQUE(tblProducts[Category]))","v":"Accessories"},{"$f":"_xlfn._xlws.SORT(_xlfn.UNIQUE(_xlfn._xlws.FILTER(tblProducts[ProductName],tblProducts[Category]=G34,\"Pick category first\")))","v":"Pick category first"},{"$f":"_xlfn._xlws.SORT(_xlfn.UNIQUE(_xlfn._xlws.FILTER(tblProducts[Color],(tblProducts[Category]=G34)*(tblProducts[ProductName]=H34),\"Pick product first\")))","v":"Pick product first"},{"$f":"_xlfn._xlws.SORT(_xlfn.UNIQUE(_xlfn._xlws.FILTER(tblProducts[SizeDesc],(tblProducts[Category]=G34)*(tblProducts[ProductName]=H34)*(tblProducts[Color]=I34),\"Pick color first\")))","v":"Pick color first"}]
[null,null,null,null,null,null,"Air Conditioner"]
[null,null,null,null,null,null,"Camera add-ons"]
[null,null,null,null,null,null,"Car video"]
[null,null,null,null,null,null,"Coffee Maker"]
[null,null,null,null,null,null,"Desktop"]
[null,null,null,null,null,null,"Digital Camera"]
[null,null,null,null,null,null,"Display"]
[null,null,null,null,null,null,"DVD"]
[null,null,null,null,null,null,"DVD Player"]
[null,null,null,null,null,null,"Fan"]
[null,null,null,null,null,null,"Game"]
[null,null,null,null,null,null,"Game device"]
[null,null,null,null,null,null,"Headphones"]
[null,null,null,null,null,null,"Home Theater"]
[null,null,null,null,null,null,"Lamp"]
[null,null,null,null,null,null,"Laptop"]
[null,null,null,null,null,null,"Microwave"]
[null,null,null,null,null,null,"Personal audio"]
[null,null,null,null,null,null,"Phone"]
[null,null,null,null,null,null,"Phone - touch"]
[null,null,null,null,null,null,"Phone case"]
[null,null,null,null,null,null,"Printer"]
[null,null,null,null,null,null,"Refrigerator"]
[null,null,null,null,null,null,"SLR Camera"]
[null,null,null,null,null,null,"Smart Phone"]
[null,null,null,null,null,null,"Sound system"]
[null,null,null,null,null,null,"TV"]
[null,null,null,null,null,null,"Video camera"]
[null,null,null,null,null,null,"Video Equipment"]
[null,null,null,null,null,null,"Washer/Dryer"]
[null,null,null,null,null,null,"Water Heater"]

{"sheet":"Multi-input data","index":7,"n_rows":2530,"n_cols":11,"rows_kept":2530,"cut":false,"hidden":false,"merged":[[2,0,2,3]]}
[{"$f":"IF(ISERROR(RIGHT(CELL(\"filename\",A1),LEN(CELL(\"filename\",A1))-FIND(\"]\",CELL(\"filename\",A1)))),\n\"\",\nRIGHT(CELL(\"filename\",A1),LEN(CELL(\"filename\",A1))-FIND(\"]\",CELL(\"filename\",A1))))","v":"Multi-input data"}]
[{"$f":"Model_Name","v":"SP Multi-input Dependent DV Food.xlsm"}]
["Navigator"]
[null,null,null,null,"Error Checks:",null,null,{"$f":"Overall_Error_Check","v":0}]
[]
[null,{"$f":"MAX($B$5:$B5)+1","v":1},"Source Data"]
[]
[null,null,"Assumptions"]
[]
[null,null,null,null,null,{"$f":"\"For Use with \"&A1","v":"For Use with Multi-input data"},{"$f":"CELL(\"address\")","v":"'[SP Multi-input Dependent DV Food.xlsm]Cover'!$A$1"}]
[]
[]
[null,null,null,null,"Category","Brand","ProductName","Description","Color","SizeDesc","Price"]
[null,null,null,null,"Personal audio","Contoso","512MB USB driver plays MP3 and WMA","Contoso 512MB MP3 Player E51 Silver","Silver","2.2 x 1.8 x 4 ",12.99]
[null,null,null,null,"Personal audio","Contoso","512MB USB driver plays MP3 and WMA","Contoso 512MB MP3 Player E51 Blue","Blue","2.2 x 1.8 x 4 ",12.99]
[null,null,null,null,"Personal audio","Contoso","1GB flash memory and USB driver plays MP3 and WMA","Contoso 1G MP3 Player E100 White","White","2.2  x 2.2  x 4 ",14.52]
[null,null,null,null,"Personal audio","Contoso","2GB flash memory, LCD display, plays MP3 and WMA","Contoso 2G MP3 Player E200 Silver","Silver","2.2  x 2.2  x 4 ",21.57]
[null,null,null,null,"Personal audio","Contoso","2GB flash memory, LCD display, plays MP3 and WMA","Contoso 2G MP3 Player E200 Red","Red","3.7 x 0.6 x 2.2",21.57]
[null,null,null,null,"Personal audio","Contoso","2GB flash memory, LCD display, plays MP3 and WMA","Contoso 2G MP3 Player E200 Black","Black","1.6 x 0.4 x 3.7",21.57]
[null,null,null,null,"Personal audio","Contoso","2GB flash memory, LCD display, plays MP3 and WMA","Contoso 2G MP3 Player E200 Blue","Blue","2.2 x 1.5 x 0.6 ",21.57]
[null,null,null,null,"Personal audio","Contoso","4GB flash memory and FM Radio, LCD Display with 7-Color Backlight, plays MP3 and WMA","Contoso 4G MP3 Player E400 Silver","Silver","0.8 x 3.6 x 1.1",59.99]
[null,null,null,null,"Personal audio","Contoso","4GB flash memory and FM Radio, LCD Display with 7-Color Backlight, plays MP3 and WMA","Contoso 4G MP3 Player E400 Black","Black","3.1 x 1.9 x 0.3",59.99]
[null,null,null,null,"Personal audio","Contoso","4GB flash memory and FM Radio, LCD Display with 7-Color Backlight, plays MP3 and WMA","Contoso 4G MP3 Player E400 Green","Green","2.3 x 0.3 x 4",59.99]
[null,null,null,null,"Personal audio","Contoso","4GB flash memory and FM Radio, LCD Display with 7-Color Backlight, plays MP3 and WMA","Contoso 4G MP3 Player E400 Orange","Orange","2.2 x 0.6 x 1.4",59.99]
[null,null,null,null,"Personal audio","Contoso","1.8'' color LCD, play MP3, WMA and Video MTV, and share JPG","Contoso 4GB Flash MP3 Player E401 Blue","Blue","0.8 x 3.6 x 1.1",77.680000000000007]
[null,null,null,null,"Personal audio","Contoso","1.8'' color LCD, play MP3, WMA and Video MTV, and share JPG","Contoso 4GB Flash MP3 Player E401 Black","Black","1.7 x 3.5 x 0.5",77.680000000000007]
[null,null,null,null,"Personal audio","Contoso","1.8'' color LCD, play MP3, WMA and Video MTV, and share JPG","Contoso 4GB Flash MP3 Player E401 Silver","Silver","0.4 x 1.6 x 3.6",77.680000000000007]
[null,null,null,null,"Personal audio","Contoso","1.8'' color LCD, play MP3, WMA and Video MTV, and share JPG","Contoso 4GB Flash MP3 Player E401 White","White","3.26 x 2.16 x .44",77.680000000000007]
[null,null,null,null,"Personal audio","Contoso","2\" color LCD, Touchpad, Plays music, video, photos and text","Contoso 8GB Super-Slim MP3/Video Player M800 White","White","3.8 x 0.6 x 2.2",109.95]
[null,null,null,null,"Personal audio","Contoso","2\" color LCD, Touchpad, Plays music, video, photos and text","Contoso 8GB Super-Slim MP3/Video Player M800 Red","Red","3.8 x 0.6 x 2.2",109.95]
[null,null,null,null,"Personal audio","Contoso","2\" color LCD, Touchpad, Plays music, video, photos and text","Contoso 8GB Super-Slim MP3/Video Player M800 Green","Green","3.1 x 1.9 x 0.3",109.95]
[null,null,null,null,"Personal audio","Contoso","2\" color LCD, Touchpad, Plays music, video, photos and text","Contoso 8GB Super-Slim MP3/Video Player M800 Pink","Pink","1.4 x 5 x 7",109.95]
[null,null,null,null,"Personal audio","Contoso","2'' LCD with blue-white LED, 320x240-pixel, plays music, video, photos and text, display JPEG, BMP, GIF, TIFF and PNG  ","Contoso 8GB MP3 Player new model M820 Black","Black","5.5 x 1.7 x 5.3",134]
[null,null,null,null,"Personal audio","Contoso","2'' LCD with blue-white LED, 320x240-pixel, plays music, video, photos and text, display JPEG, BMP, GIF, TIFF and PNG  ","Contoso 8GB MP3 Player new model M820 Blue","Blue","2.2 x 1.4 x 0.6",134]
[null,null,null,null,"Personal audio","Contoso","2'' LCD with blue-white LED, 320x240-pixel, plays music, video, photos and text, display JPEG, BMP, GIF, TIFF and PNG  ","Contoso 8GB MP3 Player new model M820 Yellow","Yellow","2.2 x 1.4 x 0.6",134]
[null,null,null,null,"Personal audio","Contoso","2'' LCD with blue-white LED, 320x240-pixel, plays music, video, photos and text, display JPEG, BMP, GIF, TIFF and PNG  ","Contoso 8GB MP3 Player new model M820 White","White","3.5 x 1.7 x 0.5",134]
[null,null,null,null,"Personal audio","Contoso","3\" 16:9 TFT Touch screen, 16GB flash memory, plays AVI/RM/RMVB/FLV","Contoso 16GB Mp5 Player M1600 Blue","Blue","3.8 x 0.6 x 2.2",199.9]
[null,null,null,null,"Personal audio","Contoso","3\" 16:9 TFT Touch screen, 16GB flash memory, plays AVI/RM/RMVB/FLV","Contoso 16GB Mp5 Player M1600 Black","Black","1.4 x 5 x 7",199.9]
[null,null,null,null,"Personal audio","Contoso","3\" 16:9 TFT Touch screen, 16GB flash memory, plays AVI/RM/RMVB/FLV","Contoso 16GB Mp5 Player M1600 Green","Green","0.6 x 1.5 x 2.2",199.9]
[null,null,null,null,"Personal audio","Contoso","3\" 16:9 TFT Touch screen, 16GB flash memory, plays AVI/RM/RMVB/FLV","Contoso 16GB Mp5 Player M1600 White","White","2.2 x 1.4 x 0.6",199.9]
[null,null,null,null,"Personal audio","Contoso","3\" 16:9 TFT Touch screen, 16GB flash memory, plays AVI/RM/RMVB/FLV","Contoso 16GB Mp5 Player M1600 Red","Red","1.2 x 0.8 x 2.8",199.9]
[null,null,null,null,"Personal audio","Contoso","4.3'' Touch screen, 32GB flash memory, beyond 30 hours battery life","Contoso 32GB Video MP3 Player M3200 White","White","1 x 1.6 x 3.7",255]
[null,null,null,null,"Personal audio","Contoso","4.3'' Touch screen, 32GB flash memory, beyond 30 hours battery life","Contoso 32GB Video MP3 Player M3200 Red","Red","2.2 x 1.5 x 0.6",255]
[null,null,null,null,"Personal audio","Contoso","4.3'' Touch screen, 32GB flash memory, beyond 30 hours battery life","Contoso 32GB Video MP3 Player M3200 Orange","Orange","2.6 x 2.5 x 0.6",255]
[null,null,null,null,"Personal audio","Contoso","4.3'' Touch screen, 32GB flash memory, beyond 30 hours battery life","Contoso 32GB Video MP3 Player M3200 Pink","Pink","0.7 x 3.6 x 2.8",255]
[null,null,null,null,"Personal audio","Contoso","4.3'' Touch screen, 32GB flash memory, beyond 30 hours battery life","Contoso 32GB Video MP3 Player M3200 Black","Black","2.8 x 1.6 x 0.2",255]
[null,null,null,null,"Personal audio","Contoso","4GB built in memory, USB driver and earphone, play MP3, WMA","Contoso 4GB Portable MP3 Player M450 Black","Black","1.07 x 1.62 x 0.41",95.95]
[null,null,null,null,"Personal audio","Contoso","4GB built in memory, USB driver and earphone, play MP3, WMA","Contoso 4GB Portable MP3 Player M450 White","White","9.2 x 7 x 1.8",95.95]
[null,null,null,null,"Personal audio","Contoso","4GB built in memory, USB driver and earphone, play MP3, WMA","Contoso 4GB Portable MP3 Player M450 Yellow","Yellow","3.5 x 2 x 0.5",95.95]
[null,null,null,null,"Personal audio","Contoso","2.6'' Touch screen, 8GB flash memory, clock and radio, plays AVI/RM/RMVB","Contoso 8GB Clock & Radio MP3 Player X850 Silver","Silver","3.5 x 1.6 x 0.3",299.23]
[null,null,null,null,"Personal audio","Contoso","2.6'' Touch screen, 8GB flash memory, clock and radio, plays AVI/RM/RMVB","Contoso 8GB Clock & Radio MP3 Player X850 Black","Black","9 x 2 x 8",299.23]
[null,null,null,null,"Personal audio","Contoso","2.6'' Touch screen, 8GB flash memory, clock and radio, plays AVI/RM/RMVB","Contoso 8GB Clock & Radio MP3 Player X850 Green","Green","0.3 x 2.4 x 4.1",299.23]
[null,null,null,null,"Personal audio","Contoso","2.6'' Touch screen, 8GB flash memory, clock and radio, plays AVI/RM/RMVB","Contoso 8GB Clock & Radio MP3 Player X850 Blue","Blue","4.1 x 2.4 x 0.4",299.23]
[null,null,null,null,"Personal audio","Contoso","2.4'' LCD Touch screen, 8GB flash memory, plays music, video, photos and text, share JPEG, BMP, GIF, TIFF","Contoso 16GB New Generation MP5 Player M1650 Silver","Silver","2.4 x 0.3 x 4.1",232]
[null,null,null,null,"Personal audio","Contoso","2.4'' LCD Touch screen, 8GB flash memory, plays music, video, photos and text, share JPEG, BMP, GIF, TIFF","Contoso 16GB New Generation MP5 Player M1650 White","White","12.9 x 61.1 x 108.2",232]
[null,null,null,null,"Personal audio","Contoso","2.4'' LCD Touch screen, 8GB flash memory, plays music, video, photos and text, share JPEG, BMP, GIF, TIFF","Contoso 16GB New Generation MP5 Player M1650 Black","Black","2.2 x 0.6 x 1.4",232]
[null,null,null,null,"Personal audio","Contoso","2.4'' LCD Touch screen, 8GB flash memory, plays music, video, photos and text, share JPEG, BMP, GIF, TIFF","Contoso 16GB New Generation MP5 Player M1650 blue","blue","2.2 x 1.8 x 4",232]
[null,null,null,null,"Personal audio","Contoso","2.4'' LCD Touch screen, 8GB flash memory, plays music, video, photos and text, share JPEG, BMP, GIF, TIFF","Contoso 16GB New Generation MP5 Player M1650 Pink","Pink","4.1 x 2.4 x 0.4",232]
[null,null,null,null,"Video camera","Wide World Importers","Record and link audio to be written, listen to recordings, share notes and recording with computer","WWI 1GB Pulse Smart pen E50 White","White","6 x 0.5 x 0.5",149.94999999999999]
[null,null,null,null,"Video camera","Wide World Importers","Record and link audio to be written, listen to recordings, share notes and recording with computer","WWI 1GBPulse Smart pen E50 Black","Black","6 x 0.5 x 0.5",149.94999999999999]
[null,null,null,null,"Video camera","Wide World Importers","Record and link audio to be written, listen to recordings, share notes and recording with computer","WWI 1GB Pulse Smart pen E50 Silver","Silver","150X1x15",149.94999999999999]
[null,null,null,null,"Video camera","Wide World Importers","Record and link audio to be written, listen to recordings, share notes and recording with computer","WWI 2GB Pulse Smart pen M100 White","White","5.1  x 2.4  x 3.9 ",199.95]
[null,null,null,null,"Video camera","Wide World Importers","Record and link audio to be written, listen to recordings, share notes and recording with computer","WWI 2GB Pulse Smart pen M100 Black","Black","3.8 x 5.5 x 1.8",199.95]
[null,null,null,null,"Video camera","Wide World Importers","Record and link audio to be written, listen to recordings, share notes and recording with computer","WWI 2GB Pulse Smart pen M100 Blue","Blue","6 x 0.5 x 0.5",199.95]
[null,null,null,null,"Video camera","Wide World Importers","Record and link audio to be written, listen to recordings, share notes and recording with computer","WWI 2GB Pulse Smart pen M100 Silver","Silver","6 x 0.5 x 0.5",199.95]
[null,null,null,null,"Video camera","Wide World Importers","640 x 480 VGA audio video pen, business portable recorder, about 3 hours recording","WWI 4GB Video Recording Pen X200 Black","Black","150X1x15",296]
[null,null,null,null,"Video camera","Wide World Importers","640 x 480 VGA audio video pen, business portable recorder, about 3 hours recording","WWI 4GB Video Recording Pen X200 Red","Red","5.1  x 2.4  x 3.9 ",296]
[null,null,null,null,"Video camera","Wide World Importers","640 x 480 VGA audio video pen, business portable recorder, about 3 hours recording","WWI 4GB Video Recording Pen X200 Pink","Pink","3.8 x 5.5 x 1.8",296]
[null,null,null,null,"Video camera","Wide World Importers","640 x 480 VGA audio video pen, business portable recorder, about 3 hours recording","WWI 4GB Video Recording Pen X200 Yellow","Yellow","2.5 x 0.5 x 1",296]
[null,null,null,null,"Video camera","Wide World Importers","Voice recorder, MP3 player, USB flash drive, 64 hours recording","WWI 1GB Digital Voice Recorder Pen E100 Black","Black","150X1x15",156]
[null,null,null,null,"Video camera","Wide World Importers","Voice recorder, MP3 player, USB flash drive, 64 hours recording","WWI 1GB Digital Voice Recorder Pen E100 Red","Red","6 x 0.5 x 0.5",156]
[null,null,null,null,"Video camera","Wide World Importers","Voice recorder, MP3 player, USB flash drive, 64 hours recording","WWI 1GB Digital Voice Recorder Pen E100 Pink","Pink","6 x 0.5 x 0.5",156]
[null,null,null,null,"Video camera","Wide World Importers","Voice recorder, MP3 player, USB flash drive, 64 hours recording","WWI 1GB Digital Voice Recorder Pen E100 White","White","150X1x15",156]
[null,null,null,null,"Video camera","Wide World Importers","2GB flash memory, USB driver, continuous recording until memory full, as spy cameras, hidden cameras","WWI 2GB Spy Video Recorder Pen M300 Black","Black","5.1  x 2.4  x 3.9 ",181]
[null,null,null,null,"Video camera","Wide World Importers","2GB flash memory, USB driver, continuous recording until memory full, as spy cameras, hidden cameras","WWI 2GB Spy Video Recorder Pen M300 White","White","3.8 x 5.5 x 1.8",181]
[null,null,null,null,"Video camera","Wide World Importers","2GB flash memory, USB driver, continuous recording until memory full, as spy cameras, hidden cameras","WWI 2GB Spy Video Recorder Pen M300 Blue","Blue","6 x 0.5 x 0.5",181]
[null,null,null,null,"Video camera","Wide World Importers","2GB flash memory, USB driver, continuous recording until memory full, as spy cameras, hidden cameras","WWI 2GB Spy Video Recorder Pen M300 Silver","Silver","6 x 0.5 x 0.5",181]
[null,null,null,null,"Video camera","Wide World Importers","2GB flash memory, USB driver, continuous recording until memory full, as spy cameras, hidden cameras","WWI 2GB Spy Video Recorder Pen M300 Purple","Purple","150X1x15",181]
[null,null,null,null,"Headphones","Northwind Traders","Seamlessly integrates wireless mobile music and calls","NT Bluetooth Stereo Headphones E52 Blue","Blue","5.1 x 1.8 x 4.9",25.69]
[null,null,null,null,"Headphones","Northwind Traders","Seamlessly integrates wireless mobile music and calls","NT Bluetooth Stereo Headphones E52 Black","Black","9 x 6.8 x 4.3",25.69]
[null,null,null,null,"Headphones","Northwind Traders","Seamlessly integrates wireless mobile music and calls","NT Bluetooth Stereo Headphones E52 Yellow","Yellow","1 x 1 x 1",25.69]
[null,null,null,null,"Headphones","Northwind Traders","Seamlessly integrates wireless mobile music and calls","NT Bluetooth Stereo Headphones E52 Pink","Pink","9 x 6.8 x 4.3",25.69]
[null,null,null,null,"Headphones","Northwind Traders","Wireless range beyond 10 meters, MP3-quality stereo sound","NT Wireless Bluetooth Stereo Headphones E102 Silver","Silver","8 x 6.7 x 2.2",47.95]
[null,null,null,null,"Headphones","Northwind Traders","Wireless range beyond 10 meters, MP3-quality stereo sound","NT Wireless Bluetooth Stereo Headphones E102 Black","Black","5 x 9 x 7",47.95]
[null,null,null,null,"Headphones","Northwind Traders","Wireless range beyond 10 meters, MP3-quality stereo sound","NT Wireless Bluetooth Stereo Headphones E102 Blue","Blue","5 x 9 x 7",47.95]
[null,null,null,null,"Headphones","Northwind Traders","Wireless range beyond 10 meters, MP3-quality stereo sound","NT Wireless Bluetooth Stereo Headphones E102 White","White","5.7 x 3.6 x 9.2",47.95]
[null,null,null,null,"Headphones","Northwind Traders","Wireless range up10 meters, beyond 7-hour talking time.","NT Bluetooth Active Headphones E202 Black","Black","5 x 6 x 2",37.950000000000003]
[null,null,null,null,"Headphones","Northwind Traders","Wireless range up10 meters, beyond 7-hour talking time.","NT Bluetooth Active Headphones E202 White","White","10.4 x 8.1 x 3.1",37.950000000000003]
[null,null,null,null,"Headphones","Northwind Traders","Wireless range up10 meters, beyond 7-hour talking time.","NT Bluetooth Active Headphones E202 Red","Red","5.6 x 3.5 x 9.1",37.950000000000003]
[null,null,null,null,"Headphones","Northwind Traders","Wireless range up10 meters, beyond 7-hour talking time.","NT Bluetooth Active Headphones E202 Silver","Silver","1.81x 3.5 x  0.86 ",37.950000000000003]
[null,null,null,null,"Headphones","Northwind Traders","Built-In Microphone, integrated headphone button to play/pause","NT Wireless Bluetooth Stereo Headphones E302 Silver","Silver","5.5x 6.5 x 2.5",40.549999999999997]
[null,null,null,null,"Headphones","Northwind Traders","Built-In Microphone, integrated headphone button to play/pause","NT Wireless Bluetooth Stereo Headphones E302 White","White","10.4 x 5.3 x 2.3",40.549999999999997]
[null,null,null,null,"Headphones","Northwind Traders","Built-In Microphone, integrated headphone button to play/pause","NT Wireless Bluetooth Stereo Headphones E302 Yellow","Yellow","5 x 5 x 2",40.549999999999997]
[null,null,null,null,"Headphones","Northwind Traders","Built-In Microphone, integrated headphone button to play/pause","NT Wireless Bluetooth Stereo Headphones E302 Black","Black","1.81x 1 x 0.86",40.549999999999997]
[null,null,null,null,"Headphones","Northwind Traders","Built-In Microphone, integrated headphone button to play/pause","NT Wireless Bluetooth Stereo Headphones E302 Pink","Pink","9.7 x 5.2 x 2.7",40.549999999999997]
[null,null,null,null,"Headphones","Northwind Traders","Wireless range extends to 165 feet, beyond 8 hours per charge","NT Wireless Bluetooth Stereo Headphones M402 Silver","Silver","2.8 x 9 x 6.3",99.99]
[null,null,null,null,"Headphones","Northwind Traders","Wireless range extends to 165 feet, beyond 8 hours per charge","NT Wireless Bluetooth Stereo Headphones M402 Red","Red","11 x 7.7 x 2.5",99.99]
[null,null,null,null,"Headphones","Northwind Traders","Wireless range extends to 165 feet, beyond 8 hours per charge","NT Wireless Bluetooth Stereo Headphones M402 Green","Green","5.9 x 5.5 x 2.4",99.99]
[null,null,null,null,"Headphones","Northwind Traders","Wireless range extends to 165 feet, beyond 8 hours per charge","NT Wireless Bluetooth Stereo Headphones M402 Black","Black","5.9 x 5.5 x 2.4",99.99]
[null,null,null,null,"Headphones","Northwind Traders","Wireless range extends to 165 feet, beyond 8 hours per charge","NT Wireless Bluetooth Stereo Headphones M402 Purple","Purple","12 x 7.5 x 2.7",99.99]
[null,null,null,null,"Headphones","Northwind Traders","Seamlessly switch between music and calls, integrated ouch sensitive play-answer-end and volume controls","NT Wireless Transmitter and Bluetooth Headphones M150 Black","Black","10 x 8 x 3",149.99]
[null,null,null,null,"Headphones","Northwind Traders","Seamlessly switch between music and calls, integrated ouch sensitive play-answer-end and volume controls","NT Wireless Transmitter and Bluetooth Headphones M150 Blue","Blue","4 x 2.5 x 0.8",149.99]
[null,null,null,null,"Headphones","Northwind Traders","Seamlessly switch between music and calls, integrated ouch sensitive play-answer-end and volume controls","NT Wireless Transmitter and Bluetooth Headphones M150 Silver","Silver","4.5 x 8.4 x 2.6",149.99]
[null,null,null,null,"Headphones","Northwind Traders","Seamlessly switch between music and calls, integrated ouch sensitive play-answer-end and volume controls","NT Wireless Transmitter and Bluetooth Headphones M150 Green","Green","9 x 8 x 3.8",149.99]
[null,null,null,null,"Headphones","Northwind Traders","Seamlessly switch between music and calls, integrated ouch sensitive play-answer-end and volume controls","NT Wireless Transmitter and Bluetooth Headphones M150 Red","Red","6 x 4 x 10",149.99]
[null,null,null,null,"Headphones","Wide World Importers","Wireless headphones with 120 ft range, built-in microphone","WWI Stereo Bluetooth Headphones E1000 Blue","Blue","12.2 x 8.8 x 5.5",67.400000000000006]
[null,null,null,null,"Headphones","Wide World Importers","Wireless headphones with 120 ft range, built-in microphone","WWI Stereo Bluetooth Headphones E1000 Black","Black","4 x 1.9 x 7.7",67.400000000000006]
[null,null,null,null,"Headphones","Wide World Importers","Wireless headphones with 120 ft range, built-in microphone","WWI Stereo Bluetooth Headphones E1000 Silver","Silver","5 x 2.5 x 1",67.400000000000006]
[null,null,null,null,"Headphones","Wide World Importers","Wireless headphones with 120 ft range, built-in microphone","WWI Stereo Bluetooth Headphones E1000 White","White","5 x 5.5 x 2.1",67.400000000000006]
[null,null,null,null,"Headphones","Wide World Importers","Wireless headphones with 120 ft range, built-in microphone","WWI Stereo Bluetooth Headphones E1000 Green","Green","5.5x 6.5 x 2.5",67.400000000000006]
[null,null,null,null,"Headphones","Wide World Importers","Wireless range beyond 10 meters, MP3-quality stereo sound","WWI Wireless Bluetooth Stereo Headphones M170 Silver","Silver","5.7 x 3.6 x 9.2",120]
[null,null,null,null,"Headphones","Wide World Importers","Wireless range beyond 10 meters, MP3-quality stereo sound","WWI Wireless Bluetooth Stereo Headphones M170 Black","Black","11 x 7.7 x 2.5",120]
[null,null,null,null,"Headphones","Wide World Importers","Wireless range beyond 10 meters, MP3-quality stereo sound","WWI Wireless Bluetooth Stereo Headphones M170 White","White","3.3 x 3 x 4.7",120]
[null,null,null,null,"Headphones","Wide World Importers","Wireless range beyond 10 meters, MP3-quality stereo sound","WWI Wireless Bluetooth Stereo Headphones M170 Pink","Pink","1 x 1 x 1",120]
[null,null,null,null,"Headphones","Wide World Importers","Built-In Microphone, integrated headphone button to play/pause, MP3-quality stereo sound","WWI Wireless Bluetooth Stereo Headphones M270 Silver","Silver","7 x 5 x 1.5",115]
[null,null,null,null,"Headphones","Wide World Importers","Built-In Microphone, integrated headphone button to play/pause, MP3-quality stereo sound","WWI Wireless Bluetooth Stereo Headphones M270 Black","Black","8 x 7.3 x 2.4",115]
[null,null,null,null,"Headphones","Wide World Importers","Built-In Microphone, integrated headphone button to play/pause, MP3-quality stereo sound","WWI Wireless Bluetooth Stereo Headphones M270 White","White","7 x 5 x 1.5",115]
[null,null,null,null,"Headphones","Wide World Importers","Built-In Microphone, integrated headphone button to play/pause, MP3-quality stereo sound","WWI Wireless Bluetooth Stereo Headphones M270 Pink","Pink","6 x 4 x 10",115]
[null,null,null,null,"Headphones","Wide World Importers","Listening to music wirelessly with other Bluetooth audio devices, built-in microphone for phone call usage","WWI Stereo Bluetooth Headphones New Generation M370 Black","Black","11.6 x 8.5 x 7",132.99]
[null,null,null,null,"Headphones","Wide World Importers","Listening to music wirelessly with other Bluetooth audio devices, built-in microphone for phone call usage","WWI Stereo Bluetooth Headphones New Generation M370 White","White","5.8 x 1.5 x 5",132.99]
[null,null,null,null,"Headphones","Wide World Importers","Listening to music wirelessly with other Bluetooth audio devices, built-in microphone for phone call usage","WWI Stereo Bluetooth Headphones New Generation M370 Yellow","Yellow","10.4 x 8.1 x 3.1",132.99]
[null,null,null,null,"Headphones","Wide World Importers","Listening to music wirelessly with other Bluetooth audio devices, built-in microphone for phone call usage","WWI Stereo Bluetooth Headphones New Generation M370 Orange","Orange","9.7 x 4 x 1.5",132.99]
[null,null,null,null,"Headphones","Wide World Importers","Listening to music wirelessly with other Bluetooth audio devices, built-in microphone for phone call usage","WWI Stereo Bluetooth Headphones New Generation M370 Blue","Blue","1 x 1 x 3",132.99]
[null,null,null,null,"Headphones","Wide World Importers","Seamlessly switch between music and calls, integrated ouch sensitive play-answer-end and volume controls","WWI Wireless Transmitter and Bluetooth Headphones X250 Black","Black","11 x 7.8 x 3",249.99]
[null,null,null,null,"Headphones","Wide World Importers","Seamlessly switch between music and calls, integrated ouch sensitive play-answer-end and volume controls","WWI Wireless Transmitter and Bluetooth Headphones X250 Blue","Blue","11 x 7.8 x 3",249.99]
[null,null,null,null,"Headphones","Wide World Importers","Seamlessly switch between music and calls, integrated ouch sensitive play-answer-end and volume controls","WWI Wireless Transmitter and Bluetooth Headphones X250 White","White","5.3 x 2 x 7.4",249.99]
[null,null,null,null,"Headphones","Wide World Importers","Seamlessly switch between music and calls, integrated ouch sensitive play-answer-end and volume controls","WWI Wireless Transmitter and Bluetooth Headphones X250 Red","Red","7 x 5 x 1.5",249.99]
[null,null,null,null,"Headphones","Wide World Importers","Seamlessly switch between music and calls, integrated ouch sensitive play-answer-end and volume controls","WWI Wireless Transmitter and Bluetooth Headphones X250 Silver","Silver","2.5 x 6.4 x 9",249.99]
[null,null,null,null,"TV","Adventure Works ","20'' CRT television, built-in ATSC/NTSC tuner, receive digital and analog channels","Adventure Works 20\" CRT TV E15 Silver","Silver","20\"",169.99]
[null,null,null,null,"TV","Adventure Works","20'' CRT television, built-in ATSC/NTSC tuner, receive digital and analog channels","Adventure Works 20\" CRT TV E15 Black","Black","20\"",169.99]
[null,null,null,null,"TV","Adventure Works","20'' CRT television, built-in ATSC/NTSC tuner, receive digital and analog channels","Adventure Works 20\" CRT TV E15 White","White","20\"",169.99]
[null,null,null,null,"TV","Adventure Works","13'' Color TV, ATSC/QAM Tuner, 120 minute sleep timer","Adventure Works 13\" Color TV E25 Silver","Silver","13\"",119.99]
[null,null,null,null,"TV","Adventure Works","13'' Color TV, ATSC/QAM Tuner, 120 minute sleep timer","Adventure Works 13\" Color TV E25 Black","Black","13\"",119.99]
[null,null,null,null,"TV","Adventure Works","13'' Color TV, ATSC/QAM Tuner, 120 minute sleep timer","Adventure Works 13\" Color TV E25 White","White","13\"",119.99]
[null,null,null,null,"TV","Adventure Works","19'' 720p LCD HDTV, 2 HDMI inputs, PC input for computers","Adventure Works 19\" Portable LCD HDTV M110 Silver","Silver","19\"",279.99]
[null,null,null,null,"TV","Adventure Works","19'' 720p LCD HDTV, 2 HDMI inputs, PC input for computers","Adventure Works 19\" Portable LCD HDTV M110 Black","Black","19\"",279.99]
[null,null,null,null,"TV","Adventure Works","19'' 720p LCD HDTV, 2 HDMI inputs, PC input for computers","Adventure Works 19\" Portable LCD HDTV M110 White","White","19\"",279.99]
[null,null,null,null,"TV","Adventure Works","19'' color TV, ATSC/QAM Tuner","Adventure Works 19\" Color Digital TV E35 Silver","Silver","19\"",143.4]
[null,null,null,null,"TV","Adventure Works","19'' color TV, ATSC/QAM Tuner","Adventure Works 19\" Color Digital TV E35 Black","Black","19\"",143.4]
[null,null,null,null,"TV","Adventure Works","19'' color TV, ATSC/QAM Tuner","Adventure Works 19\" Color Digital TV E35 White","White","19\"",143.4]
[null,null,null,null,"TV","Adventure Works","19'' color TV, ATSC/QAM Tuner","Adventure Works 19\" Color Digital TV E35 Brown","Brown","19\"",143.4]
[null,null,null,null,"TV","Adventure Works","20\" Analog CRT TV, digital comb filter removes blurred edges between colors","Adventure Works 20\" Analog CRT TV E45 Silver","Silver","20\"",200]
[null,null,null,null,"TV","Adventure Works","20\" Analog CRT TV, digital comb filter removes blurred edges between colors","Adventure Works 20\" Analog CRT TV E45 Black","Black","20\"",200]
[null,null,null,null,"TV","Adventure Works","20\" Analog CRT TV, digital comb filter removes blurred edges between colors","Adventure Works 20\" Analog CRT TV E45 White","White","20\"",200]
[null,null,null,null,"TV","Adventure Works","20\" Analog CRT TV, digital comb filter removes blurred edges between colors","Adventure Works 20\" Analog CRT TV E45 Brown","Brown","20\"",200]
[null,null,null,null,"TV","Adventure Works","20'' 720p LCD HDTV, HDMI v 1.3 digital inputs","Adventure Works 20\" LCD HDTV M120 Silver","Silver","20\"",349.95]
[null,null,null,null,"TV","Adventure Works","20'' 720p LCD HDTV, HDMI v 1.3 digital inputs","Adventure Works 20\" LCD HDTV M120 Black","Black","20\"",349.95]
[null,null,null,null,"TV","Adventure Works","20'' 720p LCD HDTV, HDMI v 1.3 digital inputs","Adventure Works 20\" LCD HDTV M120 White","White","20\"",349.95]
[null,null,null,null,"TV","Adventure Works","20'' 720p LCD HDTV, HDMI v 1.3 digital inputs","Adventure Works 20\" LCD HDTV M120 Brown","Brown","20\"",349.95]
[null,null,null,null,"TV","Adventure Works","32'' 720p LCD HDTV, Back-Light Control, Built-In ATSC/NTSC/QAM Digital Tuning  ","Adventure Works 32\" LCD HDTV M130 Silver","Silver","32\"",499.99]
[null,null,null,null,"TV","Adventure Works","32'' 720p LCD HDTV, Back-Light Control, Built-In ATSC/NTSC/QAM Digital Tuning  ","Adventure Works 32\" LCD HDTV M130 Black","Black","32\"",499.99]
[null,null,null,null,"TV","Adventure Works","32'' 720p LCD HDTV, Back-Light Control, Built-In ATSC/NTSC/QAM Digital Tuning  ","Adventure Works 32\" LCD HDTV M130 White","White","32\"",499.99]
[null,null,null,null,"TV","Adventure Works","32'' 720p LCD HDTV, Back-Light Control, Built-In ATSC/NTSC/QAM Digital Tuning  ","Adventure Works 32\" LCD HDTV M130 Brown","Brown","32\"",499.99]
[null,null,null,null,"TV","Adventure Works","15.6'' Widescreen LCD TV, built-in DVD Player","Adventure Works 15.6\" LCD TV M130W Silver","Silver","15.6\"",299.99]
[null,null,null,null,"TV","Adventure Works","15.6'' Widescreen LCD TV, built-in DVD Player","Adventure Works 15.6\" LCD TV M130W Black","Black","15.6\"",299.99]
[null,null,null,null,"TV","Adventure Works","15.6'' Widescreen LCD TV, built-in DVD Player","Adventure Works 15.6\" LCD TV M130W White","White","15.6\"",299.99]
[null,null,null,null,"TV","Adventure Works","15.6'' Widescreen LCD TV, built-in DVD Player","Adventure Works 15.6\" LCD TV M130W Brown","Brown","15.6\"",299.99]
[null,null,null,null,"TV","Adventure Works","52'' 1080p 240Hz LCD HDTV, Four HDMI, two component, one PC, and two composite video inputs","Adventure Works 52\" LCD HDTV X590 Silver","Silver","52\"",2899.99]
[null,null,null,null,"TV","Adventure Works","52'' 1080p 240Hz LCD HDTV, Four HDMI, two component, one PC, and two composite video inputs","Adventure Works 52\" LCD HDTV X590 Black","Black","52\"",2899.99]
[null,null,null,null,"TV","Adventure Works","52'' 1080p 240Hz LCD HDTV, Four HDMI, two component, one PC, and two composite video inputs","Adventure Works 52\" LCD HDTV X590 White","White","52\"",2899.99]
[null,null,null,null,"TV","Adventure Works","52'' 1080p 240Hz LCD HDTV, Four HDMI, two component, one PC, and two composite video inputs","Adventure Works 52\" LCD HDTV X590 Brown","Brown","52\"",2899.99]
[null,null,null,null,"TV","Adventure Works","40'' 1080p LCD HDTV, 70,000:1 dynamic contrast ratio, 6ms response time, Wide Color Enhancer 2 for more vivid colors","Adventure Works 40\" LCD HDTV M690 Silver","Silver","40\"",1184.97]
[null,null,null,null,"TV","Adventure Works","40'' 1080p LCD HDTV, 70,000:1 dynamic contrast ratio, 6ms response time, Wide Color Enhancer 2 for more vivid colors","Adventure Works 40\" LCD HDTV M690 Black","Black","40\"",1184.97]
[null,null,null,null,"TV","Adventure Works","40'' 1080p LCD HDTV, 70,000:1 dynamic contrast ratio, 6ms response time, Wide Color Enhancer 2 for more vivid colors","Adventure Works 40\" LCD HDTV M690 White","White","40\"",1184.97]
[null,null,null,null,"TV","Adventure Works","40'' 1080p LCD HDTV, 70,000:1 dynamic contrast ratio, 6ms response time, Wide Color Enhancer 2 for more vivid colors","Adventure Works 40\" LCD HDTV M690 Brown","Brown","40\"",1184.97]
[null,null,null,null,"TV","Adventure Works","26'' 720p LCD HDTV, 720p HD LCD Panel, Theater Wide Picture Modes","Adventure Works 26\" 720p LCD HDTV M140 Silver","Silver","26\"",469.97]
[null,null,null,null,"TV","Adventure Works","26'' 720p LCD HDTV, 720p HD LCD Panel, Theater Wide Picture Modes","Adventure Works 26\" 720p LCD HDTV M140 Black","Black","26\"",469.97]
[null,null,null,null,"TV","Adventure Works","26'' 720p LCD HDTV, 720p HD LCD Panel, Theater Wide Picture Modes","Adventure Works 26\" 720p LCD HDTV M140 White","White","26\"",469.97]
[null,null,null,null,"TV","Adventure Works","26'' 720p LCD HDTV, 720p HD LCD Panel, Theater Wide Picture Modes","Adventure Works 26\" 720p LCD HDTV M140 Brown","Brown","26\"",469.97]
[null,null,null,null,"TV","Adventure Works","37'' 1080p Widescreen LCD HDTV, 3 HDMI Inputs, USB 2.0 Connectivity","Adventure Works 37\" 1080p LCD HDTV M150W Silver","Silver","37\"",1099.99]
[null,null,null,null,"TV","Adventure Works","37'' 1080p Widescreen LCD HDTV, 3 HDMI Inputs, USB 2.0 Connectivity","Adventure Works 37\" 1080p LCD HDTV M150W Black","Black","37\"",1099.99]
[null,null,null,null,"TV","Adventure Works","37'' 1080p Widescreen LCD HDTV, 3 HDMI Inputs, USB 2.0 Connectivity","Adventure Works 37\" 1080p LCD HDTV M150W White","White","37\"",1099.99]
[null,null,null,null,"TV","Adventure Works","37'' 1080p Widescreen LCD HDTV, 3 HDMI Inputs, USB 2.0 Connectivity","Adventure Works 37\" 1080p LCD HDTV M150W Brown","Brown","37\"",1099.99]
[null,null,null,null,"TV","Adventure Works","52'' 1080p 120Hz LCD HDTV, 16:9 Full HD 1080p Resolution (1920x1080p) LCD Panel  ","Adventure Works 52\" LCD HDTV X790W Silver","Silver","52\"",1592.2]
[null,null,null,null,"TV","Adventure Works","52'' 1080p 120Hz LCD HDTV, 16:9 Full HD 1080p Resolution (1920x1080p) LCD Panel  ","Adventure Works 52\" LCD HDTV X790W Black","Black","52\"",1592.2]
[null,null,null,null,"TV","Adventure Works","52'' 1080p 120Hz LCD HDTV, 16:9 Full HD 1080p Resolution (1920x1080p) LCD Panel  ","Adventure Works 52\" LCD HDTV X790W White","White","52\"",1592.2]
[null,null,null,null,"TV","Adventure Works","52'' 1080p 120Hz LCD HDTV, 16:9 Full HD 1080p Resolution (1920x1080p) LCD Panel  ","Adventure Works 52\" LCD HDTV X790W Brown","Brown","52\"",1592.2]
[null,null,null,null,"TV","Adventure Works","42'' 720p LCD HDTV, 1000000:1 Dynamic Contrast Ratio for the Brightest whites and darkest blacks","Adventure Works 42\" LCD HDTV M55 Black","Black","42\"",763.51]
[null,null,null,null,"DVD Player","Southridge Video","Type:  16xDVD Playback, platform: Contoso 360.","SV 16xDVD M300 Black","Black","One Size",119]
[null,null,null,null,"DVD Player","Southridge Video","Type:  8xDVD Playback. Type Storage media-DVD-RAM. DVD-R/DVD-RAM purpose for video Native Capacity 9.4 GB","SV 8xDVD E100 Black","Black","One Size",69]
[null,null,null,null,"DVD Player","Southridge Video","Type:  16xDVD Playback, digital video recorder with 250GB hard drive. Network and Internet remote viewing with optional broadband router","SV 16xDVD M310 Black","Black","One Size",129]
[null,null,null,null,"DVD Player","Southridge Video","Type: 16xDVD Playback. Plays DVD, DVD-R/RW, DVD+R/RW, CD, CD-R/RW, MP3, WMA","SV 16xDVD M320 Black","Black","One Size",119]
[null,null,null,null,"DVD Player","Southridge Video","Type: 16xDVD Playback. Digital Audio Output Type: HDMI, Optical & Coaxial. HDMI Outputs: Yes","SV 16xDVD M330 Black","Black","One Size",109]
[null,null,null,null,"DVD Player","Southridge Video","Plays DVD Video, DVD+R/RW, DVD-R/RW, CD-R/RW and Audio CD, LED indicator","SV 16xDVD E340 Black","Black","One Size",99]
[null,null,null,null,"DVD Player","Southridge Video","Type:  22xDVD Playback, Line-In Recording - Satellite Link Recording.","SV 22xDVD X680 Black","Black","One Size",169]
[null,null,null,null,"DVD Player","Southridge Video","Type:  8xDVD Playback, type storage media - DVD-RAM, DVD-R/DVD-RAM purpose for video, native capacity 29.4 GB, write Speed 8x (max)","SV 8xDVD E120 Black","Black","One Size",89.9]
[null,null,null,null,"DVD Player","Southridge Video","Type: 22xDVD Playback. Network and Internet remote viewing with optional broadband router","SV 22xDVD M600 Black","Black","One Size",129.9]
[null,null,null,null,"DVD Player","Southridge Video","Type: 16xDVD Playback plays DVD, DVD-R/RW, CD, CD-R/RW, MP3, WMA, and JPEG","SV 16xDVD M350 Black","Black","One Size",116.9]
[null,null,null,null,"DVD Player","Southridge Video","Type: 16xDVD Playback, digital audio output type: HDMI, Optical & Coaxial, HDMI outputs","SV 16xDVD M360 Black","Black","One Size",126.9]
[null,null,null,null,"DVD Player","Southridge Video","Type: 8xDVD Playback plays DVD Video, DVD+R/RW, DVD-R/RW, CD-R/RW and Audio CD, LED indicator","SV 8xDVD E130 Black","Black","One Size",56.9]
[null,null,null,null,"DVD Player","Southridge Video","Type: 8xDVD Playback. Line-In recording -satellite link recording. Sync recording to STB output","SV 8xDVD E140 Black","Black","One Size",66]
[null,null,null,null,"DVD Player","Southridge Video","Type:  16xDVD Playback, platform: Contoso 360.","SV 16xDVD M300 Silver","Silver","One Size",119]
[null,null,null,null,"DVD Player","Southridge Video","Type:  8xDVD Playback, type Storage media - DVD-RAM. DVD-R/DVD-RAM purpose for video, native capacity 9.4 GB","SV 8xDVD E100 Silver","Silver","One Size",69]
[null,null,null,null,"DVD Player","Southridge Video","Type: 16xDVD Playback, digital video recorder with 250GB hard drive, network and Internet remote viewing with optional broadband router","SV 16xDVD M310 Silver","Silver","One Size",129]
[null,null,null,null,"DVD Player","Southridge Video","Type:  16xDVD Playback. Plays DVD, DVD-R/RW, DVD+R/RW, CD, CD-R/RW, MP3, WMA","SV 16xDVD M320 Silver","Silver","One Size",119]
[null,null,null,null,"DVD Player","Southridge Video","Type:  16xDVD Playback. Digital Audio Output Type: HDMI, Optical & Coaxial. HDMI Outputs: Yes","SV 16xDVD M330 Silver","Silver","One Size",109]
[null,null,null,null,"DVD Player","Southridge Video","Plays DVD Video, DVD+R/RW, DVD-R/RW, CD-R/RW and Audio CD, LED indicator","SV 16xDVD E340 Silver","Silver","One Size",99]
[null,null,null,null,"DVD Player","Southridge Video","Type: 22xDVD Playback, line-in recording-satellite link recording","SV 22xDVD X680 Silver","Silver","One Size",169]
[null,null,null,null,"DVD Player","Southridge Video","Type: 8xDVD Playback, type Storage media - DVD-RAM. DVD-R/DVD-RAM purpose for video, native capacity 29.4 GB, write Speed 8x (max)","SV 8xDVD E120 Silver","Silver","One Size",89.9]
[null,null,null,null,"DVD Player","Southridge Video","Type: 22xDVD Playback, network and Internet remote viewing with optional broadband router","SV 22xDVD M600 Silver","Silver","One Size",129.9]
[null,null,null,null,"DVD Player","Southridge Video","Type: 16xDVD Playback plays DVD, DVD-R/RW, CD, CD-R/RW, MP3, WMA, and JPEG","SV 16xDVD M350 Silver","Silver","One Size",116.9]
[null,null,null,null,"DVD Player","Southridge Video","Type: 16xDVD Playback. Digital audio output type: HDMI, Optical & Coaxial, HDMI outputs.","SV 16xDVD M360 Silver","Silver","One Size",126.9]
[null,null,null,null,"DVD Player","Southridge Video","Type: 8xDVD Playback plays DVD Video, DVD+R/RW, DVD-R/RW, CD-R/RW and Audio CD, LED indicator","SV 8xDVD E130 Silver","Silver","One Size",56.9]
[null,null,null,null,"DVD Player","Southridge Video","Type: 8xDVD playback, line-in recording-satellite link recording, sync recording to STB output","SV 8xDVD E140 Silver","Silver","One Size",66]
[null,null,null,null,"Sound system","Contoso","2.1 channel home theater system. Total power: 400 watts","Contoso Home Theater System 2.1 Channel E1200 Black","Black","21 x 17.5 x 16.2",299]
[null,null,null,null,"Sound system","Contoso","2.1 channel home theater systems, includes 2 front speakers, 1 subwoofer and 1 A/V receiver","Contoso Home Theater System 2.1 Channel M1210 Black","Black","23.8 x 20.8 x 19.6",329]
[null,null,null,null,"Sound system","Contoso","660 watts into 7.1 channels","Contoso Home Theater System 7.1 Channel M1700 Black","Black","17 x 16.3 x 3.3",889]
[null,null,null,null,"Sound system","Contoso","4.1 channel front surround, 1080p/720p up conversion from DVD or USB","Contoso Home Theater System 4.1 Channel M1400 Black","Black","23 x 19 x 17",409]
[null,null,null,null,"Sound system","Contoso","1000 watts over 5 channels, 1 center-channel speaker","Contoso Home Theater System 5.1 Channel M1500 Black","Black","8.9 x 1.8 x 10.4",429]
[null,null,null,null,"Sound system","Contoso","300 watts of home theater surround sound designed for use with 5.1-channel DVD players, computer systems, and more","Contoso Home Theater System 5.1 Channel M1510 Black","Black","23 x 20 x 19",489]
[null,null,null,null,"Sound system","Contoso","4.1 Channel Front Surround, USB host, analog in, optical digital in/out","Contoso Home Theater System 4.1 Channel M1410 Black","Black","17 x 13.1 x 2.6",329]
[null,null,null,null,"Sound system","Contoso","1000 watts over 5 channels, 1 center-channel speaker","Contoso Home Theater System 5.1 Channel M1520 Black","Black","17 x 16.3 x 3.3",339]
[null,null,null,null,"Sound system","Contoso","1000 watts over 5 channels, 1 center-channel speaker, and 1 subwoofer","Contoso Home Theater System 5.1 Channel M1530 Black","Black","144 x 96 x 48",399]
[null,null,null,null,"Sound system","Contoso","2.1 channel home theater system, includes 2 front speakers","Contoso Home Theater System 2.1 Channel E1220 Black","Black","18 x 39 x 31",199]
[null,null,null,null,"Sound system","Contoso","1000 watts over 5 channels, 1 center-channel speaker, and 1 subwoofer","Contoso Home Theater System 5.1 Channel M1540 Black","Black","20.3 x 21.8 x 12.2",529]
[null,null,null,null,"Sound system","Contoso","4.1 channel front surround","Contoso Home Theater System 4.1 Channel M1420 Black","Black","19.8 x 25.3 x 22",480]
[null,null,null,null,"Sound system","Contoso","2.1 channel home theater system, includes 2 front speakers and 1 subwoofer","Contoso Home Theater System 2.1 Channel M1230 Black","Black","21 x 22 x 31",360]
[null,null,null,null,"Sound system","Contoso","2.1 channel home theater system, total power: 400 watts","Contoso Home Theater System 2.1 Channel E1200 Silver","Silver","20.2 x 30.7 x 31.2",299]
[null,null,null,null,"Sound system","Contoso","2.1 channel home theater system, includes 2 front speakers, 1 subwoofer and 1 A/V receiver","Contoso Home Theater System 2.1 Channel M1210 Silver","Silver","21.2 x 18.5 x 16.6",329]
[null,null,null,null,"Sound system","Contoso","660 Watts into 7.1 Channels","Contoso Home Theater System 7.1 Channel M1700 Silver","Silver","17.3 x 13.6 x 2.6",889]
[null,null,null,null,"Sound system","Contoso","4.1 channel front surround, 1080p/720p up conversion from DVD or USB","Contoso Home Theater System 4.1 Channel M1400 Silver","Silver","23 x 20 x 19",409]
[null,null,null,null,"Sound system","Contoso","1000 watts over 5 channels, 1 center-channel speaker","Contoso Home Theater System 5.1 Channel M1500 Silver","Silver","16.7 x 17 x 3",429]
[null,null,null,null,"Sound system","Contoso","300 watts of home theater surround sound designed for use with 5.1-channel DVD players, computer systems, and more","Contoso Home Theater System 5.1 Channel M1510 Silver","Silver","23.8 x 20.8 x 19.6",489]
[null,null,null,null,"Sound system","Contoso","4.1 Channel Front Surround, USB host, analog in, optical digital in/out","Contoso Home Theater System 4.1 Channel M1410 Silver","Silver","20 x 43 x 17",329]
[null,null,null,null,"Sound system","Contoso","1000 watts over 5 channels, 1 center-channel speaker","Contoso Home Theater System 5.1 Channel M1520 Silver","Silver","20.2 x 30.7 x 31.2",339]
[null,null,null,null,"Sound system","Contoso","1000 watts over 5 channels, 1 center-channel speaker, and 1 subwoofer","Contoso Home Theater System 5.1 Channel M1530 Silver","Silver","21.2 x 18.5 x 16.6",399]
[null,null,null,null,"Sound system","Contoso","2.1 channel home theater system, includes 2 front speakers","Contoso Home Theater System 2.1 Channel E1220 Silver","Silver","20 x 43 x 17",199]
[null,null,null,null,"Sound system","Contoso","1000 watts over 5 channels, 1 center-channel speaker, and 1 subwoofer","Contoso Home Theater System 5.1 Channel M1540 Silver","Silver","21 x 17.5 x 16.2",529]
[null,null,null,null,"Sound system","Contoso","4.1 channel front surround","Contoso Home Theater System 4.1 Channel M1420 Silver","Silver","23.8 x 20.8 x 19.6",480]
[null,null,null,null,"Sound system","Contoso","2.1 channel home theater system, includes 2 front speakers and 1 subwoofer","Contoso Home Theater System 2.1 Channel M1230 Silver","Silver","17 x 16.3 x 3.3",360]
[null,null,null,null,"Sound system","Contoso","2.1 channel home theater system, total power: 400 watts","Contoso Home Theater System 2.1 Channel E1200 White","White","23 x 19 x 17",299]
[null,null,null,null,"Sound system","Contoso","2.1 channel home theater system, includes 2 front speakers, 1 subwoofer and 1 A/V receiver","Contoso Home Theater System 2.1 Channel M1210 White","White","8.9 x 1.8 x 10.4",329]
[null,null,null,null,"Sound system","Contoso","660 watts into 7.1 channels","Contoso Home Theater System 7.1 Channel M1700 White","White","23 x 20 x 19",889]
[null,null,null,null,"Sound system","Contoso","4.1 channel front surround, 1080p/720p up conversion from DVD or USB","Contoso Home Theater System 4.1 Channel M1400 White","White","17 x 13.1 x 2.6",409]
[null,null,null,null,"Sound system","Contoso","1000 watts over 5 channels, 1 center-channel speaker","Contoso Home Theater System 5.1 Channel M1500 White","White","17 x 16.3 x 3.3",429]
[null,null,null,null,"Sound system","Contoso","300 watts of home theater surround sound designed for use with 5.1-channel DVD players, computer systems, and more","Contoso Home Theater System 5.1 Channel M1510 White","White","144 x 96 x 48",489]
[null,null,null,null,"Sound system","Contoso","4.1 channel fronts surround, USB host, analog in, optical digital in/out","Contoso Home Theater System 4.1 Channel M1410 White","White","18 x 39 x 31",329]
[null,null,null,null,"Sound system","Contoso","1000 watts over 5 channels, 1 center-channel speaker","Contoso Home Theater System 5.1 Channel M1520 White","White","20.3 x 21.8 x 12.2",339]
[null,null,null,null,"Sound system","Contoso","1000 watts over 5 channels, 1 center-channel speaker, and 1 subwoofer","Contoso Home Theater System 5.1 Channel M1530 White","White","19.8 x 25.3 x 22",399]
[null,null,null,null,"Sound system","Contoso","2.1 channel home theater system, includes 2 front speakers","Contoso Home Theater System 2.1 Channel E1220 White","White","21 x 22 x 31",199]
[null,null,null,null,"Sound system","Contoso","1000 watts over 5 channels, 1 center-channel speaker, and 1 subwoofer","Contoso Home Theater System 5.1 Channel M1540 White","White","20.2 x 30.7 x 31.2",529]
[null,null,null,null,"Sound system","Contoso","4.1 Channel Front Surround","Contoso Home Theater System 4.1 Channel M1420 White","White","21.2 x 18.5 x 16.6",480]
[null,null,null,null,"Sound system","Contoso","2.1 channel home theater system, includes 2 front speakers and 1 subwoofer","Contoso Home Theater System 2.1 Channel M1230 White","White","17.3 x 13.6 x 2.6",360]
[null,null,null,null,"Sound system","Contoso","2.1 channel home theater system. Total power: 400 watts","Contoso Home Theater System 2.1 Channel E1200 Brown","Brown","23 x 20 x 19",299]
[null,null,null,null,"Sound system","Contoso","2.1 channel home theater system, includes 2 front speakers, 1 subwoofer and 1 A/V receiver","Contoso Home Theater System 2.1 Channel M1210 Brown","Brown","16.7 x 17 x 3",329]
[null,null,null,null,"Sound system","Contoso","660 watts into 7.1 channels","Contoso Home Theater System 7.1 Channel M1700 Brown","Brown","23.8 x 20.8 x 19.6",889]
[null,null,null,null,"Sound system","Contoso","4.1 Channel Front Surround, 1080p/720p up conversion from DVD or USB","Contoso Home Theater System 4.1 Channel M1400 Brown","Brown","20 x 43 x 17",409]
[null,null,null,null,"Sound system","Contoso","1000 watts over 5 channels, 1 center-channel speaker","Contoso Home Theater System 5.1 Channel M1500 Brown","Brown","20.2 x 30.7 x 31.2",429]
[null,null,null,null,"Sound system","Contoso","300 watts of home theater surround sound designed for use with 5.1-channel DVD players, computer systems, and more","Contoso Home Theater System 5.1 Channel M1510 Brown","Brown","21.2 x 18.5 x 16.6",489]
[null,null,null,null,"Sound system","Contoso","4.1 channel front surround, USB host, Analog In, optical digital in/out","Contoso Home Theater System 4.1 Channel M1410 Brown","Brown","20 x 43 x 17",329]
[null,null,null,null,"Sound system","Contoso","1000 watts over 5 channels, 1 center-channel speaker","Contoso Home Theater System 5.1 Channel M1520 Brown","Brown","21 x 17.5 x 16.2",339]
[null,null,null,null,"Sound system","Contoso","1000 watts over 5 channels, 1 center-channel speaker, and 1 subwoofer","Contoso Home Theater System 5.1 Channel M1530 Brown","Brown","23.8 x 20.8 x 19.6",399]
[null,null,null,null,"Sound system","Contoso","2.1 channel home theater system, includes 2 front speakers","Contoso Home Theater System 2.1 Channel E1220 Brown","Brown","17 x 16.3 x 3.3",199]
[null,null,null,null,"Sound system","Contoso","1000 watts over 5 channels, 1 center-channel speaker, and 1 subwoofer","Contoso Home Theater System 5.1 Channel M1540 Brown","Brown","23 x 19 x 17",529]
[null,null,null,null,"Sound system","Contoso","4.1 Channel Front Surround","Contoso Home Theater System 4.1 Channel M1420 Brown","Brown","8.9 x 1.8 x 10.4",480]
[null,null,null,null,"Sound system","Contoso","2.1 channel home theater systems, includes 2 front speakers and 1 subwoofer","Contoso Home Theater System 2.1 Channel M1230 Brown","Brown","20.2 x 30.7 x 31.2",360]
[null,null,null,null,"Sound system","Litware","4.1 channel front surround","Litware Home Theater System 4.1 Channel M410 Black","Black","21.2 x 18.5 x 16.6",599]
[null,null,null,null,"Sound system","Litware ","1000watts over 5 channels","Litware Home Theater System 5.1 Channel M511 Black","Black","20 x 43 x 17",699]
[null,null,null,null,"Sound system","Litware ","2.1 channel home theater system with an HDMI socket, an auxiliary input and a USB port","Litware Home Theater System 2.1 Channel E210 Black","Black","21 x 17.5 x 16.2",299]
[null,null,null,null,"Sound system","Litware ","1000 watts over 5 channels, HDMI up scaling to 720p/1080i of DVD media","Litware Home Theater System 5.1 Channel M510 Black","Black","23.8 x 20.8 x 19.6",639]
[null,null,null,null,"Sound system","Litware ","2.1 channel home theater systems, includes 2 front speakers, 1 subwoofer and 1 A/V receiver","Litware Home Theater System 2.1 Channel E211 Black","Black","17 x 16.3 x 3.3",269.89999999999998]
[null,null,null,null,"Sound system","Litware ","2.1 channel home theater system, total power: 400 watts","Litware Home Theater System 2.1 Channel E212 Black","Black","23 x 19 x 17",299.89999999999998]
[null,null,null,null,"Sound system","Litware","4.1 Channel Front Surround. 1080p/720p up conversion from DVD or USB","Litware Home Theater System 4.1 Channel M411 Black","Black","8.9 x 1.8 x 10.4",599]
[null,null,null,null,"Sound system","Litware ","4.1 Channel Front Surround, USB host, analog in, optical digital in/out","Litware Home Theater System 4.1 Channel M412 Black","Black","23 x 20 x 19",569]
[null,null,null,null,"Sound system","Litware","Design produces big and detailed home theater sound from small, elegant high gloss black speakers","Litware Home Theater System 4.1 Channel M413 Black","Black","17 x 13.1 x 2.6",549]
[null,null,null,null,"Sound system","Litware ","1000 watts over 5 channels, 1 center-channel speaker, and 1 subwoofer","Litware Home Theater System 5.1 Channel M512 Black","Black","17 x 16.3 x 3.3",699]
[null,null,null,null,"Sound system","Litware ","1000 watts over 5 channels, 1 center-channel speaker","Litware Home Theater System 5.1 Channel M513 Black","Black","144 x 96 x 48",689]
[null,null,null,null,"Sound system","Litware ","130 watts total output on 2-way bass reflex front, center, and surround speakers","Litware Home Theater System 7.1 Channel M710 Black","Black","18 x 39 x 31",799]
[null,null,null,null,"Sound system","Litware ","660 watts into 7.1 Channels (110 watts per Channel at 6 Ohms, 1 kHz, 1 Channel Driven)","Litware Home Theater System 7.1 Channel X711 Black","Black","20.3 x 21.8 x 12.2",1109]
[null,null,null,null,"Sound system","Litware ","1000 watts over 5 channels, multi-room entertainment expandable up to 10 rooms","Litware Home Theater System 5.1 Channel M514 Black","Black","19.8 x 25.3 x 22",599]
[null,null,null,null,"Sound system","Litware","1000 watts over 5 channels, 5 disc DVD/CD changer","Litware Home Theater System 5.1 Channel M515 Black","Black","21 x 22 x 31",569]
[null,null,null,null,"Sound system","Litware ","1000 watts over 5 channels, progressive scan player compatible with DVD, CD, Mp3, WMA, and picture CD formats","Litware Home Theater System 5.1 Channel M516 Black","Black","20.2 x 30.7 x 31.2",579]
[null,null,null,null,"Sound system","Litware","4.1 Channel Front Surround","Litware Home Theater System 4.1 Channel M410 Silver","Silver","21.2 x 18.5 x 16.6",599]
[null,null,null,null,"Sound system","Litware ","1000 watts over 5 channels","Litware Home Theater System 5.1 Channel M511 Silver","Silver","17.3 x 13.6 x 2.6",699]
[null,null,null,null,"Sound system","Litware ","2.1 channel home theater system with an HDMI socket, an auxiliary input and a USB port","Litware Home Theater System 2.1 Channel E210 Silver","Silver","23 x 20 x 19",299]
[null,null,null,null,"Sound system","Litware ","1000 watts over 5 channels, HDMI up scaling to 720p/1080i of DVD media","Litware Home Theater System 5.1 Channel M510 Silver","Silver","16.7 x 17 x 3",639]
[null,null,null,null,"Sound system","Litware ","2.1 channel home theater system, includes 2 front speakers, 1 subwoofer and 1 A/V receiver","Litware Home Theater System 2.1 Channel E211 Silver","Silver","23.8 x 20.8 x 19.6",269.89999999999998]
[null,null,null,null,"Sound system","Litware ","2.1 channel home theater system, total power: 400 watts","Litware Home Theater System 2.1 Channel E212 Silver","Silver","20 x 43 x 17",299.89999999999998]
[null,null,null,null,"Sound system","Litware","4.1 channel front surround, 1080p/720p up conversion from DVD or USB","Litware Home Theater System 4.1 Channel M411 Silver","Silver","20.2 x 30.7 x 31.2",599]
[null,null,null,null,"Sound system","Litware ","4.1 channel fronts surround, USB host, analog in, optical digital in/out","Litware Home Theater System 4.1 Channel M412 Silver","Silver","21.2 x 18.5 x 16.6",569]
[null,null,null,null,"Sound system","Litware","Design produces big and detailed home theater sound from small, elegant high gloss black speakers","Litware Home Theater System 4.1 Channel M413 Silver","Silver","20 x 43 x 17",549]
[null,null,null,null,"Sound system","Litware ","1000 watts over 5 channels, 1 center-channel speaker, and 1 subwoofer","Litware Home Theater System 5.1 Channel M512 Silver","Silver","21 x 17.5 x 16.2",699]
[null,null,null,null,"Sound system","Litware ","1000 watts over 5 channels, 1 center-channel speaker","Litware Home Theater System 5.1 Channel M513 Silver","Silver","23.8 x 20.8 x 19.6",689]
[null,null,null,null,"Sound system","Litware ","130 watts total output on 2-way bass reflex front, center, and surround speakers","Litware Home Theater System 7.1 Channel M710 Silver","Silver","17 x 16.3 x 3.3",799]
[null,null,null,null,"Sound system","Litware ","660 watts into 7.1 channels (110 watts per channel at 6 Ohms, 1 kHz, 1 channel driven)","Litware Home Theater System 7.1 Channel X711 Silver","Silver","23 x 19 x 17",1109]
[null,null,null,null,"Sound system","Litware ","1000 watts over 5 channels, multi-room entertainment expandable up to 10 rooms","Litware Home Theater System 5.1 Channel M514 Silver","Silver","8.9 x 1.8 x 10.4",599]
[null,null,null,null,"Sound system","Litware","1000 watts over 5 channels, 5 disc DVD/CD changer","Litware Home Theater System 5.1 Channel M515 Silver","Silver","23 x 20 x 19",569]
[null,null,null,null,"Sound system","Litware ","1000 watts over 5 channels, progressive scan player compatible with DVD, CD, Mp3, WMA, and Picture CD formats","Litware Home Theater System 5.1 Channel M516 Silver","Silver","17 x 13.1 x 2.6",579]
[null,null,null,null,"Sound system","Litware","4.1 Channel Front Surround","Litware Home Theater System 4.1 Channel M410 Brown","Brown","17 x 16.3 x 3.3",599]
[null,null,null,null,"Sound system","Litware ","1000 watts over 5 channels","Litware Home Theater System 5.1 Channel M511 Brown","Brown","144 x 96 x 48",699]
[null,null,null,null,"Sound system","Litware ","2.1 channel home theater system with an HDMI socket, an auxiliary input and a USB port","Litware Home Theater System 2.1 Channel E210 Brown","Brown","18 x 39 x 31",299]
[null,null,null,null,"Sound system","Litware ","1000 watts over 5 channels, HDMI up scaling to 720p/1080i of DVD media","Litware Home Theater System 5.1 Channel M510 Brown","Brown","20.3 x 21.8 x 12.2",639]
[null,null,null,null,"Sound system","Litware ","2.1 channel home theater system, includes 2 front speakers, 1 subwoofer and 1 A/V receiver","Litware Home Theater System 2.1 Channel E211 Brown","Brown","19.8 x 25.3 x 22",269.89999999999998]
[null,null,null,null,"Sound system","Litware ","2.1 channel home theater system, total power: 400 watts","Litware Home Theater System 2.1 Channel E212 Brown","Brown","21 x 22 x 31",299.89999999999998]
[null,null,null,null,"Sound system","Litware","4.1 Channel front surround. 1080p/720p up conversion from DVD or USB","Litware Home Theater System 4.1 Channel M411 Brown","Brown","20.2 x 30.7 x 31.2",599]
[null,null,null,null,"Sound system","Litware ","4.1 Channel Front Surround, USB host, analog in, optical digital in/out","Litware Home Theater System 4.1 Channel M412 Brown","Brown","21.2 x 18.5 x 16.6",569]
[null,null,null,null,"Sound system","Litware","Design produces big and detailed home theater sound from small, elegant high gloss black speakers","Litware Home Theater System 4.1 Channel M413 Brown","Brown","17.3 x 13.6 x 2.6",549]
[null,null,null,null,"Sound system","Litware ","1000 watts over 5 channels, 1 center-channel speaker, and 1 subwoofer","Litware Home Theater System 5.1 Channel M512 Brown","Brown","23 x 20 x 19",699]
[null,null,null,null,"Sound system","Litware ","1000 watts over 5 channels, 1 center-channel speaker","Litware Home Theater System 5.1 Channel M513 Brown","Brown","16.7 x 17 x 3",689]
[null,null,null,null,"Sound system","Litware ","130 watts total output on 2-way bass reflex front, center, and surround speakers","Litware Home Theater System 7.1 Channel M710 Brown","Brown","23.8 x 20.8 x 19.6",799]
[null,null,null,null,"Sound system","Litware ","660 watts into 7.1 channels (110 watts per channel at 6 Ohms, 1 kHz, 1 channel driven)","Litware Home Theater System 7.1 Channel X711 Brown","Brown","20 x 43 x 17",1109]
[null,null,null,null,"Sound system","Litware ","1000 watts over 5 channels, multi-room entertainment expandable up to 10 rooms","Litware Home Theater System 5.1 Channel M514 Brown","Brown","20.2 x 30.7 x 31.2",599]
[null,null,null,null,"Sound system","Litware","1000 watts over 5 channels, 5 disc DVD/CD changer","Litware Home Theater System 5.1 Channel M515 Brown","Brown","21.2 x 18.5 x 16.6",569]
[null,null,null,null,"Sound system","Litware ","1000 watts over 5 channels, progressive scan player compatible with DVD, CD, Mp3, WMA, and picture CD formats","Litware Home Theater System 5.1 Channel M516 Brown","Brown","20 x 43 x 17",579]
[null,null,null,null,"Car video","Southridge Video","7\" 16:9 wide motorized touch screen active matrix LCD, remote control","SV Car Video LCD7W M7080 Black","Black","One Size",500]
[null,null,null,null,"Car video","Southridge Video","7\" 16:9 wide motorized touch screen active matrix LCD","SV Car Video LCD7W M7081 Black","Black","One Size",499]
[null,null,null,null,"Car video","Southridge Video","Contains a pair of car-seat headrests with two 7\" TFT monitor","SV Car Video TFT7 M7000 Black","Black","One Size",299]
[null,null,null,null,"Car video","Southridge Video","6.2\" touch screen TFT widescreen active matrix display. 80W x 4 max power output","SV Car Video TFT6.2W E6280 Black","Black",6.2,279]
[null,null,null,null,"Car video","Southridge Video","6.2\" touch screen TFT widescreen active matrix display","SV Car Video TFT6.2W E6281 Black","Black",6.2,259]
[null,null,null,null,"Car video","Southridge Video","6.2\" touch screen TFT widescreen active matrix display. 80W x 2 max power output","SV Car Video TFT6.2W E6282 Black","Black",6.2,269]
[null,null,null,null,"Car video","Southridge Video","Contains car-seat headrest with two 7\" TFT monitor and USB/SD/MMC card reader","SV Car Video TFT7 M7001 Black","Black","7 M",309]
[null,null,null,null,"Car video","Southridge Video","Plays AM/FM/MP3/WMA and MP4","SV Car Video AM/FM E1000 Black","Black","Video AM/FM ",199]
[null,null,null,null,"Car video","Southridge Video","Plays AM/FM/MP3/WMA and MP4. USB and SD\" card reader","SV Car Video AM/FM E1001 Black","Black","Video AM/FM ",219]
[null,null,null,null,"Car video","Southridge Video","Contains a pair of car-seat headrests with two 7\" TFT monitor, Mp3/mp4 player","SV Car Video TFT7 M7002 Black","Black","7 M",319]
[null,null,null,null,"Car video","Southridge Video","9.2\" 16:9 widescreen TFT LCD monitor, 768 x 234 pixel resolutions","SV Car Video LCD9.2W X9280 Black","Black",9.1999999999999993,999]
[null,null,null,null,"Car video","Southridge Video","9.2\" 16:9 widescreen TFT LCD monitor, 500:1 contrast ratio","SV Car Video LCD9.2W X9281 Black","Black",9.1999999999999993,869]
[null,null,null,null,"Car video","Southridge Video","7\" 16:9 wide motorized touch screen active matrix LCD, remote control","SV Car Video LCD7W M7082 Black","Black","7W ",699]
[null,null,null,null,"Car video","Southridge Video","7\" 16:9 motorized touch screen active matrix LCD","SV Car Video LCD7 M7001 Black","Black","7 M",329]
[null,null,null,null,"Car video","Southridge Video","7\" 16:9 motorized touch screen active matrix LCD. 1152 X 234 pixel resolutions","SV Car Video LCD7 M7002 Black","Black","7 M",369]
[null,null,null,null,"Car video","Southridge Video","7\" 16:9 motorized touch screen active matrix LCD. Brightness: 450 NITS","SV Car Video LCD7 M7003 Black","Black","7 M",369]
[null,null,null,null,"Car video","Southridge Video","7\" 16:9 wide motorized touch screen active matrix LCD, remote control","SV Car Video LCD7W M7080 Silver","Silver","7W ",500]
[null,null,null,null,"Car video","Southridge Video","7\" 16:9 wide motorized touch screen active matrix LCD","SV Car Video LCD7W M7081 Silver","Silver","7W ",499]
[null,null,null,null,"Car video","Southridge Video","Contains a pair of car-seat headrests with two 7\" TFT monitor","SV Car Video TFT7 M7000 Silver","Silver","7 M",299]
[null,null,null,null,"Car video","Southridge Video","6.2\" touch screen TFT widescreen active matrix display. 80W x 4 max power output","SV Car Video TFT6.2W E6280 Silver","Silver",6.2,279]
[null,null,null,null,"Car video","Southridge Video","6.2\" touch screen TFT widescreen active matrix display","SV Car Video TFT6.2W E6281 Silver","Silver",6.2,259]
[null,null,null,null,"Car video","Southridge Video","6.2\" touch screen TFT widescreen active matrix display. 80W x 2 max power output","SV Car Video TFT6.2W E6282 Silver","Silver",6.2,269]
[null,null,null,null,"Car video","Southridge Video","Contains car-seat headrest with two 7\" TFT monitor and USB/SD/MMC card reader","SV Car Video TFT7 M7001 Silver","Silver","7 M",309]
[null,null,null,null,"Car video","Southridge Video","Plays AM/FM/MP3/WMA and MP4","SV Car Video AM/FM E1000 Silver","Silver","Video AM/FM ",199]
[null,null,null,null,"Car video","Southridge Video","Plays AM/FM/MP3/WMA and MP4, USB and SD\" card reader","SV Car Video AM/FM E1001 Silver","Silver","Video AM/FM ",219]
[null,null,null,null,"Car video","Southridge Video","Contains a pair of car-seat headrests with two 7\" TFT monitor, Mp3/mp4 player","SV Car Video TFT7 M7002 Silver","Silver","7 M",319]
[null,null,null,null,"Car video","Southridge Video","9.2\" 16:9 widescreen TFT LCD monitor, 768 x 234 pixel resolutions","SV Car Video LCD9.2W X9280 Silver","Silver",9.1999999999999993,999]
[null,null,null,null,"Car video","Southridge Video","9.2\" 16:9 widescreen TFT LCD monitor, 500:1 contrast ratio","SV Car Video LCD9.2W X9281 Silver","Silver",9.1999999999999993,869]
[null,null,null,null,"Car video","Southridge Video","7\" 16:9 wide motorized touch screen active matrix LCD, remote control","SV Car Video LCD7W M7082 Silver","Silver","7W ",699]
[null,null,null,null,"Car video","Southridge Video","7\" 16:9 motorized touch screen active matrix LCD","SV Car Video LCD7 M7001 Silver","Silver","7 M",329]
[null,null,null,null,"Car video","Southridge Video","7\" 16:9 motorized touch screen active matrix LCD. 1152 X 234 pixel resolutions","SV Car Video LCD7 M7002 Silver","Silver","7 M",369]
[null,null,null,null,"Car video","Southridge Video","7\" 16:9 motorized touch screen active matrix LCD, brightness: 450 NITS","SV Car Video LCD7 M7003 Silver","Silver","7 M",369]
[null,null,null,null,"Car video","Southridge Video","7\" 16:9 wide motorized touch screen active matrix LCD, remote control","SV Car Video LCD7W M7080 Brown","Brown","7W ",500]
[null,null,null,null,"Car video","Southridge Video","7\" 16:9 wide motorized touch screen active matrix LCD","SV Car Video LCD7W M7081 Brown","Brown","7W ",499]
[null,null,null,null,"Car video","Southridge Video","Contains a pair of car-seat headrests with two 7\" TFT monitor","SV Car Video TFT7 M7000 Brown","Brown","7 M",299]
[null,null,null,null,"Car video","Southridge Video","6.2\" touch screen TFT widescreen active matrix display, 80W x 4 max power output","SV Car Video TFT6.2W E6280 Brown","Brown",6.2,279]
[null,null,null,null,"Car video","Southridge Video","6.2\" touch screen TFT widescreen active matrix display","SV Car Video TFT6.2W E6281 Brown","Brown",6.2,259]
[null,null,null,null,"Car video","Southridge Video","6.2\" touch screen TFT widescreen active matrix display, 80W x 2 max power output","SV Car Video TFT6.2W E6282 Brown","Brown",6.2,269]
[null,null,null,null,"Car video","Southridge Video","Contains car-seat headrest with two 7\" TFT monitor and USB/SD/MMC card reader","SV Car Video TFT7 M7001 Brown","Brown","7 M",309]
[null,null,null,null,"Car video","Southridge Video","Plays AM/FM/MP3/WMA and MP4","SV Car Video AM/FM E1000 Brown","Brown","Video AM/FM ",199]
[null,null,null,null,"Car video","Southridge Video","Plays AM/FM/MP3/WMA and MP4, USB and SD\" card reader","SV Car Video AM/FM E1001 Brown","Brown","Video AM/FM ",219]
[null,null,null,null,"Car video","Southridge Video","Contains a pair of car-seat headrests with two 7\" TFT monitor, Mp3/mp4 player","SV Car Video TFT7 M7002 Brown","Brown","7 M",319]
[null,null,null,null,"Car video","Southridge Video","9.2\" 16:9 widescreen TFT LCD monitor, 768 x 234 pixel resolutions","SV Car Video LCD9.2W X9280 Brown","Brown",9.1999999999999993,999]
[null,null,null,null,"Car video","Southridge Video","9.2\" 16:9 widescreen TFT LCD monitor, 500:1 contrast ratio","SV Car Video LCD9.2W X9281 Brown","Brown",9.1999999999999993,869]
[null,null,null,null,"Car video","Southridge Video","7\" 16:9 wide motorized touch screen active matrix LCD, remote control","SV Car Video LCD7W M7082 Brown","Brown","7W ",699]
[null,null,null,null,"Car video","Southridge Video","7\" 16:9 motorized touch screen active matrix LCD","SV Car Video LCD7 M7001 Brown","Brown","7 M",329]
[null,null,null,null,"Laptop","Adventure Works","320 GB hard drive, 4 GB RAM 19-inches LCD","Adventure Works Laptop19 X1900 Black","Black","Lap",1299]
[null,null,null,null,"Laptop","Adventure Works","15-inches screen, 60 GB hard drive, 128 MB of RAM (512 MB maximum), DVD-ROM","Adventure Works Laptop15 M1500 Black","Black","Lap",699]
[null,null,null,null,"Laptop","Adventure Works","80GB hard drive, 512MB memory","Adventure Works Laptop12 M1200 Black","Black","Lap",382.95]
[null,null,null,null,"Laptop","Adventure Works","180 GB hard drive, 2 GB RAM 16-inches LCD","Adventure Works Laptop16 M1600 Black","Black","Lap",599]
[null,null,null,null,"Laptop","Adventure Works","15.4-inches widescreen TFT LCD display, 1280x800 resolutions","Adventure Works Laptop15.4W M1548 Black","Black","15.4W",758]
[null,null,null,null,"Laptop","Adventure Works","1GB DDR2 SDRAM, 160GB hard drive (2.2 pounds)","Adventure Works Laptop8.9 E0890 Black","Black",8.9,326]
[null,null,null,null,"Laptop","Adventure Works","320 GB hard drive, 4 GB RAM 19-inches widescreen LCD with perfect 16:9 aspect ratio","Adventure Works Laptop19W X1980 White","White","19W",1299]
[null,null,null,null,"Laptop","Adventure Works","15-inch screen, 60 GB hard drive, 128 MB of RAM (512 MB maximum), DVD-ROM","Adventure Works Laptop15 M1501 White","White","Lap",699]
[null,null,null,null,"Laptop","Adventure Works","80GB hard drive, 512MB memory","Adventure Works Laptop12 M1201 White","White","Lap",382.95]
[null,null,null,null,"Laptop","Adventure Works","180 GB hard drive, 2 GB RAM 16-inches LCD","Adventure Works Laptop16 M1601 White","White","Lap",599]
[null,null,null,null,"Laptop","Adventure Works","15.4-inches widescreen TFT LCD display, 1280x800 Resolutions","Adventure Works Laptop15.4W M1548 White","White","15.4W",758]
[null,null,null,null,"Laptop","Adventure Works","1GB DDR2 SDRAM, 160GB hard drive (2.2 pounds)","Adventure Works Laptop8.9 E0890 White","White",8.9,326]
[null,null,null,null,"Laptop","Adventure Works","320 GB hard drive, 4 GB RAM 19-inches widescreen LCD with perfect 16:9 aspect ratio","Adventure Works Laptop19W X1980 Silver","Silver","Lap",1299]
[null,null,null,null,"Laptop","Adventure Works","15-inches screen, 60 GB hard drive, 128 MB of RAM (512 MB maximum), DVD-ROM","Adventure Works Laptop15 M1501 Silver","Silver",15,699]
[null,null,null,null,"Laptop","Adventure Works","80GB hard drive, 512MB memory","Adventure Works Laptop12 M1201 Silver","Silver",12,382.95]
[null,null,null,null,"Laptop","Adventure Works","180 GB hard drive, 2 GB RAM 16-inches LCD","Adventure Works Laptop16 M1601 Silver","Silver",16,599]
[null,null,null,null,"Laptop","Adventure Works","15.4-inches widescreen TFT LCD display, 1280x800 Resolutions","Adventure Works Laptop15.4W M1548 Silver","Silver","15.4W",758]
[null,null,null,null,"Laptop","Adventure Works","1GB DDR2 SDRAM, 160GB hard drive (2.2 pounds)","Adventure Works Laptop8.9 E0890 Silver","Silver",8.9,326]
[null,null,null,null,"Laptop","Adventure Works","320 GB hard drive, 4 GB RAM 19-inches widescreen LCD with perfect 16:9 aspect ratio","Adventure Works Laptop19W X1980 Red","Red","Lap",1299]
[null,null,null,null,"Laptop","Adventure Works","15-inches screen, 60 GB hard drive, 128 MB of RAM (512 MB maximum), DVD-ROM","Adventure Works Laptop15 M1501 Red","Red","Lap",699]
[null,null,null,null,"Laptop","Adventure Works","80GB hard drive, 512MB memory","Adventure Works Laptop12 M1201 Red","Red","Lap",382.95]
[null,null,null,null,"Laptop","Adventure Works","180 GB hard drive, 2 GB RAM 16-inches LCD","Adventure Works Laptop16 M1601 Red","Red","Lap",599]
[null,null,null,null,"Laptop","Adventure Works","15.4-Inches widescreen TFT LCD display, 1280x800 resolutions","Adventure Works Laptop15.4W M1548 Red","Red","15.4W",758]
[null,null,null,null,"Laptop","Adventure Works","1GB DDR2 SDRAM, 160GB hard drive (2.2 pounds)","Adventure Works Laptop8.9 E0890 Red","Red",8.9,326]
[null,null,null,null,"Laptop","Adventure Works","320 GB hard drive, 4 GB RAM 19-inches widescreen LCD with perfect 16:9 aspect ratio","Adventure Works Laptop19W X1980 Blue","Blue","Lap",1299]
[null,null,null,null,"Laptop","Adventure Works","15-inches screen, 60 GB hard drive, 128 MB of RAM (512 MB maximum), DVD-ROM","Adventure Works Laptop15 M1501 Blue","Blue","Lap",699]
[null,null,null,null,"Laptop","Adventure Works","80GB hard drive, 512MB memory","Adventure Works Laptop12 M1201 Blue","Blue","Lap",382.95]
[null,null,null,null,"Laptop","Adventure Works","180 GB hard drive, 2 GB RAM 16-inches LCD","Adventure Works Laptop16 M1601 Blue","Blue","Lap",599]
[null,null,null,null,"Laptop","Fabrikam","320 GB hard drive, 4 GB RAM 19-inches widescreen LCD with perfect 16:9 aspect ratio","Fabrikam Laptop19W M9800 Black","Black","19W ",1199]
[null,null,null,null,"Laptop","Fabrikam","320 GB hard drive, 4 GB RAM 17-inches widescreen LCD with perfect 16:9 aspect ratio","Fabrikam Laptop17W M7080 Black","Black","17W ",879.9]
[null,null,null,null,"Laptop","Fabrikam","320 GB hard drive, 2 GB RAM 17-inches screens LCD","Fabrikam Laptop17 M7000 Black","Black","17 M",819]
[null,null,null,null,"Laptop","Fabrikam","320 GB hard drive, 2 GB RAM 16-inches widescreen LCD","Fabrikam Laptop16W M6080 Black","Black","16W ",967]
[null,null,null,null,"Laptop","Fabrikam","180 GB hard drive, 2 GB RAM 16-inches LCD","Fabrikam Laptop16 M6000 Black","Black","16 M",599]
[null,null,null,null,"Laptop","Fabrikam","320 GB hard drive, 4 GB RAM 19-inches screen LCD","Fabrikam Laptop19 M9000 Black","Black","19 M",1099]
[null,null,null,null,"Laptop","Fabrikam","60GB hard drive, 512MB memory","Fabrikam Laptop12 M2000 White","White","12 M",366]
[null,null,null,null,"Laptop","Fabrikam","15-inches screen, 60 GB hard drive, 128 MB of RAM (512 MB maximum), DVD-ROM","Fabrikam Laptop15 M5000 White","White","15 M",699]
[null,null,null,null,"Laptop","Fabrikam","15.4-inches screen TFT LCD display, 120 GB hard drive","Fabrikam Laptop15.4 M5400 White","White",15.4,659]
[null,null,null,null,"Laptop","Fabrikam","Multimedia-focused laptop with 14.1-inches screen, 320 GB hard drive","Fabrikam Laptop14.1 M4100 White","White",14.1,586]
[null,null,null,null,"Laptop","Fabrikam","15.4-Inches widescreen TFT LCD display, 1280x800 resolutions","Fabrikam Laptop15.4W M5480 White","White",15.4,758]
[null,null,null,null,"Laptop","Fabrikam","80GB hard drive, 1GB RAM integrated 802.11b/g Wi-Fi Certified","Fabrikam Laptop10.1 M0100 White","White",10.1,383]
[null,null,null,null,"Laptop","Fabrikam","60GB hard drive, 1GB memory","Fabrikam Laptop12W M2080 Silver","Silver","12W ",399]
[null,null,null,null,"Laptop","Fabrikam","80GB hard drive (2.2 pounds), 1.6GHz CPU","Fabrikam Laptop8.9W E0880 Silver","Silver","8.9W",336]
[null,null,null,null,"Laptop","Fabrikam","1GB DDR2 SDRAM, 160GB hard drive (2.2 pounds), 1.6GHz CPU","Fabrikam Laptop8.9 E0800 Silver","Silver",8.9,320]
[null,null,null,null,"Laptop","Fabrikam","80GB hard drive, 1GB RAM, 6-cell battery provides up to 6 1/2 hours","Fabrikam Laptop10.1 M0101 Silver","Silver",10.1,384.9]
[null,null,null,null,"Laptop","Fabrikam","80GB hard drive, 512MB memory","Fabrikam Laptop12 M2001 Silver","Silver","12 M",382.95]
[null,null,null,null,"Laptop","Fabrikam","1.6GHz CPU, 1GB DDR2 SDRAM, 60GB hard drive (2.2 pounds)","Fabrikam Laptop8.9 M0801 Silver","Silver",8.9,363.5]
[null,null,null,null,"Laptop","Fabrikam","Multimedia-focused laptop with 14.1-inches widescreen, 3 GB RAM (4 GB max)","Fabrikam Laptop14.1W M4180 Red","Red",14.1,456.9]
[null,null,null,null,"Laptop","Fabrikam","Multimedia-focused laptop with 14.1-inch screen, DVD-R drive","Fabrikam Laptop14.1 E4101 Red","Red",14.1,330]
[null,null,null,null,"Laptop","Fabrikam","1GB DDR2 SDRAM, 160GB hard drive (2.2 pounds)","Fabrikam Laptop8.9 E8002 Red","Red",8.9,326]
[null,null,null,null,"Laptop","Fabrikam","80GB hard drive, 1GB memory","Fabrikam Laptop12 M2002 Red","Red","12 M",368]
[null,null,null,null,"Laptop","Fabrikam","2 GB RAM (4 GB max), 120 GB hard drive, DVD/CD super drive","Fabrikam Laptop13.3 M3000 Red","Red",13.3,380]
[null,null,null,null,"Laptop","Fabrikam","13.3-inches widescreen TFT LCD display, 160 GB hard drive","Fabrikam Laptop13.3W M3080 Red","Red",13.3,389]
[null,null,null,null,"Laptop","Proseware","320 GB hard drive, 4 GB RAM 19-inches LCD","Proseware Laptop19 X910 Black","Black",19,1299]
[null,null,null,null,"Laptop","Proseware","15-inches screen, 60 GB hard drive, 128 MB of RAM (512 MB maximum), DVD-ROM","Proseware Laptop15 M510 Black","Black",15,699]
[null,null,null,null,"Laptop","Proseware","80GB hard drive, 512MB memory","Proseware Laptop12 M210 Black","Black",12,382.95]
[null,null,null,null,"Laptop","Proseware","180 GB hard drive, 2 GB RAM 16-inches LCD","Proseware Laptop16 M610 Black","Black",16,599]
[null,null,null,null,"Laptop","Proseware","15.4-inches widescreen TFT LCD display, 1280x800 resolutions","Proseware Laptop15.4W M518 Black","Black",15,758]
[null,null,null,null,"Laptop","Proseware","1GB DDR2 SDRAM, 160GB hard drive (2.2 pounds)","Proseware Laptop8.9 E089 Black","Black",8.9,326]
[null,null,null,null,"Laptop","Proseware","320 GB hard drive, 4 GB RAM 19-inches widescreen LCD with perfect 16:9 aspect ratio","Proseware Laptop19W X910 White","White","19W",1299]
[null,null,null,null,"Laptop","Proseware","15-inches screen, 60 GB hard drive, 128 MB of RAM (512 MB maximum), DVD-ROM","Proseware Laptop15 M510 White","White",15,699]
[null,null,null,null,"Laptop","Proseware","80GB hard drive, 512MB memory","Proseware Laptop12 M210 White","White",12,382.95]
[null,null,null,null,"Laptop","Proseware","180 GB hard drive.2 GB RAM.16-inch LCD.","Proseware Laptop16 M610 White","White",16,599]
[null,null,null,null,"Laptop","Proseware","15.4-inch Widescreen TFT LCD display, 1280x800 resolutions","Proseware Laptop15.4W M518 White","White",15,758]
[null,null,null,null,"Laptop","Proseware","1GB DDR2 SDRAM, 160GB hard drive (2.2 pounds)","Proseware Laptop8.9 E089 White","White",8.9,326]
[null,null,null,null,"Laptop","Wide World Importers","320 GB hard drive, 4 GB RAM 19-inches widescreen LCD with perfect 16:9 aspect ratio","WWI Laptop19W X0196 Black","Black","19W X0196",1299]
[null,null,null,null,"Laptop","Wide World Importers","15-inches screen, 60 GB hard drive, 128 MB of RAM (512 MB maximum), DVD-ROM","WWI Laptop15 M0150 Black","Black","15 M0150 ",699]
[null,null,null,null,"Laptop","Wide World Importers","80GB hard drive, 512MB memory","WWI Laptop12 M0120 Black","Black","12 M0120 ",382.95]
[null,null,null,null,"Laptop","Wide World Importers","180 GB hard drive, 2 GB RAM 16-inches LCD","WWI Laptop16 M0160 Black","Black","16 M0160 ",599]
[null,null,null,null,"Laptop","Wide World Importers","15.4-inches widescreen TFT LCD Display, 1280x800 resolutions","WWI Laptop15.4W M0156 Black","Black","15.4W M01",758]
[null,null,null,null,"Laptop","Wide World Importers","1GB DDR2 SDRAM, 160GB hard drive (2.2 pounds)","WWI Laptop8.9 E0089 Black","Black","8.9 E0089",326]
[null,null,null,null,"Laptop","Wide World Importers","320 GB hard drive, 4 GB RAM 19-inches widescreen LCD with perfect 16:9 aspect ratio","WWI Laptop19W X0196 White","White","19W X0196",1299]
[null,null,null,null,"Laptop","Wide World Importers","15-inches screen, 60 GB hard drive, 128 MB of RAM (512 MB maximum), DVD-ROM","WWI Laptop15 M0150 White","White","15 M0150 ",699]
[null,null,null,null,"Laptop","Wide World Importers","80GB hard drive, 512MB memory","WWI Laptop12 M0120 White","White","12 M0120 ",382.95]
[null,null,null,null,"Laptop","Wide World Importers","180 GB hard drive, 2 GB RAM 16-inches LCD","WWI Laptop16 M0160 White","White","16 M0160 ",599]
[null,null,null,null,"Laptop","Wide World Importers","15.4-inches widescreen TFT LCD display, 1280x800 resolutions","WWI Laptop15.4W M0156 White","White","15.4W M01",758]
[null,null,null,null,"Laptop","Wide World Importers","1GB DDR2 SDRAM, 160GB hard drive (2.2 pounds)","WWI Laptop8.9 E0089 White","White","8.9 E0089",326]
[null,null,null,null,"Laptop","Wide World Importers","320 GB hard drive, 4 GB RAM 19-inches widescreen LCD with perfect 16:9 aspect ratio","WWI Laptop19W X0196 Blue","Blue","19W X0196",1299]
[null,null,null,null,"Laptop","Wide World Importers","15-inches screen, 60 GB hard drive, 128 MB of RAM (512 MB maximum), DVD-ROM","WWI Laptop15 M0150 Blue","Blue","15 M0150 ",699]
[null,null,null,null,"Desktop","Adventure Works","2.33GHz dual processor, 4MB L2 cache, 750GB 7200RPM hard drive","Adventure Works Desktop PC2.33 XD233 Silver","Silver","One Size",969]
[null,null,null,null,"Desktop","Adventure Works","2.3GHz dual processor, 4 GB DDR2 SDRAM memories, 19\" widescreen LCD monitors","Adventure Works Desktop PC2.30 MD230 Silver","Silver","One Size",599]
[null,null,null,null,"Desktop","Adventure Works","1.60GHz dual processor, 1GB DDR2 memory, 30GB 5400RPM hard drive","Adventure Works Desktop PC1.60 ED160 Silver","Silver","One Size",269.95]
[null,null,null,null,"Desktop","Adventure Works","1.80GHz dual processor, 1GB DDR2 memory, 320GB 5400RPM hard drive","Adventure Works Desktop PC1.80 ED180 Silver","Silver","One Size",369]
[null,null,null,null,"Desktop","Adventure Works","1.80GHz dual processor, 4GB DDR2 memory, 400GB 7200RPM hard drive","Adventure Works Desktop PC1.80 ED182 Silver","Silver","One Size",499.9]
[null,null,null,null,"Desktop","Adventure Works","3.0GHz processor, 4GB DDR2 SDRAM memory, 500GB 7200RPM hard drive, 19 inch LCD flat monitors","Adventure Works Desktop PC3.0 MS300 Silver","Silver","One Size",469]
[null,null,null,null,"Desktop","Adventure Works","2.33GHz dual processor, 4MB L2 cache, 750GB 7200RPM hard drive","Adventure Works Desktop PC2.33 XD233 Black","Black","One Size",969]
[null,null,null,null,"Desktop","Adventure Works","2.3GHz dual processor, 4 GB DDR2 SDRAM memories, 19\" widescreen LCD monitors","Adventure Works Desktop PC2.30 MD230 Black","Black","One Size",599]
[null,null,null,null,"Desktop","Adventure Works","1.60GHz dual processor, 1GB DDR2 memory, 30GB 5400RPM hard drive","Adventure Works Desktop PC1.60 ED160 Black","Black","One Size",269.95]
[null,null,null,null,"Desktop","Adventure Works","1.80GHz dual processor, 1GB DDR2 memory, 320GB 5400RPM hard drive","Adventure Works Desktop PC1.80 ED180 Black","Black","One Size",369]
[null,null,null,null,"Desktop","Adventure Works","1.80GHz dual processor, 4GB DDR2 memory, 400GB 7200RPM hard drive","Adventure Works Desktop PC1.80 ED182 Black","Black","One Size",499.9]
[null,null,null,null,"Desktop","Adventure Works","3.0GHz processor, 4 GB DDR2 SDRAM memories, 500GB 7200RPM hard drive, 19 inches LCD flat monitors","Adventure Works Desktop PC3.0 MS300 Black","Black","One Size",469]
[null,null,null,null,"Desktop","Adventure Works","2.33GHz dual processor, 4MB L2 cache, 750GB 7200RPM hard drive","Adventure Works Desktop PC2.33 XD233 Brown","Brown","One Size",969]
[null,null,null,null,"Desktop","Adventure Works","2.3GHz dual processor, 4 GB DDR2 SDRAM memories, 19\" widescreen LCD monitors","Adventure Works Desktop PC2.30 MD230 Brown","Brown","One Size",599.9]
[null,null,null,null,"Desktop","Adventure Works","1.60GHz dual processor, 1GB DDR2 memory, 30GB 5400RPM hard drive","Adventure Works Desktop PC1.60 ED160 Brown","Brown","One Size",269.95]
[null,null,null,null,"Desktop","Adventure Works","1.80GHz dual processor, 1GB DDR2 memory, 320GB 5400RPM hard drive","Adventure Works Desktop PC1.80 ED180 Brown","Brown","One Size",369]
[null,null,null,null,"Desktop","Adventure Works","1.80GHz dual processor, 4GB DDR2 memories, 400GB 7200RPM hard drive","Adventure Works Desktop PC1.80 ED182 Brown","Brown","One Size",499.9]
[null,null,null,null,"Desktop","Adventure Works","2.33GHz dual processor, 4MB L2 cache, 750GB 7200RPM hard drive","Adventure Works Desktop PC2.33 XD233 White","White","One Size",969]
[null,null,null,null,"Desktop","Adventure Works","2.3GHz dual processor, 4 GB DDR2 SDRAM memories, 19\" widescreen LCD monitors","Adventure Works Desktop PC2.30 MD230 White","White","One Size",599]
[null,null,null,null,"Desktop","Adventure Works","1.60GHz dual processor, 1GB DDR2 memory, 30GB 5400RPM hard drive","Adventure Works Desktop PC1.60 ED160 White","White","One Size",269.95]
[null,null,null,null,"Desktop","Adventure Works","1.80GHz dual processor, 1GB DDR2 memory, 320GB 5400RPM hard drive","Adventure Works Desktop PC1.80 ED180 White","White","One Size",369]
[null,null,null,null,"Desktop","Adventure Works","1.80GHz dual processor, 4GB DDR2 memories, 400GB 7200RPM hard drive","Adventure Works Desktop PC1.80 ED182 White","White","One Size",499.9]
[null,null,null,null,"Desktop","Wide World Importers","2.33GHz dual processor, 750GB 7200RPM hard drive, 19” widescreen LCD monitors","WWI Desktop PC2.33 X2330 Silver","Silver",2.33,919]
[null,null,null,null,"Desktop","Wide World Importers","2.3GHz dual processor, 4 GB DDR2 SDRAM memories, 4MB L2 Cache","WWI Desktop PC2.30 M2300 Brown","Brown",2.2999999999999998,559]
[null,null,null,null,"Desktop","Wide World Importers","1.60GHz dual processor, 2GB DDR2 memories, 30GB 5400RPM hard drive","WWI Desktop PC1.60 E1600 Silver","Silver",1.6,219.95]
[null,null,null,null,"Desktop","Wide World Importers","1.80GHz dual processor, 2GB DDR2 memories, 320GB 5400RPM hard drive","WWI Desktop PC1.80 E1800 Brown","Brown",1.8,229.9]
[null,null,null,null,"Desktop","Wide World Importers","1.80GHz dual processor, 4GB DDR2 memory, 400GB 7200RPM hard drive","WWI Desktop PC1.80 E1801 Silver","Silver",1.8,269.89999999999998]
[null,null,null,null,"Desktop","Wide World Importers","3.0GHz processor, 4 GB DDR2 SDRAM memories, 500GB 7200RPM hard drive, 19 inch LCD flat monitors","WWI Desktop PC3.0 M0300 Silver","Silver","3.0 M",349]
[null,null,null,null,"Desktop","Wide World Importers","2.33GHz dual processor, 4MB L2 cache, 750GB 7200RPM hard drive","WWI Desktop PC2.33 X2330 Black","Black",2.33,919]
[null,null,null,null,"Desktop","Wide World Importers","2.3GHz dual processor, 4 GB DDR2 SDRAM memories, 19\" widescreen LCD monitors","WWI Desktop PC2.30 M2300 Black","Black",2.2999999999999998,559]
[null,null,null,null,"Desktop","Wide World Importers","1.60GHz dual processor, 2GB DDR2 memories, 30GB 5400RPM hard drive","WWI Desktop PC1.60 E1600 Black","Black",1.6,219.95]
[null,null,null,null,"Desktop","Wide World Importers","1.80GHz dual processor, 2GB DDR2 memory, 320GB 5400RPM hard drive","WWI Desktop PC1.80 E1800 Black","Black",1.8,229.9]
[null,null,null,null,"Desktop","Wide World Importers","1.80GHz dual processor, 4GB DDR2 memory, 400GB 7200RPM hard drive","WWI Desktop PC1.80 E1801 Black","Black",1.8,269.89999999999998]
[null,null,null,null,"Desktop","Wide World Importers","3.0GHz processor, 4 GB DDR2 SDRAM memories, 500GB 7200RPM hard drive, 19 inches LCD flat monitors","WWI Desktop PC3.0 M0300 Black","Black","3.0 M",349]
[null,null,null,null,"Desktop","Wide World Importers","2.33GHz dual processor, 4MB L2 cache, 750GB 7200RPM hard drive","WWI Desktop PC2.33 X2330 Brown","Brown",2.33,919]
[null,null,null,null,"Desktop","Wide World Importers","2.3GHz dual processor, 4 GB DDR2 SDRAM memories, 19\" widescreen LCD monitors","WWI Desktop PC2.30 M2300 Silver","Silver",2.2999999999999998,559]
[null,null,null,null,"Desktop","Wide World Importers","1.60GHz dual processor, 2GB DDR2 memories, 30GB 5400RPM hard drive","WWI Desktop PC1.60 E1600 Red","Red",1.6,219.95]
[null,null,null,null,"Desktop","Wide World Importers","1.80GHz dual processor, 2GB DDR2 memories, 320GB 5400RPM hard drive","WWI Desktop PC1.80 E1800 Silver","Silver",1.8,229.9]
[null,null,null,null,"Desktop","Wide World Importers","1.80GHz dual processor, 4GB DDR2 memory, 400GB 7200RPM hard drive","WWI Desktop PC1.80 E1801 Brown","Brown",1.8,269.89999999999998]
[null,null,null,null,"Desktop","Wide World Importers","2.33GHz dual processor, 4MB L2 cache, 750GB 7200RPM hard drive","WWI Desktop PC2.33 X2330 White","White",2.33,919]
[null,null,null,null,"Desktop","Wide World Importers","2.3GHz dual processor, 4 GB DDR2 SDRAM memories, 19\" widescreen LCD monitors","WWI Desktop PC2.30 M2300 White","White",2.2999999999999998,559]
[null,null,null,null,"Desktop","Wide World Importers","1.60GHz dual processor, 2GB DDR2 memories, 30GB 5400RPM hard drive","WWI Desktop PC1.60 E1600 White","White",1.6,219.95]
[null,null,null,null,"Desktop","Wide World Importers","1.80GHz dual processor, 2GB DDR2 memories, 320GB 5400RPM hard drive","WWI Desktop PC1.80 E1800 White","White",1.8,229.9]
[null,null,null,null,"Desktop","Wide World Importers","1.80GHz dual processor, 4GB DDR2 Memories, 400GB 7200RPM hard drive","WWI Desktop PC1.80 E1801 White","White",1.8,269.89999999999998]
[null,null,null,null,"Desktop","Wide World Importers","1.80GHz dual processor, 4GB DDR2 memory, 500GB 7200RPM hard drive","WWI Desktop PC1.80 E1802 White","White",1.8,299.89999999999998]
[null,null,null,null,"Display","Adventure Works","24 Inch HD display, 160° horizontal and vertical viewing angles","Adventure Works LCD24 X300 Black","Black",24,819]
[null,null,null,null,"Display","Adventure Works","24 widescreen HD display, 1920 x 1200 maximum resolutions","Adventure Works LCD24W X300 Black","Black",24,869]
[null,null,null,null,"Display","Adventure Works","22\" Screen LCD, resolution - 1680 x 1050","Adventure Works LCD22 M200 Black","Black",22,619]
[null,null,null,null,"Display","Adventure Works","22\" widescreen LCD, 0.285mm x 0.285mm pixel pitch, 300cd/m2 (typical) brightness","Adventure Works LCD22W M200 Black","Black",22,679]
[null,null,null,null,"Display","Adventure Works","Screen size: 20\", response time: 5ms,  brightness: 300cd/m2","Adventure Works LCD20 M210 Black","Black",20,259]
[null,null,null,null,"Display","Adventure Works","20\" widescreen 1600 x 900 VGA, brightness: 250cd/m2, contrast ratio: 10000:1","Adventure Works LCD20W M240 Black","Black",20,279]
[null,null,null,null,"Display","Adventure Works","19inches TFT LCD.300cd/m2 brightness, 2000:1 dynamic contrast ratio, 5 ms response time","Adventure Works LCD19 E108 Black","Black","Small",139]
[null,null,null,null,"Display","Adventure Works","19 inches widescreen LCD monitor 300cd/m2 (typical) brightness","Adventure Works LCD19W M100 Black","Black","Medium",179]
[null,null,null,null,"Display","Adventure Works","Size/Type: 17\" TFT LCD, maximum resolution: 1280 x 1024, response Time: 5ms","Adventure Works LCD17 E200 Black","Black","Large",99]
[null,null,null,null,"Display","Adventure Works","17 inches widescreen LCD monitor 300cd/m2 (typical) brightness","Adventure Works LCD17W E203 Black","Black","Small",129]
[null,null,null,null,"Display","Adventure Works","Wide viewing angle of 100° vertical and 120° horizontal, dot pitch: 0.297 mm pixel pitch","Adventure Works LCD15 E100 Black","Black","Medium",99]
[null,null,null,null,"Display","Adventure Works","Reduces VLF/ELF radiation by up to 99.5%","Adventure Works CRT19 E10 Black","Black","Large",69]
[null,null,null,null,"Display","Adventure Works","Safely prevents static while eliminating up to 95% of screen glare","Adventure Works CRT17 E105 Black","Black","Small",59]
[null,null,null,null,"Display","Adventure Works","Reduces VLF/ELF radiation by up to 99.5%","Adventure Works CRT15 E101 Black","Black","Medium",90]
[null,null,null,null,"Display","Adventure Works","24 inches HD display, 160° horizontal and vertical viewing angles","Adventure Works LCD24 X300 White","White","Large",819]
[null,null,null,null,"Display","Adventure Works","24 inches widescreen HD display, 1920 x 1200 maximum resolutions","Adventure Works LCD24W X300 White","White","Small",869]
[null,null,null,null,"Display","Adventure Works","22\" screen LCD, resolution - 1680 x 1050","Adventure Works LCD22 M200 White","White","Medium",619]
[null,null,null,null,"Display","Adventure Works","22\" wide screen LCD, 0.285mm x 0.285mm pixel pitch, 300cd/m2 (typical) brightness","Adventure Works LCD22W M200 White","White","Large",679]
[null,null,null,null,"Display","Adventure Works","Screen size: 20\", response time: 5ms, brightness: 300cd/m2","Adventure Works LCD20 M210 White","White","Small",259]
[null,null,null,null,"Display","Adventure Works","20\" widescreen 1600 x 900 VGA, brightness: 250cd/m2, contrast Ratio: 10000:1","Adventure Works LCD20W M240 White","White","Medium",279]
[null,null,null,null,"Display","Adventure Works","19 inches TFT LCD, 300cd/m2 brightness, 2000:1 dynamic contrast ratio, 5 ms response time","Adventure Works LCD19 E108 White","White","Large",139]
[null,null,null,null,"Display","Adventure Works","19 inches widescreen LCD monitor, 300cd/m2 (typical) brightness","Adventure Works LCD19W M100 White","White","Small",179]
[null,null,null,null,"Display","Adventure Works","Size/Type: 17\" TFT LCD, maximum resolution: 1280 x 1024. response time: 5ms","Adventure Works LCD17 E200 White","White","Medium",99]
[null,null,null,null,"Display","Adventure Works","17 inches widescreen LCD monitor, 300cd/m2 (typical) brightness","Adventure Works LCD17W E203 White","White","Large",129]
[null,null,null,null,"Display","Adventure Works","Wide viewing angle of 100° vertical and 120° horizontal, dot pitch: 0.297 mm pixel pitch","Adventure Works LCD15 E100 White","White","Small",99]
[null,null,null,null,"Display","Adventure Works","Reduces VLF/ELF radiation by up to 99.5%","Adventure Works CRT19 E10 White","White","Small",69]
[null,null,null,null,"Display","Adventure Works","Safely prevents static while eliminating up to 95% of screen glare","Adventure Works CRT17 E105 White","White","Medium",59]
[null,null,null,null,"Display","Adventure Works","Reduces VLF/ELF radiation by up to 99.5%","Adventure Works CRT15 E101 White","White","Large",90]
[null,null,null,null,"Display","Proseware","24 inches HD display, 160° horizontal and vertical viewing angles","Proseware LCD24 X300 Black","Black","24 X30",819]
[null,null,null,null,"Display","Proseware","24 widescreen HD display, 1920 x 1200 maximum resolutions","Proseware LCD24W X300 Black","Black","24W X3",869]
[null,null,null,null,"Display","Proseware","22\" screen LCD, Resolution -1680 x 1050","Proseware LCD22 M2000 Black","Black","22 M20",619]
[null,null,null,null,"Display","Proseware","22\" wide screen LCD, 0.285mm x 0.285mm pixel pitch, 300cd/m2 (typical) brightness","Proseware LCD22W M2001 Black","Black","22W M2",679]
[null,null,null,null,"Display","Proseware","Screen size: 20\", response time: 5ms, brightness: 300cd/m2","Proseware LCD20 M200 Black","Black","20 M20",259]
[null,null,null,null,"Display","Proseware","20\" widescreen 1600 x 900 VGA, brightness: 250cd/m2, contrast ratio: 10000:1","Proseware LCD20W M230 Black","Black","20W M2",279]
[null,null,null,null,"Display","Proseware","19-inches TFT LCD, 300cd/m2 brightness, 2000:1 dynamic contrast ratio, 5 ms response time","Proseware LCD19 E1000 Black","Black","19 E10",139]
[null,null,null,null,"Display","Proseware","19 inches widescreen LCD monitor 300cd/m2 (typical) brightness","Proseware LCD19W M100 Black","Black","19W M1",179]
[null,null,null,null,"Display","Proseware","Size/Type: 17\" TFT LCD, maximum resolution: 1280 x 1024, response time: 5ms","Proseware LCD17 E200 Black","Black","17 E20",99]
[null,null,null,null,"Display","Proseware","17 inches widescreen LCD monitor 300cd/m2 (typical) brightness","Proseware LCD17W E202 Black","Black","17W E2",129]
[null,null,null,null,"Display","Proseware","Wide viewing angle of 100° vertical and 120° horizontal, dot pitch: 0.297 mm pixel pitch","Proseware LCD15 E103 Black","Black","15 E10",99]
[null,null,null,null,"Display","Proseware","Reduces VLF/ELF radiation by up to 99.5%","Proseware CRT19 E201 Black","Black","19 E20",69]
[null,null,null,null,"Display","Proseware","Safely prevents static while eliminating up to 95% of screen glare","Proseware CRT17 E104 Black","Black","17 E10",59]
[null,null,null,null,"Display","Proseware","Reduces VLF/ELF radiation by up to 99.5%","Proseware CRT15 E10 Black","Black","15 E10",49]
[null,null,null,null,"Display","Proseware","24 Inch HD display, 160° horizontal and vertical viewing angles","Proseware LCD24 X300 White","White","24 X30",819]
[null,null,null,null,"Display","Proseware","24 widescreen HD display, 1920 x 1200 maximum resolution","Proseware LCD24W X300 White","White","24W X3",869]
[null,null,null,null,"Display","Proseware","22\" Screen LCD, resolution - 1680 x 1050","Proseware LCD22 M2000 White","White","22 M20",619]
[null,null,null,null,"Display","Proseware","22\" widescreen LCD, 0.285mm x 0.285mm pixel pitch, 300cd/m2 (typical) brightness","Proseware LCD22W M2001 White","White","22W M2",679]
[null,null,null,null,"Display","Proseware","Screen size: 20\", response time: 5ms, brightness: 300cd/m2","Proseware LCD20 M200 White","White","20 M20",259]
[null,null,null,null,"Display","Proseware","20\" widescreen 1600 x 900 VGA, brightness: 250cd/m2, contrast ratio: 10000:1","Proseware LCD20W M230 White","White","20W M2",279]
[null,null,null,null,"Display","Proseware","19-inches TFT LCD, 300cd/m2 brightness, 2000:1 dynamic contrast ratio, 5 ms response time","Proseware LCD19 E1000 White","White","19 E10",139]
[null,null,null,null,"Display","Proseware","19 inches widescreen LCD monitor 300cd/m2 (typical) brightness","Proseware LCD19W M100 White","White","19W M1",179]
[null,null,null,null,"Display","Proseware","Size/Type: 17\" TFT LCD, maximum resolution: 1280 x 1024, response time: 5ms","Proseware LCD17 E200 White","White","17 E20",99]
[null,null,null,null,"Display","Proseware","17 inches widescreen LCD monitor 300cd/m2 (typical) brightness","Proseware LCD17W E202 White","White","17W E2",129]
[null,null,null,null,"Display","Proseware","Wide viewing angle of 100° vertical and 120° horizontal, dot pitch: 0.297 mm pixel pitch","Proseware LCD15 E103 White","White","15 E10",99]
[null,null,null,null,"Display","Proseware","Reduces VLF/ELF radiation by up to 99.5%","Proseware CRT19 E201 White","White","19 E20",69]
[null,null,null,null,"Display","Proseware","Safely prevents static while eliminating up to 95% of screen glare","Proseware CRT17 E104 White","White","17 E10",59]
[null,null,null,null,"Display","Proseware","Reduces VLF/ELF radiation by up to 99.5%","Proseware CRT15 E10 White","White","15 E10",49]
[null,null,null,null,"Display","Wide World Importers","24 Inches HD display, 160° horizontal and vertical viewing angles","WWI LCD24 X300 Black","Black","24 X300 Blac",819]
[null,null,null,null,"Display","Wide World Importers","24 widescreen HD display, 1920 x 1200 maximum resolutions","WWI LCD24W X300 Black","Black","24W X300 Bla",869]
[null,null,null,null,"Display","Wide World Importers","22\" Screen LCD, resolution - 1680 x 1050","WWI LCD22 M2002 Black","Black","22 M2002 Bla",619]
[null,null,null,null,"Display","Wide World Importers","22\" widescreen LCD, 0.285mm x 0.285mm pixel pitch, 300cd/m2 (typical) brightness","WWI LCD22W M2003 Black","Black","22W M2003 Bl",679]
[null,null,null,null,"Display","Wide World Importers","Screen size: 20\", response time: 5ms, brightness: 300cd/m2","WWI LCD20 M220 Black","Black","20 M220 Blac",259]
[null,null,null,null,"Display","Wide World Importers","20\" widescreen 1600 x 900 VGA, brightness: 250cd/m2, contrast Ratio: 10000:1","WWI LCD20W M250 Black","Black","20W M250 Bla",279]
[null,null,null,null,"Display","Wide World Importers","19 inches TFT LCD, 300cd/m2 brightness, 2000:1 dynamic contrast ratio, 5 ms response time","WWI LCD19 E107 Black","Black","19 E107 Blac",139]
[null,null,null,null,"Display","Wide World Importers","19 inches widescreen LCD monitor, 300cd/m2 (typical) brightness","WWI LCD19W M100 Black","Black","19W M100 Bla",179]
[null,null,null,null,"Display","Wide World Importers","Size/Type: 17\" TFT LCD, maximum resolution: 1280 x 1024, response time: 5ms","WWI LCD17 E200 Black","Black","17 E200 Blac",99]
[null,null,null,null,"Display","Wide World Importers","17 inches widescreen LCD monitor, 300cd/m2 (typical) brightness","WWI LCD17W E200 Black","Black","17W E200 Bla",129]
[null,null,null,null,"Display","Wide World Importers","Wide viewing angle of 100° vertical and 120° horizontal, dot pitch: 0.297 mm pixel pitch","WWI CRT17 E106 Black","Black","17 E106 Blac",99]
[null,null,null,null,"Display","Wide World Importers","24 inches HD display, 160° horizontal and vertical viewing angles","WWI LCD24 X300 White","White","24 X300 Whit",819]
[null,null,null,null,"Display","Wide World Importers","24 widescreen HD display, 1920 x 1200 maximum resolution","WWI LCD24W X300 White","White","24W X300 Whi",869]
[null,null,null,null,"Display","Wide World Importers","22\" screen LCD, resolution - 1680 x 1050","WWI LCD22 M2002 White","White","22 M2002 Whi",619]
[null,null,null,null,"Display","Wide World Importers","22\" widescreen LCD, 0.285mm x 0.285mm pixel pitch, 300cd/m2 (typical) brightness","WWI LCD22W M2003 White","White","22W M2003 Wh",679]
[null,null,null,null,"Display","Wide World Importers","Screen size: 20\", response time: 5ms, brightness: 300cd/m2","WWI LCD20 M220 White","White","20 M220 Whit",259]
[null,null,null,null,"Display","Wide World Importers","20\" widescreen 1600 x 900 VGA, brightness: 250cd/m2, contrast ratio: 10000:1","WWI LCD20W M250 White","White","20W M250 Whi",279]
[null,null,null,null,"Display","Wide World Importers","19 inches TFT LCD, 300cd/m2 brightness, 2000:1 dynamic contrast ratio, 5 ms response time","WWI LCD19 E107 White","White","19 E107 Whit",139]
[null,null,null,null,"Display","Wide World Importers","19 inches widescreen LCD monitor, 300cd/m2 (typical) brightness","WWI LCD19W M100 White","White","19W M100 Whi",179]
[null,null,null,null,"Display","Wide World Importers","Size/Type: 17\" TFT LCD, maximum resolution: 1280 x 1024, response time: 5ms","WWI LCD17 E205 White","White","17 E205 Whit",99]
[null,null,null,null,"Display","Wide World Importers","17 inch widescreen LCD monitor, 300cd/m2 (typical) brightness","WWI LCD17W E200 White","White","17W E200 Whi",129]
[null,null,null,null,"Display","Wide World Importers","Wide viewing angle of 100° vertical and 120° horizontal, dot pitch: 0.297 mm pixel pitch","WWI CRT17 E106 White","White","17 E106 Whit",99]
[null,null,null,null,"Home Theater","Contoso","1080p high definition projector, 1200 ANSI lumens, 14,000:1 contrast ratio, 2 HDMI inputs","Contoso Projector 1080p X980 Black","Black","4.1 x 2 x 0.6",2295]
[null,null,null,null,"Home Theater","Contoso","1920 x 1080p pixel resolution, HDTV 1080p native resolution, 8000:1 contrast ratio","Contoso Projector 1080p X981 Black","Black","16.3 x 9.1 x 12.1",2499]
[null,null,null,null,"Home Theater","Contoso","720p high definition performance with 10,000:1 contrast ratio","Contoso Projector 720p M620 Black","Black","17.2 x 6.1 x 4",699]
[null,null,null,null,"Home Theater","Contoso","Native 720p resolution, 1700 ANSI lumens, 2500:1 contrast ratio, up to 3000 hours lamp life","Contoso Projector 720p M621 Black","Black","12.2 x 16 x 4.9",999]
[null,null,null,null,"Home Theater","Contoso","High brightness, 1300 ANSI lumen light output, remote control","Contoso Projector 480p M480 Black","Black","12 x 9 x 4",229]
[null,null,null,null,"Home Theater","Contoso","850 typical lumens, 3,000:1 contrast ratio, supports 4:3 and 16:9 aspect ratios","Contoso Projector 480p M481 Black","Black","13.8 x 13.1 x 4.9",499]
[null,null,null,null,"Home Theater","Contoso","16:9 aspect ratios - 125in, 160 degree wide viewing angle","Contoso Screen 125in M250 Black","Black","9.6 x 12.9 x 4",459]
[null,null,null,null,"Home Theater","Contoso","16:9 aspect ratios-113in, dual wall and ceiling-perfect for home / business","Contoso Screen 113in M251 Black","Black","5.2 x 10.4 x 2.9",299]
[null,null,null,null,"Home Theater","Contoso","16:9 aspect ratios-106in, electric/motorized screen for home theater and commercial presentations","Contoso Screen 106in M060 Black","Black","12 x 9 x 4",251]
[null,null,null,null,"Home Theater","Contoso","16:9 aspect ratios - 100in, designed for wall or ceiling installation","Contoso Screen 100in E010 Black","Black","13.6 x 17.7 x 5.7",190]
[null,null,null,null,"Home Theater","Contoso","1:1 aspect ratio-85in, enjoy fast, easy setup with the innovative, patent-pending design","Contoso Screen 85in E085 Black","Black","17.2 x 6.1 x 4",139]
[null,null,null,null,"Home Theater","Contoso","Standard 4:3 aspect ratio-85in, use with any home theater or business projector","Contoso Screen 80in E080 Black","Black","10.7 x 7.6 x 3.1",109]
[null,null,null,null,"Home Theater","Contoso","1080p high definition projector, 1200 ANSI Lumens, 14,000:1 contrast ratio, 2 HDMI inputs","Contoso Projector 1080p X980 White","White","15.5 x 17.7 x 5.4",2295]
[null,null,null,null,"Home Theater","Contoso","1920 x 1080p pixel resolution, HDTV 1080p native resolution,8000:1 contrast ratio","Contoso Projector 1080p X981 White","White","11.5 x 4 x 9",2499]
[null,null,null,null,"Home Theater","Contoso","720p high definition performance with 10,000:1 contrast ratio","Contoso Projector 720p M620 White","White","11 x 8 x 3.5",699]
[null,null,null,null,"Home Theater","Contoso","Native 720p resolution, 1700 ANSI lumens,2500:1 contrast ratio, up to 3000 hours lamp life","Contoso Projector 720p M621 White","White","9.6 x 12.9 x 4",999]
[null,null,null,null,"Home Theater","Contoso","High brightness, 1300 ANSI lumen light output, remote control","Contoso Projector 480p M480 White","White","7.5 x 6 x 3.2",229]
[null,null,null,null,"Home Theater","Contoso","850 typical lumens, 3,000:1 contrast ratio, supports 4:3 and 16:9 aspect ratios","Contoso Projector 480p M481 White","White","12.9 x 9.6 x 4.3",499]
[null,null,null,null,"Home Theater","Contoso","16:9 aspect ratios-125in, 160 degree wide viewing angle","Contoso Screen 125in M250 White","White","12.7 x 13.5 x 5.5",459]
[null,null,null,null,"Home Theater","Contoso","16:9 aspect ratios - 113in, dual wall and ceiling - perfect for home / business","Contoso Screen 113in M251 White","White","9.6 x 12.2 x 3.9",299]
[null,null,null,null,"Home Theater","Contoso","16:9 aspect Ratios - 106in, electric/motorized screen for home theater and commercial presentations","Contoso Screen 106in M060 White","White","4.1 x 2 x 0.6",251]
[null,null,null,null,"Home Theater","Contoso","16:9 aspect Ratio-100in, designed for wall or ceiling installation","Contoso Screen 100in E010 White","White","6.6 x 5.4 x 5.2",190]
[null,null,null,null,"Home Theater","Contoso","1:1 aspect ratio-85in, enjoy fast, easy setup with the innovative, patent-pending design","Contoso Screen 85in E085 White","White","3 x 7.5 x 10",139]
[null,null,null,null,"Home Theater","Contoso","Standard 4:3 aspect ratio-85in, use with any home theater or business projector","Contoso Screen 80in E080 White","White","11.4 x 8.2 x 4.8",109]
[null,null,null,null,"Home Theater","Contoso","1080p high definition projector, 1200 ANSI Lumens, 14,000:1 contrast ratio, 2 HDMI inputs","Contoso Projector 1080p X980 Silver","Silver","9.6 x 12.9 x 4",2295]
[null,null,null,null,"Home Theater","Contoso","1920 x 1080p pixel resolution, HDTV 1080p native resolution, 8000:1 contrast ratio","Contoso Projector 1080p X981 Silver","Silver","0.9 x 2 x 4.5",2499]
[null,null,null,null,"Home Theater","Contoso","720p high definition performance with 10,000:1 contrast ratio","Contoso Projector 720p M620 Silver","Silver","4.1 x 2 x 0.6",699]
[null,null,null,null,"Home Theater","Contoso","Native 720p resolution, 1700 ANSI lumens, 2500:1 contrast ratio, up to 3000 hours lamp life","Contoso Projector 720p M621 Silver","Silver","16.3 x 9.1 x 12.1",999]
[null,null,null,null,"Home Theater","Contoso","High brightness, 1300 ANSI lumen light output, remote control","Contoso Projector 480p M480 Silver","Silver","17.2 x 6.1 x 4",229]
[null,null,null,null,"Home Theater","Contoso","850 typical lumens, 3,000:1 contrast ratio, supports 4:3 and 16:9 aspect ratios","Contoso Projector 480p M481 Silver","Silver","12.2 x 16 x 4.9",499]
[null,null,null,null,"Home Theater","Contoso","16:9 aspect ratio-125in, 160 degree wide viewing angle","Contoso Screen 125in M250 Silver","Silver","12 x 9 x 4",459]
[null,null,null,null,"Home Theater","Contoso","16:9 aspect ratio-113in, dual wall and ceiling-perfect for home / business","Contoso Screen 113in M251 Silver","Silver","13.8 x 13.1 x 4.9",299]
[null,null,null,null,"Home Theater","Contoso","16:9 aspect ratio-106in, electric/motorized screen for home theater and commercial presentations","Contoso Screen 106in M060 Silver","Silver","9.6 x 12.9 x 4",251]
[null,null,null,null,"Home Theater","Contoso","16:9 aspect ratio-100in, designed for wall or ceiling installation","Contoso Screen 100in E010 Silver","Silver","5.2 x 10.4 x 2.9",190]
[null,null,null,null,"Home Theater","Contoso","1:1 aspect ratio-85in, enjoy fast, easy setup with the innovative, patent-pending design","Contoso Screen 85in E085 Silver","Silver","12 x 9 x 4",139]
[null,null,null,null,"Home Theater","Contoso","Standard 4:3 aspect ratio-85in, use with any home theater or business projector","Contoso Screen 80in E080 Silver","Silver","13.6 x 17.7 x 5.7",109]
[null,null,null,null,"Home Theater","Proseware","1080p high definition projector, 1200 ANSI Lumens, 14,000:1 contrast ratio, 2 HDMI inputs","Proseware Projector 1080p LCD86 Black","Black","9.5 x 11.7 x 4.3",2295]
[null,null,null,null,"Home Theater","Proseware","1920 x 1080p pixel resolution, HDTV 1080p native resolution, 8000:1 contrast ratio","Proseware Projector 1080p DLP86 Black","Black","12.7 x 13.5 x 5.5",2499]
[null,null,null,null,"Home Theater","Proseware","720p High Definition performance with 10,000:1 contrast ratio.","Proseware Projector 720p LCD56 Black","Black","9.6 x 12.2 x 3.9",699]
[null,null,null,null,"Home Theater","Proseware","Native 720p Resolution, 1700 ANSI lumens, 2500:1 contrast ratio, up to 3000 hours lamp life","Proseware Projector 720p DLP56 Black","Black","4.1 x 2 x 0.6",999]
[null,null,null,null,"Home Theater","Proseware","High brightness, 1300 ANSI lumen light output, remote control","Proseware Projector 480p LCD12 Black","Black","6.6 x 5.4 x 5.2",229]
[null,null,null,null,"Home Theater","Proseware","850 typical lumens, 3,000:1 contrast ratio, supports 4:3 and 16:9 aspect ratios","Proseware Projector 480p DLP12 Black","Black","3 x 7.5 x 10",499]
[null,null,null,null,"Home Theater","Proseware","16:9 aspect ratios - 125in, 160 degree wide viewing angle","Proseware Screen 125in X1609 Black","Black","11.4 x 8.2 x 4.8",459]
[null,null,null,null,"Home Theater","Proseware","16:9 aspect ratios - 113in, dual wall and ceiling-perfect for home / business","Proseware Screen 113in X1609 Black","Black","9.6 x 12.9 x 4",299]
[null,null,null,null,"Home Theater","Proseware","16:9 aspect ratios - 106in, electric/motorized screen for home theater and commercial presentations","Proseware Screen 106in M1609 Black","Black","0.9 x 2 x 4.5",251]
[null,null,null,null,"Home Theater","Proseware","16:9 aspect ratios-100in, designed for wall or ceiling installation","Proseware Screen 100in M1609 Black","Black","4.1 x 2 x 0.6",190]
[null,null,null,null,"Home Theater","Proseware","1:1 aspect ratio-85in, enjoy fast, easy setup with the innovative, patent-pending design","Proseware Screen 85in E1010 Black","Black","16.3 x 9.1 x 12.1",139]
[null,null,null,null,"Home Theater","Proseware","Standard 4:3 aspect ratio-85in, use with any home theater or business projector","Proseware Screen 80in E1010 Black","Black","17.2 x 6.1 x 4",109]
[null,null,null,null,"Home Theater","Proseware","1080p high definition projector,1200 ANSI Lumens, 14,000:1 contrast ratio, 2 HDMI inputs","Proseware Projector 1080p LCD86 White","White","12.2 x 16 x 4.9",2295]
[null,null,null,null,"Home Theater","Proseware","1920 x 1080p pixel resolution, HDTV 1080p native resolution, 8000:1 contrast ratio","Proseware Projector 1080p DLP86 White","White","12 x 9 x 4",2499]
[null,null,null,null,"Home Theater","Proseware","720p high definition performance with 10,000:1 contrast ratio","Proseware Projector 720p LCD56 White","White","13.8 x 13.1 x 4.9",699]
[null,null,null,null,"Home Theater","Proseware","Native 720p resolution, 1700 ANSI lumens, 2500:1 contrast ratio, up to 3000 hours lamp life","Proseware Projector 720p DLP56 White","White","9.6 x 12.9 x 4",999]
[null,null,null,null,"Home Theater","Proseware","High brightness, 1300 ANSI lumen light output, remote control","Proseware Projector 480p LCD12 White","White","5.2 x 10.4 x 2.9",229]
[null,null,null,null,"Home Theater","Proseware","850 typical lumens, 3,000:1 contrast ratio, supports 4:3 and 16:9 aspect ratios","Proseware Projector 480p DLP12 White","White","12 x 9 x 4",499]
[null,null,null,null,"Home Theater","Proseware","16:9 aspect ratios-125in, 160 degree wide viewing angle","Proseware Screen 125in X1609 White","White","13.6 x 17.7 x 5.7",459]
[null,null,null,null,"Home Theater","Proseware","16:9 aspect ratios-113in, dual wall and ceiling - perfect for home / business","Proseware Screen 113in X1609 White","White","17.2 x 6.1 x 4",299]
[null,null,null,null,"Home Theater","Proseware","16:9 aspect ratios-106in, electric/motorized screen for home theater and commercial presentations","Proseware Screen 106in M1609 White","White","10.7 x 7.6 x 3.1",251]
[null,null,null,null,"Home Theater","Proseware","16:9 aspect ratio-100in, designed for wall or ceiling installation","Proseware Screen 100in M1609 White","White","15.5 x 17.7 x 5.4",190]
[null,null,null,null,"Home Theater","Proseware","1:1 aspect ratio-85in, enjoy fast, easy setup with the innovative, patent-pending design","Proseware Screen 85in E1010 White","White","11.5 x 4 x 9",139]
[null,null,null,null,"Home Theater","Proseware","Standard 4:3 aspect ratio-85in, use with any home theater or business projector","Proseware Screen 80in E1010 White","White","11 x 8 x 3.5",109]
[null,null,null,null,"Home Theater","Proseware","1080p high definition projector, 1200 ANSI Lumens, 14,000:1 contrast ratio, 2 HDMI inputs","Proseware Projector 1080p LCD86 Silver","Silver","9.6 x 12.9 x 4",2295]
[null,null,null,null,"Home Theater","Proseware","1920 x 1080p pixel resolution, HDTV 1080p native resolution, 8000:1 contrast ratio","Proseware Projector 1080p DLP86 Silver","Silver","7.5 x 6 x 3.2",2499]
[null,null,null,null,"Home Theater","Proseware","720p high definition performance with 10,000:1 contrast ratio","Proseware Projector 720p LCD56 Silver","Silver","12.9 x 9.6 x 4.3",699]
[null,null,null,null,"Home Theater","Proseware","Native 720p resolution, 1700 ANSI lumens, 2500:1 contrast ratio, up to 3000 hours lamp life","Proseware Projector 720p DLP56 Silver","Silver","9.5 x 11.7 x 4.3",999]
[null,null,null,null,"Home Theater","Proseware","High brightness, 1300 ANSI lumen Light output, remote control","Proseware Projector 480p LCD12 Silver","Silver","12.7 x 13.5 x 5.5",229]
[null,null,null,null,"Home Theater","Proseware","850 typical lumens, 3,000:1 contrast ratio, supports 4:3 and 16:9 aspect ratios","Proseware Projector 480p DLP12 Silver","Silver","9.6 x 12.2 x 3.9",499]
[null,null,null,null,"Home Theater","Proseware","16:9 aspect ratios-125in, 160 degree wide viewing angle","Proseware Screen 125in X1609 Silver","Silver","4.1 x 2 x 0.6",459]
[null,null,null,null,"Home Theater","Proseware","16:9 aspect ratios-113in, dual wall and ceiling- perfect for home / business","Proseware Screen 113in X1609 Silver","Silver","6.6 x 5.4 x 5.2",299]
[null,null,null,null,"Home Theater","Proseware","16:9 aspect ratios-106in, electric/motorized screen for home theater and commercial presentations","Proseware Screen 106in M1609 Silver","Silver","3 x 7.5 x 10",251]
[null,null,null,null,"Home Theater","Proseware","16:9 aspect ratios-100in, designed for wall or ceiling installation","Proseware Screen 100in M1609 Silver","Silver","11.4 x 8.2 x 4.8",190]
[null,null,null,null,"Home Theater","Proseware","1:1 aspect ratio-85in, enjoy fast, easy setup with the innovative, patent-pending design","Proseware Screen 85in E1010 Silver","Silver","9.6 x 12.9 x 4",139]
[null,null,null,null,"Home Theater","Proseware","Standard 4:3 aspect ratio-85in, use with any home theater or business projector","Proseware Screen 80in E1010 Silver","Silver","0.9 x 2 x 4.5",109]
[null,null,null,null,"Home Theater","Wide World Importers","1080p high definition projector, 1200 ANSI lumens, 14,000:1 contrast ratio, 2 HDMI inputs","WWI Projector 1080p LCD86 Black","Black","17.2 x 6.1 x 4",2295]
[null,null,null,null,"Home Theater","Wide World Importers","1920 x 1080p pixel resolution, HDTV 1080p native resolution, 8000:1 contrast ratio","WWI Projector 1080p DLP86 Black","Black","10.7 x 7.6 x 3.1",2499]
[null,null,null,null,"Home Theater","Wide World Importers","720p high definition performance with 10,000:1 contrast ratio","WWI Projector 720p LCD56 Black","Black","15.5 x 17.7 x 5.4",699]
[null,null,null,null,"Home Theater","Wide World Importers","Native 720p resolution, 1700 ANSI lumens, 2500:1 contrast ratio, up to 3000 hours lamp life","WWI Projector 720p DLP56 Black","Black","11.5 x 4 x 9",999]
[null,null,null,null,"Home Theater","Wide World Importers","High brightness, 1300 ANSI lumen light output, remote control","WWI Projector 480p LCD12 Black","Black","11 x 8 x 3.5",229]
[null,null,null,null,"Home Theater","Wide World Importers","850 typical lumens, 3,000:1 contrast ratio, supports 4:3 and 16:9 aspect ratios","WWI Projector 480p DLP12 Black","Black","9.6 x 12.9 x 4",499]
[null,null,null,null,"Home Theater","Wide World Importers","16:9 Aspect Ratio - 125in. 160 degree wide viewing angle.","WWI Screen 125in M1611 Black","Black","7.5 x 6 x 3.2",459]
[null,null,null,null,"Home Theater","Wide World Importers","16:9 Aspect Ratio - 113in.Dual wall and ceiling - perfect for home / business.","WWI Screen 113in M1610 Black","Black","12.9 x 9.6 x 4.3",299]
[null,null,null,null,"Home Theater","Wide World Importers","16:9 aspect ratio-106in, electric/motorized screen for home theater and commercial presentations","WWI Screen 106in M1609 Black","Black","4.1 x 2 x 0.6",251]
[null,null,null,null,"Home Theater","Wide World Importers","16:9 aspect ratio-100in, designed for wall or ceiling installation","WWI Screen 100in M1609 Black","Black","6.6 x 5.4 x 5.2",190]
[null,null,null,null,"Home Theater","Wide World Importers","1:1 aspect ratio-85in, enjoy fast, easy setup with the innovative, patent-pending design","WWI Screen 85in E1010 Black","Black","3 x 7.5 x 10",139]
[null,null,null,null,"Home Theater","Wide World Importers","1080p high definition projector, 1200 ANSI lumens, 14,000:1 contrast ratio, 2 HDMI inputs","WWI Projector 1080p LCD86 White","White","11.4 x 8.2 x 4.8",2295]
[null,null,null,null,"Home Theater","Wide World Importers","1920 x 1080p pixel resolution, HDTV 1080p native resolution, 8000:1 contrast ratio","WWI Projector 1080p DLP86 White","White","9.6 x 12.9 x 4",2499]
[null,null,null,null,"Home Theater","Wide World Importers","720p high definition performance with 10,000:1 contrast ratio","WWI Projector 720p LCD56 White","White","0.9 x 2 x 4.5",699]
[null,null,null,null,"Home Theater","Wide World Importers","Native 720p resolution, 1700 ANSI lumens, 2500:1 contrast ratio, up to 3000 hours lamp life","WWI Projector 720p DLP56 White","White","4.1 x 2 x 0.6",999]
[null,null,null,null,"Home Theater","Wide World Importers","High brightness, 1300 ANSI lumen light output, remote control","WWI Projector 480p LCD12 White","White","16.3 x 9.1 x 12.1",229]
[null,null,null,null,"Home Theater","Wide World Importers","850 typical lumens, 3,000:1 contrast ratio, supports 4:3 and 16:9 aspect ratios","WWI Projector 480p DLP12 White","White","17.2 x 6.1 x 4",499]
[null,null,null,null,"Home Theater","Wide World Importers","16:9 aspect ratio-125in, 160 degree wide viewing angle","WWI Screen 125in M1611 White","White","12.2 x 16 x 4.9",459]
[null,null,null,null,"Home Theater","Wide World Importers","16:9 aspect ratios - 113in, dual wall and ceiling - perfect for home / business","WWI Screen 113in M1610 White","White","12 x 9 x 4",299]
[null,null,null,null,"Home Theater","Wide World Importers","16:9 aspect ratios - 106in, electric/motorized screen for home theater and commercial presentations","WWI Screen 106in M1609 White","White","13.8 x 13.1 x 4.9",251]
[null,null,null,null,"Home Theater","Wide World Importers","16:9 aspect ratios-100in, designed for wall or ceiling installation","WWI Screen 100in M1609 White","White","9.6 x 12.9 x 4",190]
[null,null,null,null,"Home Theater","Wide World Importers","1:1 aspect ratio-85in, enjoy fast, easy setup with the innovative, patent-pending design","WWI Screen 85in E1010 White","White","5.2 x 10.4 x 2.9",139]
[null,null,null,null,"Home Theater","Wide World Importers","1080p high definition projector, 1200 ANSI Lumens, 14,000:1 contrast ratio, 2 HDMI inputs","WWI Projector 1080p LCD86 Silver","Silver","12 x 9 x 4",2295]
[null,null,null,null,"Home Theater","Wide World Importers","1920 x 1080p pixel resolution, HDTV 1080p native resolution, 8000:1 contrast ratio","WWI Projector 1080p DLP86 Silver","Silver","13.6 x 17.7 x 5.7",2499]
[null,null,null,null,"Home Theater","Wide World Importers","720p high definition performance with 10,000:1 contrast ratio","WWI Projector 720p LCD56 Silver","Silver","17.2 x 6.1 x 4",699]
[null,null,null,null,"Home Theater","Wide World Importers","Native 720p resolution, 1700 ANSI lumens, 2500:1 contrast ratio, up to 3000 hours lamp life","WWI Projector 720p DLP56 Silver","Silver","10.7 x 7.6 x 3.1",999]
[null,null,null,null,"Home Theater","Wide World Importers","High brightness, 1300 ANSI lumen light output, remote control","WWI Projector 480p LCD12 Silver","Silver","15.5 x 17.7 x 5.4",229]
[null,null,null,null,"Home Theater","Wide World Importers","850 typical lumens, 3,000:1 contrast ratio, supports 4:3 and 16:9 aspect ratios","WWI Projector 480p DLP12 Silver","Silver","11.5 x 4 x 9",499]
[null,null,null,null,"Home Theater","Wide World Importers","16:9 aspect ratio-125in, 160 degree wide viewing angle","WWI Screen 125in M1611 Silver","Silver","11 x 8 x 3.5",459]
[null,null,null,null,"Home Theater","Wide World Importers","16:9 aspect ratio-113in, dual wall and ceiling - perfect for home / business","WWI Screen 113in M1610 Silver","Silver","9.6 x 12.9 x 4",299]
[null,null,null,null,"Home Theater","Wide World Importers","16:9 aspect ratio-106in, electric/motorized screen for home theater and commercial presentations","WWI Screen 106in M1609 Silver","Silver","7.5 x 6 x 3.2",251]
[null,null,null,null,"Printer","Proseware","Print speeds up to 26ppm, 6.4 x 11.4 x 17.2 inches, 12.8 pounds","Proseware Photo Ink Jet Printer M100 Black","Black","6.4 x 11.4 x 17.2",159]
[null,null,null,null,"Printer","Proseware","17.2 x 5.5 x 8.1 inches, 8.2 pounds, Ink Jet  all in one,  Large 80-sheet input tray","Proseware Ink Jet All in one M300 Black","Black","17.2 x 5.5 x 8.1",169]
[null,null,null,null,"Printer","Proseware","19.4 x 17.1 x 8.9 inches, 34 pounds, various security features","Proseware Laser Jet Printer E100 Black","Black","19.4 x 17.1 x 8.9   ",79]
[null,null,null,null,"Printer","Proseware","16.1 x 18.1 x 9.3 inches, 23.5 pounds, LaserJet","Proseware Laser Jet Color Printer X300 Black","Black","17.5 x 13.1 x 6.1",209]
[null,null,null,null,"Printer","Proseware","17.5 x 13.1 x 6.1 inches, operate your printer within seconds after power-on with quick start","Proseware Laser Jet All in one X300 Black","Black","14.8 x 15.4 x 7.1",219]
[null,null,null,null,"Printer","Proseware","14.2 x 6.7 x 14.5 inches, perfect for home or office use.","Proseware Fax phone E100 Black","Black","17.79 x 15.97 x 8.17 ",87]
[null,null,null,null,"Printer","Proseware","14.8 x 15.4 x 7.1 inches, 1 Wide 3.3\" color LCD","Proseware Fax Machine E100 Black","Black","17 x 11.7 x 6",79]
[null,null,null,null,"Printer","Proseware","6.4 x 11.4 x 17.1 inches, offering high-quality and fast output","Proseware Laser Fax Printer E100 Black","Black","20 x 11.9 x 15.8",91]
[null,null,null,null,"Printer","Proseware","17.7 x 14.5 x 6.9 inches, Inkjet Fax Machine","Proseware Ink Jet Fax Machine E100 Black","Black","20.8 x 13.2 x 22.2",78]
[null,null,null,null,"Printer","Proseware","13.7 x 8.8 x 7.6 inches,  mobile receipt and document scanner","Proseware Mobile Receipt and Document Scanner M200 Black","Black","19.9 x 9.6 x 10.7  ",116]
[null,null,null,null,"Printer","Proseware","7.2 x 18 x 15.1 inches, Scan Jet Digital Flat Bed Scanner","Proseware Scan Jet Digital Flat Bed Scanner M300 Black","Black"," 17 x 11.7 x 6.1",121]
[null,null,null,null,"Printer","Proseware","14.5 x 17.7 x 5.7 inches, affordable, high-performance printer for professional printing at home or office","Proseware All-In-One Photo Printer M200 Black","Black","21.5 x 21.2 x 12.5  ",136]
[null,null,null,null,"Printer","Proseware","17.4 x 10 x 5.6 inches, Ink jet printer delivers outstanding photo prints and text quality","Proseware Ink Jet Wireless All-In-One Printer M400 Black","Black","16.5 x 18.5 x 9.3   ",129]
[null,null,null,null,"Printer","Proseware","20 x 11.9 x 15.8 inches, robust and affordable scanner","Proseware Ink Jet Instant PDF Sheet-Fed Scanner M300 Black","Black","22.5 x 15.6 x 9.6",160]
[null,null,null,null,"Printer","Proseware","8.2 x 17.8 x 16 inches, compact 3-in-1 color inkjet printer that prints, scans, and copies","Proseware Desk Jet All-in-One Printer, Scanner, Copier M350 Black","Black","22.5 x 15.6 x 9.6",158]
[null,null,null,null,"Printer","Proseware","8.2 x 17.8 x 16 inches, duplex scans  ","Proseware Duplex Scanner M200 Black","Black","13.9 x 6.7 x 17.7",149]
[null,null,null,null,"Printer","Proseware","22.3 x 13.2 x 21 inches, 30 pounds, high speed Laser Fax","Proseware High Speed Laser M2000 Black","Black","20 x 9.6 x 10.7  ",209]
[null,null,null,null,"Printer","Proseware","19.9 x 9.6 x 10.7 inches, 10.8 pounds, Laser fax printer","Proseware Laser Fax Printer M250 Black","Black","6.7 x 8.2 x 17.5",118]
[null,null,null,null,"Printer","Proseware","17 x 11.7 x 6.1 inches, 18 pounds, color Inkjet Fax, Copier, Phone","Proseware Color Ink Jet Fax, Copier, Phone M250 Black","Black","13.6 x 22.1 x 20.7",159]
[null,null,null,null,"Printer","Proseware","21.5 x 21.2 x 12.5 inches, 29 pounds, Fax - color Inkjet Fax with 5.8 GHz cordless handset","Proseware Color Inkjet Fax with 5.8 GHz Cordless Handset X250 Black","Black","14.2 x 6.7 x 17.7",228]
[null,null,null,null,"Printer","Proseware","22.5 x 15.6 x 9.6 inches, 15 pounds, flatbed scanner","Proseware Slim-Design Fax Machine with Answering System X180 Black","Black","17.2 x 5.5 x 8.1 ",236]
[null,null,null,null,"Printer","Proseware","17.7 x 13.9 x 6.7 inches. 12.8 pounds, high-Performance business-class Laser Fax","Proseware High-Performance Business-Class Laser Fax X200 Black","Black","17.7 x 9.7 x 17.4",248]
[null,null,null,null,"Printer","Proseware","Print, copy, with Ethernet, 2.4-in LCD color graphics display, lab quality borderless printing up to 8.5 x 11 in","Proseware Professional Quality Plain-Paper Fax and Copier X100 Black","Black","16.1 x 18.1 x 9.3   ",229]
[null,null,null,null,"Printer","Proseware","6.7 x 8.2 x 17.5 inches, robust and versatile inkjet printer ideal for home office use","Proseware Photo Inkjet Printer E290 Black","Black","11 x 13 x 13  ",102]
[null,null,null,null,"Printer","Proseware","13.6 x 22.1 x 20.7 inches, CD with software, set-up poster, power cord","Proseware Office Jet All-in-One Printer M500 Black","Black","17.07 x 15.81 x 8.53 ",163]
[null,null,null,null,"Printer","Proseware","17.2 x 5.5 x 8.1 inches, 8.4 pounds, office jet wireless all-in-one Ink jet Printer","Proseware Office Jet Wireless All-in-One Inkjet Printer M600 Black","Black","14 x 6.7 x 17.7",190]
[null,null,null,null,"Printer","Proseware","9.5 x 17.4 x 17.7 inches, 25.4 pounds, All-In-One device offers color printing, copying, faxing, and scanning, outstanding print quality for photos and documents","Proseware Photo smart All-in-One Printer M380 Black","Black"," 17 x 11 x 6.1",147]
[null,null,null,null,"Printer","Proseware","11 x 13 x 13 inches, 12.6 pounds, border free photos in popular sizes","Proseware Wireless Photo All-in-One Printer M390 Black","Black","20.2 x 9.6 x 10.7  ",188]
[null,null,null,null,"Printer","Proseware","17.1 x 8.5 x 15.8 inches, 15.4 pounds, high-performance all-in-one color ink jet printer that prints, copies, scans, and faxes. Prints at speeds of up to 23ppm","Proseware 23ppm Laser Printer with Wireless and Wired Network Interfaces M680 Black","Black","21 x 21.2 x 12.5  ",196]
[null,null,null,null,"Printer","Proseware","Print speeds up to 26ppm, 6.4 x 11.4 x 17.2 inches, 12.8 pounds","Proseware Photo Inkjet Printer M100 Grey","Grey","16.7 x 18.5 x 9.3   ",159]
[null,null,null,null,"Printer","Proseware","17.2 x 5.5 x 8.1 inches, 8.2 pounds, Ink Jet  all in one,  large 80-sheet input tray","Proseware Ink Jet All in one M300 Grey","Grey","20.5 x 15.6 x 9.6",169]
[null,null,null,null,"Printer","Proseware","19.4 x 17.1 x 8.9 inches, 34 pounds, various security features","Proseware Laser Jet Printer E100 Grey","Grey","15x 15.4 x 7.1",79]
[null,null,null,null,"Printer","Proseware","16.1 x 18.1 x 9.3 inches, 23.5 pounds, LaserJet","Proseware Laser Jet Color Printer X300 Grey","Grey","17.9 x 15.9 x 8 ",209]
[null,null,null,null,"Printer","Proseware","17.5 x 13.1 x 6.1 inches, operate your printer within seconds after power-on with quick start","Proseware Laser Jet All in one X300 Grey","Grey","17.5 x 11.7 x 6",219]
[null,null,null,null,"Printer","Proseware","14.2 x 6.7 x 14.5 inches, perfect for home or office use","Proseware Fax phone E100 Grey","Grey","20 x 12 x 15.8",87]
[null,null,null,null,"Printer","Proseware","14.8 x 15.4 x 7.1 inches, 1 Wide 3.3\" color LCD","Proseware Fax Machine E100 Grey","Grey","21 x 13.2 x 22.2",79]
[null,null,null,null,"Printer","Proseware","6.4 x 11.4 x 17.1 inches, offering high-quality and fast output","Proseware Laser Fax Printer E100 Grey","Grey","20 x 9.6 x 11",91]
[null,null,null,null,"Printer","Proseware","17.7 x 14.5 x 6.9 inches, Ink jet Fax machine","Proseware Ink Jet Fax Machine E100 Grey","Grey","8.5 x 8.2 x 17.5",78]
[null,null,null,null,"Printer","Proseware","13.7 x 8.8 x 7.6 inches, mobile receipt and document scanner","Proseware Mobile Receipt and Document Scanner M200 Grey","Grey","14.7 x 22.1 x 20.7",116]
[null,null,null,null,"Printer","Proseware","7.2 x 18 x 15.1 inches, Scan Jet Digital Flat Bed scanner","Proseware Scan Jet Digital Flat Bed Scanner M300 Grey","Grey","14 x 6.7 x 17.7",121]
[null,null,null,null,"Printer","Proseware","14.5 x 17.7 x 5.7 inches, affordable, high-performance printer for professional printing at home or office","Proseware All-In-One Photo Printer M200 Grey","Grey","18.3 x 6 x 8.1 ",136]
[null,null,null,null,"Printer","Proseware","17.4 x 10 x 5.6 inches, Ink jet printer delivers outstanding photo prints and text quality","Proseware Ink Jet Wireless All-In-One Printer M400 Grey","Grey","11.5 x 13 x 13  ",129]
[null,null,null,null,"Printer","Proseware","20 x 11.9 x 15.8 inches, robust and affordable scanner","Proseware Ink Jet Instant PDF Sheet-Fed Scanner M300 Grey","Grey","17 x 15.9 x 8.53 ",160]
[null,null,null,null,"Printer","Proseware","8.2 x 17.8 x 16 inches, compact 3-in-1 color ink jet printer that prints, scans, and copies","Proseware Desk Jet All-in-One Printer, Scanner, Copier M350 Grey","Grey","14 x 7 x 17.7",158]
[null,null,null,null,"Printer","Proseware","8.2 x 17.8 x 16 inches, duplex scans  ","Proseware Duplex Scanner M200 Grey","Grey","17 x 11 x 6.5",149]
[null,null,null,null,"Printer","Proseware","22.3 x 13.2 x 21 inches, 30 pounds, high Speed Laser Fax","Proseware High Speed Laser Fax M2000 Grey","Grey","20.2 x 9.6 x 10.7  ",209]
[null,null,null,null,"Printer","Proseware","19.9 x 9.6 x 10.7 inches, 10.8 pounds, Laser fax printer","Proseware Laser Fax Printer M250 Grey","Grey","26.4  x 3.7  x 18 ",118]
[null,null,null,null,"Printer","Proseware","17 x 11.7 x 6.1 inches, 18 pounds, color Ink jet Fax, Copier, Phone","Proseware Color Ink Jet Fax, Copier, Phone M250 Grey","Grey","39.8  x 13.7  x 5.5",159]
[null,null,null,null,"Printer","Proseware","21.5 x 21.2 x 12.5 inches, 29 pounds, Fax - Color Inkjet Fax with 5.8 GHz cordless handset","Proseware Color Ink Jet Fax with 5.8 GHz Cordless Handset X250 Grey","Grey","42.2  x 15.8  x 6",228]
[null,null,null,null,"Printer","Proseware","22.5 x 15.6 x 9.6 inches, 15 pounds, flatbed scanner","Proseware Slim-Design Fax Machine with Answering System X180 Grey","Grey","18.7  x 2.6  x 13.1",236]
[null,null,null,null,"Printer","Proseware","17.7 x 13.9 x 6.7 inches, 12.8 pounds, Fax high-performance business-class Laser Fax","Proseware High-Performance Business-Class Laser Fax X200 Grey","Grey","12 x 4 x 10 ",248]
[null,null,null,null,"Printer","Proseware","Print, Copy, with Ethernet, 2.4-in LCD color graphics display, lab quality borderless printing up to 8.5 x 11 in","Proseware Professional Quality Plain-Paper Fax and Copier X100 Grey","Grey","15.1 x 3.5 x 21.9",229]
[null,null,null,null,"Printer","Proseware","6.7 x 8.2 x 17.5 inches, robust and versatile inkjet printer ideal for home office use","Proseware Photo Ink Jet Printer E290 Grey","Grey","16.1 x 11.5 x 1.8 ",102]
[null,null,null,null,"Printer","Proseware","13.6 x 22.1 x 20.7 inches, CD with software, set-up poster, power cord","Proseware Office Jet All-in-One Printer M500 Grey","Grey","15.8 x 11.6 x 12.6  ",163]
[null,null,null,null,"Printer","Proseware","17.2 x 5.5 x 8.1 inches. 8.4 pounds, office jet wireless all-in-one Ink jet Printer","Proseware Office Jet Wireless All-in-One Inkjet Printer M600 Grey","Grey","18 x 25.8 x 6.2",190]
[null,null,null,null,"Printer","Proseware","9.5 x 17.4 x 17.7 inches, 25.4 pounds, All-In-One device offers color printing, copying, faxing, and scanning, outstanding print quality for photos and documents","Proseware Photo Smart All-in-One Printer M380 Grey","Grey","6.2 x 11.2 x 6.2",147]
[null,null,null,null,"Printer","Proseware","11 x 13 x 13 inches, 12.6 pounds, border free photos in popular sizes","Proseware Wireless Photo All-in-One Printer M390 Grey","Grey"," 11 x 16 x 2",188]
[null,null,null,null,"Printer","Proseware","17.1 x 8.5 x 15.8 inches, 15.4 pounds, high-performance all-in-one color inkjet printer that prints, copies, scans, and faxes, prints at speeds of up to 23ppm","Proseware 23ppm Laser Printer with Wireless and Wired Network Interfaces M680 Grey","Grey","14 x 8 x 6",196]
[null,null,null,null,"Printer","Proseware","Print speeds up to 26ppm, 6.4 x 11.4 x 17, 2 inches, 12.8 pounds","Proseware Photo Ink Jet Printer M100 White","White","14.8 x 6 x 7.2",159]
[null,null,null,null,"Printer","Proseware","17.2 x 5.5 x 8.1 inches, 8.2 pounds, Ink Jet  All in one,  large 80-sheet input tray","Proseware Ink Jet All in one M300 White","White","22.8 x 18.7 x 9.8 ",169]
[null,null,null,null,"Printer","Proseware","19.4 x 17.1 x 8.9 inches, 34 pounds, various security features","Proseware Laser Jet Printer E100 White","White","13 x 9 x 9",79]
[null,null,null,null,"Printer","Proseware","16.1 x 18.1 x 9.3 inches, 23.5 pounds, LaserJet","Proseware Laser Jet Color Printer X300 White","White"," 6.4 x 11.4 x 17.2",209]
[null,null,null,null,"Printer","Proseware","17.5 x 13.1 x 6.1 inches, operate your printer within seconds after power-on with quick start","Proseware Laser Jet All in one X300 White","White","10.2 x 18.7 x 3.3",219]
[null,null,null,null,"Printer","Proseware","14.2 x 6.7 x 14.5 inches, perfect for home or office use","Proseware Fax Phone E100 White","White","11.3 x 16.1 x 1.7 ",87]
[null,null,null,null,"Printer","Proseware","14.8 x 15.4 x 7.1 inches, 1 Wide 3.3\" color LCD","Proseware Fax Machine E100 White","White","20 x 16.1 x 5.6",79]
[null,null,null,null,"Printer","Proseware","6.4 x 11.4 x 17, 1 inches, offering high-quality and fast output","Proseware Laser Fax Printer E100 White","White","11 x 15 x 2 inches",91]
[null,null,null,null,"Printer","Proseware","17.7 x 14.5 x 6.9 inches, Ink jet Fax machine","Proseware Ink Jet Fax Machine E100 White","White","18 x 12 x 12",78]
[null,null,null,null,"Printer","Proseware","13.7 x 8.8 x 7.6 inches, mobile receipt and document scanner","Proseware Mobile Receipt and Document Scanner M200 White","White","14.4 x 9.9 x 1.6 ",116]
[null,null,null,null,"Printer","Proseware","7.2 x 18 x 15.1 inches, scan Jet Digital Flat Bed Scanner","Proseware Scan Jet Digital Flat Bed Scanner M300 White","White","9.2 x 4.5 x 8",121]
[null,null,null,null,"Printer","Proseware","14.5 x 17.7 x 5.7 inches, affordable, high-performance printer for professional printing at home or office","Proseware All-In-One Photo Printer M200 White","White","10 x 10 x 15",136]
[null,null,null,null,"Printer","Proseware","17.4 x 10 x 5.6 inches, Ink jet printer delivers outstanding photo prints and text quality","Proseware Ink Jet Wireless All-In-One Printer M400 White","White","13.4 x 11.9 x 10.5",129]
[null,null,null,null,"Printer","Proseware","20 x 11.9 x 15.8 inches, robust and affordable  scanner","Proseware Ink Jet Instant PDF Sheet-Fed Scanner M300 White","White","9.8 x 12.8 x 14.3",160]
[null,null,null,null,"Printer","Proseware","8.2 x 17.8 x 16 inches, compact 3-in-1 color inkjet printer that prints, scans, and copies","Proseware Desk Jet All-in-One Printer, Scanner, Copier M350 White","White","9.7 x 19.6 x 10.7",158]
[null,null,null,null,"Printer","Proseware","8.2 x 17.8 x 16 inches, duplex scans  ","Proseware Duplex Scanner M200 White","White","19.4 x 17.8 x 16.9",149]
[null,null,null,null,"Printer","Proseware","22.3 x 13.2 x 21 inches, 30 pounds, high Speed Laser Fax","Proseware High Speed Laser M2000 White","White","12 x 17 x 17",209]
[null,null,null,null,"Printer","Proseware","19.9 x 9.6 x 10.7 inches,10.8 pounds, Laser fax printer","Proseware Laser Fax Printer M250 White","White"," 9.7 x 13 x 5.1",118]
[null,null,null,null,"Printer","Proseware","17 x 11.7 x 6.1 inches, 18 pounds, color Inkjet Fax, Copier, Phone","Proseware Color Ink jet Fax, Copier, Phone M250 White","White","12 x 12 x 10",159]
[null,null,null,null,"Printer","Proseware","21.5 x 21.2 x 12.5 inches, 29 pounds, Fax - Color Inkjet Fax with 5.8 GHz Cordless Handset","Proseware Color Ink Jet Fax with 5.8 GHz Cordless Handset X250 White","White","13.4 x 14.4 x 10.6",228]
[null,null,null,null,"Printer","Proseware","22.5 x 15.6 x 9.6 inches, 15 pounds, Flatbed scanner","Proseware Slim-Design Fax Machine with Answering System X180 White","White","15.7 x 10.6 x 6.9",236]
[null,null,null,null,"Printer","Proseware","17.7 x 13.9 x 6.7 inches, 12.8 pounds, Fax high-performance Business-Class Laser Fax","Proseware High-Performance Business-Class Laser Fax X200 White","White","14.6 x 17.2 x 9.7 ",248]
[null,null,null,null,"Printer","Proseware","Print, Copy, with Ethernet, 2.4-in LCD color graphics display, lab quality borderless printing up to 8.5 x 11 in","Proseware Professional Quality Plain-Paper Fax and Copier X100 White","White"," 6.1 x 14.9 x 11",229]
[null,null,null,null,"Printer","Proseware","6.7 x 8.2 x 17.5 inches, robust and versatile inkjet printer ideal for home office use","Proseware Photo Ink jet Printer E290 White","White","14.7 x 14.7 x 10.3",102]
[null,null,null,null,"Printer","Proseware","13.6 x 22.1 x 20.7 inches, CD with software, set-up poster, power cord","Proseware Office Jet All-in-One Printer M500 White","White","21 x 23 x 14",163]
[null,null,null,null,"Printer","Proseware","17.2 x 5.5 x 8.1 inches, 8.4 pounds, office jet wireless All-in-One Inkjet Printer","Proseware Office Jet Wireless All-in-One Inkjet Printer M600 White","White","22.9 x 17.5 x 15.9 ",190]
[null,null,null,null,"Printer","Proseware","9.5 x 17.4 x 17.7 inches, 25.4 pounds, All-In-One device offers color printing, copying, faxing, and scanning, outstanding print quality for photos and documents","Proseware Photo Smart All-in-One Printer M380 White","White","15 x 11 x 7",147]
[null,null,null,null,"Printer","Proseware","11 x 13 x 13 inches, 12.6 pounds, border free photos in popular sizes","Proseware Wireless Photo All-in-One Printer M390 White","White","16.5 x 12.2 x 9",188]
[null,null,null,null,"Printer","Proseware","17.1 x 8.5 x 15.8 inches, 15.4 pounds, high-performance all-in-one color inkjet printer that prints, copies, scans, and faxes, prints at speeds of up to 23ppm","Proseware 23ppm Laser Printer with Wireless and Wired Network Interfaces M680 White","White","16 x 17 x 9",196]
[null,null,null,null,"Printer","Proseware","12 x 16 x 8 inches, 17 pounds scan Jet Digital Flat Bed Scanner","Proseware Scan Jet Digital Flat Bed Scanner M300 Green","Green","12 x 16 x 8",121]
[null,null,null,null,"Printer","Proseware","16 x 19 x 13 inches, 14 pounds, All-In-One Photo Printer","Proseware All-In-One Photo Printer M200 Green","Green","16 x 19 x 13",136]
[null,null,null,null,"Printer","Proseware","18.1 x 17.9 x 11.2 inches, 14.4 kbps fax modem with 200-sheet paper capacity, 20-page automatic document feeder, and 512 KB memory holds up to 25 pages","Proseware Ink Jet Wireless All-In-One Printer M400 Green","Green","18.1 x 17.9 x 11.2",129]
[null,null,null,null,"Printer","Proseware","20 x 18 x 14.2 inches, Ink Jet Instant PDF Sheet-Fed Scanner","Proseware Ink Jet Instant PDF Sheet-Fed Scanner M300 Green","Green","20 x 18 x 14.2",160]
[null,null,null,null,"Printer","Proseware","15.2 x 15.7 x 8.7 inches, 18.4 pounds, Desk jet All-in-One Printer, Scanner, Copier","Proseware Desk Jet All-in-One Printer, Scanner, Copier M350 Green","Green","15.2 x 15.7 x 8.7",158]
[null,null,null,null,"Printer","Proseware","11 x 15 x 6 inches. 10 pounds, duplex scanner","Proseware Duplex Scanner M200 Green","Green","11 x 15 x 6",149]
[null,null,null,null,"Printer","Proseware","Copy and fax capabilities, high speed Laser Fax","Proseware High Speed Laser M2000 Green","Green","14 x 14.7 x 10.3",209]
[null,null,null,null,"Printer","Proseware","10.6 x 15.7 x 6.8 inches, 12.4 pounds, technology for sending clear","Proseware Laser Fax Printer M250 Green","Green","10.6 x 15.7 x 6.8",118]
[null,null,null,null,"Printer","Proseware","9.4 x 5.5 x 13 inches, 6.9 pounds, 15 seconds per page transmission time","Proseware Color Ink Jet Fax, Copier, Phone M250 Green","Green","17  x 6.5  x 13.8 ",159]
[null,null,null,null,"Printer","Proseware","22 x 20.3 x 18.1 inches, Fax - Color Inkjet Fax with 5.8 GHz cordless handset","Proseware Color Ink Jet Fax with 5.8 GHz Cordless Handset X250 Green","Green","15.5  x 5  x 13.5 ",228]
[null,null,null,null,"Printer","Proseware","9.4 x 11.8 x 5.4 inches, 6.4 pounds, Fax machine and telephone combined","Proseware Slim-Design Fax Machine with Answering System X180 Green","Green","17.2  x 4.5  x 14.5  ",236]
[null,null,null,null,"Printer","Proseware","Fax high-Performance business-class Laser Fax, copy function can make up to 99 copies","Proseware High-Performance Business-Class Laser Fax X200 Green","Green","17  x 6.5  x 13.8 ",248]
[null,null,null,null,"Printer","Proseware","9.1 x 14 x 4.6 inches, 5.5 pounds, professional quality plain-paper Fax and Copier","Proseware Professional Quality Plain-Paper Fax and Copier X100 Green","Green","18.5  x 4.5  x 16.3  ",229]
[null,null,null,null,"Printer","Proseware","15 pounds, photo Inkjet Printer","Proseware Photo Inkjet Printer E290 Green","Green","15 x 15.7 x 8.7",102]
[null,null,null,null,"Accessories","Contoso","Rechargeable Battery","Contoso Rechargeable Battery E100 Black","Black","6.4 x 11.4 x 17.2",12.95]
[null,null,null,null,"Accessories","Contoso","Dual USB power adapter - power adapter","Contoso Dual USB Power Adapter - power adapter E300 Black","Black","17.2 x 5.5 x 8.1",39.9]
[null,null,null,null,"Accessories","Contoso","Attach your phone to the cigarette lighter in your car, providing it the power to be used and recharged","Contoso Car power adapter M90 Black","Black","19.4 x 17.1 x 8.9   ",19.95]
[null,null,null,null,"Accessories","Contoso","It acts as a convenient carrier for an included hub, can also be used as a non-scratch screen wipe","Contoso Notebook Peripheral Kit M69 Black","Black","17.5 x 13.1 x 6.1",16.5]
[null,null,null,null,"Accessories","Contoso","Nearly 1,000 notebook computers are stolen everyday - protect your notebook computer and its valuable data with this affordable security product","Contoso Mouse Lock Bundle E200 Black","Black","14.8 x 15.4 x 7.1",12.95]
[null,null,null,null,"Accessories","Contoso","Goal is to enhance your lifestyle by offering innovative and quality products, as well as continuing to listen and respond to its customers","Contoso Education Supplies Bundle E200 Black","Black","17.79 x 15.97 x 8.17 ",13.5]
[null,null,null,null,"Accessories","Contoso","Get the four most popular accessories in one easy bundle with the Laptop 4-in-1 starter bundle This kit is the perfect complement to your laptop ensuring you have the tools you need","Contoso Laptop Starter Bundle M200 Black","Black","17 x 11.7 x 6",16.5]
[null,null,null,null,"Accessories","Contoso","Education messenger essentials bundle - notebook accessories bundle","Contoso Education Essentials Bundle M300 Black","Black","20 x 11.9 x 15.8",9.5]
[null,null,null,null,"Accessories","Contoso","Desktop alternative bundle","Contoso Desktop Alternative Bundle E200 Black","Black","20.8 x 13.2 x 22.2",11.5]
[null,null,null,null,"Accessories","Contoso","Notebook essentials bundle - notebook accessories bundle","Contoso Power Inverter - DC to AC power inverter E900 Black","Black","19.9 x 9.6 x 10.7  ",9.5]
[null,null,null,null,"Accessories","Contoso","Smart battery - memory backup battery","Contoso Smart Battery M901 Black","Black"," 17 x 11.7 x 6.1",11.5]
[null,null,null,null,"Accessories","Contoso","Laptop cooling hub notebook fan with 4 ports USB hub","Contoso Laptop Cooling Hub notebook fan with 4 ports USB hub E80 Black","Black","21.5 x 21.2 x 12.5  ",29.9]
[null,null,null,null,"Accessories","Contoso","Home/Office Laptop power adapter","Contoso Home/Office Laptop Power Adapter E300 Black","Black","16.5 x 18.5 x 9.3   ",25.5]
[null,null,null,null,"Accessories","Contoso","USB 2.0 dock station docking station","Contoso USB 2.0 Dock Station docking station M800 Black","Black","22.5 x 15.6 x 9.6",29.9]
[null,null,null,null,"Accessories","Contoso","Home office enhanced capacity battery","Contoso Enhanced Capacity Battery M800 Black","Black","22.5 x 15.6 x 9.6",27.9]
[null,null,null,null,"Accessories","Contoso","Connectivity starter kit smart buy","Contoso Connectivity Starter Kit Smart Buy M680 Black","Black","13.9 x 6.7 x 17.7",27.9]
[null,null,null,null,"Accessories","Contoso","Enhanced capacity battery adapter","Contoso 90W AC/DC Power Adapter E300 Black","Black","20 x 9.6 x 10.7  ",11.9]
[null,null,null,null,"Accessories","Contoso","Reserve pen - tablet pen, connectivity technology, wireless","Contoso Reserve Pen - Tablet Pen E200 Black","Black","6.7 x 8.2 x 17.5",13.9]
[null,null,null,null,"Accessories","Contoso","USB data Link - direct connect adapter","Contoso USB Data Link-direct connect adapter E600 Black","Black","13.6 x 22.1 x 20.7",16.899999999999999]
[null,null,null,null,"Accessories","Contoso","Primary extended capacity battery pack - notebook battery","Contoso Primary Extended Capacity Battery Pack - notebook battery X100 Black","Black","14.2 x 6.7 x 17.7",33.9]
[null,null,null,null,"Accessories","Contoso","Digital camera accessory kit","Contoso Digital camera accessory kit M200 Black","Black","17.2 x 5.5 x 8.1 ",23.9]
[null,null,null,null,"Accessories","Contoso","Leather Case - case for digital photo camera","Contoso Leather Case - case for digital photo camera X20 Black","Black","17.7 x 9.7 x 17.4",39.9]
[null,null,null,null,"Accessories","Contoso","Lens cap black","Contoso Lens cap E80 Black","Black","16.1 x 18.1 x 9.3   ",29.95]
[null,null,null,null,"Accessories","Contoso","Primary extended capacity battery pack -for bike","Contoso Battery charger - bike E200 Black","Black","11 x 13 x 13  ",19.899999999999999]
[null,null,null,null,"Accessories","Contoso","USB optical mouse","Contoso USB Optical Mouse E200 Black","Black","17.07 x 15.81 x 8.53 ",15.5]
[null,null,null,null,"Accessories","Contoso","ADSL modem splitter/filter X 1","Contoso ADSL Modem Splitter/Filter X 1 E100 Black","Black","14 x 6.7 x 17.7",17.899999999999999]
[null,null,null,null,"Accessories","Contoso","ADSL modem splitter/filter X 2","Contoso ADSL Modem Splitter/Filter X 2 E200 Black","Black"," 17 x 11 x 6.1",22.9]
[null,null,null,null,"Accessories","Contoso","ADSL modem splitter/filter X 3","Contoso ADSL Modem Splitter/Filter X 3 E300 Black","Black","20.2 x 9.6 x 10.7  ",52.9]
[null,null,null,null,"Accessories","Contoso","USB wave multimedia keyboard","Contoso USB Wave Multi-media Keyboard E280 Black","Black","21 x 21.2 x 12.5  ",15.9]
[null,null,null,null,"Accessories","Contoso","Cables to go USB 2.0 hard drive enclosure","Contoso Cables To Go USB 2.0 Hard Drive Enclosure E920 Black","Black","16.7 x 18.5 x 9.3   ",11.9]
[null,null,null,null,"Accessories","Contoso","USB wave multimedia keyboard","Contoso USB Wave Multi-media Keyboard E280 Blue","Blue","20.5 x 15.6 x 9.6",15.9]
[null,null,null,null,"Accessories","Contoso","USB mouse","Contoso USB Optical Mouse E200 Blue","Blue","15x 15.4 x 7.1",15.5]
[null,null,null,null,"Accessories","Contoso","Smart battery - memory backup battery","Contoso Smart Battery M901 Blue","Blue","17.9 x 15.9 x 8 ",11.5]
[null,null,null,null,"Accessories","Contoso","Digital camera accessory kit","Contoso Digital Camera Accessory kit M200 Blue","Blue","17.5 x 11.7 x 6",23.9]
[null,null,null,null,"Accessories","Contoso","Reserve pen - tablet pen","Contoso Reserve Pen -Tablet Pen E200 Blue","Blue","20 x 12 x 15.8",13.9]
[null,null,null,null,"Accessories","Contoso","Rechargeable battery","Contoso Rechargeable Battery E100 White","White","21 x 13.2 x 22.2",12.95]
[null,null,null,null,"Accessories","Contoso","Dual USB power adapter - power adapter","Contoso Dual USB Power Adapter - power adapter E300 White","White","20 x 9.6 x 11",39.9]
[null,null,null,null,"Accessories","Contoso","Attach your phone to the cigarette lighter in your car, providing it the power to be used and recharged.","Contoso Car power adapter M90 White","White","8.5 x 8.2 x 17.5",19.95]
[null,null,null,null,"Accessories","Contoso","It acts as a convenient carrier for an included hub, can also be used as a non-scratch screen wipe","Contoso Notebook Peripheral Kit M69 White","White","14.7 x 22.1 x 20.7",16.5]
[null,null,null,null,"Accessories","Contoso","Nearly 1,000 notebook computers are stolen everyday - protect your notebook computer and its valuable data with this affordable security product","Contoso Mouse Lock Bundle E200 White","White","14 x 6.7 x 17.7",12.95]
[null,null,null,null,"Accessories","Contoso","Goal is to enhance your lifestyle by offering innovative and quality products, as well as continuing to listen and respond to its customers","Contoso Education Supplies Bundle E200 White","White","18.3 x 6 x 8.1 ",13.5]
[null,null,null,null,"Accessories","Contoso","Get the four most popular accessories in one easy bundle with the Laptop 4-in-1 starter bundle This kit is the perfect complement to your laptop ensuring you have the tools you need","Contoso Laptop Starter Bundle M200 White","White","11.5 x 13 x 13  ",16.5]
[null,null,null,null,"Accessories","Contoso","Education messenger essentials Bundle - notebook accessories bundle","Contoso Education Essentials Bundle M300 White","White","17 x 15.9 x 8.53 ",9.5]
[null,null,null,null,"Accessories","Contoso","Desktop alternative bundle","Contoso Desktop Alternative Bundle E200 White","White","14 x 7 x 17.7",11.5]
[null,null,null,null,"Accessories","Contoso","Notebook essentials bundle - notebook accessories bundle","Contoso Power Inverter - DC to AC power inverter E900 White","White","17 x 11 x 6.5",9.5]
[null,null,null,null,"Accessories","Contoso","Smart battery - memory backup battery","Contoso Smart Battery M901 White","White","20.2 x 9.6 x 10.7  ",11.5]
[null,null,null,null,"Accessories","Contoso","Laptop cooling hub notebook fan with 4 ports USB hub","Contoso Laptop Cooling Hub notebook fan with 4 ports USB hub E80 White","White","26.4  x 3.7  x 18 ",29.9]
[null,null,null,null,"Accessories","Contoso","Home/office laptop power adapter","Contoso Home/Office Laptop Power Adapter E300 White","White","39.8  x 13.7  x 5.5",25.5]
[null,null,null,null,"Accessories","Contoso","USB 2.0 dock station docking station","Contoso USB 2.0 Dock Station docking station M800 White","White","42.2  x 15.8  x 6",29.9]
[null,null,null,null,"Accessories","Contoso","Home office enhanced capacity battery","Contoso Enhanced Capacity Battery M800 White","White","18.7  x 2.6  x 13.1",27.9]
[null,null,null,null,"Accessories","Contoso","Connectivity starter kit smart buy","Contoso Connectivity Starter Kit Smart Buy M680 White","White","12 x 4 x 10 ",27.9]
[null,null,null,null,"Accessories","Contoso","Enhanced capacity battery adapter","Contoso 90W AC/DC Power Adapter E300 White","White","15.1 x 3.5 x 21.9",11.9]
[null,null,null,null,"Accessories","Contoso","Reserve pen - tablet pen, connectivity technology, wireless","Contoso Reserve Pen - Tablet Pen E200 White","White","16.1 x 11.5 x 1.8 ",13.9]
[null,null,null,null,"Accessories","Contoso","USB data link - direct connect adapter","Contoso USB Data Link - direct connect adapter E600 White","White","15.8 x 11.6 x 12.6  ",16.899999999999999]
[null,null,null,null,"Accessories","Contoso","Primary extended capacity battery pack - notebook battery","Contoso Primary Extended Capacity Battery Pack - notebook battery X100 White","White","18 x 25.8 x 6.2",33.9]
[null,null,null,null,"Accessories","Contoso","Digital camera accessory kit","Contoso Digital camera accessory kit M200 White","White","6.2 x 11.2 x 6.2",23.9]
[null,null,null,null,"Accessories","Contoso","Leather case for digital photo camera","Contoso Leather Case - case for digital photo camera X20 White","White"," 11 x 16 x 2",39.9]
[null,null,null,null,"Accessories","Contoso","Lens cap black","Contoso Lens cap E80 White","White","14 x 8 x 6",29.95]
[null,null,null,null,"Accessories","Contoso","Primary extended capacity battery pack","Contoso Battery charger - bike E200 White","White","14.8 x 6 x 7.2",19.899999999999999]
[null,null,null,null,"Accessories","Contoso","USB optical mouse","Contoso USB Optical Mouse E200 White","White","22.8 x 18.7 x 9.8 ",15.5]
[null,null,null,null,"Accessories","Contoso","ADSL modem splitter/filter X 1","Contoso ADSL Modem Splitter/Filter X 1 E100 White","White","13 x 9 x 9",17.899999999999999]
[null,null,null,null,"Accessories","Contoso","ADSL modem splitter/filter X 2","Contoso ADSL Modem Splitter/Filter X 2 E200 White","White"," 6.4 x 11.4 x 17.2",22.9]
[null,null,null,null,"Accessories","Contoso","ADSL modem splitter/filter X 3","Contoso ADSL Modem Splitter/Filter X 3 E300 White","White","10.2 x 18.7 x 3.3",52.9]
[null,null,null,null,"Accessories","Contoso","USB wave multimedia keyboard","Contoso USB Wave Multi-media Keyboard E280 White","White","11.3 x 16.1 x 1.7 ",15.9]
[null,null,null,null,"Accessories","Contoso","Cables to go USB 2.0 hard drive enclosure","Contoso Cables To Go USB 2.0 Hard Drive Enclosure E920 White","White","20 x 16.1 x 5.6",11.9]
[null,null,null,null,"Accessories","Contoso","Rechargeable Battery","Contoso Rechargeable Battery E100 Grey","Grey","11 x 15 x 2 inches",12.95]
[null,null,null,null,"Accessories","Contoso","Dual USB power adapter - power adapter","Contoso Dual USB Power Adapter - power adapter E300 Grey","Grey","18 x 12 x 12",39.9]
[null,null,null,null,"Accessories","Contoso","Attach your phone to the cigarette lighter in your car, providing it the power to be used and recharged.","Contoso Car power adapter M90 Grey","Grey","14.4 x 9.9 x 1.6 ",19.95]
[null,null,null,null,"Accessories","Contoso","It acts as a convenient carrier for an included hub, can also be used as a non-scratch screen wipe","Contoso Notebook Peripheral Kit M69 Grey","Grey","9.2 x 4.5 x 8",16.5]
[null,null,null,null,"Accessories","Contoso","Nearly 1,000 notebook computers are stolen everyday - protect your notebook computer and its valuable data with this affordable security product","Contoso Mouse Lock Bundle E200 Grey","Grey","10 x 10 x 15",12.95]
[null,null,null,null,"Accessories","Contoso","Goal is to enhance your lifestyle by offering innovative and quality products, as well as continuing to listen and respond to its customers","Contoso Education Supplies Bundle E200 Grey","Grey","13.4 x 11.9 x 10.5",13.5]
[null,null,null,null,"Accessories","Contoso","Get the four most popular accessories in one easy bundle with the Laptop 4-in-1 Starter bundle This kit is the perfect complement to your laptop ensuring you have the tools you need","Contoso Laptop Starter Bundle M200 Grey","Grey","9.8 x 12.8 x 14.3",16.5]
[null,null,null,null,"Accessories","Contoso","Education messenger essentials bundle - notebook accessories bundle","Contoso Education Essentials Bundle M300 Grey","Grey","9.7 x 19.6 x 10.7",9.5]
[null,null,null,null,"Accessories","Contoso","Desktop alternative bundle","Contoso Desktop Alternative Bundle E200 Grey","Grey","19.4 x 17.8 x 16.9",11.5]
[null,null,null,null,"Accessories","Contoso","Notebook essentials bundle - notebook accessories bundle","Contoso Power Inverter - DC to AC power inverter E900 Grey","Grey","12 x 17 x 17",9.5]
[null,null,null,null,"Accessories","Contoso","Smart battery - memory backup battery","Contoso Smart Battery M901 Grey","Grey"," 9.7 x 13 x 5.1",11.5]
[null,null,null,null,"Accessories","Contoso","Laptop cooling hub notebook fan with 4 ports USB hub","Contoso Laptop Cooling Hub notebook fan with 4 ports USB hub E80 Grey","Grey","12 x 12 x 10",29.9]
[null,null,null,null,"Accessories","Contoso","Home/office laptop power adapter","Contoso Home/Office Laptop Power Adapter E300 Grey","Grey","13.4 x 14.4 x 10.6",25.5]
[null,null,null,null,"Accessories","Contoso","USB 2.0 dock station docking station","Contoso USB 2.0 Dock Station docking station M800 Grey","Grey","15.7 x 10.6 x 6.9",29.9]
[null,null,null,null,"Accessories","Contoso","Home office enhanced capacity battery","Contoso Enhanced Capacity Battery M800 Grey","Grey","14.6 x 17.2 x 9.7 ",27.9]
[null,null,null,null,"Accessories","Contoso","Connectivity starter kit smart buy","Contoso Connectivity Starter Kit Smart Buy M680 Grey","Grey"," 6.1 x 14.9 x 11",27.9]
[null,null,null,null,"Accessories","Contoso","Enhanced capacity battery adapter","Contoso 90W AC/DC Power Adapter E300 Grey","Grey","14.7 x 14.7 x 10.3",11.9]
[null,null,null,null,"Accessories","Contoso","Reserve pen - tablet pen, connectivity technology, wireless","Contoso Reserve Pen - Tablet Pen E200 Grey","Grey","21 x 23 x 14",13.9]
[null,null,null,null,"Accessories","Contoso","USB data Link - direct connect adapter","Contoso USB Data Link - direct connect adapter E600 Grey","Grey","22.9 x 17.5 x 15.9 ",16.899999999999999]
[null,null,null,null,"Accessories","Contoso","Primary extended capacity battery pack - notebook battery","Contoso Primary Extended Capacity Battery Pack - notebook battery X100 Grey","Grey","15 x 11 x 7",33.9]
[null,null,null,null,"Accessories","Contoso","Digital camera accessory kit","Contoso Digital camera accessory kit M200 Grey","Grey","16.5 x 12.2 x 9",23.9]
[null,null,null,null,"Accessories","Contoso","Leather case for digital photo camera","Contoso Leather Case - case for digital photo camera X20 Grey","Grey","16 x 17 x 9",39.9]
[null,null,null,null,"Accessories","Contoso","Lens cap black","Contoso Lens cap E80 Grey","Grey","12 x 16 x 8",29.95]
[null,null,null,null,"Accessories","Contoso","imary extended capacity battery pack  ","Contoso Battery charger - bike E200 Grey","Grey","16 x 19 x 13",19.899999999999999]
[null,null,null,null,"Accessories","Contoso","USB optical mouse","Contoso USB Optical Mouse E200 Grey","Grey","18.1 x 17.9 x 11.2",15.5]
[null,null,null,null,"Accessories","Contoso","ADSL modem splitter/filter X 1","Contoso ADSL Modem Splitter/Filter X 1 E100 Grey","Grey","20 x 18 x 14.2",17.899999999999999]
[null,null,null,null,"Accessories","Contoso","ADSL modem splitter/filter X 2","Contoso ADSL Modem Splitter/Filter X 2 E200 Grey","Grey","15.2 x 15.7 x 8.7",22.9]
[null,null,null,null,"Accessories","Contoso","ADSL modem splitter/filter X 3","Contoso ADSL Modem Splitter/Filter X 3 E300 Grey","Grey","11 x 15 x 6",52.9]
[null,null,null,null,"Accessories","Contoso","USB wave multimedia keyboard","Contoso USB Wave Multi-Media Keyboard E280 Grey","Grey","14 x 14.7 x 10.3",15.9]
[null,null,null,null,"Accessories","Contoso","Cables to go USB 2.0 hard drive enclosure","Contoso Cables To Go USB 2.0 Hard Drive Enclosure E920 Grey","Grey","10.6 x 15.7 x 6.8",11.9]
[null,null,null,null,"Accessories","Contoso","USB optical mouse","Contoso USB Optical Mouse E200 Gold","Gold","17  x 6.5  x 13.8 ",15.5]
[null,null,null,null,"Accessories","Contoso","USB wave multimedia keyboard","Contoso USB Wave Multi-Media Keyboard M901 Gold","Gold","15.5  x 5  x 13.5 ",25.9]
[null,null,null,null,"Accessories","Contoso","Golden laptop cooling Hub notebook fan with 4 ports USB hub","Contoso Laptop Cooling Hub notebook fan with 4 ports USB hub M200 Gold","Gold","17.2  x 4.5  x 14.5  ",39.9]
[null,null,null,null,"Accessories","Contoso","Reserve Pen - Tablet Pen","Contoso Reserve Pen - Tablet Pen E200 Gold","Gold","17  x 6.5  x 13.8 ",13.9]
[null,null,null,null,"Accessories","Contoso","Illuminate wireless reading device, two super LED lights","Contoso Bright Light battery E20 Black","Black","Ligh",26.9]
[null,null,null,null,"Accessories","Contoso","Illuminate wireless reading device, two super LED lights","Contoso Bright Light battery E20 blue","blue","Ligh",26.9]
[null,null,null,null,"Accessories","Contoso","Illuminate wireless reading device, two super LED lights","Contoso Bright Light battery E20 Pink","Pink","Ligh",26.9]
[null,null,null,null,"Accessories","Contoso","Illuminate wireless reading device, two super LED lights","Contoso Bright Light battery E20 White","White","Ligh",26.9]
[null,null,null,null,"Accessories","Contoso","Compact neoprene sleeve transport mini laptop or DVD player in any briefcase, messenger bag or backpack","Contoso Ultraportable Neoprene Sleeve E30 Black","Black","Neopren",15.6]
[null,null,null,null,"Accessories","Contoso","Compact neoprene sleeve transport mini laptop or DVD player in any briefcase, messenger bag or backpack","Contoso Ultraportable Neoprene Sleeve E30 Pink","Pink","Neopre",15.6]
[null,null,null,null,"Accessories","Contoso","Compact neoprene sleeve transport mini laptop or DVD player in any briefcase, messenger bag or backpack","Contoso Ultraportable Neoprene Sleeve E30 Yellow","Yellow","Neoprene",15.6]
[null,null,null,null,"Accessories","Contoso","Compact neoprene sleeve transport mini laptop or DVD player in any briefcase, messenger bag or backpack","Contoso Ultraportable Neoprene Sleeve E30 Green","Green","Neopren",15.6]
[null,null,null,null,"Accessories","Contoso","Beauty designed, wireless keyboard, combines easily with notebook to help improved comfort","Contoso Laptop Keyboard X105 Black","Black","Keyb",230.9]
[null,null,null,null,"Accessories","Contoso","Beauty designed, wireless keyboard, combines easily with notebook to help improved comfort","Contoso Laptop Keyboard X105 White","White","Keyb",230.9]
[null,null,null,null,"Accessories","Contoso","Beauty designed, wireless keyboard, combines easily with notebook to help improved comfort","Contoso Laptop Keyboard X105 Brown","Brown","Keyb",230.9]
[null,null,null,null,"Accessories","Contoso","Beauty designed, wireless keyboard, combines easily with notebook to help improved comfort","Contoso Laptop Keyboard X105 Silver","Silver","Keyb",230.9]
[null,null,null,null,"Accessories","Contoso","Speakers system is the perfect audio companion to your PC or notebook","Contoso Multimedia Speakers M25 Brown","Brown","Small",129]
[null,null,null,null,"Accessories","Contoso","Speakers system is the perfect audio companion to your PC or notebook","Contoso Multimedia Speakers M25 Blue","Blue","Small",129]
[null,null,null,null,"Accessories","Contoso","Speakers system is the perfect audio companion to your PC or notebook","Contoso Multimedia Speakers M25 Black","Black","Medium",129]
[null,null,null,null,"Accessories","Contoso","Speakers system is the perfect audio companion to your PC or notebook","Contoso Multimedia Speakers M25 White","White","Large",129]
[null,null,null,null,"Accessories","Contoso","Wireless notebook mouse, long battery life, convenient snap-in receiver","Contoso Wireless Notebook Optical Mouse M35 Black","Black","No",29.95]
[null,null,null,null,"Accessories","Contoso","Wireless notebook mouse, long battery life, convenient snap-in receiver","Contoso Wireless Notebook Optical Mouse M35 White","White","No",29.95]
[null,null,null,null,"Accessories","Contoso","Wireless notebook mouse, long battery life, convenient snap-in receiver","Contoso Wireless Notebook Optical Mouse M35 Blue","Blue","No",29.95]
[null,null,null,null,"Accessories","Contoso","Wireless notebook mouse, long battery life, convenient snap-in receiver","Contoso Wireless Notebook Optical Mouse M35 Silver","Silver","No",29.95]
[null,null,null,null,"Accessories","Contoso","Wireless notebook mouse, long battery life, convenient snap-in receiver","Contoso Wireless Notebook Optical Mouse M35 Orange","Orange","No",29.95]
[null,null,null,null,"Accessories","Contoso","An improved wheel to make the scrolling up, down and sideways, faster, more comfortable and easier to use","Contoso Optical USB Mouse M45 Black","Black","USB",50.99]
[null,null,null,null,"Accessories","Contoso","An improved wheel to make the scrolling up, down and sideways, faster, more comfortable and easier to use","Contoso Optical USB Mouse M45 White","White","USB",50.99]
[null,null,null,null,"Accessories","Contoso","An improved wheel to make the scrolling up, down and sideways, faster, more comfortable and easier to use","Contoso Optical USB Mouse M45 Grey","Grey","USB",50.99]
[null,null,null,null,"Accessories","Contoso","Advanced 2.4 GHz cordless technology makes freedom, hyper-fast scrolling, laser, and cursor control on virtually any surface","Contoso Wireless Laser Mouse M55 Black","Black","La",69.989999999999995]
[null,null,null,null,"Accessories","Contoso","Advanced 2.4 GHz cordless technology makes freedom, hyper-fast scrolling, laser, and cursor control on virtually any surface","Contoso Wireless Laser Mouse M55 White","White","La",69.989999999999995]
[null,null,null,null,"Accessories","Contoso","Advanced 2.4 GHz cordless technology makes freedom, hyper-fast scrolling, laser, and cursor control on virtually any surface","Contoso Wireless Laser Mouse M55 Grey","Grey","La",69.989999999999995]
[null,null,null,null,"Accessories","Contoso","Advanced 2.4 GHz cordless technology makes freedom, hyper-fast scrolling, laser, and cursor control on virtually any surface","Contoso Wireless Laser Mouse M55 Silver","Silver","La",69.989999999999995]
[null,null,null,null,"Accessories","Contoso","Advanced 2.4 GHz cordless technology makes freedom, hyper-fast scrolling, laser, and cursor control on virtually any surface","Contoso Wireless Laser Mouse E50 Black","Black","La",20.96]
[null,null,null,null,"Accessories","Contoso","Advanced 2.4 GHz cordless technology makes freedom, hyper-fast scrolling, laser, and cursor control on virtually any surface","Contoso Wireless Laser Mouse E50 White","White","La",20.96]
[null,null,null,null,"Accessories","Contoso","Advanced 2.4 GHz cordless technology makes freedom, hyper-fast scrolling, laser, and cursor control on virtually any surface","Contoso Wireless Laser Mouse E50 Silver","Silver","La",20.96]
[null,null,null,null,"Accessories","Contoso","Advanced 2.4 GHz cordless technology makes freedom, hyper-fast scrolling, laser, and cursor control on virtually any surface","Contoso Wireless Laser Mouse E50 Grey","Grey","La",20.96]
[null,null,null,null,"Accessories","Contoso","Wireless notebook mouse, long battery life, convenient snap-in receiver","Contoso Wireless Notebook Optical Mouse X205 Black","Black","No",129.94999999999999]
[null,null,null,null,"Accessories","Contoso","Wireless notebook mouse, long battery life, convenient snap-in receiver","Contoso Wireless Notebook Optical Mouse X205 White","White","No",129.94999999999999]
[null,null,null,null,"Accessories","Contoso","Wireless notebook mouse, long battery life, convenient snap-in receiver","Contoso Wireless Notebook Optical Mouse X205 Blue","Blue","No",129.94999999999999]
[null,null,null,null,"Accessories","Contoso","Wireless notebook mouse, long battery life, convenient snap-in receiver","Contoso Wireless Notebook Optical Mouse X205 Silver","Silver","No",129.94999999999999]
[null,null,null,null,"Accessories","Contoso","Wireless notebook mouse, long battery life, convenient snap-in receiver","Contoso Wireless Notebook Optical Mouse X205 Orange","Orange","No",129.94999999999999]
[null,null,null,null,"Accessories","Contoso","PS/2 mouse, 6 feet mouse cable","Contoso Optical Wheel OEM PS/2 Mouse E60 Grey","Grey","Whe",13]
[null,null,null,null,"Accessories","Contoso","PS/2 mouse, 6 feet mouse cable","Contoso Optical Wheel OEM PS/2 Mouse E60 Black","Black","Whe",13]
[null,null,null,null,"Accessories","Contoso","PS/2 mouse, 6 feet mouse cable","Contoso Optical Wheel OEM PS/2 Mouse E60 White","White","Whe",13]
[null,null,null,null,"Accessories","Contoso","PS/2 mouse, 6 feet mouse cable","Contoso Optical Wheel OEM PS/2 Mouse E60 Silver","Silver","Whe",13]
[null,null,null,null,"Accessories","Contoso","Transceiver-free wireless connection to your PC with Bluetooth Technology","Contoso Bluetooth Notebook Mouse X305 Black","Black","N",150]
[null,null,null,null,"Accessories","Contoso","Transceiver-free wireless connection to your PC with Bluetooth Technology","Contoso Bluetooth Notebook Mouse X305 White","White","N",150]
[null,null,null,null,"Accessories","Contoso","Transceiver-free wireless connection to your PC with Bluetooth Technology","Contoso Bluetooth Notebook Mouse X305 Silver","Silver","N",150]
[null,null,null,null,"Accessories","Contoso","Transceiver-free wireless connection to your PC with Bluetooth Technology","Contoso Bluetooth Notebook Mouse X305 Grey","Grey","N",150]
[null,null,null,null,"Accessories","Contoso","Transceiver-free wireless connection to your PC with Bluetooth Technology","Contoso Bluetooth Notebook Mouse E70 Black","Black","N",50]
[null,null,null,null,"Accessories","Contoso","Transceiver-free wireless connection to your PC with Bluetooth Technology","Contoso Bluetooth Notebook Mouse E70 White","White","N",50]
[null,null,null,null,"Accessories","Contoso","Transceiver-free wireless connection to your PC with Bluetooth Technology","Contoso Bluetooth Notebook Mouse E70 Silver","Silver","N",50]
[null,null,null,null,"Accessories","Contoso","Transceiver-free wireless connection to your PC with Bluetooth Technology","Contoso Bluetooth Notebook Mouse E70 Grey","Grey","N",50]
[null,null,null,null,"Accessories","Southridge Video","33 ft range, recharges while in use.","SV Rechargeable Bluetooth Notebook Mouse E80 Silver","Silver","Blu",59.99]
[null,null,null,null,"Accessories","Southridge Video","33 ft range, recharges while in use.","SV Rechargeable Bluetooth Notebook Mouse E80 Black","Black","Blu",59.99]
[null,null,null,null,"Accessories","Southridge Video","33 ft range, recharges while in use.","SV Rechargeable Bluetooth Notebook Mouse E80 White","White","Blu",59.99]
[null,null,null,null,"Accessories","Southridge Video","33 ft range, recharges while in use.","SV Rechargeable Bluetooth Notebook Mouse E80 Grey","Grey","Blu",59.99]
[null,null,null,null,"Accessories","Southridge Video","Cutting-edge design and improved performance for maximum productivity, E-mail and Internet hot keys","SV Keyboard E90 Silver","Silver","90 Sil",41.73]
[null,null,null,null,"Accessories","Southridge Video","Cutting-edge design and improved performance for maximum productivity, E-mail and Internet hot keys","SV Keyboard E90 White","White","90 Whi",41.73]
[null,null,null,null,"Accessories","Southridge Video","Cutting-edge design and improved performance for maximum productivity, E-mail and Internet hot keys","SV Keyboard E90 Black","Black","90 Bla",41.73]
[null,null,null,null,"Accessories","Southridge Video","Cutting-edge design and improved performance for maximum productivity, E-mail and Internet hot keys","SV Keyboard E90 Grey","Grey","90 Gre",41.73]
[null,null,null,null,"Accessories","Southridge Video","Cutting-edge design and improved performance for maximum productivity, E-mail and Internet hot keys","SV Keyboard E10 Silver","Silver","10 Sil",44]
[null,null,null,null,"Accessories","Southridge Video","Cutting-edge design and improved performance for maximum productivity, E-mail and Internet hot keys","SV Keyboard E10 White","White","10 Whi",44]
[null,null,null,null,"Accessories","Southridge Video","Cutting-edge design and improved performance for maximum productivity, E-mail and Internet hot keys","SV Keyboard E10 Black","Black","10 Bla",44]
[null,null,null,null,"Accessories","Southridge Video","Cutting-edge design and improved performance for maximum productivity, E-mail and Internet hot keys","SV Keyboard E10 Grey","Grey","10 Gre",44]
[null,null,null,null,"Accessories","Southridge Video","Ultra durable 40GB USB portable storage, can withstand vertical drops of up to 35 inches","SV 40GB USB2.0 Portable Hard Disk E400 Red","Red","40GB USB2.0 Port",75.989999999999995]
[null,null,null,null,"Accessories","Southridge Video","Ultra durable 40GB USB portable storage, can withstand vertical drops of up to 35 inches","SV 40GB USB2.0 Portable Hard Disk E400 Silver","Silver","40GB USB2.0 Port",75.989999999999995]
[null,null,null,null,"Accessories","Southridge Video","Ultra durable 40GB USB portable storage, can withstand vertical drops of up to 35 inches","SV 40GB USB2.0 Portable Hard Disk E400 Blue","Blue","40GB USB2.0 Port",75.989999999999995]
[null,null,null,null,"Accessories","Southridge Video","Ultra durable 40GB USB portable storage, can withstand vertical drops of up to 35 inches","SV 40GB USB2.0 Portable Hard Disk E400 Yellow","Yellow","40GB USB2.0 Port",75.989999999999995]
[null,null,null,null,"Accessories","Southridge Video","Ultra durable 80GB USB portable storage, can withstand vertical drops of up to 35 inches","SV 80GB USB2.0 Portable Hard Disk E500 Red","Red","80GB USB2.0 Port",102]
[null,null,null,null,"Accessories","Southridge Video","Ultra durable 80GB USB portable storage, can withstand vertical drops of up to 35 inches","SV 80GB USB2.0 Portable Hard Disk E500 Silver","Silver","80GB USB2.0 Port",102]
[null,null,null,null,"Accessories","Southridge Video","Ultra durable 80GB USB portable storage, can withstand vertical drops of up to 35 inches","SV 80GB USB2.0 Portable Hard Disk E500 Blue","Blue","80GB USB2.0 Port",102]
[null,null,null,null,"Accessories","Southridge Video","Ultra durable 80GB USB portable storage, can withstand vertical drops of up to 35 inches","SV 80GB USB2.0 Portable Hard Disk E500 Yellow","Yellow","80GB USB2.0 Port",102]
[null,null,null,null,"Accessories","Southridge Video","Ultra durable160GB USB portable storage","SV 160GB USB2.0 Portable Hard Disk M65 Silver","Silver","160GB USB2.0 Por",95.9]
[null,null,null,null,"Accessories","Southridge Video","Ultra durable160GB USB portable storage","SV 160GB USB2.0 Portable Hard Disk M65 Black","Black","160GB USB2.0 Por",95.9]
[null,null,null,null,"Accessories","Southridge Video","Ultra durable160GB USB portable storage","SV 160GB USB2.0 Portable Hard Disk M65 White","White","160GB USB2.0 Por",95.9]
[null,null,null,null,"Accessories","Southridge Video","Ultra durable160GB USB portable storage","SV 160GB USB2.0 Portable Hard Disk M65 Grey","Grey","160GB USB2.0 Por",95.9]
[null,null,null,null,"Accessories","Southridge Video","Internal shock sensor and ramp loading Technology, USB Powered for portability/ Small size saves desktop space","SV 500GB USB 2.0 Portable External Hard Drive X405 Pink","Pink","500GB USB 2.0 Po",179]
[null,null,null,null,"Accessories","Southridge Video","Internal shock sensor and ramp loading Technology, USB Powered for portability/ Small size saves desktop space","SV 500GB USB 2.0 Portable External Hard Drive X405 Blue","Blue","500GB USB 2.0 Po",179]
[null,null,null,null,"Accessories","Southridge Video","Internal shock sensor and ramp loading Technology, USB Powered for portability/ Small size saves desktop space","SV 500GB USB 2.0 Portable External Hard Drive X405 White","White","500GB USB 2.0 Po",179]
[null,null,null,null,"Accessories","Southridge Video","Internal shock sensor and ramp loading Technology, USB Powered for portability/ Small size saves desktop space","SV 500GB USB 2.0 Portable External Hard Drive X405 Black","Black","500GB USB 2.0 Po",179]
[null,null,null,null,"Accessories","Southridge Video","A single, standardized and easy way to connect the phone to a computer","SV USB Data Cable E600 Pink","Pink","Small",0.95]
[null,null,null,null,"Accessories","Southridge Video","A single, standardized and easy way to connect the phone to a computer","SV USB Data Cable E600 Black","Black","Small",0.95]
[null,null,null,null,"Accessories","Southridge Video","A single, standardized and easy way to connect the phone to a computer","SV USB Data Cable E600 Silver","Silver","Medium",0.95]
[null,null,null,null,"Accessories","Southridge Video","A single, standardized and easy way to connect the phone to a computer","SV USB Data Cable E600 Grey","Grey","Large",0.95]
[null,null,null,null,"Accessories","Southridge Video","Simultaneously synchronize and recharge your device, USB 2.0 & 1.1 compatible","SV USB Sync Charge Cable E700 Blue","Blue","Small",1.99]
[null,null,null,null,"Accessories","Southridge Video","Simultaneously synchronize and recharge your device, USB 2.0 & 1.1 compatible","SV USB Sync Charge Cable E700 Black","Black","Medium",1.99]
[null,null,null,null,"Accessories","Southridge Video","Simultaneously synchronize and recharge your device, USB 2.0 & 1.1 compatible","SV USB Sync Charge Cable E700 White","White","Large",1.99]
[null,null,null,null,"Accessories","Southridge Video","Simultaneously synchronize and recharge your device, USB 2.0 & 1.1 compatible","SV USB Sync Charge Cable E700 Silver","Silver","Small",1.99]
[null,null,null,null,"Accessories","Southridge Video","DDR socket   ","SV 512MB Laptop memory E800 White","White","Medium",33.99]
[null,null,null,null,"Accessories","Southridge Video","DDR socket   ","SV 512MB Laptop memory E800 Silver","Silver","Large",33.99]
[null,null,null,null,"Accessories","Southridge Video","DDR socket   ","SV 512MB Laptop memory E800 Black","Black","Small",33.99]
[null,null,null,null,"Accessories","Southridge Video","DDR2 socket   ","SV 512MB Laptop memory E800 Yellow","Yellow","Medium",33.99]
[null,null,null,null,"Accessories","Southridge Video","DDR2 socket   ","SV 2GB Laptop memory E800 Silver","Silver","Large",55]
[null,null,null,null,"Accessories","Southridge Video","DDR2 socket   ","SV 2GB Laptop memory E800 Black","Black","Small",55]
[null,null,null,null,"Accessories","Southridge Video","DDR2 socket   ","SV 2GB Laptop memory E800 White","White","Medium",55]
[null,null,null,null,"Accessories","Southridge Video","Standard SDRAM SODIMM socket","SV 4GB Laptop Memory M65 Blue","Blue","Large",79]
[null,null,null,null,"Accessories","Southridge Video","Standard SDRAM SODIMM socket","SV 4GB Laptop Memory M65 Yellow","Yellow","Small",79]
[null,null,null,null,"Accessories","Southridge Video","Standard SDRAM SODIMM socket","SV 4GB Laptop Memory M65 Black","Black","Medium",79]
[null,null,null,null,"Accessories","Southridge Video","Standard SDRAM SODIMM socket","SV 4GB Laptop Memory M65 White","White","Large",79]
[null,null,null,null,"Accessories","Southridge Video","Broadcom chipset PCI interface 802.11g, 54 Mbps data transfer rate","SV Wireless LAN PCI Network Card Adapter E900 Black","Black","Small",99]
[null,null,null,null,"Accessories","Southridge Video","Broadcom chipset PCI interface 802.11g, 54 Mbps data transfer rate","SV Wireless LAN PCI Network Card Adapter E901 Black","Black","Medium",99]
[null,null,null,null,"Accessories","Southridge Video","Broadcom chipset PCI interface 802.11g, 54 Mbps data transfer rate","SV Wireless LAN PCI Network Card Adapter E902 Black","Black","Large",99]
[null,null,null,null,"Accessories","Southridge Video","Easy migration to faster networks as current 10/100 Mbps networks move to Gigabit","SV PCI Network Adapter E903 Silver","Silver","Small",41.99]
[null,null,null,null,"Accessories","Southridge Video","Easy migration to faster networks as current 10/100 Mbps networks move to Gigabit","SV PCI Network Adapter E904 Silver","Silver","Medium",41.99]
[null,null,null,null,"Accessories","Southridge Video","Easy migration to faster networks as current 10/100 Mbps networks move to gigabit","SV PCI Network Adapter E905 Silver","Silver","Large",41.99]
[null,null,null,null,"Digital Camera","A. Datum","Digital camera, 3.7 in x 0.9 in x 2","A. Datum Compact Digital Camera M200 Black","Black","18.5  x 4.5  x 16.3  ",129]
[null,null,null,null,"Digital Camera","A. Datum","Digital camera – compact, 3.7 in x 0.9 in x 2 in, 4.4 oz","A. Datum Rangefinder Digital Camera X200 Black","Black","15 x 15.7 x 8.7",200]
[null,null,null,null,"Digital Camera","A. Datum","Digital camera-compact, 3.7 in x 0.9 in x 2.3","A. Datum Slim Digital Camera M180 Black","Black","4.3 x 2.5 x 1.2",148]
[null,null,null,null,"Digital Camera","A. Datum","10.2in x 3 in x 15.3in, 2.2 lbs","A. Datum Ultra Compact Digital Camera M190 Black","Black","4.35 x 2.5 x 1.29 ",165]
[null,null,null,null,"Digital Camera","A. Datum","Digital camera, Product Type Digital camera - compact, Dimensions. 3.7 in x 0.9 in x 2.3 in, weight 5.5 oz  ","A. Datum All in One Digital Camera M200 Black","Black","4.2 x 2.3 x 1.2  ",188]
[null,null,null,null,"Digital Camera","A. Datum","Digital camera, product type digital camera - compact, dimensions 3.5 in x 1 in x 2.3 in","A. Datum Interchangeable lens Non-SLR Digital Camera X250 Black","Black","3.4 x 0.9 x 2.2  ",268]
[null,null,null,null,"Digital Camera","A. Datum","Digital camera, Product type digital camera - compact, Dimensions 3.7 in x 1.1 in x 2.4 in","A. Datum Super-zoom Digital Camera X300 Black","Black","3.4 x 1.1 x 2.2",290]
[null,null,null,null,"Digital Camera","A. Datum","Digital camera, product type digital camera - compact","A. Datum Consumer Digital Camera E100 Black","Black","3.5 x 0.9 x 2.2",281]
[null,null,null,null,"Digital Camera","A. Datum","Product type digital camera - compact, dimensions 3.8 in x 1 in x 2.1 in, weight 5.3 oz","A. Datum Consumer Digital Camera M300 Black","Black","3.6 x 1x 2.2",184.5]
[null,null,null,null,"Digital Camera","A. Datum","Digital camera, product type digital camera, dimensions 3.9 in x 1 in x 2.2 in, weight 5.3 oz","A. Datum Advanced Digital Camera M300 Black","Black","3.5 x 0.9 x 2.4",188.5]
[null,null,null,null,"Digital Camera","A. Datum","Digital camera, product Type digital camera - compact, dimensions 4.3 in x 1.1 in x 2.4 in, weight 8.1 oz","A. Datum Bridge Digital Camera M300 Black","Black","3.8 x 0.9 x 2.4",186.9]
[null,null,null,null,"Digital Camera","A. Datum","Digital camera, product type digital camera - compact, dimensions 4.7 in x 3.5 in x 3 in, weight 13 oz","A. Datum SLR-like Digital Camera M400 Black","Black","3.5 x 0.9 x 2.4",196.9]
[null,null,null,null,"Digital Camera","A. Datum","gital camera, digital camera - compact, 3.7 in x 0.9 in x 2 in, weight 4.4 oz  ","A. Datum Point Shoot Digital Camera M500 Black","Black","3.8 x 0.9 x 2.4",198]
[null,null,null,null,"Digital Camera","A. Datum","Digital camera, digital camera - compact, 3.9 in x 0.8 in x 2.3 in, weight 4.8 oz","A. Datum Full Frame Digital Camera X300 Black","Black","3.7 x 1 x 2.4",231]
[null,null,null,null,"Digital Camera","A. Datum","Digital camera .3.7 in x 0.9 in x 2","A. Datum Compact Digital Camera M200 Grey","Grey","3.7 x 1 x 2.5",129]
[null,null,null,null,"Digital Camera","A. Datum","Digital camera - compact, 3.7 in x 0.9 in x 2 in, 4.4 oz","A. Datum Rangefinder Digital Camera X200 Grey","Grey","3.7 x 1 x 2.6",200]
[null,null,null,null,"Digital Camera","A. Datum","Digital camera – compact, 3.7 in x 0.9 in x 2.3","A. Datum Slim Digital Camera M180 Grey","Grey","3.9 x 1 x 2.4",148]
[null,null,null,null,"Digital Camera","A. Datum","10.2 In x 3 in x 15.3 in, 2.2 lbs","A. Datum Ultra Compact Digital Camera M190 Grey","Grey","3.7 x 1.1 x 2.4",165]
[null,null,null,null,"Digital Camera","A. Datum","Digital camera, product type digital camera - compact, dimensions, 3.7 in x 0.9 in x 2.3 in, weight 5.5 oz  ","A. Datum All in One Digital Camera M200 Grey","Grey","3.9 x 1 x 2.4",188]
[null,null,null,null,"Digital Camera","A. Datum","Digital camera, product type digital camera - compact, dimensions 3.5 in x 1 in x 2.3 in","A. Datum Interchangeable lens Non-SLR Digital Camera X250 Grey","Grey","3.9 x 1 x 2.5",268]
[null,null,null,null,"Digital Camera","A. Datum","Digital camera, product type digital camera - compact, dimensions 3.7 in x 1.1 in x 2.4 in","A. Datum Super-zoom Digital Camera X300 Grey","Grey","5.8  x 7.8  x 1.7 ",290]
[null,null,null,null,"Digital Camera","A. Datum","Digital camera, product type digital camera - compact","A. Datum Consumer Digital Camera E100 Grey","Grey","3.8 x 2.3 x 1.1",281]
[null,null,null,null,"Digital Camera","A. Datum","Product type digital camera - compact, dimensions 3.8 in x 1 in x 2.1 in, weight 5.3 oz","A. Datum Consumer Digital Camera M300 Grey","Grey","3.9 x 2.3 x 1.1 ",184.5]
[null,null,null,null,"Digital Camera","A. Datum","Digital camera, product type digital camera, dimensions 3.9 in x 1 in x 2.2 in . Weight 5.3 oz","A. Datum Advanced Digital Camera M300 Grey","Grey","3.8 x 2.3 x 1.1",188.5]
[null,null,null,null,"Digital Camera","A. Datum","Digital camera, product type digital camera - compact, dimensions 4.3 in x 1.1 in x 2.4 in, weight 8.1 oz","A. Datum Bridge Digital Camera M300 Grey","Grey","4 x 2.4 x 1.1",186.9]
[null,null,null,null,"Digital Camera","A. Datum","Digital camera, product type digital camera - compact, dimensions 4.7 in x 3.5 in x 3 in, weight 13 oz","A. Datum SLR-like Digital Camera M400 Grey","Grey","4.1 x 2.4 x 1.1",196.9]
[null,null,null,null,"Digital Camera","A. Datum","gital camera, digital camera - compact, 3.7 in x 0.9 in x 2 in, weight 4.4 oz  ","A. Datum Point n' Shoot Digital Camera M500 Grey","Grey","3.75 x 1 x 2.5",198]
[null,null,null,null,"Digital Camera","A. Datum","Digital camera, digital camera - compact, 3.9 in x 0.8 in x 2.3 in, weight 4.8 oz","A. Datum Full Frame Digital Camera X300 Grey","Grey","3.6 x 1 x 2.6",231]
[null,null,null,null,"Digital Camera","A. Datum","Digital camera .3.7 in x 0.9 in x 2","A. Datum Compact Digital Camera M200 Pink","Pink","3.9 x 1.1 x 2.4",129]
[null,null,null,null,"Digital Camera","A. Datum","Digital camera - compact .3.7 in x 0.9 in x 2 in, 4.4 oz","A. Datum Rangefinder Digital Camera X200 Pink","Pink","3.7 x 1 x 2.4",200]
[null,null,null,null,"Digital Camera","A. Datum","Digital camera – compact, 3.7 in x 0.9 in x 2.3","A. Datum Slim Digital Camera M180 Pink","Pink","3.9 x 0.95 x 2.5",148]
[null,null,null,null,"Digital Camera","A. Datum","10.2 In x 3 in x 15.3 in, 2.2 lbs","A. Datum Ultra Compact Digital Camera M190 Pink","Pink","3.9 x 1.1 x 2.4",165]
[null,null,null,null,"Digital Camera","A. Datum","Digital camera, product type digital camera - compact, dimensions, 3.7 in x 0.9 in x 2.3 in, weight 5.5 oz  ","A. Datum All in One Digital Camera M200 Pink","Pink","4.8  x 7.8  x 1.7 ",188]
[null,null,null,null,"Digital Camera","A. Datum","Digital camera, product type digital camera - compact, dimensions 3.5 in x 1 in x 2.3 in","A. Datum Interchangeable lens Non-SLR Digital Camera X250 Pink","Pink","3.8 x 2.3 x 1.1",268]
[null,null,null,null,"Digital Camera","A. Datum","Digital camera, product type digital camera - compact, dimensions 3.7 in x 1.1 in x 2.4 in","A. Datum Super-zoom Digital Camera X300 Pink","Pink","4.2 x 2.3 x 1.2  ",290]
[null,null,null,null,"Digital Camera","A. Datum","Digital camera, product type digital camera - compact","A. Datum Consumer Digital Camera E100 Pink","Pink","3.4 x 0.9 x 2.2  ",281]
[null,null,null,null,"Digital Camera","A. Datum","Product type digital camera - compact, dimensions 3.8 in x 1 in x 2.1 in, weight 5.3 oz","A. Datum Consumer Digital Camera M300 Pink","Pink","3.4 x 1.1 x 2.2",184.5]
[null,null,null,null,"Digital Camera","A. Datum","Digital camera, product type digital camera, dimensions 3.9 in x 1 in x 2.2 in, weight 5.3 oz","A. Datum Advanced Digital Camera M300 Pink","Pink","3.5 x 0.9 x 2.2",188.5]
[null,null,null,null,"Digital Camera","A. Datum","Digital camera, product type digital camera - compact, dimensions 4.3 in x 1.1 in x 2.4 in, weight 8.1 oz","A. Datum Bridge Digital Camera M300 Pink","Pink","3.6 x 1x 2.2",186.9]
[null,null,null,null,"Digital Camera","A. Datum","Digital camera, product Type digital camera - compact, dimensions 4.7 in x 3.5 in x 3 in, weight 13 oz","A. Datum SLR-like Digital Camera M400 Pink","Pink","3.5 x 0.9 x 2.4",196.9]
[null,null,null,null,"Digital Camera","A. Datum","gital Camera, Digital camera - compact, 3.7 in x 0.9 in x 2 in, weight 4.4 oz  ","A. Datum Point Shoot Digital Camera M500 Pink","Pink","3.8 x 0.9 x 2.4",198]
[null,null,null,null,"Digital Camera","A. Datum","Digital Camera, Digital camera - compact, 3.9 in x 0.8 in x 2.3 in, weight 4.8 oz","A. Datum Full Frame Digital Camera X300 Pink","Pink","3.5 x 0.9 x 2.4",231]
[null,null,null,null,"Digital Camera","A. Datum","Digital camera, 3.7 in x 0.9 in x 2","A. Datum Compact Digital Camera M200 Silver","Silver","3.8 x 0.9 x 2.4",129]
[null,null,null,null,"Digital Camera","A. Datum","Digital camera – compact, 3.7 in x 0.9 in x 2 in, 4.4 oz","A. Datum Rangefinder Digital Camera X200 Silver","Silver","3.7 x 1 x 2.4",200]
[null,null,null,null,"Digital Camera","A. Datum","Digital camera – compact, 3.7 in x 0.9 in x 2.3","A. Datum Slim Digital Camera M180 Silver","Silver","3.7 x 1 x 2.5",148]
[null,null,null,null,"Digital Camera","A. Datum","10.2 In x 3 in x 15.3 in, 2.2 lbs","A. Datum Ultra Compact Digital Camera M190 Silver","Silver","3.7 x 1 x 2.6",165]
[null,null,null,null,"Digital Camera","A. Datum","Digital camera, product type digital camera - compact, dimensions, 3.7 in x 0.9 in x 2.3 in, weight 5.5 oz  ","A. Datum All in One Digital Camera M200 Silver","Silver","3.9 x 1 x 2.4",188]
[null,null,null,null,"Digital Camera","A. Datum","Digital camera, Product type digital camera - compact, dimensions 3.5 in x 1 in x 2.3 in","A. Datum Interchangeable lens Non-SLR Digital Camera X250 Silver","Silver","3.7 x 1.1 x 2.4",268]
[null,null,null,null,"Digital Camera","A. Datum","Digital camera, Product type digital camera - compact, dimensions 3.7 in x 1.1 in x 2.4 in","A. Datum Super-zoom Digital Camera X300 Silver","Silver","3.9 x 1 x 2.4",290]
[null,null,null,null,"Digital Camera","A. Datum","Digital camera, product type digital camera - compact","A. Datum Consumer Digital Camera E100 Silver","Silver","3.9 x 1 x 2.5",281]
[null,null,null,null,"Digital Camera","A. Datum","Product type digital camera - compact, dimensions 3.8 in x 1 in x 2.1 in, weight 5.3 oz","A. Datum Consumer Digital Camera M300 Silver","Silver","4.1 x 2.4 x 1.1",184.5]
[null,null,null,null,"Digital Camera","A. Datum","Digital camera, product type digital camera, dimensions 3.9 in x 1 in x 2.2 in, weight 5.3 oz","A. Datum Advanced Digital Camera M300 Silver","Silver","3.75 x 1 x 2.5",188.5]
[null,null,null,null,"Digital Camera","A. Datum","Digital camera, product type digital camera - compact, dimensions 4.3 in x 1.1 in x 2.4 in, weight 8.1 oz","A. Datum Bridge Digital Camera M300 Silver","Silver","3.6 x 1 x 2.6",186.9]
[null,null,null,null,"Digital Camera","A. Datum","Digital camera, product type digital camera - compact, dimensions 4.7 in x 3.5 in x 3 in, weight 13 oz","A. Datum SLR-like Digital Camera M400 Silver","Silver","3.9 x 1.1 x 2.4",196.9]
[null,null,null,null,"Digital Camera","A. Datum","gital camera, digital camera - compact, 3.7 in x 0.9 in x 2 in, weight 4.4 oz  ","A. Datum Point Shoot Digital Camera M500 Silver","Silver","3.7 x 1 x 2.4",198]
[null,null,null,null,"Digital Camera","A. Datum","Digital camera, digital camera - compact, 3.9 in x 0.8 in x 2.3 in, weight 4.8 oz","A. Datum Full Frame Digital Camera X300 Silver","Silver","3.9 x 0.95 x 2.5",231]
[null,null,null,null,"Digital Camera","A. Datum","Digital camera, 3.7 in x 0.9 in x 2","A. Datum Compact Digital Camera M200 Orange","Orange","3.9 x 1.1 x 2.4",129]
[null,null,null,null,"Digital Camera","A. Datum","Digital camera – compact, 3.7 in x 0.9 in x 2 in, 4.4 oz","A. Datum Rangefinder Digital Camera X200 Orange","Orange","4.8  x 7.8  x 1.7 ",200]
[null,null,null,null,"Digital Camera","A. Datum","Digital camera – compact, 3.7 in x 0.9 in x 2.3","A. Datum Slim Digital Camera M180 Orange","Orange","3.8 x 2.3 x 1.1",148]
[null,null,null,null,"Digital Camera","A. Datum","10.2 In x 3 in x 15.3 in, 2.2 lbs","A. Datum Ultra Compact Digital Camera M190 Orange","Orange","4.2 x 2.3 x 1.2  ",165]
[null,null,null,null,"Digital Camera","A. Datum","Digital camera, product type digital camera - compact, dimensions, 3.7 in x 0.9 in x 2.3 in, weight 5.5 oz  ","A. Datum All in One Digital Camera M200 Orange","Orange","3.4 x 0.9 x 2.2  ",188]
[null,null,null,null,"Digital Camera","A. Datum","Digital camera, product type digital camera - compact, dimensions 3.5 in x 1 in x 2.3 in","A. Datum Interchangeable lens Non-SLR Digital Camera X250 Orange","Orange","3.4 x 1.1 x 2.2",268]
[null,null,null,null,"Digital Camera","A. Datum","Digital camera, product type digital camera - compact, dimensions 3.7 in x 1.1 in x 2.4 in","A. Datum Super-zoom Digital Camera X300 Orange","Orange","3.5 x 0.9 x 2.2",290]
[null,null,null,null,"Digital Camera","A. Datum","Digital camera, product type digital camera - compact","A. Datum Consumer Digital Camera E100 Orange","Orange","4.1 x 2.4 x 1.1",281]
[null,null,null,null,"Digital Camera","A. Datum","Product type digital camera - compact, dimensions 3.8 in x 1 in x 2.1 in, weight 5.3 oz","A. Datum Consumer Digital Camera M300 Orange","Orange","3.75 x 1 x 2.5",184.5]
[null,null,null,null,"Digital Camera","A. Datum","Digital camera, product type digital camera, dimensions 3.9 in x 1 in x 2.2 in, weight 5.3 oz","A. Datum Advanced Digital Camera M300 Orange","Orange","3.6 x 1 x 2.6",188.5]
[null,null,null,null,"Digital Camera","A. Datum","Digital camera, product type digital camera - compact, dimensions 4.3 in x 1.1 in x 2.4 in, weight 8.1 oz","A. Datum Bridge Digital Camera M300 Orange","Orange","3.9 x 1.1 x 2.4",186.9]
[null,null,null,null,"Digital Camera","A. Datum","Digital camera, product type digital camera - compact, dimensions 4.7 in x 3.5 in x 3 in, weight 13 oz","A. Datum SLR-like Digital Camera M400 Orange","Orange","3.7 x 1 x 2.4",196.9]
[null,null,null,null,"Digital Camera","A. Datum","gital camera, digital camera - compact, 3.7 in x 0.9 in x 2 in, weight 4.4 oz  ","A. Datum Point Shoot Digital Camera M500 Orange","Orange","3.9 x 0.95 x 2.5",198]
[null,null,null,null,"Digital Camera","A. Datum","Digital camera, digital camera - compact, 3.9 in x 0.8 in x 2.3 in, weight 4.8 oz","A. Datum Full Frame Digital Camera X300 Orange","Orange","3.9 x 1.1 x 2.4",231]
[null,null,null,null,"Digital Camera","A. Datum","Digital camera .3.7 in x 0.9 in x 2","A. Datum Compact Digital Camera M200 Green","Green","4.8  x 7.8  x 1.7 ",129]
[null,null,null,null,"Digital Camera","A. Datum","Digital camera - compact, 3.7 in x 0.9 in x 2 in, 4.4 oz","A. Datum Rangefinder Digital Camera X200 Green","Green","3.8 x 2.3 x 1.1",200]
[null,null,null,null,"Digital Camera","A. Datum","Digital camera – compact, 3.7 in x 0.9 in x 2.3","A. Datum Slim Digital Camera M180 Green","Green","4.2 x 2.3 x 1.2  ",148]
[null,null,null,null,"Digital Camera","A. Datum","10.2 In x 3 in x 15.3 in, 2.2 lbs","A. Datum Ultra Compact Digital Camera M190 Green","Green","3.5 x 0.9 x 2.2",165]
[null,null,null,null,"Digital Camera","A. Datum","Digital camera, product type digital camera - compact, dimensions, 3.7 in x 0.9 in x 2.3 in, weight 5.5 oz  ","A. Datum All in One Digital Camera M200 Green","Green","3.6 x 1x 2.2",188]
[null,null,null,null,"Digital Camera","A. Datum","Digital camera, product type digital camera - compact, dimensions 3.5 in x 1 in x 2.3 in","A. Datum Interchangeable lens Non-SLR Digital Camera X250 Green","Green","3.5 x 0.9 x 2.4",268]
[null,null,null,null,"Digital Camera","A. Datum","Digital camera, product type digital camera - compact, dimensions 3.7 in x 1.1 in x 2.4 in","A. Datum Super-zoom Digital Camera X300 Green","Green","3.8 x 0.9 x 2.4",290]
[null,null,null,null,"Digital Camera","A. Datum","Digital camera, product type digital camera - compact","A. Datum Consumer Digital Camera E100 Green","Green","3.5 x 0.9 x 2.4",281]
[null,null,null,null,"Digital Camera","A. Datum","Product Type Digital camera - compact, dimensions 3.8 in x 1 in x 2.1 in, weight 5.3 oz","A. Datum Consumer Digital Camera M300 Green","Green","3.8 x 0.9 x 2.4",184.5]
[null,null,null,null,"Digital Camera","A. Datum","Digital camera, product type digital camera, dimensions 3.9 in x 1 in x 2.2 in, weight 5.3 oz","A. Datum Advanced Digital Camera M300 Green","Green","3.7 x 1 x 2.4",188.5]
[null,null,null,null,"Digital Camera","A. Datum","Digital camera, product type digital camera - compact, dimensions 4.3 in x 1.1 in x 2.4 in, weight 8.1 oz","A. Datum Bridge Digital Camera M300 Green","Green","3.7 x 1 x 2.5",186.9]
[null,null,null,null,"Digital Camera","A. Datum","Digital camera, product type digital camera - compact, Dimensions 4.7 in x 3.5 in x 3 in, weight 13 oz","A. Datum SLR-like Digital Camera M400 Green","Green","3.7 x 1 x 2.6",196.9]
[null,null,null,null,"Digital Camera","A. Datum","gital camera, digital camera - compact, 3.7 in x 0.9 in x 2 in, weight 4.4 oz  ","A. Datum Point Shoot Digital Camera M500 Green","Green","3.9 x 1 x 2.4",198]
[null,null,null,null,"Digital Camera","A. Datum","Digital camera, digital camera - compact, 3.9 in x 0.8 in x 2.3 in, weight 4.8 oz","A. Datum Full Frame Digital Camera X300 Green","Green","3.7 x 1.1 x 2.4",231]
[null,null,null,null,"Digital Camera","A. Datum","Digital camera, 3.7 in x 0.9 in x 2","A. Datum Compact Digital Camera M200 Azure","Azure","3.9 x 1 x 2.4",129]
[null,null,null,null,"Digital Camera","A. Datum","Digital camera – compact, 3.7 in x 0.9 in x 2 in, 4.4 oz","A. Datum Rangefinder Digital Camera X200 Azure","Azure","3.9 x 1 x 2.5",200]
[null,null,null,null,"Digital Camera","A. Datum","Digital camera – compact, 3.7 in x 0.9 in x 2.3","A. Datum Slim Digital Camera M180 Azure","Azure","4.1 x 2.4 x 1.1",148]
[null,null,null,null,"Digital Camera","A. Datum","10.2 In x 3 in x 15.3 in, 2.2 lbs","A. Datum Ultra Compact Digital Camera M190 Azure","Azure","3.75 x 1 x 2.5",165]
[null,null,null,null,"Digital Camera","A. Datum","Digital camera, product type digital camera - compact, dimensions, 3.7 in x 0.9 in x 2.3 in, weight 5.5 oz  ","A. Datum All in One Digital Camera M200 Azure","Azure","3.6 x 1 x 2.6",188]
[null,null,null,null,"Digital Camera","A. Datum","Digital camera, product type digital camera - compact, dimensions 3.5 in x 1 in x 2.3 in","A. Datum Interchangeable lens Non-SLR Digital Camera X250 Azure","Azure","3.9 x 1.1 x 2.4",268]
[null,null,null,null,"Digital Camera","A. Datum","Digital camera, product type digital camera - compact, dimensions 3.7 in x 1.1 in x 2.4 in","A. Datum Super-zoom Digital Camera X300 Azure","Azure","3.7 x 1 x 2.4",290]
[null,null,null,null,"Digital Camera","A. Datum","Digital camera, product type digital camera - compact","A. Datum Consumer Digital Camera E100 Azure","Azure","3.9 x 0.95 x 2.5",281]
[null,null,null,null,"Digital Camera","A. Datum","Product type digital camera - compact, dimensions 3.8 in x 1 in x 2.1 in, weight 5.3 oz","A. Datum Consumer Digital Camera M300 Azure","Azure","3.9 x 1.1 x 2.4",184.5]
[null,null,null,null,"Digital Camera","A. Datum","Digital camera, product type digital camera, dimensions 3.9 in x 1 in x 2.2 in, weight 5.3 oz","A. Datum Advanced Digital Camera M300 Azure","Azure","4.8  x 7.8  x 1.7 ",188.5]
[null,null,null,null,"Digital Camera","A. Datum","Digital camera, product type digital camera - compact, dimensions 4.3 in x 1.1 in x 2.4 in, weight 8.1 oz","A. Datum Bridge Digital Camera M300 Azure","Azure","3.8 x 2.3 x 1.1",186.9]
[null,null,null,null,"Digital Camera","A. Datum","Digital camera, product type digital camera - compact, dimensions 4.7 in x 3.5 in x 3 in, weight 13 oz","A. Datum SLR-like Digital Camera M400 Azure","Azure","3.9 x 0.95 x 2.5",196.9]
[null,null,null,null,"Digital Camera","A. Datum","gital camera, digital camera - compact, 3.7 in x 0.9 in x 2 in, weight 4.4 oz  ","A. Datum Point n' Shoot Digital Camera M500 Azure","Azure","3.9 x 1.1 x 2.4",198]
[null,null,null,null,"Digital Camera","A. Datum","Digital camera, digital camera - compact, 3.9 in x 0.8 in x 2.3 in, weight 4.8 oz","A. Datum Full Frame Digital Camera X300 Azure","Azure","4.8  x 7.8  x 1.7 ",231]
[null,null,null,null,"Digital Camera","A. Datum","Digital camera – compact, 3.8 in x 1 in x 2.2 in, 4.9 oz","A. Datum Point Shoot Digital Camera M500 Silver Grey","Silver Grey","3.8 x 2.3 x 1.1",198]
[null,null,null,null,"Digital Camera","A. Datum","Optical zoom 2.7in LCD digital camera, 100kgf","A. Datum Full Frame Digital Camera X300 Silver Grey","Silver Grey","4.2 x 2.3 x 1.2  ",231]
[null,null,null,null,"SLR Camera","A. Datum","On-screen autofocus with live view displays subjects in focus on the LCD the instant the shutter is pressed halfway","A. Datum SLR Camera X135 Black","Black","8 x 10 x 6",627]
[null,null,null,null,"SLR Camera","A. Datum","Choice of data storage options - accepts compact flash type I & II, UDMA, micro drives, and XD-picture cards digital 14-42mm F3.5-5.6 lens","A. Datum SLR Camera 35\" X358 Black","Black","3.4 x 4.6 x 3.3 ",588]
[null,null,null,null,"SLR Camera","A. Datum","SLR camera, 4.8 in x 2.7 in x 3.6 in, 1.1 lbs","A. Datum SLR Camera M135 Black","Black","4.8  x 7.8  x 1.7 ",312]
[null,null,null,null,"SLR Camera","A. Datum","8 digital-variable program automatic shooting modes","A. Datum SLR Camera 35\" M358 Black","Black","3.45 x 4.8 x 3.3 ",338]
[null,null,null,null,"SLR Camera","A. Datum","Compact 3x zoom lens covering the most frequently used focal range","A. Datum SLR Camera X136 Silver","Silver","3.5 x 5 x 3.3 ",427]
[null,null,null,null,"SLR Camera","A. Datum","Powerful megapixel live-MOS sensor","A. Datum SLR Camera 35\" X358 Silver","Silver","3.5 x 5.5 x 3.3",588]
[null,null,null,null,"SLR Camera","A. Datum","Powerful 12.3-megapixel live-MOSLO sensor","A. Datum SLR Camera M136 Silver","Silver","3.4 x 4.8 x 3.3 ",312]
[null,null,null,null,"SLR Camera","A. Datum","4.8 In x 2.7 in x 3.6 in. 1.1 lbs","A. Datum SLR Camera 35\" M358 Silver","Silver","4 x 4 x 4 ",338]
[null,null,null,null,"SLR Camera","A. Datum","Fast startup and split-second shutter response, shoot continuously at up to 3 frames per second","A. Datum SLR Camera X137 Grey","Grey","4.2 x 4 x 4 ",627]
[null,null,null,null,"SLR Camera","A. Datum","Shoot at up to 2.5 frames per second, capturing high-quality action sequences of children in sporting activities such as soccer","A. Datum SLR Camera 35\" X358 Grey","Grey","8 x 9 x 6 ",588]
[null,null,null,null,"SLR Camera","A. Datum","Continuous shooting up to 5 frames per second","A. Datum SLR Camera M137 Grey","Grey","8 x 8 x 6.5",312]
[null,null,null,null,"SLR Camera","A. Datum","Compact flash type I/II, micro drive","A. Datum SLR Camera 35\" M358 Grey","Grey","7.5 x 8 x 6.5",338]
[null,null,null,null,"SLR Camera","A. Datum","Dynamic integrated dust reduction system","A. Datum SLR Camera X138 Silver Grey","Silver Grey","7 x 8 x 6.5",627]
[null,null,null,null,"SLR Camera","A. Datum","Fast startup and split-second shutter response, shoot continuously at up to 3 frames per second","A. Datum SLR Camera 35\" X358 Silver Grey","Silver Grey","3.5  x 2  x 5  ",588]
[null,null,null,null,"SLR Camera","A. Datum","Digital camera - SLR with live view mode, 5 in x 2.4 in x 3.9 in, 15.9 oz","A. Datum SLR Camera M138 Silver Grey","Silver Grey","6.5  x 4.5  x 4.5  ",312]
[null,null,null,null,"SLR Camera","A. Datum","5 in x 2.4 in x 3.9 in, 15.9 oz, digital camera - SLR with live view mode","A. Datum SLR Camera 35\" M358 Silver Grey","Silver Grey","4  x 2.5  x 5.5  ",338]
[null,null,null,null,"SLR Camera","A. Datum","Digital camera - SLR with live view mode, 5.8 in x 2.9 in x 4.5 in, 1.8 lbs","A. Datum SLR Camera X139 Gold","Gold","2.6  x 5.4  x 2.8 ",627]
[null,null,null,null,"SLR Camera","A. Datum","Digital camera - SLR with live view mode,","A. Datum SLR Camera 35\" X358 Gold","Gold","3  x 5  x 2.9  ",588]
[null,null,null,null,"SLR Camera","A. Datum","Digital camera - SLR with live view mode, 5.1 in x 2.4 in x 3.9 in, 16.8 oz","A. Datum SLR Camera M139 Gold","Gold","8 x 10 x 6",312]
[null,null,null,null,"SLR Camera","A. Datum","Digital camera - SLR with live view mode","A. Datum SLR Camera 35\" M358 Gold","Gold","3.4 x 4.6 x 3.3 ",338]
[null,null,null,null,"SLR Camera","A. Datum","Digital camera - SLR with live view mode","A. Datum SLR Camera X140 Pink","Pink","4.8  x 7.8  x 1.7 ",627]
[null,null,null,null,"SLR Camera","A. Datum","Digital camera - SLR with live view mode","A. Datum SLR Camera 35\" X358 Pink","Pink","3.45 x 4.8 x 3.3 ",588]
[null,null,null,null,"SLR Camera","A. Datum","Optical - fixed eye-level pen, LCD display","A. Datum SLR Camera M140 Pink","Pink","3.5 x 5 x 3.3 ",312]
[null,null,null,null,"SLR Camera","A. Datum","Digital camera - SLR with live view mode","A. Datum SLR Camera 35\" M358 Pink","Pink","3.5 x 5.5 x 3.3",338]
[null,null,null,null,"SLR Camera","A. Datum","Digital camera - SLR with live view mode, movie recording, 5.1 in x 2.4 in x 3.9 in, 16.9 oz","A. Datum SLR Camera X141 Blue","Blue","3.4 x 4.8 x 3.3 ",427]
[null,null,null,null,"SLR Camera","A. Datum","Digital camera - SLR with live view mode","A. Datum SLR Camera 35\" X358 Blue","Blue","4 x 4 x 4 ",588]
[null,null,null,null,"SLR Camera","A. Datum","Digital camera - SLR with live view mode, 5.1 in x 2.1 in x 3.6 in, 13.2 oz","A. Datum SLR Camera M141 Blue","Blue","4.2 x 4 x 4 ",312]
[null,null,null,null,"SLR Camera","A. Datum","Digital camera – SLR, 4.8 in x 2.7 in x 3.6 in, 1.1 lbs","A. Datum SLR Camera 35\" M358 Blue","Blue","8 x 9 x 6 ",338]
[null,null,null,null,"SLR Camera","A. Datum","Digital camera - SLR with live view mode","A. Datum SLR Camera X142 Orange","Orange","8 x 8 x 6.5",427]
[null,null,null,null,"SLR Camera","A. Datum","Digital camera – SLR, 4.5 in x 2.5 in x 3.4 in, 1.2 lbs","A. Datum SLR Camera 35\" X358 Orange","Orange","7.5 x 8 x 6.5",588]
[null,null,null,null,"SLR Camera","A. Datum","Digital camera – SLR, 5.2 in x 2.8 in x 3.7 in, 19.2 oz","A. Datum SLR Camera M142 Orange","Orange","7 x 8 x 6.5",312]
[null,null,null,null,"SLR Camera","A. Datum","Digital camera – SLR, 5.2 in x 2.8 in x 3.7 in, 19.2 oz","A. Datum SLR Camera 35\" M358 Orange","Orange","3.5  x 2  x 5  ",338]
[null,null,null,null,"SLR Camera","Contoso","On-screen autofocus with live view displays subjects in focus on the LCD the instant the shutter is pressed halfway","Contoso SLR Camera X142 Black","Black","6.5  x 4.5  x 4.5  ",637]
[null,null,null,null,"SLR Camera","Contoso","Choice of data storage options -- accepts compact flash type I & II, UDMA, micro drives, and XD-picture cards digital 14-42mm F3.5-5.6 lens","Contoso SLR Camera 35\" X358 Black","Black","4  x 2.5  x 5.5  ",568]
[null,null,null,null,"SLR Camera","Contoso","SLR camera, 4.8 in x 2.7 in x 3.6 in, 1.1 lbs","Contoso SLR Camera M142 Black","Black","2.6  x 5.4  x 2.8 ",314]
[null,null,null,null,"SLR Camera","Contoso","8 digital-variable program automatic shooting modes","Contoso SLR Camera 35\" M358 Black","Black","3  x 5  x 2.9  ",358]
[null,null,null,null,"SLR Camera","Contoso","Compact 3x zoom lens covering the most frequently used focal range","Contoso SLR Camera X143 Silver","Silver","8 x 10 x 6",646]
[null,null,null,null,"SLR Camera","Contoso","Powerful megapixel Live-MOS sensor","Contoso SLR Camera 35\" X358 Silver","Silver","3.4 x 4.6 x 3.3 ",568]
[null,null,null,null,"SLR Camera","Contoso","Powerful 12.3-megapixel live-MOSLO sensor","Contoso SLR Camera M143 Silver","Silver","4.8  x 7.8  x 1.7 ",304]
[null,null,null,null,"SLR Camera","Contoso","4.8 In x 2.7 in x 3.6 in, 1.1 lbs","Contoso SLR Camera 35\" M358 Silver","Silver","3.45 x 4.8 x 3.3 ",358]
[null,null,null,null,"SLR Camera","Contoso","Fast startup and split-second shutter response, shoot continuously at up to 3 frames per second","Contoso SLR Camera X143 Grey","Grey","3.5 x 5 x 3.3 ",646]
[null,null,null,null,"SLR Camera","Contoso","Shoot at up to 2.5 frames per second, capturing high-quality action sequences of children in sporting activities such as soccer","Contoso SLR Camera 35\" X358 Grey","Grey","3.5 x 5.5 x 3.3",568]
[null,null,null,null,"SLR Camera","Contoso","Continuous shooting up to 5 frames per second","Contoso SLR Camera M143 Grey","Grey","3.4 x 4.8 x 3.3 ",304]
[null,null,null,null,"SLR Camera","Contoso","Compact flash Type I/II, micro drive","Contoso SLR Camera 35\" M358 Grey","Grey","4 x 4 x 4 ",358]
[null,null,null,null,"SLR Camera","Contoso","Dynamic integrated dust reduction system","Contoso SLR Camera X144 Silver Grey","Silver Grey","4.2 x 4 x 4 ",673]
[null,null,null,null,"SLR Camera","Contoso","Fast startup and split-second shutter response, shoot continuously at up to 3 frames per second","Contoso SLR Camera 35\" X358 Silver Grey","Silver Grey","8 x 9 x 6 ",568]
[null,null,null,null,"SLR Camera","Contoso","Digital camera - SLR with live view mode, 5 in x 2.4 in x 3.9 in, 15.9 oz","Contoso SLR Camera M144 Silver Grey","Silver Grey","8 x 8 x 6.5",332]
[null,null,null,null,"SLR Camera","Contoso","5 in x 2.4 in x 3.9 in. 15.9 oz. Digital camera - SLR with Live View mode","Contoso SLR Camera 35\" M358 Silver Grey","Silver Grey","7.5 x 8 x 6.5",358]
[null,null,null,null,"SLR Camera","Contoso","Digital camera - SLR with live view mode, 5.8 in x 2.9 in x 4.5 in, 1.8 lbs","Contoso SLR Camera X144 Gold","Gold","7 x 8 x 6.5",673]
[null,null,null,null,"SLR Camera","Contoso","Digital camera - SLR with live view mode","Contoso SLR Camera 35\" X358 Gold","Gold","3.5  x 2  x 5  ",568]
[null,null,null,null,"SLR Camera","Contoso","Digital camera - SLR with live view mode, 5.1 in x 2.4 in x 3.9 in, 16.8 oz","Contoso SLR Camera M144 Gold","Gold","6.5  x 4.5  x 4.5  ",332]
[null,null,null,null,"SLR Camera","Contoso","Digital camera - SLR with live view mode","Contoso SLR Camera 35\" M358 Gold","Gold","4  x 2.5  x 5.5  ",358]
[null,null,null,null,"SLR Camera","Contoso","Digital camera - SLR with live view mode","Contoso SLR Camera X145 Pink","Pink","2.6  x 5.4  x 2.8 ",632]
[null,null,null,null,"SLR Camera","Contoso","Digital camera - SLR with live view mode","Contoso SLR Camera 35\" X358 Pink","Pink","3  x 5  x 2.9  ",568]
[null,null,null,null,"SLR Camera","Contoso","Optical - fixed eye-level pen, LCD display","Contoso SLR Camera M145 Pink","Pink","8 x 10 x 6",343]
[null,null,null,null,"SLR Camera","Contoso","Digital camera - SLR with live view mode","Contoso SLR Camera 35\" M358 Pink","Pink","3.4 x 4.6 x 3.3 ",358]
[null,null,null,null,"SLR Camera","Contoso","Digital camera - SLR with live view mode, movie recording, 5.1 in x 2.4 in x 3.9 in, 16.9 oz","Contoso SLR Camera X145 Blue","Blue","4.8  x 7.8  x 1.7 ",632]
[null,null,null,null,"SLR Camera","Contoso","Digital camera - SLR with live view mode","Contoso SLR Camera 35\" X358 Blue","Blue","3.45 x 4.8 x 3.3 ",568]
[null,null,null,null,"SLR Camera","Contoso","Digital camera - SLR with live view mode, 5.1 in x 2.1 in x 3.6 in, 13.2 oz","Contoso SLR Camera M145 Blue","Blue","3.5 x 5 x 3.3 ",343]
[null,null,null,null,"SLR Camera","Contoso","Digital camera – SLR, 4.8 in x 2.7 in x 3.6 in, 1.1 lbs","Contoso SLR Camera 35\" M358 Blue","Blue","3.5 x 5.5 x 3.3",358]
[null,null,null,null,"SLR Camera","Contoso","Digital camera - SLR with live view mode","Contoso SLR Camera X146 Orange","Orange","3.4 x 4.8 x 3.3 ",427]
[null,null,null,null,"SLR Camera","Contoso","Digital camera – SLR, 4.5 in x 2.5 in x 3.4 in, 1.2 lbs","Contoso SLR Camera 35\" X358 Orange","Orange","4 x 4 x 4 ",568]
[null,null,null,null,"SLR Camera","Contoso","Digital camera – SLR, 5.2 in x 2.8 in x 3.7 in, 19.2 oz","Contoso SLR Camera M146 Orange","Orange","4.2 x 4 x 4 ",322]
[null,null,null,null,"SLR Camera","Contoso","Digital camera – SLR, 5.2 in x 2.8 in x 3.7 in, 19.2 oz","Contoso SLR Camera 35\" M358 Orange","Orange","8 x 9 x 6 ",358]
[null,null,null,null,"SLR Camera","Fabrikam","On-screen autofocus with live view displays subjects in focus on the LCD the instant the shutter is pressed halfway","Fabrikam SLR Camera X146 Black","Black","8 x 8 x 6.5",629]
[null,null,null,null,"SLR Camera","Fabrikam","Choice of data storage options - accepts compact flash type I & II, UDMA, Micro drives, and XD-picture cards digital 14-42mm F3.5-5.6 lens","Fabrikam SLR Camera 35\" X358 Black","Black","7.5 x 8 x 6.5",436.2]
[null,null,null,null,"SLR Camera","Fabrikam","SLR camera, 4.8 in x 2.7 in x 3.6 in, 1.1 lbs","Fabrikam SLR Camera M146 Black","Black","7 x 8 x 6.5",302]
[null,null,null,null,"SLR Camera","Fabrikam","8 digital-variable Program Automatic Shooting Modes.","Fabrikam SLR Camera 35\" M358 Black","Black","3.5  x 2  x 5  ",328]
[null,null,null,null,"SLR Camera","Fabrikam","Compact 3x zoom lens covering the most frequently used focal range","Fabrikam SLR Camera X147 Silver","Silver","6.5  x 4.5  x 4.5  ",645]
[null,null,null,null,"SLR Camera","Fabrikam","Powerful megapixel live-MOS sensor","Fabrikam SLR Camera 35\" X358 Silver","Silver","4  x 2.5  x 5.5  ",436.2]
[null,null,null,null,"SLR Camera","Fabrikam","Powerful 12.3-megapixel live-MOSLO sensor","Fabrikam SLR Camera M147 Silver","Silver","2.6  x 5.4  x 2.8 ",334]
[null,null,null,null,"SLR Camera","Fabrikam","4.8 In x 2.7 in x 3.6 in. 1.1 lbs","Fabrikam SLR Camera 35\" M358 Silver","Silver","3  x 5  x 2.9  ",328]
[null,null,null,null,"SLR Camera","Fabrikam","Fast startup and split-second shutter response, shoot continuously at up to 3 frames per second","Fabrikam SLR Camera X147 Grey","Grey","8 x 10 x 6",645]
[null,null,null,null,"SLR Camera","Fabrikam","Shoot at up to 2.5 frames per second, capturing high-quality action sequences of children in sporting activities such as soccer","Fabrikam SLR Camera 35\" X358 Grey","Grey","3.4 x 4.6 x 3.3 ",436.2]
[null,null,null,null,"SLR Camera","Fabrikam","Continuous shooting up to 5 frames per second","Fabrikam SLR Camera M147 Grey","Grey","4.8  x 7.8  x 1.7 ",334]
[null,null,null,null,"SLR Camera","Fabrikam","Compact flash type I/II, micro drive","Fabrikam SLR Camera 35\" M358 Grey","Grey","3.45 x 4.8 x 3.3 ",328]
[null,null,null,null,"SLR Camera","Fabrikam","Dynamic integrated dust reduction system","Fabrikam SLR Camera X148 Silver Grey","Silver Grey","3.5 x 5 x 3.3 ",657]
[null,null,null,null,"SLR Camera","Fabrikam","Fast startup and split-second shutter response, shoot continuously at up to 3 frames per second","Fabrikam SLR Camera 35\" X358 Silver Grey","Silver Grey","3.5 x 5.5 x 3.3",436.2]
[null,null,null,null,"SLR Camera","Fabrikam","Digital camera - SLR with live view mode, 5 in x 2.4 in x 3.9 in, 15.9 oz","Fabrikam SLR Camera M148 Silver Grey","Silver Grey","3.4 x 4.8 x 3.3 ",332]
[null,null,null,null,"SLR Camera","Fabrikam","5 in x 2.4 in x 3.9 in, 15.9 oz, digital camera - SLR with live view mode","Fabrikam SLR Camera 35\" M358 Silver Grey","Silver Grey","4 x 4 x 4 ",328]
[null,null,null,null,"SLR Camera","Fabrikam","Digital camera - SLR with live view mode, 5.8 in x 2.9 in x 4.5 in, 1.8 lbs","Fabrikam SLR Camera X148 Gold","Gold","4.2 x 4 x 4 ",657]
[null,null,null,null,"SLR Camera","Fabrikam","Digital camera - SLR with live view mode","Fabrikam SLR Camera 35\" X358 Gold","Gold","8 x 9 x 6 ",436.2]
[null,null,null,null,"SLR Camera","Fabrikam","Digital camera - SLR with live view mode, 5.1 in x 2.4 in x 3.9 in, 16.8 oz","Fabrikam SLR Camera M148 Gold","Gold","8 x 8 x 6.5",332]
[null,null,null,null,"SLR Camera","Fabrikam","Digital camera - SLR with live view mode","Fabrikam SLR Camera 35\" M358 Gold","Gold","7.5 x 8 x 6.5",328]
[null,null,null,null,"SLR Camera","Fabrikam","Digital camera - SLR with live view mode","Fabrikam SLR Camera X149 Pink","Pink","7 x 8 x 6.5",627]
[null,null,null,null,"SLR Camera","Fabrikam","Digital camera - SLR with live view mode","Fabrikam SLR Camera 35\" X358 Pink","Pink","3.5  x 2  x 5  ",436.2]
[null,null,null,null,"SLR Camera","Fabrikam","Optical - fixed eye-level pen, LCD display","Fabrikam SLR Camera M149 Pink","Pink","6.5  x 4.5  x 4.5  ",319]
[null,null,null,null,"SLR Camera","Fabrikam","Digital camera - SLR with live view mode","Fabrikam SLR Camera 35\" M358 Pink","Pink","4  x 2.5  x 5.5  ",328]
[null,null,null,null,"SLR Camera","Fabrikam","Digital camera - SLR with live view mode, movie recording, 5.1 in x 2.4 in x 3.9 in, 16.9 oz","Fabrikam SLR Camera X149 Blue","Blue","2.6  x 5.4  x 2.8 ",627]
[null,null,null,null,"SLR Camera","Fabrikam","Digital camera - SLR with live view mode","Fabrikam SLR Camera 35\" X358 Blue","Blue","3  x 5  x 2.9  ",436.2]
[null,null,null,null,"SLR Camera","Fabrikam","Digital camera - SLR with live view mode, 5.1 in x 2.1 in x 3.6 in, 13.2 oz","Fabrikam SLR Camera M149 Blue","Blue","8 x 10 x 6",319]
[null,null,null,null,"SLR Camera","Fabrikam","Digital camera – SLR, 4.8 in x 2.7 in x 3.6 in, 1.1 lbs","Fabrikam SLR Camera 35\" M358 Blue","Blue","3.4 x 4.6 x 3.3 ",328]
[null,null,null,null,"SLR Camera","Fabrikam","Digital camera - SLR with live view mode","Fabrikam SLR Camera X150 Orange","Orange","4.8  x 7.8  x 1.7 ",480.5]
[null,null,null,null,"SLR Camera","Fabrikam","Digital camera – SLR, 4.5 in x 2.5 in x 3.4 in, 1.2 lbs","Fabrikam SLR Camera 35\" X358 Orange","Orange","3.45 x 4.8 x 3.3 ",436.2]
[null,null,null,null,"SLR Camera","Fabrikam","Digital camera – SLR, 5.2 in x 2.8 in x 3.7 in, 19.2 oz","Fabrikam SLR Camera M150 Orange","Orange","3.5 x 5 x 3.3 ",391.9]
[null,null,null,null,"SLR Camera","Fabrikam","Digital camera – SLR, 5.2 in x 2.8 in x 3.7 in, 19.2 oz","Fabrikam SLR Camera 35\" M358 Orange","Orange","3.5 x 5.5 x 3.3",328]
[null,null,null,null,"SLR Camera","Fabrikam","Digital camera - SLR with live view mode","Fabrikam SLR Camera X150 Green","Green","3.4 x 4.8 x 3.3 ",480.5]
[null,null,null,null,"SLR Camera","Fabrikam","Digital camera – SLR, 4.5 in x 2.5 in x 3.4 in, 1.2 lbs","Fabrikam SLR Camera 35\" X358 Green","Green","4 x 4 x 4 ",436.2]
[null,null,null,null,"SLR Camera","Fabrikam","Digital camera – SLR, 5.2 in x 2.8 in x 3.7 in, 19.2 oz","Fabrikam SLR Camera M150 Green","Green","4.2 x 4 x 4 ",391.9]
[null,null,null,null,"SLR Camera","Fabrikam","Digital camera – SLR, 5.2 in x 2.8 in x 3.7 in, 19.2 oz","Fabrikam SLR Camera 35\" M358 Green","Green","8 x 9 x 6 ",328]
[null,null,null,null,"Video Equipment","Fabrikam  ","720i or 720p high definition or standard definition, 4mm, 47.3º","Fabrikam Home and Vacation Moviemaker 1\" 25mm M400 Blue","Blue","3.5  x 2.6  x 2  ",600]
[null,null,null,null,"Video Equipment","Fabrikam  ","720i or 720p high definition or standard definition, 4mm, 43’, 47.3º","Fabrikam Home and Vacation Moviemaker 1/2\" 3mm M300 Orange","Orange","2.7 x 2.8 x 4.9",566]
[null,null,null,null,"Video Equipment","Fabrikam  ","720i or 720p high definition or standard definition, 4mm, 43’, 47.3º","Fabrikam Home and vacation moviemaker 1/3\" 8.5mm M200 Blue","Blue","7.6 x 6.3 x 4.7",633]
[null,null,null,null,"Video Equipment","Fabrikam  ","720i or 720p high definition or standard definition, 4mm, 43’, 47.3º","Fabrikam Home and vacation moviemaker 2/3'' 17mm M103 Black","Black","2.8  x 5.2  x 1.3 ",655]
[null,null,null,null,"Video Equipment","Fabrikam  ","Standard definition","Fabrikam Budget Movie-Maker 1'' 25mm E400 Black","Black","5.5  x 5  x 1.7  ",422]
[null,null,null,null,"Video Equipment","Fabrikam  ","Standard definition","Fabrikam Budget Movie-Maker 1/2'' 3mm E300 Black","Black","5.8  x 7.8  x 1.7 ",432]
[null,null,null,null,"Video Equipment","Fabrikam  ","Standard definition","Fabrikam Budget Movie-Maker 1/3'' 8.5mm E200 Black","Black","3.5  x 3  x 2  ",411]
[null,null,null,null,"Video Equipment","Fabrikam  ","Standard definition","Fabrikam Budget Movie-Maker 2/3'' 17mm E100 Black","Black","2.5 x 2.8 x 4.6",410]
[null,null,null,null,"Video Equipment","Fabrikam  ","1080i or 1080p high definition","Fabrikam Trendsetter 1\" 25mm X400 Blue","Blue","7.6 x 6 x 4.7",1000]
[null,null,null,null,"Video Equipment","Fabrikam  ","1080i or 1080p high definition","Fabrikam Trendsetter 1/2'' 3mm X300 Black","Black","2.8  x 5  x 1.3 ",999]
[null,null,null,null,"Video Equipment","Fabrikam  ","1080i or 1080p high definition","Fabrikam Trendsetter 1/3\" 8.5mm X200 Blue","Blue","4.5  x 5  x 1.7  ",998]
[null,null,null,null,"Video Equipment","Fabrikam  ","1080i or 1080p high definition","Fabrikam Trendsetter 2/3'' 17mm X100 Black","Black","5  x 7.2  x 1.7 ",980]
[null,null,null,null,"Video Equipment","Fabrikam  ","1080i/p or 720p high definition or standard definition","Fabrikam Independent Filmmaker 1'' 25mm X400 Black","Black","7.8 x 7.8 x 3",1600]
[null,null,null,null,"Video Equipment","Fabrikam  ","1080i/p or 720p high definition or standard definition","Fabrikam Independent Filmmaker 1/2\" 3mm X300 Orange","Orange","5.8  x 6.3  x 1.7 ",1580]
[null,null,null,null,"Video Equipment","Fabrikam  ","1080i/p or 720p high definition or standard definition","Fabrikam Independent Filmmaker 1/3'' 8.5mm X200 Black","Black","2.75 x 2.8 x 4.9",1560]
[null,null,null,null,"Video Equipment","Fabrikam  ","1080i/p or 720p high definition or standard definition","Fabrikam Independent Filmmaker 2/3\" 17mm X100 Blue","Blue","6.6 x 6.3 x 4.7",1520]
[null,null,null,null,"Video Equipment","Fabrikam  ","1080i/p or 720p high definition or standard definition","Fabrikam Business Videographer 1\" 25mm M600 Blue","Blue","3 x 5.2  x 1.3 ",890]
[null,null,null,null,"Video Equipment","Fabrikam  ","1080i/p or 720p high definition or standard definition","Fabrikam Business Videographer 1/2'' 3mm M500 Black","Black","5.5  x 5  x 1.7  ",880]
[null,null,null,null,"Video Equipment","Fabrikam  ","1080i/p or 720p high definition or standard definition","Fabrikam Business Videographer 1/3'' 8.5mm M380 Black","Black","5.8  x 7.8  x 1.7 ",860]
[null,null,null,null,"Video Equipment","Fabrikam  ","1080i/p or 720p high definition or standard definition","Fabrikam Business Videographer 2/3'' 17mm M280 Black","Black","3.5  x 2.6  x 2  ",850]
[null,null,null,null,"Video Equipment","Fabrikam  ","720p high definition or VGA","Fabrikam Social videographer 1'' 25mm E400 Black","Black","2.7 x 2.8 x 4.9",180]
[null,null,null,null,"Video Equipment","Fabrikam  ","720p high definition or VGA","Fabrikam Social Videographer 1/2'' 3mm E300 Black","Black","7.6 x 6.3 x 4.7",170]
[null,null,null,null,"Video Equipment","Fabrikam  ","720p high definition or VGA","Fabrikam Social Videographer 1/3'' 8.5mm E200 Black","Black","2.8  x 5.2  x 1.3 ",165]
[null,null,null,null,"Video Equipment","Fabrikam  ","720p high definition or VGA","Fabrikam Social Videographer 2/3'' 17mm E100 Black","Black","5  x 7.2  x 1.7 ",160]
[null,null,null,null,"Video Equipment","Fabrikam  ","720i or 720p high definition or standard definition, 4mm,47.3º","Fabrikam Home and Vacation Moviemaker 1'' 25mm M400 White","White","7.8 x 7.8 x 3",600]
[null,null,null,null,"Video Equipment","Fabrikam  ","720i or 720p high definition or standard definition, 4mm, 43', 47.3º","Fabrikam Home and Vacation Moviemaker 1/2'' 3mm M300 White","White","5.8  x 6.3  x 1.7 ",566]
[null,null,null,null,"Video Equipment","Fabrikam  ","720i or 720p high definition or standard definition, 4mm, 43', 47.3º","Fabrikam Home and Vacation Moviemaker 1/3'' 8.5mm M200 White","White","2.75 x 2.8 x 4.9",633]
[null,null,null,null,"Video Equipment","Fabrikam  ","720i or 720p high definition or standard definition, 4mm, 43', 47.3º","Fabrikam Home and Vacation Moviemaker 2/3'' 17mm M103 White","White","6.6 x 6.3 x 4.7",655]
[null,null,null,null,"Video Equipment","Fabrikam  ","Standard definition","Fabrikam Budget Moviemaker 1'' 25mm E400 White","White","3 x 5.2  x 1.3 ",422]
[null,null,null,null,"Video Equipment","Fabrikam  ","Standard definition","Fabrikam Budget Moviemaker 1/2'' 3mm E300 White","White","2.75 x 2.8 x 4.9",432]
[null,null,null,null,"Video Equipment","Fabrikam  ","Standard definition","Fabrikam Budget Moviemaker 1/3'' 8.5mm E200 White","White","6.6 x 6.3 x 4.7",411]
[null,null,null,null,"Video Equipment","Fabrikam  ","Standard definition","Fabrikam Budget Moviemaker 2/3'' 17mm E100 White","White","5  x 7.2  x 1.7 ",410]
[null,null,null,null,"Video Equipment","Fabrikam  ","1080i or 1080p high definition","Fabrikam Trendsetter 1'' 25mm X400 White","White","7.8 x 7.8 x 3",1000]
[null,null,null,null,"Video Equipment","Fabrikam  ","1080i or 1080p high definition","Fabrikam Trendsetter 1/2'' 3mm X300 White","White","5.8  x 6.3  x 1.7 ",999]
[null,null,null,null,"Video Equipment","Fabrikam  ","1080i or 1080p high definition","Fabrikam Trendsetter 1/3'' 8.5mm X200 White","White","2.75 x 2.8 x 4.9",998]
[null,null,null,null,"Video Equipment","Fabrikam  ","1080i or 1080p high definition","Fabrikam Trendsetter 2/3'' 17mm X100 White","White","6.6 x 6.3 x 4.7",980]
[null,null,null,null,"Video Equipment","Fabrikam  ","1080i/p or 720p high definition or standard definition","Fabrikam Independent filmmaker 1'' 25mm X400 White","White","3 x 5.2  x 1.3 ",1600]
[null,null,null,null,"Video Equipment","Fabrikam  ","1080i/p or 720p high definition or standard definition","Fabrikam Independent filmmaker 1/2'' 3mm X300 White","White","2.75 x 2.8 x 4.9",1580]
[null,null,null,null,"Video Equipment","Fabrikam  ","1080i/p or 720p high definition or standard definition","Fabrikam Independent filmmaker 1/3'' 8.5mm X200 White","White","6.6 x 6.3 x 4.7",1560]
[null,null,null,null,"Video Equipment","Fabrikam  ","1080i/p or 720p high definition or standard definition","Fabrikam Independent filmmaker 2/3'' 17mm X100 White","White","5  x 7.2  x 1.7 ",1520]
[null,null,null,null,"Video Equipment","Fabrikam  ","1080i/p or 720p high definition or standard definition","Fabrikam Business Videographer 1'' 25mm M600 White","White","7.6 x 6.3 x 4.7",890]
[null,null,null,null,"Video Equipment","Fabrikam  ","1080i/p or 720p high definition or standard definition","Fabrikam Business Videographer 1/2\" 3mm M500 Orange","Orange","2.8  x 5.2  x 1.3 ",880]
[null,null,null,null,"Video Equipment","Fabrikam  ","1080i/p or 720p high definition or standard definition","Fabrikam Business Videographer 1/3\" 8.5mm M380 Orange","Orange","5.5  x 5  x 1.7  ",860]
[null,null,null,null,"Video Equipment","Fabrikam  ","1080i/p or 720p high definition or standard definition","Fabrikam Business Videographer 2/3\" 17mm M280 Orange","Orange","5.8  x 7.8  x 1.7 ",850]
[null,null,null,null,"Video Equipment","Fabrikam  ","720p high definition or VGA","Fabrikam Social Videographer 1\" 25mm E400 Orange","Orange","3.5  x 3  x 2  ",180]
[null,null,null,null,"Video Equipment","Fabrikam  ","720p high definition or VGA","Fabrikam Social Videographer 1/2\" 3mm E300 Orange","Orange","2.5 x 2.8 x 4.6",170]
[null,null,null,null,"Video Equipment","Fabrikam  ","720p high definition or VGA","Fabrikam Social Videographer 1/3\" 8.5mm E200 Orange","Orange","7.6 x 6 x 4.7",165]
[null,null,null,null,"Video Equipment","Fabrikam  ","720p high definition or VGA","Fabrikam Social Videographer 2/3\" 17mm E100 Orange","Orange","2.8  x 5  x 1.3 ",160]
[null,null,null,null,"Video Equipment","Fabrikam  ","720i or 720p high definition or standard definition, 4mm, 47.3º","Fabrikam Home and Vacation Moviemaker 1'' 25mm M400 Grey","Grey","4.5  x 5  x 1.7  ",600]
[null,null,null,null,"Video Equipment","Fabrikam  ","720i or 720p high definition or standard definition, 4mm, 43', 47.3º","Fabrikam Home and Vacation Moviemaker 1/2'' 3mm M300 Grey","Grey","5  x 7.2  x 1.7 ",566]
[null,null,null,null,"Video Equipment","Fabrikam  ","720i or 720p high definition or standard definition, 4mm, 43', 47.3º","Fabrikam Home and Vacation Moviemaker 1/3'' 8.5mm M200 Grey","Grey","7.8 x 7.8 x 3",633]
[null,null,null,null,"Video Equipment","Fabrikam  ","720i or 720p high definition or standard definition, 4mm, 43', 47.3º","Fabrikam Home and Vacation Moviemaker 2/3'' 17mm M103 Grey","Grey","5.8  x 6.3  x 1.7 ",655]
[null,null,null,null,"Video Equipment","Fabrikam  ","Standard definition","Fabrikam Budget Moviemaker 1'' 25mm E400 Grey","Grey","2.75 x 2.8 x 4.9",422]
[null,null,null,null,"Video Equipment","Fabrikam  ","Standard definition","Fabrikam Budget Moviemaker 1/2'' 3mm E300 Grey","Grey","6.6 x 6.3 x 4.7",432]
[null,null,null,null,"Video Equipment","Fabrikam  ","Standard definition","Fabrikam Budget Moviemaker 1/3'' 8.5mm E200 Grey","Grey","3 x 5.2  x 1.3 ",411]
[null,null,null,null,"Video Equipment","Fabrikam  ","Standard definition","Fabrikam Budget Moviemaker 2/3'' 17mm E100 Grey","Grey","5.5  x 5  x 1.7  ",410]
[null,null,null,null,"Video Equipment","Fabrikam  ","1080i or 1080p high definition","Fabrikam Trendsetter 1'' 25mm X400 Grey","Grey","5.8  x 7.8  x 1.7 ",1000]
[null,null,null,null,"Video Equipment","Fabrikam  ","1080i or 1080p high definition","Fabrikam Trendsetter 1/2'' 3mm X300 Grey","Grey","3.5  x 2.6  x 2  ",999]
[null,null,null,null,"Video Equipment","Fabrikam  ","1080i or 1080p high definition","Fabrikam Trendsetter 1/3'' 8.5mm X200 Grey","Grey","2.7 x 2.8 x 4.9",998]
[null,null,null,null,"Video Equipment","Fabrikam  ","1080i or 1080p high definition","Fabrikam Trendsetter 2/3'' 17mm X100 Grey","Grey","7.6 x 6.3 x 4.7",980]
[null,null,null,null,"Video Equipment","Fabrikam  ","1080i/p or 720p high definition or standard definition","Fabrikam Independent Filmmaker 1'' 25mm X400 Grey","Grey","2.8  x 5.2  x 1.3 ",1600]
[null,null,null,null,"Video Equipment","Fabrikam  ","1080i/p or 720p high definition or standard definition","Fabrikam Independent Filmmaker 1/2'' 3mm X300 Grey","Grey","5.5  x 5  x 1.7  ",1580]
[null,null,null,null,"Video Equipment","Fabrikam  ","1080i/p or 720p high definition or standard definition","Fabrikam Independent Filmmaker 1/3'' 8.5mm X200 Grey","Grey","5.8  x 7.8  x 1.7 ",1560]
[null,null,null,null,"Video Equipment","Fabrikam  ","1080i/p or 720p high definition or standard definition","Fabrikam Independent Filmmaker 2/3'' 17mm X100 Grey","Grey","3.5  x 3  x 2  ",1520]
[null,null,null,null,"Video Equipment","Fabrikam  ","1080i/p or 720p high definition or standard definition","Fabrikam Business Videographer 1'' 25mm M600 Grey","Grey","2.5 x 2.8 x 4.6",890]
[null,null,null,null,"Video Equipment","Fabrikam  ","1080i/p or 720p high definition or standard definition","Fabrikam Business Videographer 1/2'' 3mm M500 Grey","Grey","7.6 x 6 x 4.7",880]
[null,null,null,null,"Video Equipment","Fabrikam  ","1080i/p or 720p high definition or standard definition","Fabrikam Business Videographer 1/3'' 8.5mm M380 Grey","Grey","2.8  x 5  x 1.3 ",860]
[null,null,null,null,"Video Equipment","Fabrikam  ","1080i/p or 720p high definition or standard definition","Fabrikam Business Videographer 2/3'' 17mm M280 Grey","Grey","4.5  x 5  x 1.7  ",850]
[null,null,null,null,"Video Equipment","Fabrikam  ","720p high definition or VGA","Fabrikam Social Videographer 1'' 25mm E400 Grey","Grey","5  x 7.2  x 1.7 ",180]
[null,null,null,null,"Video Equipment","Fabrikam  ","720p high definition or VGA","Fabrikam Social Videographer 1/2'' 3mm E300 Grey","Grey","7.8 x 7.8 x 3",170]
[null,null,null,null,"Video Equipment","Fabrikam  ","720p high definition or VGA","Fabrikam Social Videographer 1/3'' 8.5mm E200 Grey","Grey","5.8  x 6.3  x 1.7 ",165]
[null,null,null,null,"Video Equipment","Fabrikam  ","720p high definition or VGA","Fabrikam Social Videographer 2/3'' 17mm E100 Grey","Grey","2.75 x 2.8 x 4.9",160]
[null,null,null,null,"Video Equipment","Fabrikam","720i or 720p high definition or standard definition, 4mm, 47.3º","Fabrikam Home and Vacation Moviemaker 1'' 25mm M400 Black","Black","6.6 x 6.3 x 4.7",620]
[null,null,null,null,"Video Equipment","Fabrikam","720i or 720p high definition or standard definition, 4mm, 43', 47.3º","Fabrikam Home and Vacation Moviemaker 1/2'' 3mm M300 Black","Black","3 x 5.2  x 1.3 ",556]
[null,null,null,null,"Video Equipment","Fabrikam","720i or 720p high definition or standard definition, 4mm, 43', 47.3º","Fabrikam Home and Vacation Moviemaker 1/3'' 8.5mm M200 Black","Black","5.5  x 5  x 1.7  ",638]
[null,null,null,null,"Video Equipment","Fabrikam","720i or 720p high definition or standard definition, 4mm, 43', 47.3º","Fabrikam Home and Vacation Moviemaker 2/3\" 17mm M103 Blue","Blue","5.8  x 7.8  x 1.7 ",665]
[null,null,null,null,"Video Equipment","Fabrikam","Standard definition","Fabrikam Budget Moviemaker 1'' 25mm E400 Black","Black","3.5  x 2.6  x 2  ",452]
[null,null,null,null,"Video Equipment","Fabrikam","Standard definition","Fabrikam Budget Moviemaker 1/2'' 3mm E300 Black","Black","2.7 x 2.8 x 4.9",482]
[null,null,null,null,"Video Equipment","Fabrikam","Standard definition","Fabrikam Budget Moviemaker 1/3'' 8.5mm E200 Black","Black","7.6 x 6.3 x 4.7",431]
[null,null,null,null,"Video Equipment","Fabrikam","Standard definition","Fabrikam Budget Moviemaker 2/3'' 17mm E100 Black","Black","2.8  x 5.2  x 1.3 ",460]
[null,null,null,null,"Video Equipment","Fabrikam","1080i or 1080p high definition","Fabrikam Trendsetter 1'' 25mm X400 Black","Black","5.5  x 5  x 1.7  ",1030]
[null,null,null,null,"Video Equipment","Fabrikam","1080i or 1080p high definition","Fabrikam Trendsetter 1/2\" 3mm X300 Orange","Orange","5.8  x 7.8  x 1.7 ",1000]
[null,null,null,null,"Video Equipment","Fabrikam","1080i or 1080p high definition","Fabrikam Trendsetter 1/3'' 8.5mm X200 Black","Black","3.5  x 3  x 2  ",999]
[null,null,null,null,"Video Equipment","Fabrikam","1080i or 1080p high definition","Fabrikam Trendsetter 2/3\" 17mm X100 Orange","Orange","2.5 x 2.8 x 4.6",988]
[null,null,null,null,"Video Equipment","Fabrikam","1080i/p or 720p high definition or standard definition","Fabrikam Independent Filmmaker 1\" 25mm X400 Blue","Blue","7.6 x 6 x 4.7",1620]
[null,null,null,null,"Video Equipment","Fabrikam","1080i/p or 720p high definition or standard definition","Fabrikam Independent Filmmaker 1/2'' 3mm X300 Black","Black","2.8  x 5  x 1.3 ",1560]
[null,null,null,null,"Video Equipment","Fabrikam","1080i/p or 720p high definition or standard definition","Fabrikam Independent Filmmaker 1/3\" 8.5mm X200 Blue","Blue","4.5  x 5  x 1.7  ",1530]
[null,null,null,null,"Video Equipment","Fabrikam","1080i/p or 720p high definition or standard definition","Fabrikam Independent Filmmaker 2/3'' 17mm X100 Black","Black","5  x 7.2  x 1.7 ",1500]
[null,null,null,null,"Video Equipment","Fabrikam","1080i/p or 720p high definition or standard definition","Fabrikam Business Videographer 1'' 25mm M600 Black","Black","7.8 x 7.8 x 3",888]
[null,null,null,null,"Video Equipment","Fabrikam","1080i/p or 720p high definition or standard definition","Fabrikam Business Videographer 1/2\" 3mm M500 Blue","Blue","5.8  x 6.3  x 1.7 ",878]
[null,null,null,null,"Video Equipment","Fabrikam","1080i/p or 720p high definition or standard definition","Fabrikam Business Videographer 1/3\" 8.5mm M380 Blue","Blue","2.75 x 2.8 x 4.9",856]
[null,null,null,null,"Video Equipment","Fabrikam","1080i/p or 720p high definition or standard definition","Fabrikam Business Videographer 2/3\" 17mm M280 Blue","Blue","6.6 x 6.3 x 4.7",838]
[null,null,null,null,"Video Equipment","Fabrikam","720p high definition or VGA","Fabrikam Social Videographer 1\" 25mm E400 Blue","Blue","3 x 5.2  x 1.3 ",188]
[null,null,null,null,"Video Equipment","Fabrikam","720p high definition or VGA","Fabrikam Social Videographer 1/2\" 3mm E300 Blue","Blue","5.5  x 5  x 1.7  ",178]
[null,null,null,null,"Video Equipment","Fabrikam","720p high definition or VGA","Fabrikam Social Videographer 1/3\" 8.5mm E200 Blue","Blue","5.8  x 7.8  x 1.7 ",168]
[null,null,null,null,"Video Equipment","Fabrikam","720p high definition or VGA","Fabrikam Social Videographer 2/3\" 17mm E100 Blue","Blue","3.5  x 2.6  x 2  ",158]
[null,null,null,null,"Video Equipment","Fabrikam","1080i/p or 720p high definition or standard definition","Fabrikam Business Videographer 1/2'' 3mm M500 White","White","2.7 x 2.8 x 4.9",878]
[null,null,null,null,"Video Equipment","Fabrikam","1080i/p or 720p high definition or standard definition","Fabrikam Business Videographer 1/3'' 8.5mm M380 White","White","7.6 x 6.3 x 4.7",856]
[null,null,null,null,"Video Equipment","Fabrikam","1080i/p or 720p high definition or standard definition","Fabrikam Business Videographer 2/3'' 17mm M280 White","White","2.8  x 5.2  x 1.3 ",838]
[null,null,null,null,"Video Equipment","Fabrikam","720p high definition or VGA","Fabrikam Social Videographer 1'' 25mm E400 White","White","5.5  x 5  x 1.7  ",188]
[null,null,null,null,"Video Equipment","Fabrikam","720p high definition or VGA","Fabrikam Social Videographer 1/2'' 3mm E300 White","White","5.8  x 7.8  x 1.7 ",178]
[null,null,null,null,"Video Equipment","Fabrikam","720p high definition or VGA","Fabrikam Social Videographer 1/3'' 8.5mm E200 White","White","3.5  x 3  x 2  ",168]
[null,null,null,null,"Video Equipment","Fabrikam","720p high definition or VGA","Fabrikam Social Videographer 2/3'' 17mm E100 White","White","5.8  x 7.8  x 1.7 ",158]
[null,null,null,null,"Camera add-ons","Contoso","Width 1-7/16 x height 11/32 x depth 1-11/16","Contoso Rechargeable Li-Ion Battery Pack E300 Silver","Silver","4.75 x 3.5 x 1.5",49.99]
[null,null,null,null,"Camera add-ons","Contoso","Width 1-7/16 x height 11/32 x depth 1-11/17","Contoso Rechargeable Li-Ion Battery Pack E300 Black","Black","4.8 x 1.6 x 5.8",49.99]
[null,null,null,null,"Camera add-ons","Contoso","Width 1-7/16 x height 11/32 x depth 1-11/18","Contoso Rechargeable Li-Ion Battery Pack E300 White","White","2 x 1 x 4",49.99]
[null,null,null,null,"Camera add-ons","Contoso","Fully charges an NP-BG1 battery in approximately 1.5 hours","Contoso Travel Charger for S-Series Battery E302 Silver","Silver","2  x 8.4  x 3 ",59.99]
[null,null,null,null,"Camera add-ons","Contoso","Fully charges an NP-BG1 battery in approximately 1.5 hours","Contoso Travel Charger for S-Series Battery E302 Black","Black","4.3 x 2.5 x 2.5  ",59.99]
[null,null,null,null,"Camera add-ons","Contoso","Fully charges an NP-BG1 battery in approximately 1.5 hours","Contoso Travel Charger for S-Series Battery E302 White","White","3.5 x 2 x 5",59.99]
[null,null,null,null,"Camera add-ons","Contoso","General carrying case for compatible cyber shot digital camera, protect camera from occasional bumps and bruises","Contoso General Carrying Case E304 Silver","Silver","5 x1.6 x 5",19.989999999999998]
[null,null,null,null,"Camera add-ons","Contoso","General carrying case for compatible cyber shot digital camera, protect camera from occasional bumps and bruises","Contoso General Carrying Case E304 Black","Black","5 x 2.6 x 5",19.989999999999998]
[null,null,null,null,"Camera add-ons","Contoso","General carrying case for compatible cyber shot digital camera, protect camera from occasional bumps and bruises","Contoso General Carrying Case E304 White","White","3.5 x 1.5 x 3",19.989999999999998]
[null,null,null,null,"Camera add-ons","Contoso","General carrying case for compatible cyber shot digital camera, protect camera from occasional bumps and bruises","Contoso General Carrying Case E304 Blue","Blue","9.8 x 6 x 6.5",19.989999999999998]
[null,null,null,null,"Camera add-ons","Contoso","Supplies a steady and reliable source of power, perfect for use while transferring images","Contoso Cyber Shot Digital Cameras Adapter E306 Pink","Pink","Small",39.99]
[null,null,null,null,"Camera add-ons","Contoso","Supplies a steady and reliable source of power, perfect for use while transferring images","Contoso Cyber Shot Digital Cameras Adapter E306 Blue","Blue","Medium",39.99]
[null,null,null,null,"Camera add-ons","Contoso","Supplies a steady and reliable source of power, perfect for use while transferring images","Contoso Cyber Shot Digital Cameras Adapter E306 Black","Black","Large",39.99]
[null,null,null,null,"Camera add-ons","Contoso","Connects Cyber-shot camera to most other compatible products, includes video, audio and USB out, plus it connects to your power supply","Contoso Multi-Use Terminal Cable E308 Silver","Silver","Small",36.99]
[null,null,null,null,"Camera add-ons","Contoso","Connects Cyber-shot camera to most other compatible products, includes video, audio and USB out, plus it connects to your power supply","Contoso Multi-Use Terminal Cable E308 White","White","Medium",36.99]
[null,null,null,null,"Camera add-ons","Contoso","Connects Cyber-shot camera to most other compatible products, includes video, audio and USB out, plus it connects to your power supply","Contoso Multi-Use Terminal Cable E308 Black","Black","Large",36.99]
[null,null,null,null,"Camera add-ons","Contoso","Li-Ion rechargeable battery pack for digital SLR cameras","Contoso Rechargeable Battery Pack E310 Silver","Silver","Small",69.989999999999995]
[null,null,null,null,"Camera add-ons","Contoso","Li-Ion rechargeable battery pack for digital SLR cameras","Contoso Rechargeable Battery Pack E310 Black","Black","Medium",69.989999999999995]
[null,null,null,null,"Camera add-ons","Contoso","Li-Ion rechargeable battery pack for digital SLR cameras","Contoso Rechargeable Battery Pack E310 White","White","Large",69.989999999999995]
[null,null,null,null,"Camera add-ons","Contoso","Soft carrying case for DSLR, user-friendly system case","Contoso Carrying Case E312 Silver","Silver","Small",49.96]
[null,null,null,null,"Camera add-ons","Contoso","Soft carrying case for DSLR, user-friendly system case","Contoso Carrying Case E312 Pink","Pink","Medium",49.96]
[null,null,null,null,"Camera add-ons","Contoso","Soft carrying case for DSLR, user-friendly system case","Contoso Carrying Case E312 White","White","Large",49.96]
[null,null,null,null,"Camera add-ons","Contoso","Soft carrying case for DSLR, user-friendly system case","Contoso Carrying Case E312 Blue","Blue","Small",49.96]
[null,null,null,null,"Camera add-ons","Contoso","Attaches lens cap to the lens, to avoid losing it","Contoso Lens Cap Keeper E314 Pink","Pink","Medium",6.95]
[null,null,null,null,"Camera add-ons","Contoso","Attaches lens cap to the lens, to avoid losing it","Contoso Lens Cap Keeper E314 Yellow","Yellow","Large",6.95]
[null,null,null,null,"Camera add-ons","Contoso","Attaches lens cap to the lens, to avoid losing it","Contoso Lens Cap Keeper E314 White","White","Small",6.95]
[null,null,null,null,"Camera add-ons","Contoso","Attaches lens cap to the lens, to avoid losing it","Contoso Lens Cap Keeper E314 Silver","Silver","Medium",6.95]
[null,null,null,null,"Camera add-ons","Contoso","Panning angle: 360 degrees, maximum Load: 3kg tilt angle: 60-90 degrees  ","Contoso Digital Cameras Lightweight Tripod E316 White","White","Large",52.13]
[null,null,null,null,"Camera add-ons","Contoso","Panning angle: 360 degrees, maximum Load: 3kg tilt angle: 60-90 degrees  ","Contoso Digital Cameras Lightweight Tripod E316 Black","Black","Small",52.13]
[null,null,null,null,"Camera add-ons","Contoso","Panning angle: 360 degrees, maximum Load: 3kg tilt angle: 60-90 degrees  ","Contoso Digital Cameras Lightweight Tripod E316 Pink","Pink","Medium",52.13]
[null,null,null,null,"Camera add-ons","Contoso","Panning Angle: 360 degrees, maximum Load: 3kg tilt angle: 60-90 degrees  ","Contoso Digital Cameras Lightweight Tripod E316 Silver","Silver","Large",52.13]
[null,null,null,null,"Camera add-ons","Contoso","General purpose soft carrying case for slim cyber shot digital cameras","Contoso General Soft Carrying Case E318 Blue","Blue","Small",14.99]
[null,null,null,null,"Camera add-ons","Contoso","General purpose soft carrying case for slim cyber shot digital cameras","Contoso General Soft Carrying Case E318 Black","Black","Medium",14.99]
[null,null,null,null,"Camera add-ons","Contoso","General purpose soft carrying case for slim cyber shot digital cameras","Contoso General Soft Carrying Case E318 Silver","Silver","Large",14.99]
[null,null,null,null,"Camera add-ons","Contoso","General purpose soft carrying case for slim cyber shot digital cameras","Contoso General Soft Carrying Case E318 White","White","2 x 1 x 4",14.99]
[null,null,null,null,"Camera add-ons","Contoso","Universal 110-240V AC power source, a car adapter","Contoso Mini Battery Charger Kit E320 Red","Red","7.5 x 4 x 4",24.99]
[null,null,null,null,"Camera add-ons","Contoso","Universal 110-240V AC power source, a car adapter","Contoso Mini Battery Charger Kit E320 White","White","2 x 1.8 x 4",24.99]
[null,null,null,null,"Camera add-ons","Contoso","Universal 110-240V AC power source, a car adapter","Contoso Mini Battery Charger Kit E320 Black","Black","5.1  x 1.3  x 3",24.99]
[null,null,null,null,"Camera add-ons","Contoso","Universal 110-240V AC power source, a car adapter","Contoso Mini Battery Charger Kit E320 Silver","Silver","5.1  x 1.3  x 3",24.99]
[null,null,null,null,"Camera add-ons","Contoso","Fits any system DSLR camera: The grip belt fastens simply and snugly to any system DSLR","Contoso Genuine Leather Grip Belt E322 Black","Black","3.3  x 0.8  x 4.9",77.989999999999995]
[null,null,null,null,"Camera add-ons","Contoso","Fits any system DSLR camera: The grip belt fastens simply and snugly to any system DSLR","Contoso Genuine Leather Grip Belt E322 White","White","3.3  x 0.8  x 4.9",77.989999999999995]
[null,null,null,null,"Camera add-ons","Contoso","Fits any system DSLR camera: The grip belt fastens simply and snugly to any system DSLR","Contoso Genuine Leather Grip Belt E322 Silver","Silver","1.4 x 1.7 x 0.3",77.989999999999995]
[null,null,null,null,"Camera add-ons","Contoso","Fits any system DSLR camera: The grip belt fastens simply and snugly to any system DSLR","Contoso Genuine Leather Grip Belt E322 Grey","Grey","1.4 x 1.7 x 0.3",77.989999999999995]
[null,null,null,null,"Camera add-ons","Contoso","70-300mm macro lens with f/4-5.6 maximum aperture for digital or 35mm cameras","Contoso Macro Zoom Lens X300 Silver","Silver","1.4 x 1.7 x 0.3",366.55]
[null,null,null,null,"Camera add-ons","Contoso","70-300mm macro lens with f/4-5.6 maximum aperture for digital or 35mm cameras","Contoso Macro Zoom Lens X300 White","White","6.9 x 2.3 x 0.1",366.55]
[null,null,null,null,"Camera add-ons","Contoso","70-300mm macro lens with f/4-5.6 maximum aperture for digital or 35mm cameras","Contoso Macro Zoom Lens X300 Black","Black","6.9 x 2.3 x 0.15",366.55]
[null,null,null,null,"Camera add-ons","Contoso","Telephoto conversion Lens for compatible cyber shot digital cameras","Contoso Telephoto Conversion Lens X400 Silver","Silver","12.4 x 7.7 x 6.9",595]
[null,null,null,null,"Camera add-ons","Contoso","Telephoto conversion Lens for compatible cyber shot digital cameras","Contoso Telephoto Conversion Lens X400 White","White","12.4 x 7.7 x 6.9",595]
[null,null,null,null,"Camera add-ons","Contoso","Telephoto conversion Lens for compatible cyber shot digital cameras","Contoso Telephoto Conversion Lens X400 Black","Black","8 x 6.5 x 5.8",595]
[null,null,null,null,"Camera add-ons","Contoso","Cable for transferring still images from the camera via USB port","Contoso USB Cable M250 Black","Black"," 0.7 x 0.7 x 5.3",25]
[null,null,null,null,"Camera add-ons","Contoso","Cable for transferring still images from the camera via USB port","Contoso USB Cable M250 White","White","Small",25]
[null,null,null,null,"Camera add-ons","Contoso","Cable for transferring still images from the camera via USB port","Contoso USB Cable M250 Yellow","Yellow","Medium",25]
[null,null,null,null,"Camera add-ons","Contoso","Cable for transferring still images from the camera via USB port","Contoso USB Cable M250 Blue","Blue","Large",25]
[null,null,null,null,"Camera add-ons","Contoso","Magnification X2.6, Diameter 45mm","Contoso Telephoto Conversion Lens M350 Black","Black","Small",95]
[null,null,null,null,"Camera add-ons","Contoso","Magnification X2.6, Diameter 45mm","Contoso Telephoto Conversion Lens M350 White","White","Medium",95]
[null,null,null,null,"Camera add-ons","Contoso","Magnification X2.6, Diameter 45mm","Contoso Telephoto Conversion Lens M350 Silver","Silver","Large",95]
[null,null,null,null,"Camera add-ons","Contoso","Magnification X2.6, Diameter 45mm","Contoso Telephoto Conversion Lens M350 Blue","Blue","Small",95]
[null,null,null,null,"Camera add-ons","Contoso","Lens adapter for cyber shot M-series digital cameras","Contoso Lens Adapter M450 White","White","Medium",68]
[null,null,null,null,"Camera add-ons","Contoso","Lens adapter for cyber shot M-series digital cameras","Contoso Lens Adapter M450 Silver","Silver","Large",68]
[null,null,null,null,"Camera add-ons","Contoso","Lens adapter for cyber shot M-series digital cameras","Contoso Lens Adapter M450 Black","Black","Small",68]
[null,null,null,null,"Camera add-ons","Contoso","Lens adapter for cyber shot M-series digital cameras","Contoso Lens Adapter M450 Grey","Grey","Medium",68]
[null,null,null,null,"Camera add-ons","Contoso","Spare/replacement cable for USB enabled cyber-shot digital cameras","Contoso Digital Camera/Camcorder USB Cable E324 Purple","Purple","Large",28]
[null,null,null,null,"Camera add-ons","Contoso","Spare/replacement cable for USB enabled cyber - shot digital cameras","Contoso Digital Camera/Camcorder USB Cable E324 Black","Black","Small",28]
[null,null,null,null,"Camera add-ons","Contoso","Spare/replacement cable for USB enabled cyber - shot digital cameras","Contoso Digital Camera/Camcorder USB Cable E324 Silver","Silver","Medium",28]
[null,null,null,null,"Camera add-ons","Contoso","Spare/replacement cable for USB enabled cyber - shot digital cameras","Contoso Digital Camera/Camcorder USB Cable E324 White","White","Large",28]
[null,null,null,null,"Camera add-ons","Contoso","1.7x Magnification, autofocus feature, high grade construction","Contoso Conversion Lens M550 Blue","Blue","Small",205]
[null,null,null,null,"Camera add-ons","Contoso","1.7x Magnification, autofocus feature, high grade construction","Contoso Conversion Lens M550 Black","Black","Medium",205]
[null,null,null,null,"Camera add-ons","Contoso","1.7x Magnification, autofocus feature, high grade construction","Contoso Conversion Lens M550 Silver","Silver","Large",205]
[null,null,null,null,"Camera add-ons","Contoso","1.7x Magnification, autofocus feature, high grade construction","Contoso Conversion Lens M550 Pink","Pink","Small",205]
[null,null,null,null,"Phone","Contoso","1-line operation, LCD display - monochrome   ","Contoso Single-line phones E10 Black","Black","Medium",9.99]
[null,null,null,null,"Phone","Contoso","Dual handset cordless phone system with answering system","Contoso Dual Handset Cordless Phone System  E20 Black","Black","Large",12.99]
[null,null,null,null,"Phone","Contoso","16-minute all-digital answering system, wireless network friendly  ","Contoso 3 Handset Cordless Phone System  E30 Black","Black","Small",16.989999999999998]
[null,null,null,null,"Phone","Contoso","3 handsets, 1 base, and 2 chargers  ","Contoso Multi-line phones M30 Black","Black","Medium",22.99]
[null,null,null,null,"Phone","Contoso","Enjoy unlimited US calling, exceptional voice quality","Contoso KSU-less key system M38 Black","Black","Large",26.99]
[null,null,null,null,"Phone","Contoso","Dual keypad, talking caller ID, handset speaker phone, expandable up to 6 handsets  ","Contoso Hybrid system M60 Black","Black","7.5 x 5 x 6.2",28.99]
[null,null,null,null,"Phone","Contoso","Caller ID feature, lighted key pad ,handset speakerphone","Contoso Private Branch Exchange M88 Black","Black","8 x 5.1 x 5",32.99]
[null,null,null,null,"Phone","Contoso","Lighted keypad, handset speaker phone, expandable up to 6 handsets  ","Contoso 4 Handset Cordless Phone System M86 Black","Black","6 x 9 x 2",35.99]
[null,null,null,null,"Phone","Contoso","Digital answering machine with 16 minutes recording time  ","Contoso Private Automatic Branch Exchange M65 Black","Black","9 x 7 x 4",38.99]
[null,null,null,null,"Phone","Contoso","Phonebook directory with memory for 20 entries","Contoso Electronic Private Automatic Branch Exchange M90 Black","Black","4 x 7.9 x 8.3",39.99]
[null,null,null,null,"Phone","Contoso","5.8 GHz frequency that won't interfere with wireless networks, caller ID/Call waiting compatible with memory for last 45 callers","Contoso Centrex Phone System L10 Black","Black","8 x 6 x 3.8",42.99]
[null,null,null,null,"Phone","Contoso","Lighted Keypad, caller ID, 3-way conferencing, expandable up to 6 handsets","Contoso In front of Centrex L15 Black","Black","6 x 9 x 2",46.99]
[null,null,null,null,"Phone","Contoso","LCD screen for viewing contacts, compatible with PCs, plug into USB port for use  ","Contoso behind Centrex X15 Black","Black","5 x 5 x 6.3",49.99]
[null,null,null,null,"Phone","Contoso","Phone with 13-number memory (210)","Contoso Phone with 13-Number Memory (210) M301 Black","Black","3.4 x 8.9 x 3.8",16.989999999999998]
[null,null,null,null,"Phone","Contoso","Special Backlit keypad, receiver volume control, handset volume control","Contoso Expandable Cordless Phone System M008 Black","Black","6 x 6 x 5",22.99]
[null,null,null,null,"Phone","Contoso","Built-in 60-minute digital answering machine  ","Contoso Phone System Accessory Handset with Charger M308 Black","Black","8.5 x 8 x 4",26.99]
[null,null,null,null,"Phone","Contoso","Digital duplex speakerphones built into back of handset, built-in clock with alarm on handset  ","Contoso 2-Line Corded Cordless Telephone M202 Black","Black","7.5 x 5 x 6.2",28.99]
[null,null,null,null,"Phone","Contoso","4-Line operation, includes 1 corded handset with base, 1 cordless handset with charger, up to 6 handsets capability 60 channels  ","Contoso 4-Line Corded Cordless Telephone M203 Black","Black","8 x 5.1 x 5",32.99]
[null,null,null,null,"Phone","Contoso","Additional handset for phone systems, light-up indicator for quick reference, backlit keypad for easy use, Digital speakerphone for hands-free use or conference calls, space-saving wall-mountable design  ","Contoso Expandable 3-Handset Cordless Phone System M204 Black","Black","6 x 9 x 2",35.99]
[null,null,null,null,"Phone","Contoso","Additional handset for phone systems, light-up indicator for quick reference, backlit keypad for easy use, digital speakerphone for hands-free use or conference calls, space-saving wall-mountable design  ","Contoso Expandable 2-Handset Cordless Phone System M205 Black","Black","9 x 7 x 4",40.19]
[null,null,null,null,"Phone","Contoso","Additional handset for phone systems, light-up indicator for quick reference, backlit keypad for easy use, Digital speakerphone for hands-free use or conference calls, space-saving wall-mountable design  ","Contoso Expandable 4-Handset Cordless Phone System M206 Black","Black","4 x 7.9 x 8.3",43.81]
[null,null,null,null,"Phone","Contoso","Additional handset for phone systems, light-up indicator for quick reference, backlit keypad for easy use, Digital speakerphone for hands-free use or conference calls, space-saving wall-mountable design  ","Contoso Expandable1-Handset Cordless Phone System M207 Black","Black","8 x 6 x 3.8",47.44]
[null,null,null,null,"Phone","Contoso","Additional handset for phone systems, light-up indicator for quick reference, backlit keypad for easy use, Digital speakerphone for hands-free use or conference calls, space-saving wall-mountable design  ","Contoso Digital Cordless Expansion Handset Phone M900 Black","Black","6 x 9 x 2",32.99]
[null,null,null,null,"Phone","Contoso","2-Line speakerphone, conference call between an outside line and up to 2 handsets  ","Contoso 2-Line Speakerphone M109 Black","Black","5 x 5 x 6.3",35.99]
[null,null,null,null,"Phone","Contoso","Memory for 100 contact entries","Contoso Phone with Memory Dialing-single line E88 Black","Black","3.4 x 8.9 x 3.8",14.19]
[null,null,null,null,"Phone","Contoso","Memory for 100 contact entries, three-party conferencing, and each line can be set to its own distinct ringtone  ","Contoso Phone with Memory Dialing-2 lines E90 Black","Black","6 x 6 x 5",16]
[null,null,null,null,"Phone","Contoso","Receiver volume control, 32-digit redials, 12 memory-dialing presets, up to 21 digits","Contoso Integrated Business Phone With card L10 Black","Black","8.5 x 8 x 4",42]
[null,null,null,null,"Phone","Contoso","Business Speakerphone built into base, headset jack for hands-free operation with optional headset","Contoso Integrated Business Phone L08 Black","Black","5 x 6 x 2",31]
[null,null,null,null,"Phone","Contoso","Phone for MSN","Contoso Phone for MSN E200 Black","Black","9.9 x 7.9 x 4.8",16]
[null,null,null,null,"Phone","Contoso","Operate via wireless Internet connection, making calls to reviewing call history; support all standard wireless network encryption protocols","Contoso 4-Line Expandable Cordless Phone System M900 Black","Black","3.4 x 8.9 x 3.8",22]
[null,null,null,null,"Phone","Contoso","Big button cordless phone   ","Contoso Lifestyles Series - Big Button Cordless phone M800 Black","Black","9.2 x 7 x 4",23]
[null,null,null,null,"Phone","Contoso","Up to 15 hours battery life/talk time; up to 8 days standby  ","Contoso Bedroom Phone with AM/FM Stereo and Call Waiting Caller ID M600 Black","Black","3.5 x 9 x 4.5",21]
[null,null,null,null,"Phone","Contoso","Waterproof Accessory Handset and Charging Cradle","Contoso Waterproof Accessory Handset and Charging Cradle M609 Black","Black","7.5 x 5 x 6.2",22.99]
[null,null,null,null,"Phone","Contoso","1-line operation, LCD display - monochrome","Contoso Single-line phones E10 White","White","5 x 5 x 6.3",9.99]
[null,null,null,null,"Phone","Contoso","Dual Handset cordless phone system with answering system","Contoso Dual Handset Cordless Phone System E20 White","White","3.4 x 8.9 x 3.8",12.99]
[null,null,null,null,"Phone","Contoso","16-minute all-digital answering system, wireless network friendly  ","Contoso 3 Handset Cordless Phone System E30 White","White","6 x 6 x 5",16.989999999999998]
[null,null,null,null,"Phone","Contoso","3 handsets, 1 base, and 2 chargers  ","Contoso Multi-line phones M30 White","White","8.5 x 8 x 4",22.99]
[null,null,null,null,"Phone","Contoso","Enjoy unlimited US calling, exceptional voice quality","Contoso KSU-less key system M38 White","White","7.5 x 5 x 6.2",26.99]
[null,null,null,null,"Phone","Contoso","Dual Keypad, talking caller ID, handset speaker phone, expandable up to 6 handsets  ","Contoso Hybrid system M60 White","White","8 x 5.1 x 5",28.99]
[null,null,null,null,"Phone","Contoso","Caller ID feature, Lighted keypad, handset speakerphone","Contoso Private Branch Exchange M88 White","White","6 x 9 x 2",32.99]
[null,null,null,null,"Phone","Contoso","Lighted keypad, handset speaker phone, expandable up to 6 handsets  ","Contoso 4 Handset Cordless Phone System M86 White","White","9 x 7 x 4",35.99]
[null,null,null,null,"Phone","Contoso","Digital answering machine with 16 minutes recording time  ","Contoso Private Automatic Branch Exchange M65 White","White","4 x 7.9 x 8.3",38.99]
[null,null,null,null,"Phone","Contoso","Phonebook directory with memory for 20 entries silver","Contoso Electronic Private Automatic Branch Exchange M90 White","White","8 x 6 x 3.8",39.99]
[null,null,null,null,"Phone","Contoso","5.8 GHz frequency that won't interfere with wireless networks, caller ID/Call waiting compatible with memory for last 45 callers","Contoso Centrex Phone System L10 White","White","6 x 9 x 2",42.99]
[null,null,null,null,"Phone","Contoso","Lighted keypad, caller ID, 3-way conferencing, expandable up to 6 handsets","Contoso In front of Centrex L15 White","White","5 x 6 x 2",46.99]
[null,null,null,null,"Phone","Contoso","LCD screen for viewing contacts, compatible with PCs, plug into USB port for use  ","Contoso Behind Centrex X15 White","White","9.9 x 7.9 x 4.8",49.99]
[null,null,null,null,"Phone","Contoso","Phone with 13-number memory (210)","Contoso Phone with 13-Number Memory (210) M301 White","White","3.4 x 8.9 x 3.8",16.989999999999998]
[null,null,null,null,"Phone","Contoso","Special backlit keypad, receiver volume control, handset volume control","Contoso Expandable Cordless Phone System M008 White","White","9.2 x 7 x 4",22.99]
[null,null,null,null,"Phone","Contoso","Built-in 60-minute digital answering machine  ","Contoso Phone System Accessory Handset with Charger M308 White","White","3.5 x 9 x 4.5",26.99]
[null,null,null,null,"Phone","Contoso","Digital duplex speakerphones built into back of handset, Built-in clock with alarm on handset  ","Contoso 2-Line Corded Cordless Telephone M202 White","White","7.5 x 5 x 6.2",28.99]
[null,null,null,null,"Phone","Contoso","4-Line operation, includes 1 corded handset with base, 1 cordless handset with charger, up to 6 handsets capability 60 channels  ","Contoso 4-Line Corded Cordless Telephone M203 White","White","8  x 8  x 3.5  ",32.99]
[null,null,null,null,"Phone","Contoso","Additional handset for phone systems, light-up indicator for quick reference, backlit keypad for easy use, digital speakerphone for hands-free use or conference calls, space-saving wall-mountable design  ","Contoso Expandable 3-Handset Cordless Phone System M204 White","White","6 x 9 x 2",35.99]
[null,null,null,null,"Phone","Contoso","Additional handset for phone systems, light-up indicator for quick reference, backlit keypad for easy use, digital speakerphone for hands-free use or conference calls, space-saving wall-mountable design  ","Contoso Expandable 2-Handset Cordless Phone System M205 White","White","5 x 5 x 6.3",40.19]
[null,null,null,null,"Phone","Contoso","Additional handset for phone systems, light-up indicator for quick reference, backlit keypad for easy use, digital speakerphone for hands-free use or conference calls, space-saving wall-mountable design  ","Contoso Expandable 4-Handset Cordless Phone System M206 White","White","3.4 x 8.9 x 3.8",43.81]
[null,null,null,null,"Phone","Contoso","Additional handset for phone systems, light-up indicator for quick reference, backlit keypad for easy use, digital speakerphone for hands-free use or conference calls, space-saving wall-mountable design  ","Contoso Expandable1-Handset Cordless Phone System M207 White","White","6 x 6 x 5",47.44]
[null,null,null,null,"Phone","Contoso","Additional handset for phone systems, light-up indicator for quick reference, backlit keypad for easy use, Digital speakerphone for hands-free use or conference calls, space-saving wall-mountable design  ","Contoso Digital Cordless Expansion Handset Phone M900 White","White","8.5 x 8 x 4",32.99]
[null,null,null,null,"Phone","Contoso","Line speakerphone, conference call between an outside line and up to 2 handsets  ","Contoso 2-Line Speakerphone M109 White","White","5 x 6 x 2",35.99]
[null,null,null,null,"Phone","Contoso","Memory for 100 contact entries","Contoso Phone with Memory Dialing-single line E88 White","White","9.9 x 7.9 x 4.8",14.19]
[null,null,null,null,"Phone","Contoso","Memory for 100 contact entries, three-party conferencing, each line can be set to its own distinct ringtone  ","Contoso Phone with Memory Dialing-2 lines E90 White","White","3.4 x 8.9 x 3.8",16]
[null,null,null,null,"Phone","Contoso","Receiver volume control, 32-digit redials, 12 memory-dialing presets, up to 21 digits","Contoso Integrated Business Phone With card L10 White","White","9.2 x 7 x 4",42]
[null,null,null,null,"Phone","Contoso","Business Speakerphone built into base, headset jack for hands-free operation with optional headset","Contoso Integrated Business Phone L08 White","White","3.5 x 9 x 4.5",31]
[null,null,null,null,"Phone","Contoso","Phone for MSN","Contoso Phone for MSN E200 White","White","7.5 x 5 x 6.2",16]
[null,null,null,null,"Phone","Contoso","Operate via wireless Internet connection, making calls to reviewing call history; support all standard wireless network encryption protocols","Contoso 4-Line Expandable Cordless Phone System M900 White","White","5 x 5 x 6.3",22]
[null,null,null,null,"Phone","Contoso","Big button cordless phone   ","Contoso Lifestyles Series - Big Button Cordless phone M800 White","White","3.4 x 8.9 x 3.8",23]
[null,null,null,null,"Phone","Contoso","Up to 15 hours battery life/talk time; up to 8 days standby  ","Contoso Bedroom Phone with AM/FM Stereo and Call Waiting Caller ID M600 White","White","6 x 6 x 5",21]
[null,null,null,null,"Phone","Contoso","Waterproof accessory handset and charging cradle","Contoso Waterproof Accessory Handset and Charging Cradle M609 White","White","8.5 x 8 x 4",22.99]
[null,null,null,null,"Phone","Contoso","1-line operation, LCD display - monochrome","Contoso Single-line phones E10 Grey","Grey","7.5 x 5 x 6.2",9.99]
[null,null,null,null,"Phone","Contoso","Dual handset cordless phone system with answering system","Contoso Dual Handset Cordless Phone System E20 Grey","Grey","8 x 5.1 x 5",12.99]
[null,null,null,null,"Phone","Contoso","16-minute all-digital answering system, wireless network friendly  ","Contoso 3 Handset Cordless Phone System E30 Grey","Grey","6 x 9 x 2",16.989999999999998]
[null,null,null,null,"Phone","Contoso","3 handsets, 1 base, and 2 chargers  ","Contoso Multi-line phones M30 Grey","Grey","9 x 7 x 4",22.99]
[null,null,null,null,"Phone","Contoso","Enjoy unlimited US calling, exceptional voice quality","Contoso KSU-less key system M38 Grey","Grey","4 x 7.9 x 8.3",26.99]
[null,null,null,null,"Phone","Contoso","Dual Keypad, talking caller ID, handset speakerphone, expandable up to 6 handsets  ","Contoso Hybrid system M60 Grey","Grey","8 x 6 x 3.8",28.99]
[null,null,null,null,"Phone","Contoso","Caller ID feature, lighted keypad, handset speakerphone","Contoso Private Branch Exchange M88 Grey","Grey","6 x 9 x 2",32.99]
[null,null,null,null,"Phone","Contoso","Lighted keypad, handset speaker phone, expandable up to 6 handsets  ","Contoso 4 Handset Cordless Phone System M86 Grey","Grey","5 x 6 x 2",35.99]
[null,null,null,null,"Phone","Contoso","Digital answering machine with 16 minutes recording time  ","Contoso Private Automatic Branch Exchange M65 Grey","Grey","9.9 x 7.9 x 4.8",38.99]
[null,null,null,null,"Phone","Contoso","Phonebook directory with memory for 20 entries silver","Contoso Electronic Private Automatic Branch Exchange M90 Grey","Grey","3.4 x 8.9 x 3.8",39.99]
[null,null,null,null,"Phone","Contoso","5.8 GHz frequency that won't interfere with wireless networks, caller ID/call waiting compatible with memory for last 45 callers","Contoso Centrex Phone System L10 Grey","Grey","9.2 x 7 x 4",42.99]
[null,null,null,null,"Phone","Contoso","Lighted keypad, caller ID,3-way conferencing ,expandable up to 6 handsets","Contoso In front of Centrex L15 Grey","Grey","3.5 x 9 x 4.5",46.99]
[null,null,null,null,"Phone","Contoso","LCD screen for viewing contacts, compatible with PCs, plug into USB port for use  ","Contoso behind Centrex X15 Grey","Grey","7.5 x 5 x 6.2",49.99]
[null,null,null,null,"Phone","Contoso","Phone with 13-number memory (210)","Contoso Phone with 13-Number Memory (210) M301 Grey","Grey","7.5  x 8  x 3.5  ",16.989999999999998]
[null,null,null,null,"Phone","Contoso","Special backlit keypad, receiver volume control, handset volume control","Contoso Expandable Cordless Phone System M008 Grey","Grey","6 x 9 x 2",22.99]
[null,null,null,null,"Phone","Contoso","Built-in 60-minute digital answering machine  ","Contoso Phone System Accessory Handset with Charger M308 Grey","Grey","5 x 5 x 6.3",26.99]
[null,null,null,null,"Phone","Contoso","Digital duplex speakerphones built into back of handset, built-in clock with alarm on handset  ","Contoso 2-Line Corded Cordless Telephone M202 Grey","Grey","3.4 x 8.9 x 3.8",28.99]
[null,null,null,null,"Phone","Contoso","4-Line operation, includes 1 corded handset with base, 1 cordless handset with charger, up to 6 handsets capability 60 channels  ","Contoso 4-Line Corded Cordless Telephone M203 Grey","Grey","6 x 6 x 5",32.99]
[null,null,null,null,"Phone","Contoso","Additional handset for phone systems, light-up indicator for quick reference, backlit keypad for easy use, digital speakerphone for hands-free use or conference calls, space-saving wall-mountable design  ","Contoso Expandable 3-Handset Cordless Phone System M204 Grey","Grey","8.5 x 8 x 4",35.99]
[null,null,null,null,"Phone","Contoso","Additional handset for phone systems, light-up indicator for quick reference, backlit keypad for easy use, digital speakerphone for hands-free use or conference calls, space-saving wall-mountable design  ","Contoso Expandable 2-Handset Cordless Phone System M205 Grey","Grey","5 x 6 x 2",40.19]
[null,null,null,null,"Phone","Contoso","Additional handset for phone systems, light-up indicator for quick reference, backlit keypad for easy use, digital speakerphone for hands-free use or conference calls, space-saving wall-mountable design  ","Contoso Expandable 4-Handset Cordless Phone System M206 Grey","Grey","9.9 x 7.9 x 4.8",43.81]
[null,null,null,null,"Phone","Contoso","Additional handset for phone systems, light-up indicator for quick reference, backlit keypad for easy use, digital speakerphone for hands-free use or conference calls, space-saving wall-mountable design  ","Contoso Expandable1-Handset Cordless Phone System M207 Grey","Grey","3.4 x 8.9 x 3.8",47.44]
[null,null,null,null,"Phone","Contoso","Additional handset for phone systems, light-up indicator for quick reference, backlit keypad for easy use, digital speakerphone for hands-free use or conference calls, space-saving wall-mountable design  ","Contoso Digital Cordless Expansion Handset Phone M900 Grey","Grey","9.2 x 7 x 4",32.99]
[null,null,null,null,"Phone","Contoso","Line speakerphone, conference call between an outside line and up to 2 handsets  ","Contoso 2-Line Speakerphone M109 Grey","Grey","3.5 x 9 x 4.5",35.99]
[null,null,null,null,"Phone","Contoso","Memory for 100 contact entries","Contoso Phone with Memory Dialing-single line E88 Grey","Grey","7.5 x 5 x 6.2",14.19]
[null,null,null,null,"Phone","Contoso","Memory for 100 contact entries, three-party conferencing, and each line can be set to its own distinct ringtone  ","Contoso Phone with Memory Dialing-2 lines E90 Grey","Grey","5 x 5 x 6.3",16]
[null,null,null,null,"Phone - touch","Contoso","Bluetooth stereo music, Micro SD expansion to 8 GB, access to personal email and instant messaging","Contoso Touch Screen Phones 5-Wire/Built-in M500 Black","Black","0.6 x 2.8 x 4.6",256]
[null,null,null,null,"Phone - touch","Contoso","Up to 5 hours of talk time, up to 240 hours (10 days) of standby time  ","Contoso Touch Screen Phones Infrared M901 Black","Black","4.5 x 2.6 x 0.6",300]
[null,null,null,null,"Phone - touch","Contoso","What's in the box: handset, battery, charger, user manual","Contoso Touch Screen Phones Capacitive M908 Black","Black","8.8 x 6.2 x 2.8",308]
[null,null,null,null,"Phone - touch","Contoso","Up to 288 hours (12 days) of standby time, what’s in the box: handset, battery, charger, 1 GB Micro SD memory card, USB cable, wired stereo hands free headset, quick start guide","Contoso Touch Screen Phones 4-Wire/ Built-in M205 Black","Black","4.5 x 3.1 x 0.6",268]
[null,null,null,null,"Phone - touch","Contoso","Micro SD expansion to 16 GB, access to personal email and instant messaging","Contoso Touch Screen Phones SAW/On-wall M806 Black","Black","8.8 x 3.8 x 3.8",293]
[null,null,null,null,"Phone - touch","Contoso","Up to 5 hours of talk time, up to 240 hours (10 days) of standby time  ","Contoso Touch Screen Phones 5-Wire/On-wall M508 Black","Black","6 x 3 x 8",258]
[null,null,null,null,"Phone - touch","Contoso","What's in the Box: handset, battery, charger, and user manual","Contoso Finger Touch Screen Phones M30 Black","Black","10 x 7.2 x 1.7",199]
[null,null,null,null,"Phone - touch","Contoso","Up to 288 hours (12 days) of standby time, what's in the box: handset, battery, charger, 1 GB Micro SD memory card, USB cable, wired stereo hands free headset, quick start guide","Contoso Pen Touch Screen Phones M320 Black","Black","8 x 6 x 1",290]
[null,null,null,null,"Phone - touch","Contoso","Micro SD expansion to 16 GB, access to personal email and instant messaging","Contoso Sharp Touch Screen Phones M910 Black","Black","4.7 x 2.9 x 0.7",301]
[null,null,null,null,"Phone - touch","Contoso","Up to 288 hours (12 days) of standby time, what's in the box: handset, battery, charger, 1 GB Micro SD memory card, USB cable, wired stereo hands free headset, quick start guide","Contoso Touch Screen Phones - CRT M11 Black","Black","8.8 x 7 x 3.2",189]
[null,null,null,null,"Phone - touch","Contoso","Micro SD expansion to 16 GB, access to personal email and instant messaging","Contoso Touch Screen Phones  - LCD M12 Black","Black","9 x 2 x 7",200]
[null,null,null,null,"Phone - touch","The Phone Company","240×320, GSM/GPRS/EDGE 2.2''","The Phone Company Touch Screen Phone 1600 TFT-2.2\" L200 Black","Black","3.5 x 1.5 x 5.8",529]
[null,null,null,null,"Phone - touch","The Phone Company","GSM/GPRS/EDGE, 1.4''","The Phone Company Touch Screen Phone 1600 TFT-1.4\" L250 Black","Black","4 x 2 x 0.7",589]
[null,null,null,null,"Phone - touch","The Phone Company","8 GB of storage provides approximately 1,750 songs, includes earphones, USB","The Phone Company Touch Screen Phones 26-2.2\" M200 Black","Black","4.3 x 2.2 x 0.5",230]
[null,null,null,null,"Phone - touch","The Phone Company","What's in the Box: handset, battery, charger, USB cable, mini-USB-to-3.5mm adapter, quick start guide","The Phone Company Touch Screen Phones 26-1.4\" M250 Black","Black","2.1 x 4.1 x 0.5",268]
[null,null,null,null,"Phone - touch","The Phone Company","1.3 megapixel camera, touch screen display","The Phone Company Touch Screen Phones 4-Wire/On-wall M302 Black","Black","98.4 x 55 x 11.6",289]
[null,null,null,null,"Phone - touch","The Phone Company","Video share service, 3.2-megapixel camera/camcorder","The Phone Company Touch Screen Phones SAW/Built-in M801 Black","Black","4.2 x 2.2 x 0.5",299]
[null,null,null,null,"Phone - touch","The Phone Company","5 MP camera, MP3/video player, and Micro SD Slot-International version with no warranty","The Phone Company Touch Screen Phones 5-Wire/Built-in M500 Black","Black","4.4x 2.24 x 0.52",256]
[null,null,null,null,"Phone - touch","The Phone Company","Bluetooth stereo music streaming, Micro SD expansion to 16 GB, access to personal email and instant messaging, up to 5 hours of talk time","The Phone Company Touch Screen Phones Infrared M901 Black","Black","98.8 x 54 x 12",300]
[null,null,null,null,"Phone - touch","The Phone Company","Support 3G service, 5-megapixel camera/camcorder, bluetooth stereo music streaming","The Phone Company Touch Screen Phones Capacitive M908 Black","Black","4.2 x 2.2 x 0.5",308]
[null,null,null,null,"Phone - touch","The Phone Company","Fast 2.75G EDGE wireless technologies,","The Phone Company Touch Screen Phones 4-Wire/ Built-in M205 Black","Black","4.2 x 2.2 x 0.6",268]
[null,null,null,null,"Phone - touch","The Phone Company","5MP camera FM radio - international version with no warranty","The Phone Company Touch Screen Phones SAW/On-wall M806 Black","Black","2.1 x 4.1 x 0.5",293]
[null,null,null,null,"Phone - touch","The Phone Company","GSM phone with 3-inch touch screen featuring intuitive controls, 2-megapixel camera with video recording","The Phone Company Touch Screen Phones 5-Wire/On-wall M508 Black","Black","2.1 x 4.1 x 0.5",258]
[null,null,null,null,"Phone - touch","The Phone Company","5.0 megapixel camera w/auto focus, zoom and video capture","The Phone Company Finger Touch Screen Phones M30 Black","Black","4 x 2 x 0.7",199]
[null,null,null,null,"Phone - touch","The Phone Company","Touch 3G phone with 2MP camera and 2.6\" TFT-LCD with backlight LED touch-sensitive screen","The Phone Company Pen Touch Screen Phones-2.6\" M320 Black","Black","4.6 x 2.4 x 0.5",290]
[null,null,null,null,"Phone - touch","The Phone Company","Wherever you are, you can enjoy the high-speed, always on connectivity provides the ultimate internet experience, radio, Bluetooth capability  ","The Phone Company Sharp Touch Screen Phones M910 Black","Black","4.3 x 2.2 x 0.5",301]
[null,null,null,null,"Phone - touch","The Phone Company","Support Bluetooth V2.0 and A2DP Bluetooth stereo and MP3/MP4 music player","The Phone Company Touch Screen Phones - CRT M11 Black","Black","4.5 x 2.6 x 0.6",189]
[null,null,null,null,"Phone - touch","The Phone Company","5 MP camera, MP3/Video Player, and Micro SD slot-international version with no warranty","The Phone Company Touch Screen Phones - LCD M12 Black","Black","8.8 x 6.2 x 2.8",200]
[null,null,null,null,"Phone - touch","The Phone Company","Business-oriented Smartphone with windows mobile 6.1 OS, video share service, and mobile banking","The Phone Company Touch Screen Phone 1600 TFT-2.2\" L200 Grey","Grey","4.5 x 3.1 x 0.6",529]
[null,null,null,null,"Phone - touch","The Phone Company","Dual SIM-international version with warranty","The Phone Company Touch Screen Phone 1600 TFT-1.4\" L250 Grey","Grey","8.8 x 3.8 x 3.8",589]
[null,null,null,null,"Phone - touch","The Phone Company","Unlocked quad band, 4 GB of memory, FM radio, and touch screen, Mp3, Mp4 players, Bluetooth","The Phone Company Touch Screen Phones 26-2.2\" M200 Grey","Grey","6 x 3 x 8",230]
[null,null,null,null,"Phone - touch","The Phone Company","It comes with headphone, double battery (rechargeable), USB cable, charger and user's manual","The Phone Company Touch Screen Phones 26-1.4\" M250 Grey","Grey","10 x 7.2 x 1.7",268]
[null,null,null,null,"Phone - touch","The Phone Company","3G-enabled touch screen phone in ice blue with full HTML browsing, and access to email and instant messaging, compatible with 3G network","The Phone Company Touch Screen Phones 4-Wire/On-wall M302 Grey","Grey","8 x 6 x 1",289]
[null,null,null,null,"Phone - touch","The Phone Company","Dust free, scratch resistant, easy to apply","The Phone Company Touch Screen Phones SAW/Built-in M801 Grey","Grey","4.7 x 2.9 x 0.7",299]
[null,null,null,null,"Phone - touch","The Phone Company","3G-enabled touch screen phone with full HTML browsing, access to email and instant messaging, compatible with  3G network (available in select markets)","The Phone Company Touch Screen Phones 5-Wire/Built-in M500 Grey","Grey","8.8 x 7 x 3.2",256]
[null,null,null,null,"Phone - touch","The Phone Company","Bluetooth stereo music, Micro SD expansion to 8 GB, access to personal email and instant messaging","The Phone Company Touch Screen Phones Infrared M901 Grey","Grey","9 x 2 x 7",300]
[null,null,null,null,"Phone - touch","The Phone Company","Up to 5 hours of talk time, up to 240 hours (10 days) of standby time  ","The Phone Company Touch Screen Phones Capacitive M908 Grey","Grey","8.5 x 6 x 2",308]
[null,null,null,null,"Phone - touch","The Phone Company","What's in the box: handset, battery, charger, user manual","The Phone Company Touch Screen Phones 4-Wire/ Built-in M205 Grey","Grey","111 x 51.5 x 14.5",268]
[null,null,null,null,"Phone - touch","The Phone Company","Up to 288 hours (12 days) of standby time, what’s in the box: handset, battery, charger, 1 GB Micro SD memory card, USB cable, wired stereo hands free headset, quick start guide","The Phone Company Touch Screen Phones SAW/On-wall M806 Grey","Grey","1.2 x 5.1 x 3.2",293]
[null,null,null,null,"Phone - touch","The Phone Company","Micro SD expansion to 16 GB, access to personal email and instant messaging","The Phone Company Touch Screen Phones 5-Wire/On-wall M508 Grey","Grey","6 x 12.2 x 12.6",258]
[null,null,null,null,"Phone - touch","The Phone Company","240×320, GSM/GPRS/EDGE 2.2''","The Phone Company Finger Touch Screen Phones M30 Grey","Grey","4.3 x 2.4 x 0.5",199]
[null,null,null,null,"Phone - touch","The Phone Company","GSM/GPRS/EDGE, 1.4''","The Phone Company Pen Touch Screen Phones M320 Grey","Grey","4 x 2 x 0.7",290]
[null,null,null,null,"Phone - touch","The Phone Company","8 GB of storage provides approximately 1,750 songs, includes earphones, USB","The Phone Company Sharp Touch Screen Phones M910 Grey","Grey","4.3 x 2.2 x 0.5",301]
[null,null,null,null,"Phone - touch","The Phone Company","What's in the box: handset, battery, charger, USB cable, mini-USB-to-3.5mm adapter, quick start guide","The Phone Company Touch Screen Phones - CRT M11 Grey","Grey","4.3 x 2.4 x 0.5",189]
[null,null,null,null,"Phone - touch","The Phone Company","1.3 megapixel camera, touch screen display","The Phone Company Touch Screen Phones - LCD M12 Grey","Grey","4.5 x 2.6 x 0.6",200]
[null,null,null,null,"Phone - touch","The Phone Company","Video share service, 3.2-megapixel camera/camcorder","The Phone Company Touch Screen Phone 1600 TFT-2.2\" L200 Gold","Gold","4.5 x 2.3 x 0.6",529]
[null,null,null,null,"Phone - touch","The Phone Company","5 MP camera, MP3/Video player, and Micro SD slot-international version with no warranty","The Phone Company Touch Screen Phone 1600 TFT-1.4\" L250 Gold","Gold","4.7 x 2.9 x 0.7",589]
[null,null,null,null,"Phone - touch","The Phone Company","Bluetooth stereo music streaming, Micro SD expansion to 16 GB, access to personal email and instant messaging, up to 5 hours of talk time","The Phone Company Touch Screen Phones 26-2.2\" M200 Gold","Gold","8.8 x 7 x 3.2",230]
[null,null,null,null,"Phone - touch","The Phone Company","Support 3G service, 5-megapixel camera/camcorder, Bluetooth stereo music streaming","The Phone Company Touch Screen Phones 26-1.4\" M250 Gold","Gold","9 x 2 x 7",268]
[null,null,null,null,"Phone - touch","The Phone Company","Fast 2.75G EDGE wireless technologies,","The Phone Company Touch Screen Phones 4-Wire/On-wall M302 Gold","Gold","8.5 x 6 x 2",289]
[null,null,null,null,"Phone - touch","The Phone Company","5MP camera FM radio - international version with no warranty","The Phone Company Touch Screen Phones SAW/Built-in M801 Gold","Gold","111 x 51.5 x 14.5",299]
[null,null,null,null,"Phone - touch","The Phone Company","GSM phone with 3-inch touch screen featuring intuitive controls, 2-megapixel camera with video recording","The Phone Company Touch Screen Phones 5-Wire/Built-in M500 Gold","Gold","1.2 x 5.1 x 3.2",256]
[null,null,null,null,"Phone - touch","The Phone Company","5.0 megapixel camera w/auto focus, zoom and video capture","The Phone Company Touch Screen Phones Infrared M901 Gold","Gold","6 x 12.2 x 12.6",300]
[null,null,null,null,"Phone - touch","The Phone Company","Touch 3G phone with 2MP camera and 2.6\" TFT-LCD with backlight LED touch-sensitive screen","The Phone Company Touch Screen Phones Capacitive M908 Gold","Gold","4.3 x 2.4 x 0.5",308]
[null,null,null,null,"Phone - touch","The Phone Company","Wherever you are, you can enjoy the high-speed, always on connectivity provides the ultimate internet experience, radio, Bluetooth capability  ","The Phone Company Touch Screen Phones 4-Wire/ Built-in M205 Gold","Gold","4 x 2 x 0.7",268]
[null,null,null,null,"Phone - touch","The Phone Company","Support Bluetooth V2.0 and A2DP Bluetooth stereo and MP3/MP4 music player","The Phone Company Touch Screen Phones SAW/On-wall M806 Gold","Gold","4.3 x 2.2 x 0.5",293]
[null,null,null,null,"Phone - touch","The Phone Company","5 MP camera, MP3/Video player, and Micro SD slot-international version with no warranty","The Phone Company Touch Screen Phones 5-Wire/On-wall M508 Gold","Gold","4.3 x 2.4 x 0.5",258]
[null,null,null,null,"Phone - touch","The Phone Company","Business-oriented Smartphone with windows mobile 6.1 OS, video share service, and mobile banking","The Phone Company Finger Touch Screen Phones M30 Gold","Gold","4.5 x 2.6 x 0.6",199]
[null,null,null,null,"Phone - touch","The Phone Company","Dual SIM-international version with warranty","The Phone Company Pen Touch Screen Phones M320 Gold","Gold","4.5 x 2.3 x 0.6",290]
[null,null,null,null,"Phone - touch","The Phone Company","Unlocked quad band, 4 GB of memory, FM Radio, touch screen, Mp3, Mp4 Players, and Bluetooth","The Phone Company Sharp Touch Screen Phones M910 Gold","Gold","4.1 x 2.2 x 0.5",301]
[null,null,null,null,"Phone - touch","The Phone Company","It comes with Headphone, double battery (rechargeable), USB cable, charger and user's manual , access to email and instant messaging, compatible with  3G network dust Free, scratch resistant, easy to apply","The Phone Company Touch Screen Phones - CRT M11 Gold","Gold","4.4 x 2.4 x 0.6",189]
[null,null,null,null,"Phone - touch","The Phone Company","3G-enabled touch screen phone with full HTML browsing, access to email and instant messaging, compatible with  3G network (available in select markets)","The Phone Company Touch Screen Phones - LCD M12 Gold","Gold","4.8 x 3.1 x 0.6",200]
[null,null,null,null,"Smart Phone","The Phone Company","Smart phones without camera, high-resolution monochrome display","The Phone Company Smart phones without camera E100 Black","Black","4.8 x 3.1 x 0.6",129]
[null,null,null,null,"Smart Phone","The Phone Company","Microsoft windows mobile, high-resolution monochrome display","The Phone Company Microsoft Windows Mobile M200 Black","Black","0.6 x 2.8 x 4.6",229]
[null,null,null,null,"Smart Phone","The Phone Company","Smart phones 4 GB of memory, memory stick media expansion slot","The Phone Company Smart phones 4 GB of Memory M300 Black","Black","4.5 x 2.6 x 0.6",239]
[null,null,null,null,"Smart Phone","The Phone Company","Smart phones 8 GB of memory, memory stick media expansion slot","The Phone Company Smart phones 8 GB of Memory M400 Black","Black","8.8 x 6.2 x 2.8",269]
[null,null,null,null,"Smart Phone","The Phone Company","Smart phones 160x160, AC adapter, stylus, protective cover, installation CD-ROM, application manual","The Phone Company Smart phones 160x160 M26 Black","Black","4.5 x 3.1 x 0.6",208]
[null,null,null,null,"Smart Phone","The Phone Company","Create and edit word, excel and PowerPoint-compatible files on the run, listen to MP3s","The Phone Company Smart phones 6-LINE SCREEN M21 Black","Black","8.8 x 3.8 x 3.8",230]
[null,null,null,null,"Smart Phone","The Phone Company","Handheld device, special laptop software, including Documents to go","The Phone Company Smart phones -320 x 320 M86 Black","Black","6 x 3 x 8",288]
[null,null,null,null,"Smart Phone","The Phone Company","Watch video clips and view photos wherever you go , create and edit word, excel and PowerPoint-compatible files on the run, listen to MP3s","The Phone Company Smart phones Unlocked M300 Black","Black","10 x 7.2 x 1.7",267]
[null,null,null,null,"Smart Phone","The Phone Company","Create and edit Word, Excel and PowerPoint-compatible files on the run, listen to MP3s","The Phone Company Smart phones Expert M400 Black","Black","8 x 6 x 1",300]
[null,null,null,null,"Smart Phone","The Phone Company","Create and edit Word, Excel and PowerPoint-compatible files on the run, listen to MP3s, watch video clips and view photos wherever you go","The Phone Company Smart phones Unlocked International M800 Black","Black","4.7 x 2.9 x 0.7",310]
[null,null,null,null,"Smart Phone","The Phone Company","Smart phones without camera, high-resolution monochrome display","The Phone Company Smart phones without camera E100 Grey","Grey","8.8 x 7 x 3.2",129]
[null,null,null,null,"Smart Phone","The Phone Company","Microsoft windows mobile, high-resolution monochrome display","The Phone Company Microsoft Windows Mobile M200 Grey","Grey","9 x 2 x 7",229]
[null,null,null,null,"Smart Phone","The Phone Company","Smart phones 4 GB of memory, memory stick media expansion slot","The Phone Company Smart phones 4 GB of Memory M300 Grey","Grey","8.5 x 6 x 2",239]
[null,null,null,null,"Smart Phone","The Phone Company","Smart phones 8 GB of memory, memory stick media expansion slot","The Phone Company Smart phones 8 GB of Memory M400 Grey","Grey","111 x 51.5 x 14.5",269]
[null,null,null,null,"Smart Phone","The Phone Company","Smart phones 160x160, AC adapter, stylus, protective cover, installation CD-ROM, application manual","The Phone Company Smart phones 160x160 M26 Grey","Grey","1.2 x 5.1 x 3.2",208]
[null,null,null,null,"Smart Phone","The Phone Company","Create and edit Word, Excel and PowerPoint-compatible files on the run, listen to MP3s","The Phone Company Smart phones 6-LINE SCREEN M21 Grey","Grey","6 x 12.2 x 12.6",230]
[null,null,null,null,"Smart Phone","The Phone Company","Handheld device, special laptop software, including Documents to go","The Phone Company Smart phones 320 x 320 M86 Grey","Grey","4.3 x 2.4 x 0.5",288]
[null,null,null,null,"Smart Phone","The Phone Company","Watch video clips and view photos wherever you go, create and edit Word, Excel and PowerPoint-compatible files on the run, listen to MP3s","The Phone Company Smart phones Unlocked M300 Grey","Grey","4 x 2 x 0.7",267]
[null,null,null,null,"Smart Phone","The Phone Company","Create and edit Word, Excel and PowerPoint-compatible files on the run, listen to MP3s","The Phone Company Smart phones Expert M400 Grey","Grey","4.3 x 2.2 x 0.5",300]
[null,null,null,null,"Smart Phone","The Phone Company","Create and edit Word, Excel and PowerPoint-compatible files on the run, listen to MP3s, watch video clips and view photos wherever you go","The Phone Company Smart phones Unlocked International M800 Grey","Grey","4.3 x 2.4 x 0.5",310]
[null,null,null,null,"Smart Phone","The Phone Company","Smart phones without camera, high-resolution monochrome display","The Phone Company Smart phones without camera E100 White","White","4.5 x 2.6 x 0.6",129]
[null,null,null,null,"Smart Phone","The Phone Company","Microsoft windows mobile, high-resolution monochrome display","The Phone Company Microsoft Windows Mobile M200 White","White","4.5 x 2.3 x 0.6",229]
[null,null,null,null,"Smart Phone","The Phone Company","Smart phones 4 GB of memory, memory Stick media expansion slot","The Phone Company Smart phones 4 GB of Memory M300 White","White","4.1 x 2.2 x 0.5",239]
[null,null,null,null,"Smart Phone","The Phone Company","Smart phones 8 GB of memory, memory Stick media expansion slot","The Phone Company Smart phones 8 GB of Memory M400 White","White","4.4 x 2.4 x 0.6",269]
[null,null,null,null,"Smart Phone","The Phone Company","Smart phones 160x160, AC adapter, stylus, protective cover, installation CD-ROM, application manual","The Phone Company Smart phones 160x160 M26 White","White","3.8 x 2 x 0.8",208]
[null,null,null,null,"Smart Phone","The Phone Company","Create and edit Word, Excel and PowerPoint-compatible files on the run, listen to MP3s","The Phone Company Smart phones 6-LINE SCREEN M21 White","White","2.1 x 4.2 x 0.6",230]
[null,null,null,null,"Smart Phone","The Phone Company","Handheld device, special laptop software, including Documents to go","The Phone Company Smart phones 320 x 320 M86 White","White","4.2 x 2.1 x 0.6",288]
[null,null,null,null,"Smart Phone","The Phone Company","Watch video clips and view photos wherever you go, create and edit Word, Excel and PowerPoint-compatible files on the run, listen to MP3s","The Phone Company Smart phones Unlocked M300 White","White","4.2 x 2.1 x 0.6",267]
[null,null,null,null,"Smart Phone","The Phone Company","Create and edit Word, Excel and PowerPoint-compatible files on the run, listen to MP3s","The Phone Company Smart phones Expert M400 White","White","3.4 x 1.8 x 0.9",300]
[null,null,null,null,"Smart Phone","The Phone Company","Create and edit Word, Excel and PowerPoint-compatible files on the run, listen to MP3s, watch video clips and view photos wherever you go","The Phone Company Smart phones Unlocked International M800 White","White","4.8 x 3.1 x 0.6",310]
[null,null,null,null,"Smart Phone","The Phone Company","Smart phones without camera, high-resolution monochrome display","The Phone Company Smart phones without camera E100 Pink","Pink","0.6 x 2.8 x 4.6",129]
[null,null,null,null,"Smart Phone","The Phone Company","Microsoft windows mobile, high-resolution monochrome display","The Phone Company Microsoft Windows Mobile M200 Pink","Pink","4.5 x 2.6 x 0.6",229]
[null,null,null,null,"Smart Phone","The Phone Company","Smart phones 4 GB of memory, memory stick media expansion slot","The Phone Company Smart phones 4 GB of Memory M300 Pink","Pink","8.8 x 6.2 x 2.8",239]
[null,null,null,null,"Smart Phone","The Phone Company","Smart phones 8 GB of memory, memory stick media expansion slot","The Phone Company Smart phones 8 GB of Memory M400 Pink","Pink","4.5 x 3.1 x 0.6",269]
[null,null,null,null,"Smart Phone","The Phone Company","Smart phones 160x160, AC adapter, stylus, protective cover, installation CD-ROM, application manual","The Phone Company Smart phones 160x160 M26 Pink","Pink","8.8 x 3.8 x 3.8",208]
[null,null,null,null,"Smart Phone","The Phone Company","Create and edit Word, Excel and PowerPoint-compatible files on the run, listen to MP3s","The Phone Company Smart phones 6-LINE SCREEN M21 Pink","Pink","6 x 3 x 8",230]
[null,null,null,null,"Smart Phone","The Phone Company","Handheld device, special laptop software, including Documents to go","The Phone Company Smart phones 320 x 320 M86 Pink","Pink","10 x 7.2 x 1.7",288]
[null,null,null,null,"Smart Phone","The Phone Company","Watch video clips and view photos wherever you go, create and edit Word, Excel and PowerPoint-compatible files on the run, listen to MP3s","The Phone Company Smart phones Unlocked M300 Pink","Pink","8 x 6 x 1",267]
[null,null,null,null,"Smart Phone","The Phone Company","Create and edit Word, Excel and PowerPoint-compatible files on the run, listen to MP3s","The Phone Company Smart phones Expert M400 Pink","Pink","4.7 x 2.9 x 0.7",300]
[null,null,null,null,"Smart Phone","The Phone Company","Create and edit Word, Excel and PowerPoint-compatible files on the run, listen to MP3s, watch video clips and view photos wherever you go","The Phone Company Smart phones Unlocked International M800 Pink","Pink","8.8 x 7 x 3.2",310]
[null,null,null,null,"Smart Phone","The Phone Company","Smart phones without camera, high-resolution monochrome display","The Phone Company Smart phones without camera E100 Gold","Gold","9 x 2 x 7",129]
[null,null,null,null,"Smart Phone","The Phone Company","Microsoft windows mobile, high-resolution monochrome display","The Phone Company Microsoft Windows Mobile M200 Gold","Gold","8.5 x 6 x 2",229]
[null,null,null,null,"Smart Phone","The Phone Company","Smart phones 4 GB of memory, memory stick media expansion slot","The Phone Company Smart phones 4 GB of Memory M300 Gold","Gold","111 x 51.5 x 14.5",239]
[null,null,null,null,"Smart Phone","The Phone Company","Smart phones 8 GB of memory, memory stick media expansion slot","The Phone Company Smart phones 8 GB of Memory M400 Gold","Gold","1.2 x 5.1 x 3.2",269]
[null,null,null,null,"Smart Phone","The Phone Company","Smart phones 160x160, AC adapter, stylus, protective cover, installation CD-ROM, application manual","The Phone Company Smart phones 160x160 M26 Gold","Gold","6 x 12.2 x 12.6",208]
[null,null,null,null,"Smart Phone","The Phone Company","Create and edit Word, Excel and PowerPoint-compatible files on the run, listen to MP3s","The Phone Company Smart phones 6-LINE SCREEN M21 Gold","Gold","4.3 x 2.4 x 0.5",230]
[null,null,null,null,"Smart Phone","The Phone Company","Handheld device, special laptop software, including documents to go","The Phone Company Smart phones 320 x 320 M86 Gold","Gold","4 x 2 x 0.7",288]
[null,null,null,null,"Smart Phone","The Phone Company","Watch video clips and view photos wherever you go, create and edit Word, Excel and PowerPoint-compatible files on the run, listen to MP3s","The Phone Company Smart phones Unlocked M300 Gold","Gold","4.3 x 2.2 x 0.5",267]
[null,null,null,null,"Smart Phone","The Phone Company","Create and edit Word, Excel and PowerPoint-compatible files on the run, listen to MP3s","The Phone Company Smart phones Expert M400 Gold","Gold","4.3 x 2.4 x 0.5",300]
[null,null,null,null,"Smart Phone","The Phone Company","Create and edit Word, Excel and PowerPoint-compatible files on the run, listen to MP3s, watch video clips and view photos wherever you go","The Phone Company Smart phones Unlocked International M800 Gold","Gold","4.5 x 2.6 x 0.6",310]
[null,null,null,null,"Smart Phone","The Phone Company","Multimedia accelerator with 16MB video memory","The Phone Company PDA Wifi 3.5-inch M200 Black","Black","4.5 x 2.3 x 0.6",280]
[null,null,null,null,"Smart Phone","The Phone Company","Genuine leather and great looks","The Phone Company PDA Wifi 3.7-inch M250 Black","Black","4.1 x 2.2 x 0.5",310]
[null,null,null,null,"Smart Phone","The Phone Company","The sensitive slanted stylus tip gives you smooth navigation","The Phone Company PDA Wifi 4.7-inch L290 Black","Black","4.4 x 2.4 x 0.6",380]
[null,null,null,null,"Smart Phone","The Phone Company","A single, standardized and easy way to connect the phone to a computer","The Phone Company PDA Phone 3.5 inches M320 Black","Black","3.8 x 2 x 0.8",299]
[null,null,null,null,"Smart Phone","The Phone Company","Opera 8 web browser supports adobe flash 9 browser plug in","The Phone Company PDA Phone 3.7 inches M340 Black","Black","2.1 x 4.2 x 0.6",330]
[null,null,null,null,"Smart Phone","The Phone Company","Opera 8 web browsers supports adobe flash 9 browser plugs in, 256 MB flash memory expands via two memory card slots","The Phone Company PDA Phone 4.7 inches L360 Black","Black","4.2 x 2.1 x 0.6",402]
[null,null,null,null,"Smart Phone","The Phone Company","Stream and store MP3s and videos with high quality stereo sound","The Phone Company PDA Phone Unlocked 3.7 inches M510 Black","Black","4.2 x 2.1 x 0.6",238]
[null,null,null,null,"Smart Phone","The Phone Company","Wide touch screen and full keyboard","The Phone Company PDA Phone Unlocked 3.5 inches M530 Black","Black","3.4 x 1.8 x 0.9",268]
[null,null,null,null,"Smart Phone","The Phone Company","With 3MB Memory and 6-line backlit display","The Phone Company PDA Phone Unlocked 4.7 inches L550 Black","Black","4.2 x 2.1 x 0.6",302]
[null,null,null,null,"Smart Phone","The Phone Company","Toll free Numbers & Weights & Measures & Schedule planner","The Phone Company PDA Handheld 3.5 inch M610 Black","Black","3.4 x 1.8 x 0.9",255]
[null,null,null,null,"Smart Phone","The Phone Company","Access the web, high-resolution widescreen display, opera 8 web browser","The Phone Company PDA Handheld 3.7 inch M630 Black","Black","4.8 x 3.1 x 0.6",266]
[null,null,null,null,"Smart Phone","The Phone Company","256 MB flash memory expands via two memory card slots","The Phone Company PDA Handheld 4.7 inch L650 Black","Black","0.6 x 2.8 x 4.6",389]
[null,null,null,null,"Smart Phone","The Phone Company","Pocket versions of familiar applications like Outlook, Word, and Excel","The Phone Company PDA Palm 3.5 inch M810 Black","Black","4.5 x 2.6 x 0.6",280]
[null,null,null,null,"Smart Phone","The Phone Company","Pocket versions of familiar applications like Outlook, Word, and Excel","The Phone Company PDA Palm 3.7 inch M830 Black","Black","8.8 x 6.2 x 2.8",299]
[null,null,null,null,"Smart Phone","The Phone Company","Removable/rechargeable battery and integrated keyboard","The Phone Company PDA Palm 4.7 inch L850 Black","Black","4.5 x 3.1 x 0.6",398]
[null,null,null,null,"Smart Phone","The Phone Company","Removable/rechargeable battery and integrated keyboard, integrated Bluetooth","The Phone Company PDA GPS Phone 3.5 inch M910 Black","Black","8.8 x 3.8 x 3.8",268]
[null,null,null,null,"Smart Phone","The Phone Company","624 MHz processor, 256MB ROM / 64MB SDRAM","The Phone Company PDA GPS Phone 3.7 inch M930 Black","Black","6 x 3 x 8",298]
[null,null,null,null,"Smart Phone","The Phone Company","Complete suite of PIM applications, HotSync technology for PC synchronization, 1MB memory","The Phone Company PDA GPS Phone 4.7 inch L950 Black","Black","10 x 7.2 x 1.7",368]
[null,null,null,null,"Smart Phone","The Phone Company","Multimedia accelerator with 16MB video memory","The Phone Company PDA Wifi 3.5-inch M200 Silver","Silver","8 x 6 x 1",280]
[null,null,null,null,"Smart Phone","The Phone Company","Genuine leather and great looks","The Phone Company PDA Wifi 3.7-inch M250 Silver","Silver","4.7 x 2.9 x 0.7",310]
[null,null,null,null,"Smart Phone","The Phone Company","The sensitive slanted stylus tip gives you smooth navigation","The Phone Company PDA Wifi 4.7-inch L290 Silver","Silver","8.8 x 7 x 3.2",380]
[null,null,null,null,"Smart Phone","The Phone Company","A single, standardized and easy way to connect the phone to a computer","The Phone Company PDA Phone 3.5 inches M320 Silver","Silver","9 x 2 x 7",299]
[null,null,null,null,"Smart Phone","The Phone Company","Opera 8 web browser, supports Adobe flash 9 browser plug in","The Phone Company PDA Phone 3.7 inches M340 Silver","Silver","8.5 x 6 x 2",330]
[null,null,null,null,"Smart Phone","The Phone Company","Opera 8 web browser, supports Adobe flash 9 browser plug in, 256 MB flash memory expands via two memory card slots","The Phone Company PDA Phone 4.7 inches L360 Silver","Silver","111 x 51.5 x 14.5",402]
[null,null,null,null,"Smart Phone","The Phone Company","Stream and store MP3s and videos with high quality stereo sound","The Phone Company PDA Phone Unlocked 3.7 inches M510 Silver","Silver","1.2 x 5.1 x 3.2",238]
[null,null,null,null,"Smart Phone","The Phone Company","Wide touch screen and full keyboard","The Phone Company PDA Phone Unlocked 3.5 inches M530 Silver","Silver","6 x 12.2 x 12.6",268]
[null,null,null,null,"Smart Phone","The Phone Company","With 3MB Memory and 6-Line backlit display","The Phone Company PDA Phone Unlocked 4.7 inches L550 Silver","Silver","4.3 x 2.4 x 0.5",302]
[null,null,null,null,"Smart Phone","The Phone Company","Toll free Numbers & Weights & Measures & Schedule planner","The Phone Company PDA Handheld 3.5 inch M610 Silver","Silver","4 x 2 x 0.7",255]
[null,null,null,null,"Smart Phone","The Phone Company","Access the web, high-resolution widescreen display, opera 8 web browser","The Phone Company PDA Handheld 3.7 inch M630 Silver","Silver","4.3 x 2.2 x 0.5",266]
[null,null,null,null,"Smart Phone","The Phone Company","256 MB flash memory expands via two memory card slots","The Phone Company PDA Handheld 4.7 inch L650 Silver","Silver","4.3 x 2.4 x 0.5",389]
[null,null,null,null,"Smart Phone","The Phone Company","Pocket versions of familiar applications like Outlook, Word, and Excel","The Phone Company PDA Palm 3.5 inch M810 Silver","Silver","4.5 x 2.6 x 0.6",280]
[null,null,null,null,"Smart Phone","The Phone Company","Pocket versions of familiar applications like Outlook, Word, and Excel","The Phone Company PDA Palm 3.7 inch M830 Silver","Silver","4.5 x 2.3 x 0.6",299]
[null,null,null,null,"Smart Phone","The Phone Company","Removable/rechargeable battery and integrated keyboard","The Phone Company PDA Palm 4.7 inch L850 Silver","Silver","4.1 x 2.2 x 0.5",398]
[null,null,null,null,"Smart Phone","The Phone Company","Removable/rechargeable battery and integrated keyboard, integrated Bluetooth","The Phone Company PDA GPS Phone 3.5 inch M910 Silver","Silver","4.3 x 2.4 x 0.5",268]
[null,null,null,null,"Smart Phone","The Phone Company","624 MHz Processor, 256MB ROM / 64MB SDRAM","The Phone Company PDA GPS Phone 3.7 inch M930 Silver","Silver","4.5 x 2.6 x 0.6",298]
[null,null,null,null,"Smart Phone","The Phone Company","Complete suite of PIM applications, HotSync technology for PC synchronization, 1MB memory","The Phone Company PDA GPS Phone 4.7 inch L950 Silver","Silver","4.5 x 2.3 x 0.6",368]
[null,null,null,null,"Smart Phone","The Phone Company","Multimedia accelerator with 16MB video memory","The Phone Company PDA Wifi 3.5-inch M200 White","White","4.1 x 2.2 x 0.5",280]
[null,null,null,null,"Smart Phone","The Phone Company","Genuine leather and great looks","The Phone Company PDA Wifi 3.7-inch M250 White","White","4.4 x 2.4 x 0.6",310]
[null,null,null,null,"Smart Phone","The Phone Company","The sensitive slanted stylus tip gives you smooth navigation","The Phone Company PDA Wifi 4.7-inch L290 White","White","3.8 x 2 x 0.8",380]
[null,null,null,null,"Smart Phone","The Phone Company","A single, standardized and easy way to connect the phone to a computer","The Phone Company PDA Phone 3.5 inches M320 White","White","2.1 x 4.2 x 0.6",299]
[null,null,null,null,"Smart Phone","The Phone Company","Opera 8 web browsers; supports Adobe flash 9 browser plug in","The Phone Company PDA Phone 3.7 inches M340 White","White","4.2 x 2.1 x 0.6",330]
[null,null,null,null,"Smart Phone","The Phone Company","Opera 8 web browser; supports Adobe flash 9 browser plug in, 256 MB flash memory expands via two memory card slots","The Phone Company PDA Phone 4.7 inches L360 White","White","4.2 x 2.1 x 0.6",402]
[null,null,null,null,"Smart Phone","The Phone Company","Stream and store MP3s and videos with high quality stereo sound","The Phone Company PDA Phone Unlocked 3.7 inches M510 White","White","3.4 x 1.8 x 0.9",238]
[null,null,null,null,"Smart Phone","The Phone Company","Wide touch screen and full keyboard","The Phone Company PDA Phone Unlocked 3.5 inches M530 White","White","4.7 x 2.9 x 0.7",268]
[null,null,null,null,"Smart Phone","The Phone Company","With 3MB Memory and 6-Line backlit display","The Phone Company PDA Phone Unlocked 4.7 inches L550 White","White","8.8 x 7 x 3.2",302]
[null,null,null,null,"Smart Phone","The Phone Company","Toll free Numbers & Weights & Measures & Schedule planner","The Phone Company PDA Handheld 3.5 inch M610 White","White","9 x 2 x 7",255]
[null,null,null,null,"Smart Phone","The Phone Company","Access the web, high-resolution widescreen display, Opera 8 web browser","The Phone Company PDA Handheld 3.7 inch M630 White","White","3.8 x 2 x 0.8",266]
[null,null,null,null,"Smart Phone","The Phone Company","256 MB flash memory expands via two memory card slots","The Phone Company PDA Handheld 4.7 inch L650 White","White","2.1 x 4.2 x 0.6",389]
[null,null,null,null,"Smart Phone","The Phone Company","Pocket versions of familiar applications like Outlook, Word, and Excel","The Phone Company PDA Palm 3.5 inch M810 White","White","4.2 x 2.1 x 0.6",280]
[null,null,null,null,"Smart Phone","The Phone Company","Pocket versions of familiar applications like Outlook, Word, and Excel","The Phone Company PDA Palm 3.7 inch M830 White","White","4.2 x 2.1 x 0.6",299]
[null,null,null,null,"Smart Phone","The Phone Company","Removable/rechargeable battery and integrated keyboard","The Phone Company PDA Palm 4.7 inch L850 White","White","3.4 x 1.8 x 0.9",398]
[null,null,null,null,"Phone case","Contoso","Rubberized exterior provides a sure grip on the device and helps protect it if dropped or bumped","Contoso Rubberized Skin BlackBerry E100 Black","Black","3 x 1 x 5",14.99]
[null,null,null,null,"Phone case","Contoso","Rubberized exterior provides a sure grip on the device and helps protect it if dropped or bumped","Contoso Rubberized Skin BlackBerry E100 Silver","Silver","3 x 1 x 5",14.99]
[null,null,null,null,"Phone case","Contoso","Rubberized exterior provides a sure grip on the device and helps protect it if dropped or bumped","Contoso Rubberized Skin BlackBerry E100 White","White","3 x 1 x 5",14.99]
[null,null,null,null,"Phone case","Contoso","Packs the power you need to charge your mobile phone while driving  Fits most in-vehicle power port sockets","Cigarette Lighter Adapter for Contoso Phones E110 Black","Black","1.4 x 1.4 x 3.6",24.99]
[null,null,null,null,"Phone case","Contoso","Packs the power you need to charge your mobile phone while driving  Fits most in-vehicle power port sockets","Cigarette Lighter Adapter for Contoso Phones E110 White","White","1.4 x 1.4 x 3.6",24.99]
[null,null,null,null,"Phone case","Contoso","Packs the power you need to charge your mobile phone while driving  Fits most in-vehicle power port sockets","Cigarette Lighter Adapter for Contoso Phones E110 Red","Red","1.4 x 1.4 x 3.6",24.99]
[null,null,null,null,"Phone case","Contoso","Expect better quality than any other screen protector. Shields and protects agaisnt unwanted scratches","Reusable Phone Screen Protector E120","Transparent","Small",2.94]
[null,null,null,null,"Phone case","Contoso","Allows the adapter to be used with stereo headphones that also have integrated microphone functionality","Headphone Adapter for Contoso Phone E130 Black","Black","Medium",9.99]
[null,null,null,null,"Phone case","Contoso","Allows the adapter to be used with stereo headphones that also have integrated microphone functionality","Headphone Adapter for Contoso Phone E130 Silver","Silver","Large",9.99]
[null,null,null,null,"Phone case","Contoso","Allows the adapter to be used with stereo headphones that also have integrated microphone functionality","Headphone Adapter for Contoso Phone E130 White","White","Small",9.99]
[null,null,null,null,"Phone case","Contoso","Bottom flaps up for docking, rugged rubber case","Contoso Phone Tough Skin Case E140 Black","Black","Medium",23.72]
[null,null,null,null,"Phone case","Contoso","Bottom flaps up for docking, rugged rubber case","Contoso Phone Tough Skin Case E140 White","White","Large",23.72]
[null,null,null,null,"Phone case","Contoso","Bottom flaps up for docking, rugged rubber case","Contoso Phone Tough Skin Case E140 Silver","Silver","Small",23.72]
[null,null,null,null,"Phone case","Contoso","Bottom flaps up for docking, rugged rubber case","Contoso Phone Tough Skin Case E140 Pink","Pink","Medium",23.72]
[null,null,null,null,"Phone case","Contoso","The sensitive slanted stylus tip gives you smooth navigation; rubber touch tip does not harm touch-screen","Contoso Touch Stylus Pen E150 Black","Black","Large",9.99]
[null,null,null,null,"Phone case","Contoso","The sensitive slanted stylus tip gives you smooth navigation; rubber touch tip does not harm touch-screen","Contoso Touch Stylus Pen E150 Silver","Silver","Small",9.99]
[null,null,null,null,"Phone case","Contoso","The sensitive slanted stylus tip gives you smooth navigation; rubber touch tip does not harm touch-screen","Contoso Touch Stylus Pen E150 White","White","Medium",9.99]
[null,null,null,null,"Phone case","Contoso","The sensitive slanted stylus tip gives you smooth navigation; rubber touch tip does not harm touch-screen","Contoso Touch Stylus Pen E150 Red","Red","Large",9.99]
[null,null,null,null,"Phone case","Contoso","LCD screen protector","Contoso Rubberized Snap-On Cover Hard Case Cell Phone Protector E160 Pink","Pink","Small",4.74]
[null,null,null,null,"Phone case","Contoso","LCD screen protector","Contoso Rubberized Snap-On Cover Hard Case Cell Phone Protector E160 White","White","Medium",4.74]
[null,null,null,null,"Phone case","Contoso","LCD screen protector","Contoso Rubberized Snap-On Cover Hard Case Cell Phone Protector E160 Silver","Silver","Large",4.74]
[null,null,null,null,"Phone case","Contoso","Stay in touch longer by getting battery power with a Lithium Ion Battery, uses the latest Lithium Ion battery technology giving you the best performance possible compared to other battery technologies","Contoso Original K1m Li-Ion Standard Battery E170 Black","Black","Small",4.0599999999999996]
[null,null,null,null,"Phone case","Contoso","Stay in touch longer by getting battery power with a Lithium Ion Battery, uses the latest Lithium Ion battery technology giving you the best performance possible compared to other battery technologies","Contoso Original K1m Li-Ion Standard Battery E170 White","White","Medium",4.0599999999999996]
[null,null,null,null,"Phone case","Contoso","Stay in touch longer by getting battery power with a Lithium Ion Battery, uses the latest Lithium Ion battery technology giving you the best performance possible compared to other battery technologies","Contoso Original K1m Li-Ion Standard Battery E170 Silver","Silver","Large",4.0599999999999996]
[null,null,null,null,"Phone case","Contoso","Play time up to 6 hours, talk time up to 7 hours, and Standby time up to 150 hours","Contoso Bluetooth Active Headphones L15 Black","Black","Small",129.99]
[null,null,null,null,"Phone case","Contoso","Play time up to 6 hours, talk time up to 7 hours, and Standby time up to 150 hours","Contoso Bluetooth Active Headphones L15 Red","Red","Medium",129.99]
[null,null,null,null,"Phone case","Contoso","Play time up to 6 hours, talk time up to 7 hours, and Standby time up to 150 hours","Contoso Bluetooth Active Headphones L15 White","White","Large",129.99]
[null,null,null,null,"Phone case","Contoso","Designed for new modular, different location without","Contoso In-Line Coupler E180 White","White","Small",3.35]
[null,null,null,null,"Phone case","Contoso","Designed for new modular, different location without","Contoso In-Line Coupler E180 Black","Black","Medium",3.35]
[null,null,null,null,"Phone case","Contoso","Designed for new modular, different location without","Contoso In-Line Coupler E180 Silver","Silver","Large",3.35]
[null,null,null,null,"DVD","Contoso","Exceeds ENERGY STAR standards, multi-brand TV remote control","Contoso DVD Player M100 Black","Black","6.5  x 5.5  x 2 ",56.99]
[null,null,null,null,"DVD","Contoso","Exceeds ENERGY STAR standards, multi -brand TV remote control","Contoso DVD Player M110 Silver","Silver","7.1  x 6.5  x 1.8 ",57.99]
[null,null,null,null,"DVD","Contoso","Exceeds ENERGY STAR standards, multi -brand TV remote control","Contoso DVD Player M120 White","White","6.8  x 5  x 1.5 ",58.99]
[null,null,null,null,"DVD","Contoso","Exceeds ENERGY STAR standards, multi -brand TV remote control","Contoso DVD Player M130 Grey","Grey","7.1  x 6.2  x 1.2",59.99]
[null,null,null,null,"DVD","Contoso","Exceeds ENERGY STAR standards, multi -brand TV remote control","Contoso DVD Player M140 Gold","Gold","17.5  x 28  x 3.5  ",60.99]
[null,null,null,null,"DVD","Contoso","Language: English software installation, enterprise","Contoso DVD Movies E100 Yellow","Yellow","7.5  x 6  x 1.5 ",12.99]
[null,null,null,null,"DVD","Contoso","DVD and VHS Recorder with two way dubbing, Records -R/-RW, +R/+RW Formats","Contoso DVD Recorder L200 Black","Black","6.5  x 5.5  x 2 ",219]
[null,null,null,null,"DVD","Contoso","DVD and VHS Recorder with two way dubbing, Records -R/-RW, +R/+RW Formats","Contoso DVD Recorder L210 Silver","Silver","7.1  x 6.5  x 1.8 ",219]
[null,null,null,null,"DVD","Contoso","DVD and VHS Recorder with two way dubbing, Records -R/-RW, +R/+RW Formats","Contoso DVD Recorder L220 White","White","6.8  x 5  x 1.5 ",219]
[null,null,null,null,"DVD","Contoso","DVD and VHS Recorder with two way dubbing, Records -R/-RW, +R/+RW Formats","Contoso DVD Recorder L230 Grey","Grey","7.1  x 6.2  x 1.2",219]
[null,null,null,null,"DVD","Contoso","DVD and VHS Recorder with two way dubbing, Records -R/-RW, +R/+RW Formats","Contoso DVD Recorder L240 Gold","Gold","17.5  x 28  x 3.5  ",219]
[null,null,null,null,"DVD","Contoso","Gift-wrapping is not available for this item","Contoso DVD 48 DVD Storage Binder M50 Black","Black","17.5  x 28  x 3.5  ",17.989999999999998]
[null,null,null,null,"DVD","Contoso","Store your CDs or DVDs in these beautiful binders, designed to look like books","Contoso DVD 58 DVD Storage Binder M55 Black","Black","7.5  x 6  x 1.5 ",13.89]
[null,null,null,null,"DVD","Contoso","Store your CDs or DVDs in these beautiful binders, designed to look like books","Contoso DVD 38 DVD Storage Binder E25 Black","Black","6.5  x 5.5  x 2 ",9.99]
[null,null,null,null,"DVD","Contoso","Store your CDs or DVDs in these beautiful binders, designed to look like books","Contoso DVD 60 DVD Storage Binder L20 Black","Black","7.1  x 6.5  x 1.8 ",22.89]
[null,null,null,null,"DVD","Contoso","Store your CDs or DVDs in these beautiful binders, designed to look like books","Contoso DVD 55DVD Storage Binder M56 Black","Black","6.8  x 5  x 1.5 ",12.66]
[null,null,null,null,"DVD","Contoso","Gift-wrapping is not available for this item","Contoso DVD 48 DVD Storage Binder M50 Silver","Silver","7.1  x 6.2  x 1.2",17.989999999999998]
[null,null,null,null,"DVD","Contoso","Store your CDs or DVDs in these beautiful binders, designed to look like books","Contoso DVD 58 DVD Storage Binder M55 Silver","Silver","17.5  x 28  x 3.5  ",13.89]
[null,null,null,null,"DVD","Contoso","Store your CDs or DVDs in these beautiful binders, designed to look like books","Contoso DVD 38 DVD Storage Binder E25 Silver","Silver","6.5  x 5.5  x 2 ",9.99]
[null,null,null,null,"DVD","Contoso","Store your CDs or DVDs in these beautiful binders, designed to look like books","Contoso DVD 60 DVD Storage Binder L20 Silver","Silver","7.1  x 6.5  x 1.8 ",22.89]
[null,null,null,null,"DVD","Contoso","Store your CDs or DVDs in these beautiful binders, designed to look like books","Contoso DVD 55DVD Storage Binder M56 Silver","Silver","6.5  x 5.5  x 2 ",12.66]
[null,null,null,null,"DVD","Contoso","Gift-wrapping is not available for this item","Contoso DVD 48 DVD Storage Binder M50 Red","Red","7.1  x 6.5  x 1.8 ",17.989999999999998]
[null,null,null,null,"DVD","Contoso","Store your CDs or DVDs in these beautiful binders, designed to look like books","Contoso DVD 58 DVD Storage Binder M55 Red","Red","6.8  x 5  x 1.5 ",13.89]
[null,null,null,null,"DVD","Contoso","Store your CDs or DVDs in these beautiful binders, designed to look like books","Contoso DVD 38 DVD Storage Binder E25 Red","Red","7.1  x 6.2  x 1.2",9.99]
[null,null,null,null,"DVD","Contoso","Store your CDs or DVDs in these beautiful binders, designed to look like books","Contoso DVD 60 DVD Storage Binder L20 Red","Red","17.5  x 28  x 3.5  ",22.89]
[null,null,null,null,"DVD","Contoso","Store your CDs or DVDs in these beautiful binders, designed to look like books","Contoso DVD 55DVD Storage Binder M56 Red","Red","7.5  x 6  x 1.5 ",12.66]
[null,null,null,null,"DVD","Contoso","Supported by Windows Vista, Windows XP, includes CD/DVD player & recording suite","Contoso DVD External DVD Burner M200 Black","Black","6.5  x 5.5  x 2 ",57.88]
[null,null,null,null,"DVD","Contoso","Supported by Windows Vista, Windows XP, includes CD/DVD player & recording suite","Contoso DVD External DVD Burner M200 Grey","Grey","7.1  x 6.5  x 1.8 ",57.88]
[null,null,null,null,"DVD","Contoso","Supported by Windows Vista, Windows XP, includes CD/DVD player & recording suite","Contoso DVD External DVD Burner M200 Blue","Blue","6.8  x 5  x 1.5 ",57.88]
[null,null,null,null,"DVD","Contoso","Supported by Windows Vista, Windows XP, includes CD/DVD player & recording suite","Contoso DVD External DVD Burner M200 Silver","Silver","7.1  x 6.2  x 1.2",57.88]
[null,null,null,null,"DVD","Contoso","6-hour rechargeable battery, 180-degree swivel and flip screen","Contoso DVD 9-Inch Player Portable M300 Black","Black","17.5  x 28  x 3.5  ",159.99]
[null,null,null,null,"DVD","Contoso","6-hour rechargeable battery, 180-degree swivel and flip screen","Contoso DVD 12-Inch Player Portable M400 Black","Black","7.5  x 6  x 1.5 ",179.99]
[null,null,null,null,"DVD","Contoso","6-hour rechargeable battery, 180-degree swivel and flip screen","Contoso DVD 7-Inch Player Portable E200 Black","Black","6.5  x 5.5  x 2 ",109.99]
[null,null,null,null,"DVD","Contoso","6-hour rechargeable battery, 180-degree swivel and flip screen","Contoso DVD 14-Inch Player Portable L100 Black","Black","7.1  x 6.5  x 1.8 ",259.99]
[null,null,null,null,"DVD","Contoso","6-hour rechargeable battery, 180-degree swivel and flip screen","Contoso DVD 15-Inch Player Portable L200 Black","Black","6.8  x 5  x 1.5 ",289.99]
[null,null,null,null,"DVD","Contoso","6-hour rechargeable battery, 180-degree swivel and flip screen","Contoso DVD 9-Inch Player Portable M300 Silver","Silver","7.1  x 6.2  x 1.2",159.99]
[null,null,null,null,"DVD","Contoso","6-hour rechargeable battery, 180-degree swivel and flip screen","Contoso DVD 12-Inch Player Portable M400 Silver","Silver","17.5  x 28  x 3.5  ",179.99]
[null,null,null,null,"DVD","Contoso","6-hour rechargeable battery, 180-degree swivel and flip screen","Contoso DVD 7-Inch Player Portable E200 Silver","Silver","7.5  x 6  x 1.5 ",109.99]
[null,null,null,null,"DVD","Contoso","6-hour rechargeable battery, 180-degree swivel and flip screen","Contoso DVD 14-Inch Player Portable L100 Silver","Silver","6.5  x 5.5  x 2 ",259.99]
[null,null,null,null,"DVD","Contoso","6-hour rechargeable battery, 180-degree swivel and flip screen","Contoso DVD 15-Inch Player Portable L200 Silver","Silver","7.1  x 6.5  x 1.8 ",289.99]
[null,null,null,null,"DVD","Contoso","6-hour rechargeable battery, 180-degree swivel and flip screen","Contoso DVD 9-Inch Player Portable M300 White","White","6.8  x 5  x 1.5 ",159.99]
[null,null,null,null,"DVD","Contoso","6-hour rechargeable battery, 180-degree swivel and flip screen","Contoso DVD 12-Inch Player Portable M400 White","White","7.1  x 6.2  x 1.2",179.99]
[null,null,null,null,"DVD","Contoso","6-hour rechargeable battery, 180-degree swivel and flip screen","Contoso DVD 7-Inch Player Portable E200 White","White","17.5  x 28  x 3.5  ",109.99]
[null,null,null,null,"DVD","Contoso","6-hour rechargeable battery, 180-degree swivel and flip screen","Contoso DVD 14-Inch Player Portable L100 White","White","17.5  x 28  x 3.5  ",259.99]
[null,null,null,null,"DVD","Contoso","6-hour rechargeable battery, 180-degree swivel and flip screen","Contoso DVD 15-Inch Player Portable L200 White","White","7.5  x 6  x 1.5 ",289.99]
[null,null,null,null,"DVD","Southridge Video","Exceeds ENERGY STAR standards, Multi-brand TV remote control","SV DVD Player M100 Black","Black","7.5  x 6  x 1.5 ",56.99]
[null,null,null,null,"DVD","Southridge Video","Exceeds ENERGY STAR standards, Multi-brand TV remote control","SV DVD Player M110 Silver","Silver","6.5  x 5.5  x 2 ",57.99]
[null,null,null,null,"DVD","Southridge Video","Exceeds ENERGY STAR standards, Multi-brand TV remote control","SV DVD Player M120 White","White","7.1  x 6.5  x 1.8 ",58.99]
[null,null,null,null,"DVD","Southridge Video","Exceeds ENERGY STAR standards, Multi-brand TV remote control","SV DVD Player M130 Grey","Grey","6.8  x 5  x 1.5 ",59.99]
[null,null,null,null,"DVD","Southridge Video","Exceeds ENERGY STAR standards, Multi-brand TV remote control","SV DVD Player M140 Gold","Gold","7.1  x 6.2  x 1.2",60.99]
[null,null,null,null,"DVD","Southridge Video","Language: English software installation, enterprise","SV DVD Movies E100 Yellow","Yellow","17.5  x 28  x 3.5  ",12.99]
[null,null,null,null,"DVD","Southridge Video","DVD and VHS recorder with two way dubbing, records -R/-RW, +R/+RW formats","SV DVD Recorder L200 Black","Black","7.5  x 6  x 1.5 ",219]
[null,null,null,null,"DVD","Southridge Video","DVD and VHS recorder with two way dubbing, records -R/-RW, +R/+RW formats","SV DVD Recorder L210 Silver","Silver","6.5  x 5.5  x 2 ",219]
[null,null,null,null,"DVD","Southridge Video","DVD and VHS recorder with two way dubbing, records -R/-RW, +R/+RW formats","SV DVD Recorder L220 White","White","7.1  x 6.5  x 1.8 ",219]
[null,null,null,null,"DVD","Southridge Video","DVD and VHS recorder with two way dubbing, records -R/-RW, +R/+RW formats","SV DVD Recorder L230 Grey","Grey","6.8  x 5  x 1.5 ",219]
[null,null,null,null,"DVD","Southridge Video","DVD and VHS recorder with two way dubbing, records -R/-RW, +R/+RW formats","SV DVD Recorder L240 Gold","Gold","7.1  x 6.2  x 1.2",219]
[null,null,null,null,"DVD","Southridge Video","Gift-wrapping is not available for this item","SV DVD 48 DVD Storage Binder M50 Black","Black","17.5  x 28  x 3.5  ",17.989999999999998]
[null,null,null,null,"DVD","Southridge Video","Store your CDs or DVDs in these beautiful binders, designed to look like books","SV DVD 58 DVD Storage Binder M55 Black","Black","7.5  x 6  x 1.5 ",13.89]
[null,null,null,null,"DVD","Southridge Video","Store your CDs or DVDs in these beautiful binders, designed to look like books","SV DVD 38 DVD Storage Binder E25 Black","Black","6.5  x 5.5  x 2 ",9.99]
[null,null,null,null,"DVD","Southridge Video","Store your CDs or DVDs in these beautiful binders, designed to look like books","SV DVD 60 DVD Storage Binder L20 Black","Black","7.1  x 6.5  x 1.8 ",22.89]
[null,null,null,null,"DVD","Southridge Video","Store your CDs or DVDs in these beautiful binders, designed to look like books","SV DVD 55DVD Storage Binder M56 Black","Black","6.8  x 5  x 1.5 ",12.66]
[null,null,null,null,"DVD","Southridge Video","Gift-wrapping is not available for this item","SV DVD 48 DVD Storage Binder M50 Silver","Silver","7.1  x 6.2  x 1.2",17.989999999999998]
[null,null,null,null,"DVD","Southridge Video","Store your CDs or DVDs in these beautiful binders, designed to look like books","SV DVD 58 DVD Storage Binder M55 Silver","Silver","17.5  x 28  x 3.5  ",13.89]
[null,null,null,null,"DVD","Southridge Video","Store your CDs or DVDs in these beautiful binders, designed to look like books","SV DVD 38 DVD Storage Binder E25 Silver","Silver","7.5  x 6  x 1.5 ",9.99]
[null,null,null,null,"DVD","Southridge Video","Store your CDs or DVDs in these beautiful binders, designed to look like books","SV DVD 60 DVD Storage Binder L20 Silver","Silver","6.5  x 5.5  x 2 ",22.89]
[null,null,null,null,"DVD","Southridge Video","Store your CDs or DVDs in these beautiful binders, designed to look like books","SV DVD 55DVD Storage Binder M56 Silver","Silver","7.1  x 6.5  x 1.8 ",12.66]
[null,null,null,null,"DVD","Southridge Video","Gift-wrapping is not available for this item","SV DVD 48 DVD Storage Binder M50 Red","Red","6.8  x 5  x 1.5 ",17.989999999999998]
[null,null,null,null,"DVD","Southridge Video","Store your CDs or DVDs in these beautiful binders, designed to look like books","SV DVD 58 DVD Storage Binder M55 Red","Red","7.1  x 6.2  x 1.2",13.89]
[null,null,null,null,"DVD","Southridge Video","Store your CDs or DVDs in these beautiful binders, designed to look like books","SV DVD 38 DVD Storage Binder E25 Red","Red","17.5  x 28  x 3.5  ",9.99]
[null,null,null,null,"DVD","Southridge Video","Store your CDs or DVDs in these beautiful binders, designed to look like books","SV DVD 60 DVD Storage Binder L20 Red","Red","17.5  x 28  x 3.5  ",22.89]
[null,null,null,null,"DVD","Southridge Video","Store your CDs or DVDs in these beautiful binders, designed to look like books","SV DVD 55DVD Storage Binder M56 Red","Red","7.5  x 6  x 1.5 ",12.66]
[null,null,null,null,"DVD","Southridge Video","Supported by Windows Vista, Windows XP, includes CD/DVD player & recording suite","SV DVD External DVD Burner M200 Black","Black","6.5  x 5.5  x 2 ",57.88]
[null,null,null,null,"DVD","Southridge Video","Supported by Windows Vista, Windows XP, includes CD/DVD player & recording suite","SV DVD External DVD Burner M200 Grey","Grey","7.1  x 6.5  x 1.8 ",57.88]
[null,null,null,null,"DVD","Southridge Video","Supported by Windows Vista, Windows XP, includes CD/DVD player & recording suite","SV DVD External DVD Burner M200 Blue","Blue","6.8  x 5  x 1.5 ",57.88]
[null,null,null,null,"DVD","Southridge Video","Supported by Windows Vista, Windows XP, includes CD/DVD player & recording suite","SV DVD External DVD Burner M200 Silver","Silver","7.1  x 6.2  x 1.2",57.88]
[null,null,null,null,"DVD","Southridge Video","6-hour rechargeable battery, 180-degree swivel and flip screen","SV DVD 9-Inch Player Portable M300 Black","Black","17.5  x 28  x 3.5  ",159.99]
[null,null,null,null,"DVD","Southridge Video","6-hour rechargeable battery, 180-degree swivel and flip screen","SV DVD 12-Inch Player Portable M400 Black","Black","6.5  x 5.5  x 2 ",179.99]
[null,null,null,null,"DVD","Southridge Video","6-hour rechargeable battery, 180-degree swivel and flip screen","SV DVD 7-Inch Player Portable E200 Black","Black","7.1  x 6.5  x 1.8 ",109.99]
[null,null,null,null,"DVD","Southridge Video","6-hour rechargeable battery, 180-degree swivel and flip screen","SV DVD 14-Inch Player Portable L100 Black","Black","6.5  x 5.5  x 2 ",259.99]
[null,null,null,null,"DVD","Southridge Video","6-hour rechargeable battery, 180-degree swivel and flip screen","SV DVD 15-Inch Player Portable L200 Black","Black","7.1  x 6.5  x 1.8 ",289.99]
[null,null,null,null,"DVD","Southridge Video","6-hour rechargeable battery, 180-degree swivel and flip screen","SV DVD 9-Inch Player Portable M300 Silver","Silver","6.8  x 5  x 1.5 ",159.99]
[null,null,null,null,"DVD","Southridge Video","6-hour rechargeable battery, 180-degree swivel and flip screen","SV DVD 12-Inch Player Portable M400 Silver","Silver","7.1  x 6.2  x 1.2",179.99]
[null,null,null,null,"DVD","Southridge Video","6-hour rechargeable battery, 180-degree swivel and flip screen","SV DVD 7-Inch Player Portable E200 Silver","Silver","17.5  x 28  x 3.5  ",109.99]
[null,null,null,null,"DVD","Southridge Video","6-hour rechargeable battery, 180-degree swivel and flip screen","SV DVD 14-Inch Player Portable L100 Silver","Silver","7.5  x 6  x 1.5 ",259.99]
[null,null,null,null,"DVD","Southridge Video","6-hour rechargeable battery, 180-degree swivel and flip screen","SV DVD 15-Inch Player Portable L200 Silver","Silver","6.5  x 5.5  x 2 ",289.99]
[null,null,null,null,"DVD","Southridge Video","6-hour rechargeable battery, 180-degree swivel and flip screen","SV DVD 9-Inch Player Portable M300 White","White","7.1  x 6.5  x 1.8 ",159.99]
[null,null,null,null,"DVD","Southridge Video","6-hour rechargeable battery, 180-degree swivel and flip screen","SV DVD 12-Inch Player Portable M400 White","White","6.8  x 5  x 1.5 ",179.99]
[null,null,null,null,"DVD","Southridge Video","6-hour rechargeable battery, 180-degree swivel and flip screen","SV DVD 7-Inch Player Portable E200 White","White","7.1  x 6.2  x 1.2",109.99]
[null,null,null,null,"DVD","Southridge Video","6-hour rechargeable battery, 180-degree swivel and flip screen","SV DVD 14-Inch Player Portable L100 White","White","17.5  x 28  x 3.5  ",259.99]
[null,null,null,null,"DVD","Southridge Video","6-hour rechargeable battery, 180-degree swivel and flip screen","SV DVD 15-Inch Player Portable L200 White","White","7.5  x 6  x 1.5 ",289.99]
[null,null,null,null,"Game device","Southridge Video","Hand Games for kids 2~16","SV Hand Games for kids E30 Yellow","Yellow","4.8  x 2.7  x 3.6 ",5.39]
[null,null,null,null,"Game device","Southridge Video","Hand Games for all students","SV Hand Games for students E40 Yellow","Yellow","3.7  x 0.9  x 2.3 ",6.99]
[null,null,null,null,"Game device","Southridge Video","Hand Games men, cool","SV Hand Games men M30 Yellow","Yellow","3.7  x 0.9  x 2.3 ",6.88]
[null,null,null,null,"Game device","Southridge Video","Hand Games women, make you happy","SV Hand Games women M40 Yellow","Yellow","5.1  x 2.4  x 3.9 ",8.8800000000000008]
[null,null,null,null,"Game device","Southridge Video","Hand Games for 12-16 boys or girls","SV Hand Games for 12-16 boys E60 Yellow","Yellow","4.8  x 2.7  x 3.6 ",4.9800000000000004]
[null,null,null,null,"Game device","Southridge Video","Hand Games for Office worker, enjoy your life","SV Hand Games for Office worker L28 Yellow","Yellow","5.1  x 2.1  x 3.6 ",16.989999999999998]
[null,null,null,null,"Game device","Southridge Video","Hand Games for kids 2~16","SV Hand Games for kids E30 Black","Black","4.8  x 2.7  x 3.6 ",5.39]
[null,null,null,null,"Game device","Southridge Video","Hand Games for all students","SV Hand Games for students E40 Black","Black","3.7  x 0.9  x 2.3 ",6.99]
[null,null,null,null,"Game device","Southridge Video","Hand Games men, cool","SV Hand Games men M30 Black","Black","4.8  x 2.7  x 3.6 ",6.88]
[null,null,null,null,"Game device","Southridge Video","Hand Games women, make you happy","SV Hand Games women M40 Black","Black","4.8  x 2.5  x 3.9 ",8.8800000000000008]
[null,null,null,null,"Game device","Southridge Video","Hand Games for 12-16 boys or girls","SV Hand Games for 12-16 boys E60 Black","Black","3.2  x 5.4  x 3.2 ",4.9800000000000004]
[null,null,null,null,"Game device","Southridge Video","Hand Games for Office worker, enjoy your life","SV Hand Games for Office worker L28 Black","Black","2.6  x 5.4  x 2.8 ",16.989999999999998]
[null,null,null,null,"Game device","Southridge Video","Hand Games for kids 2~16","SV Hand Games for kids E30 Red","Red","6.5  x 4.5  x 4.5  ",5.39]
[null,null,null,null,"Game device","Southridge Video","Hand Games for all students","SV Hand Games for students E40 Red","Red","3.5  x 2  x 5  ",6.99]
[null,null,null,null,"Game device","Southridge Video","Hand Games men, cool","SV Hand Games men M30 Red","Red","5.4  x 3.7  x 1.5 ",6.88]
[null,null,null,null,"Game device","Southridge Video","Hand Games women, make you happy","SV Hand Games women M40 Red","Red","5  x 2.5  x 5.5  ",8.8800000000000008]
[null,null,null,null,"Game device","Southridge Video","Hand Games for 12-16 boys or girls","SV Hand Games for 12-16 boys E60 Red","Red","4.8  x 2.7  x 3.6 ",4.9800000000000004]
[null,null,null,null,"Game device","Southridge Video","Hand Games for Office worker, enjoy your life","SV Hand Games for Office worker L28 Red","Red","4.8  x 2.5  x 3.9 ",16.989999999999998]
[null,null,null,null,"Game device","Southridge Video","Hand Games for kids 2~16","SV Hand Games for kids E30 Silver","Silver","2.6  x 5.4  x 2.8 ",5.39]
[null,null,null,null,"Game device","Southridge Video","Hand Games for all students","SV Hand Games for students E40 Silver","Silver","6.5  x 4.5  x 4.5  ",6.99]
[null,null,null,null,"Game device","Southridge Video","Hand Games men, cool","SV Hand Games men M30 Silver","Silver","6.5  x 4.5  x 4.5  ",6.88]
[null,null,null,null,"Game device","Southridge Video","Hand Games women, make you happy","SV Hand Games women M40 Silver","Silver","5.1  x 2.4  x 3.9 ",8.8800000000000008]
[null,null,null,null,"Game device","Tailspin Toys","Hand Games for kids 2~16","MGS Hand Games for kids E300 Yellow","Yellow","6.5  x 5.5  x 2 ",5.5]
[null,null,null,null,"Game device","Tailspin Toys","Hand Games for all students","MGS Hand Games for students E400 Yellow","Yellow","7.1  x 6.5  x 1.8 ",6.99]
[null,null,null,null,"Game device","Tailspin Toys","Hand Games men, cool","MGS Hand Games men M300 Yellow","Yellow","6.8  x 5  x 1.5 ",6.89]
[null,null,null,null,"Game device","Tailspin Toys","Hand Games women, make you happy","MGS Hand Games women M400 Yellow","Yellow","7.1  x 6.2  x 1.2",8.99]
[null,null,null,null,"Game device","Tailspin Toys","Hand Games for 12-16 boys or girls","MGS Hand Games for 12-16 boys E600 Yellow","Yellow","17.5  x 28  x 3.5  ",4.99]
[null,null,null,null,"Game device","Tailspin Toys","Hand Games for Office worker, enjoy your life","MGS Hand Games for Office worker L299 Yellow","Yellow","6.5  x 5.5  x 2 ",16.89]
[null,null,null,null,"Game device","Tailspin Toys","Hand Games for kids 2~16","MGS Hand Games for kids E300 Black","Black","7.1  x 6.5  x 1.8 ",5.5]
[null,null,null,null,"Game device","Tailspin Toys","Hand Games for all students","MGS Hand Games for students E400 Black","Black","5.1  x 2.4  x 3.9 ",6.99]
[null,null,null,null,"Game device","Tailspin Toys","Hand Games men, cool","MGS Hand Games men M300 Black","Black","4.8  x 2.7  x 3.6 ",6.89]
[null,null,null,null,"Game device","Tailspin Toys","Hand Games women, make you happy","MGS Hand Games women M400 Black","Black","5.1  x 2.1  x 3.6 ",8.99]
[null,null,null,null,"Game device","Tailspin Toys","Hand Games for 12-16 boys or girls","MGS Hand Games for 12-16 boys E600 Black","Black","4.8  x 2.7  x 3.6 ",4.99]
[null,null,null,null,"Game device","Tailspin Toys","Hand Games for Office worker, enjoy your life","MGS Hand Games for Office worker L299 Black","Black","3.7  x 0.9  x 2.3 ",16.89]
[null,null,null,null,"Game device","Tailspin Toys","Hand Games for kids 2~16","MGS Hand Games for kids E300 Red","Red","4.8  x 2.7  x 3.6 ",5.5]
[null,null,null,null,"Game device","Tailspin Toys","Hand Games for all students","MGS Hand Games for students E400 Red","Red","4.8  x 2.5  x 3.9 ",6.99]
[null,null,null,null,"Game device","Tailspin Toys","Hand Games men, cool","MGS Hand Games men M300 Red","Red","3.2  x 5.4  x 3.2 ",6.89]
[null,null,null,null,"Game device","Tailspin Toys","Hand Games women, make you happy","MGS Hand Games women M400 Red","Red","2.6  x 5.4  x 2.8 ",8.99]
[null,null,null,null,"Game device","Tailspin Toys","Hand Games for 12-16 boys or girls","MGS Hand Games for 12-16 boys E600 Red","Red","6.5  x 4.5  x 4.5  ",4.99]
[null,null,null,null,"Game device","Tailspin Toys","Hand Games for Office worker, enjoy your life","MGS Hand Games for Office worker L299 Red","Red","3.5  x 2  x 5  ",16.89]
[null,null,null,null,"Game device","Tailspin Toys","Hand Games for kids 2~16","MGS Hand Games for kids E300 Silver","Silver","5.4  x 3.7  x 1.5 ",5.5]
[null,null,null,null,"Game device","Tailspin Toys","Hand Games for all students","MGS Hand Games for students E400 Silver","Silver","5  x 2.5  x 5.5  ",6.99]
[null,null,null,null,"Game device","Tailspin Toys","Hand Games men, cool","MGS Hand Games men M300 Silver","Silver","3.7  x 0.9  x 2.3 ",6.89]
[null,null,null,null,"Game device","Tailspin Toys","Hand Games women, make you happy","MGS Hand Games women M400 Silver","Silver","5.1  x 2.4  x 3.9 ",8.99]
[null,null,null,null,"Game device","Tailspin Toys","Hand Games for 12-16 boys or girls","MGS Hand Games for 12-16 boys E600 Silver","Silver","4.8  x 2.7  x 3.6 ",4.99]
[null,null,null,null,"Game device","Tailspin Toys","Hand Games for Office worker, enjoy your life","MGS Hand Games for Office worker L299 Silver","Silver","5.1  x 2.1  x 3.6 ",16.89]
[null,null,null,null,"Game","Tailspin Toys","Dal of Honor Airborne","MGS Dal of Honor Airborne M150","Silver","Small",70.13]
[null,null,null,null,"Game","Tailspin Toys","Collectors","MGS Collector's M160","Black","Medium",70.13]
[null,null,null,null,"Game","Tailspin Toys","Gears of War","MGS Gears of War M170","Blue","Large",70.13]
[null,null,null,null,"Game","Tailspin Toys","Age of Empires III: The Asian Dynasties","MGS Age of Empires III: The Asian Dynasties M180","Silver","Small",70.13]
[null,null,null,null,"Game","Tailspin Toys","Age of Empires III: The Asian Dynasties","MGS Age of Empires III: The Asian Dynasties M190","Black","Medium",70.13]
[null,null,null,null,"Game","Tailspin Toys","Flight Simulator X Acceleration Expansion Pack","MGS Flight Simulator X Acceleration Expansion Pack M200","Silver","Large",70.13]
[null,null,null,null,"Game","Tailspin Toys","Zoo Tycoon 2 : Extinct Animals","MGS Zoo Tycoon 2: Extinct Animals M210","Silver","Small",70.13]
[null,null,null,null,"Game","Tailspin Toys","Halo 2 for Windows Vista","MGS Halo 2 for Windows Vista M220","White","Medium",70.13]
[null,null,null,null,"Game","Tailspin Toys","Shadow run","MGS Shadow-run M230","White","Large",70.13]
[null,null,null,null,"Game","Tailspin Toys","Age of Empires III : The War Chiefs","MGS Age of Empires III: The War Chiefs M240","Black","Small",70.13]
[null,null,null,null,"Game","Tailspin Toys","Tailspin Flight Simulator X","MGS Flight Simulator X M250","Pink","Medium",70.13]
[null,null,null,null,"Game","Tailspin Toys","Zoo Tycoon 2: Zookeeper Collection","MGS Zoo Tycoon 2: Zookeeper Collection M260","Blue","Large",70.13]
[null,null,null,null,"Game","Tailspin Toys","Zoo Tycoon 2: Marine Mania Expansion Pack","MGS Zoo Tycoon 2: Marine Mania Expansion Pack M270","Black","Small",70.13]
[null,null,null,null,"Game","Tailspin Toys","Zoo Tycoon 2: African Adventure","MGS Zoo Tycoon 2: African Adventure M280","Black","Medium",70.13]
[null,null,null,null,"Game","Tailspin Toys","Tailspin Rise of Nations: Rise of Legends","MGS Rise of Nations: Rise of Legends M290","Black","Large",70.13]
[null,null,null,null,"Game","Tailspin Toys","Zoo Tycoon 2: Endangered Species Expansion Pack","MGS Zoo Tycoon 2: End range Species Expansion Pack E105","Silver","Small",56]
[null,null,null,null,"Game","Tailspin Toys","Age of Empires III: The Asian Dynasties","MGS Age of Empires III: The Asian Dynasties E106","Pink","Medium",56]
[null,null,null,null,"Game","Tailspin Toys","Fable: The Lost Chapters","MGS Fable: The Lost Chapters E107","Silver","Large",56]
[null,null,null,null,"Game","Tailspin Toys","Dungeon Siege II","MGS Dungeon Siege II E105","Silver","Small",56]
[null,null,null,null,"Game","Tailspin Toys","Zoo Tycoon 2","MGS Zoo Tycoon 2 E108","Silver","Medium",56]
[null,null,null,null,"Game","Tailspin Toys","Rise of Nations: Gold Edition","MGS Rise of Nations: Gold Edition M300","Pink","Large",56]
[null,null,null,null,"Game","Tailspin Toys","Age of Mythology: Gold Edition","MGS Age of Mythology: Gold Edition M310","Blue","Small",79.8]
[null,null,null,null,"Game","Tailspin Toys","Rise of Nations: Thrones and Patriots","MGS Rise of Nations: Thrones and Patriots M320","Blue","Medium",77.680000000000007]
[null,null,null,null,"Game","Tailspin Toys","Dungeon Siege: Legends of Arana","MGS Dungeon Siege: Legends of Aranna M330","Blue","Large",77.680000000000007]
[null,null,null,null,"Game","Tailspin Toys","Kings & Myths: The Age Collection","MGS King& Myths: The Age Collection M340","Black","One Size",72.45]
[null,null,null,null,"Game","Tailspin Toys","Age of Mythology: The Titans Expansion","MGS Age of Mythology: The Titans Expansion M350","Black","One Size",72.45]
[null,null,null,null,"Game","Tailspin Toys","Halo: Combat Evolved","MGS Halo: Combat Evolved E109","Silver","One Size",22.788]
[null,null,null,null,"Game","Tailspin Toys","Zoo Tycoon Complete Collection","MGS Zoo Tycoon Complete Collection E110","Blue","One Size",28]
[null,null,null,null,"Game","Tailspin Toys","Flight Simulator 2004: A Century of Flight","MGS Flight Simulator 2004: A Century of Flight E111","Black","One Size",28]
[null,null,null,null,"Game","Tailspin Toys","Rise of Nations","MGS Rise of Nations E112","White","One Size",28]
[null,null,null,null,"Game","Tailspin Toys","Freelancer","MGS Freelancer E113","Silver","One Size",28]
[null,null,null,null,"Game","Tailspin Toys","Impossible Creatures","MGS Impossible Creatures E114","Blue","One Size",28]
[null,null,null,null,"Game","Tailspin Toys","RalliSport Challenge","MGS RalliSport Challenge E115","Silver","One Size",28]
[null,null,null,null,"Game","Tailspin Toys","MechCollection","MGS MechCollection E116","Silver","One Size",28]
[null,null,null,null,"Game","Tailspin Toys","MechWarrior 4: Mercenaries","MGS MechWarrior 4: Mercenaries E117","Blue","One Size",28]
[null,null,null,null,"Game","Tailspin Toys","Age of Mythology","MGS Age of Mythology E118","Pink","One Size",28]
[null,null,null,null,"Game","Tailspin Toys","Combat Flight Simulator 3","MGS Combat Flight Simulator 3 E119","Blue","One Size",28]
[null,null,null,null,"Game","Tailspin Toys","Zoo Tycoon Marine Mania","MGS Zoo Tycoon Marine Mania E120","Black","One Size",28]
[null,null,null,null,"Game","Tailspin Toys","MechWarrior 4 'Mach Paks","MGS MechWarrior 4 Mach Packs X100","Blue","One Size",109]
[null,null,null,null,"Game","Tailspin Toys","Zoo Tycoon Dinosaur Digs","MGS Zoo Tycoon Dinosaur Digs X200","Black","One Size",109]
[null,null,null,null,"Game","Tailspin Toys","Dungeon Siege","MGS Dungeon Siege X300","Blue","One Size",109]
[null,null,null,null,"Game","Tailspin Toys","Classic Flight Collection","MGS Classic Flight Collection X400","Black","One Size",109]
[null,null,null,null,"Game","Tailspin Toys","Bicycle Board Games","MGS Bicycle Board Games X500","Grey","One Size",109]
[null,null,null,null,"Game","Tailspin Toys","Bicycle Card Games","MGS Bicycle Card Games X600","White","One Size",109]
[null,null,null,null,"Game","Tailspin Toys","Bicycle Casino Games","MGS Bicycle Casino Games X700","Silver","One Size",109]
[null,null,null,null,"Game","Tailspin Toys","Flight Simulator 2002","MGS Flight Simulator 2002 M360","Pink","One Size",89]
[null,null,null,null,"Game","Tailspin Toys","Racing Madness 2","MGS Racing Madness 2 M370","Pink","One Size",89]
[null,null,null,null,"Game","Tailspin Toys","Zoo Tycoon","MGS Zoo Tycoon M380","Blue","One Size",89]
[null,null,null,null,"Game","Tailspin Toys","MechWarrior 4: Black Knight","MGS MechWarrior 4: Knight E121","Black","One Size",64.900000000000006]
[null,null,null,null,"Game","Tailspin Toys","Age of Empires II Gold Edition","MGS Age of Empires II Gold Edition E122","Black","One Size",64.900000000000006]
[null,null,null,null,"Game","Tailspin Toys","MechCommander 2","MGS MechCommander 2 E123","Black","One Size",55.9]
[null,null,null,null,"Game","Tailspin Toys","Train Simulator","MGS Train Simulator E124","White","One Size",50.54]
[null,null,null,null,"Game","Tailspin Toys","MechWarrior 4: Vengeance","MGS MechWarrior 4: Vengeance X800","Purple","One Size",104.89]
[null,null,null,null,"Game","Tailspin Toys","Return of Arcade Anniversary Edition","MGS Return of Arcade Anniversary Edition M390","Blue","One Size",94.8]
[null,null,null,null,"Game","Tailspin Toys","Combat Flight Simulator 2","MGS Combat Flight Simulator 2 M400","Black","One Size",73.39]
[null,null,null,null,"Game","Tailspin Toys","Age of Empires II: The Conquerors Expansion","MGS Age of Empires II: The Conquerors Expansion E125","Black","One Size",31.39]
[null,null,null,null,"Game","Tailspin Toys","Tailspin Flight Simulator 2000","MGS Flight Simulator 2000 M410","Pink","One Size",99.75]
[null,null,null,null,"Game","Tailspin Toys","Age of Empires II: The Age of Kings","MGS Age of Empires II: The Age of Kings E126","Blue","One Size",46.8]
[null,null,null,null,"Game","Tailspin Toys","Age of Empires Expansion: The Rise of Rome","MGS Age of Empires Expansion: The Rise of Rome X900","Blue","One Size",598.79999999999995]
[null,null,null,null,"Game","Tailspin Toys","Tailspin Age of Empires 2008new","MGS Age of Empires 2008new M420","Black","One Size",54]
[null,null,null,null,"Game","Tailspin Toys","Dal of Honor Airborne 2008","MGS Dal of Honor Airborne 2008 M430","White","One Size",34]
[null,null,null,null,"Game","Tailspin Toys","Empires Collector's 2008","MGS Empires Collector's 2008 M440","Purple","One Size",34]
[null,null,null,null,"Game","Tailspin Toys","Gears of War 2008","MGS Gears of War 2008 M450","White","One Size",34]
[null,null,null,null,"Game","Tailspin Toys","Age of Empires III: The Asian Dynasties 2008","MGS Age of Empires III: The Asian Dynasties 2008 E126","White","One Size",34]
[null,null,null,null,"Game","Tailspin Toys","Age of Empires III: The Asian Dynasties 2009","MGS Age of Empires III: The Asian Dynasties 2009 E127","White","One Size",34]
[null,null,null,null,"Game","Tailspin Toys","Flight Simulator X Acceleration Expansion Pack 2009","MGS Flight Simulator X Acceleration Expansion Pack 2009 E128","Blue","One Size",34]
[null,null,null,null,"Game","Tailspin Toys","Zoo Tycoon 2: Extinct Animals 2008","MGS Zoo Tycoon 2: Extinct Animals 2008 E129","Black","One Size",43]
[null,null,null,null,"Game","Tailspin Toys","Halo 2 for Windows Vista 2009","MGS Halo 2 for Windows Vista 2009 E130","Silver","One Size",43]
[null,null,null,null,"Game","Tailspin Toys","Shadow run 2008","MGS Shadow-run 2008 E131","Pink","One Size",43]
[null,null,null,null,"Game","Tailspin Toys","Age of Empires III : The War Chiefs 2007","MGS Age of Empires III: The War Chiefs 2007 E132","Black","One Size",43]
[null,null,null,null,"Game","Tailspin Toys","Flight Simulator X 2008","MGS Flight Simulator X 2008 E133","Silver","One Size",43]
[null,null,null,null,"Game","Tailspin Toys","Zoo Tycoon 2: Zookeeper Collection 2008","MGS Zoo Tycoon 2: Zookeeper Collection 2008 E134","Pink","One Size",43]
[null,null,null,null,"Game","Tailspin Toys","Zoo Tycoon2: Marine Mania Expansion Pack 2008","MGS Zoo Tycoon2: Marine Mania Expansion Pack 2008 E135","Blue","One Size",43]
[null,null,null,null,"Game","Tailspin Toys","Zoo Tycoon 2: African Adventure 2008","MGS Zoo Tycoon 2: African Adventure 2008 E136","Blue","One Size",43]
[null,null,null,null,"Game","Tailspin Toys","Rise of Nations: Rise of Legends 2008","MGS Rise of Nations: Rise of Legends 2008 E137","White","One Size",43]
[null,null,null,null,"Game","Tailspin Toys","Zoo Tycoon 2: Endangered Species Expansion Pack 2008","MGS Zoo Tycoon 2: End Range Species Expansion Pack 2008 E138","Silver","One Size",43]
[null,null,null,null,"Game","Tailspin Toys","Age of Empires III 2008","MGS Age of Empires III 2008 E139","White","One Size",43]
[null,null,null,null,"Game","Tailspin Toys","Fable: The Lost Chapters2008","MGS Fable: The Lost Chapters2008 E140","White","One Size",43]
[null,null,null,null,"Game","Tailspin Toys","Dungeon Siege I 2007","MGS Dungeon 2007 E141","Silver","One Size",43]
[null,null,null,null,"Game","Tailspin Toys","Zoo Tycoon 2008","MGS Zoo Tycoon 2008 E142","Pink","One Size",43]
[null,null,null,null,"Game","Tailspin Toys","Rise of Nations: Gold Edition 2009","MGS Rise of Nations: Gold Edition 2009 E143","Pink","One Size",43]
[null,null,null,null,"Game","Tailspin Toys","Age of Mythology: Gold Edition 2009","MGS Age of Mythology: Gold Edition 2009 E144","Silver","One Size",43]
[null,null,null,null,"Game","Tailspin Toys","Rise of Nations: Thrones and Patriots2009","MGS Rise of Nations: Thrones and Patriots2009 E145","Yellow","One Size",43]
[null,null,null,null,"Game","Tailspin Toys","Dungeon Siege: Legends of Aranna™2009","MGS Dungeon Siege: Legends of Aranna 2009 E146","Silver","One Size",43]
[null,null,null,null,"Game","Tailspin Toys","Kings & Myths: The Age Collection2009","MGS Kings & Myths: The Age Collection2009 E147","Pink","One Size",43]
[null,null,null,null,"Game","Tailspin Toys","Age of Mythology: The Titans Expansion 2009","MGS Age of Mythology: The Titans Expansion 2009 E148","Pink","One Size",43]
[null,null,null,null,"Game","Tailspin Toys","Halo: Combat Evolved2009","MGS Halo: Combat Evolved2009 E149","Pink","One Size",43]
[null,null,null,null,"Game","Tailspin Toys","Zoo Tycoon Complete Collection2009","MGS Zoo Tycoon Complete Collection2009 E150","Silver","One Size",43]
[null,null,null,null,"Game","Tailspin Toys","Flight Simulator 2009: A Century of Flight","MGS Flight Simulator 2009: A Century of Flight E151","Silver","One Size",43]
[null,null,null,null,"Game","Tailspin Toys","Rise of Nations2009","MGS Rise of Nations2009 E152","Silver","One Size",43]
[null,null,null,null,"Game","Tailspin Toys","Freelancer 2009","MGS Freelancer 2009 E153","Silver","One Size",43]
[null,null,null,null,"Game","Tailspin Toys","Impossible Creatures2009","MGS Impossible Creatures2009 E154","Black","One Size",43]
[null,null,null,null,"Game","Tailspin Toys","RalliSport Challenge2009","MGS RalliSport Challenge2009 E155","Silver","One Size",26]
[null,null,null,null,"Game","Tailspin Toys","MechCollection2009","MGS MechCollection2009 E156","White","One Size",32]
[null,null,null,null,"Game","Tailspin Toys","Tailspin MechWarrior4: Mercenaries2009","MGS MechWarrior4: Mercenaries2009 E157","White","One Size",32]
[null,null,null,null,"Game","Tailspin Toys","Age of Mythology 2009","MGS Age of Mythology 2009 E158","White","One Size",32]
[null,null,null,null,"Game","Tailspin Toys","Combat Flight Simulator 2009","MGS Combat Flight Simulator 2009 E159","Blue","One Size",32]
[null,null,null,null,"Game","Tailspin Toys","Zoo Tycoon Marine Mania 2009","MGS Zoo Tycoon Marine Mania 2009 E160","Blue","One Size",32]
[null,null,null,null,"Game","Tailspin Toys","MechWarrior 4 'Mach Paks2009","MGS MechWarrior 4 Mach Paks2009 E161","Green","One Size",32]
[null,null,null,null,"Game","Tailspin Toys","Zoo Tycoon Dinosaur Digs2009","MGS Zoo Tycoon Dinosaur Digs2009 E162","Blue","One Size",32]
[null,null,null,null,"Game","Tailspin Toys","Dungeon Siege 2009","MGS Dungeon Siege 2009 E163","Gold","One Size",32]
[null,null,null,null,"Game","Tailspin Toys","Classic Flight Collection2009","MGS Classic Flight Collection2009 E164","Pink","One Size",32]
[null,null,null,null,"Game","Tailspin Toys","Bicycle Board Games2009","MGS Bicycle Board Games2009 E165","Blue","One Size",32]
[null,null,null,null,"Game","Tailspin Toys","Bicycle Card Games2009","MGS Bicycle Card Games2009 E166","Blue","One Size",32]
[null,null,null,null,"Game","Tailspin Toys","Bicycle Casino Games2009","MGS Bicycle Casino Games2009 E167","Blue","One Size",32]
[null,null,null,null,"Game","Tailspin Toys","Flight Simulator 2009","MGS Flight Simulator 2009 E168","Blue","One Size",32]
[null,null,null,null,"Game","Tailspin Toys","Racing Madness 2009","MGS Racing Madness 2009 E169","Blue","One Size",32]
[null,null,null,null,"Game","Tailspin Toys","Zoo Tycoon2009","MGS Zoo Tycoon2009 E170","Blue","One Size",32]
[null,null,null,null,"Game","Tailspin Toys","MechWarrior 4: Black Knight2009","MGS MechWarrior 4:Knight2009 E171","Blue","One Size",32]
[null,null,null,null,"Game","Tailspin Toys","Age of Empires II Gold Edition2009","MGS Age of Empires II Gold Edition2009 E172","Blue","One Size",32]
[null,null,null,null,"Game","Tailspin Toys","MechCommander 2009","MGS MechCommander 2009 E173","Blue","One Size",32]
[null,null,null,null,"Game","Tailspin Toys","Train Simulator 2009","MGS Train Simulator 2009 E174","Blue","One Size",32]
[null,null,null,null,"Game","Tailspin Toys","MechWarrior 4: Vengeance 2009","MGS MechWarrior 4: Vengeance 2009 E175","Blue","One Size",32]
[null,null,null,null,"Game","Tailspin Toys","Return of Arcade Anniversary Edition 2009","MGS Return of Arcade Anniversary Edition 2009 E176","Blue","One Size",32]
[null,null,null,null,"Game","Tailspin Toys","Tailspin Combat Flight Simulator 2009","MGS Combat Flight Simulator 2009 E177","Blue","One Size",32]
[null,null,null,null,"Game","Tailspin Toys","Age of Empires II: The Conquerors Expansion 2009","MGS Age of Empires II: The Conquerors Expansion 2009 E178","Blue","One Size",32]
[null,null,null,null,"Game","Tailspin Toys","Tailspin Flight Simulator 2009","MGS Flight Simulator 2009 E179","Blue","One Size",32]
[null,null,null,null,"Game","Tailspin Toys","Age of Empires II: The Age of Kings 2009","MGS Age of Empires II: The Age of Kings 2009 E180","Blue","One Size",32]
[null,null,null,null,"Game","Tailspin Toys","Tailspin Age of Empires Expansion: The Rise of Rome 2009","MGS Age of Empires Expansion: The Rise of Rome 2009 E181","Blue","One Size",32]
[null,null,null,null,"Game","Tailspin Toys",null,"MGS Age of Empires, 2009 E182","Blue","One Size",32]
[null,null,null,null,"Washer/Dryer","Contoso","9 wash & 5 dry programs, full size steam washer and dryer","Contoso Washer & Dryer 27in L270 White","White","40.9  x 38  x 35",2652]
[null,null,null,null,"Washer/Dryer","Contoso","Five Wash/spin speed combinations, 5 Wash/Dry programs","Contoso Washer & Dryer 25.5in M255 White","White","33 x 38 x 25.5",1989]
[null,null,null,null,"Washer/Dryer","Contoso","Tumble action cleaning system, 4 Wash/Dry programs","Contoso Washer & Dryer 24in M240 White","White","38.8  x 40.2  x 28.5",1818]
[null,null,null,null,"Washer/Dryer","Contoso","7 washing programs, 5 Wash/Rinse temperature levels","Contoso Washer & Dryer 21in E210 White","White","40.5  x 39  x 28.5",1599]
[null,null,null,null,"Washer/Dryer","Contoso","15.5\" duet washer and dryer pedestal with drawer","Contoso Washer & Dryer 15.5in E155 White","White","42.5  x 40.6  x 30.5",999]
[null,null,null,null,"Washer/Dryer","Contoso","9 wash & 5 dry programs, full size steam washer and dryer","Contoso Washer & Dryer 27in L270 Silver","Silver","40.9  x 38  x 35",2652]
[null,null,null,null,"Washer/Dryer","Contoso","Five Wash/spin speed combinations, 5 Wash/Dry programs","Contoso Washer & Dryer 25.5in M255 Silver","Silver","30.5 x 28.5 x 18.5",1989]
[null,null,null,null,"Washer/Dryer","Contoso","Tumble action cleaning system, 4 Wash/Dry programs","Contoso Washer & Dryer 24in M240 Silver","Silver","31 x 38.3 x 25.5",1818]
[null,null,null,null,"Washer/Dryer","Contoso","7 washing programs, 5 Wash/Rinse temperature levels","Contoso Washer & Dryer 21in E210 Silver","Silver","30 x 39 x 28.5",1599]
[null,null,null,null,"Washer/Dryer","Contoso","15.5\" duet washer and dryer pedestal with drawer","Contoso Washer & Dryer 15.5in E155 Silver","Silver","38  x 40  x 28",999]
[null,null,null,null,"Washer/Dryer","Contoso","9 wash & 5 dry programs, full size steam washer and dryer","Contoso Washer & Dryer 27in L270 Blue","Blue","42.5  x 39.8  x 26.5",2652]
[null,null,null,null,"Washer/Dryer","Contoso","Five Wash/spin speed combinations, 5 Wash/Dry programs","Contoso Washer & Dryer 25.5in M255 Blue","Blue","42  x 40.5  x 30",1989]
[null,null,null,null,"Washer/Dryer","Contoso","Tumble action cleaning system, 4 Wash/Dry programs","Contoso Washer & Dryer 24in M240 Blue","Blue","30 x 39 x 28.5",1818]
[null,null,null,null,"Washer/Dryer","Contoso","7 washing programs, 5 Wash/Rinse temperature levels","Contoso Washer & Dryer 21in E210 Blue","Blue","38  x 40  x 28",1599]
[null,null,null,null,"Washer/Dryer","Contoso","15.5\" duet washer and dryer pedestal with drawer","Contoso Washer & Dryer 15.5in E155 Blue","Blue","42.5  x 39.8  x 26.5",999]
[null,null,null,null,"Washer/Dryer","Contoso","9 Wash & 5 Dry programs, full size steam washer and dryer","Contoso Washer & Dryer 27in L270 Green","Green","42  x 40.5  x 30",2652]
[null,null,null,null,"Washer/Dryer","Contoso","Five Wash/spin speed combinations, 5 Wash/Dry programs","Contoso Washer & Dryer 25.5in M255 Green","Green","40.5  x 38  x 35",1989]
[null,null,null,null,"Washer/Dryer","Contoso","Tumble action cleaning system, 4 Wash/Dry programs","Contoso Washer & Dryer 24in M240 Green","Green","31.5 x 38.3 x 25.5",1818]
[null,null,null,null,"Washer/Dryer","Contoso","7 washing programs, 5 Wash/Rinse temperature levels","Contoso Washer & Dryer 21in E210 Green","Green","30 x 38.6 x 28.5",1599]
[null,null,null,null,"Washer/Dryer","Contoso","15.5\" duet washer and dryer pedestal with drawer","Contoso Washer & Dryer 15.5in E155 Green","Green","38  x 40  x 28",999]
[null,null,null,null,"Washer/Dryer","Contoso","9 wash & 5 dry programs, full size steam washer and dryer","Contoso Washer & Dryer 27in L270 Red","Red","41.7  x 39.8  x 26.5",2652]
[null,null,null,null,"Washer/Dryer","Contoso","Five Wash/spin speed combinations, 5 Wash/Dry programs","Contoso Washer & Dryer 25.5in M255 Red","Red","40.3  x 40.5  x 30",1989]
[null,null,null,null,"Washer/Dryer","Contoso","Tumble action cleaning system, 4 Wash/Dry programs","Contoso Washer & Dryer 24in M240 Red","Red","40.8  x 38.4  x 35",1818]
[null,null,null,null,"Washer/Dryer","Contoso","7 washing programs, 5 Wash/Rinse temperature levels","Contoso Washer & Dryer 21in E210 Red","Red","32.6 x 28.5 x 18.5",1599]
[null,null,null,null,"Washer/Dryer","Contoso","15.5\" duet washer and dryer pedestal with drawer","Contoso Washer & Dryer 15.5in E155 Red","Red","33.9 x 38 x 25.5",999]
[null,null,null,null,"Washer/Dryer","Contoso","9 wash & 5 dry programs, full size steam washer and dryer","Contoso Washer & Dryer 27in L270 Pink","Pink","33.2 x 38 x 25.5",2652]
[null,null,null,null,"Washer/Dryer","Contoso","Five Wash/spin speed combinations, 5 Wash/Dry programs","Contoso Washer & Dryer 25.5in M255 Pink","Pink","38.8  x 40.2  x 28.5",1989]
[null,null,null,null,"Washer/Dryer","Contoso","Tumble action cleaning system, 4 Wash/Dry programs","Contoso Washer & Dryer 24in M240 Pink","Pink","40.5  x 39  x 28.5",1818]
[null,null,null,null,"Washer/Dryer","Contoso","7 washing programs, 5 Wash/Rinse temperature levels","Contoso Washer & Dryer 21in E210 Pink","Pink","42.5  x 40.6  x 30.5",1599]
[null,null,null,null,"Washer/Dryer","Contoso","15.5\" duet washer and dryer pedestal with drawer","Contoso Washer & Dryer 15.5in E155 Pink","Pink","30.9  x 32  x 35",999]
[null,null,null,null,"Washer/Dryer","Litware","9 Wash & 5 Dry programs, full Size steam washer and dryer","Litware Washer & Dryer 27in L420 White","White","30.5 x 28 x 18.5",2652]
[null,null,null,null,"Washer/Dryer","Litware","Five Wash/spin Speed combinations, 5 Wash/Dry programs","Litware Washer & Dryer 25.5in M350 White","White","31.5 x 38 x 25.5",1989]
[null,null,null,null,"Washer/Dryer","Litware","Tumble action cleaning system, 4 Wash/Dry programs","Litware Washer & Dryer 24in M260 White","White","31.5 x 38 x 25.5",1818]
[null,null,null,null,"Washer/Dryer","Litware","7 washing programs, 5 Wash/Rinse temperature levels","Litware Washer & Dryer 21in E214 White","White","38.5  x 40  x 28.5",1599]
[null,null,null,null,"Washer/Dryer","Litware","15.5\" duet Washer and Dryer pedestal with drawer","Litware Washer & Dryer 15.5in E150 White","White","40.5  x 39  x 28.5",999]
[null,null,null,null,"Washer/Dryer","Litware","9 Wash & 5 dry programs, full size steam washer and dryer","Litware Washer & Dryer 27in L420 Silver","Silver","42.5  x 40  x 30.5",2652]
[null,null,null,null,"Washer/Dryer","Litware","Five Wash/spin speed combinations, 5 Wash/Dry programs","Litware Washer & Dryer 25.5in M350 Silver","Silver","40  x 38  x 35",1989]
[null,null,null,null,"Washer/Dryer","Litware","Tumble action cleaning system, 4 Wash/Dry programs","Litware Washer & Dryer 24in M260 Silver","Silver","30 x 28.5 x 18.5",1818]
[null,null,null,null,"Washer/Dryer","Litware","7 washing programs, 5 Wash/Rinse temperature levels","Litware Washer & Dryer 21in E214 Silver","Silver","31.5 x 38.3 x 25.5",1599]
[null,null,null,null,"Washer/Dryer","Litware","15.5\" duet washer and dryer pedestal with drawer","Litware Washer & Dryer 15.5in E150 Silver","Silver","30 x 38.6 x 28.5",999]
[null,null,null,null,"Washer/Dryer","Litware","9 wash & 5 dry programs, full size steam washer and dryer","Litware Washer & Dryer 27in L420 Blue","Blue","38  x 40  x 28",2652]
[null,null,null,null,"Washer/Dryer","Litware","Five Wash/spin speed combinations, 5 wash/dry programs","Litware Washer & Dryer 25.5in M350 Blue","Blue","42.5  x 39.8  x 26.5",1989]
[null,null,null,null,"Washer/Dryer","Litware","Tumble action cleaning system, 4 Wash/Dry programs","Litware Washer & Dryer 24in M260 Blue","Blue","42.4  x 40.5  x 30",1818]
[null,null,null,null,"Washer/Dryer","Litware","7 washing programs, 5 Wash/Rinse temperature levels","Litware Washer & Dryer 21in E214 Blue","Blue","40.5  x 38.4  x 35",1599]
[null,null,null,null,"Washer/Dryer","Litware","15.5\" duet washer and dryer pedestal with drawer","Litware Washer & Dryer 15.5in E150 Blue","Blue","32.6 x 28.5 x 18.5",999]
[null,null,null,null,"Washer/Dryer","Litware","9 wash & 5 dry programs, full size steam washer and dryer","Litware Washer & Dryer 27in L420 Green","Green","33.5 x 38 x 25.5",2652]
[null,null,null,null,"Washer/Dryer","Litware","Five Wash/spin Speed Combinations. 5 Wash/Dry Programs","Litware Washer & Dryer 25.5in M350 Green","Green","33 x 38 x 25.5",1989]
[null,null,null,null,"Washer/Dryer","Litware","Tumble action cleaning system, 4 wash/dry programs","Litware Washer & Dryer 24in M260 Green","Green","38.8  x 40.2  x 28.5",1818]
[null,null,null,null,"Washer/Dryer","Litware","7 washing programs, 5 Wash/Rinse temperature levels","Litware Washer & Dryer 21in E214 Green","Green","40.5  x 39  x 28.5",1599]
[null,null,null,null,"Washer/Dryer","Litware","15.5\" duet washer and dryer pedestal with drawer","Litware Washer & Dryer 15.5in E150 Green","Green","42.5  x 40.6  x 30.5",999]
[null,null,null,null,"Washer/Dryer","Northwind Traders","9 wash & 5 dry programs, full size steam washer and dryer","NT Washer & Dryer 27in L2700 White","White","40.9  x 38  x 35",2652.9]
[null,null,null,null,"Washer/Dryer","Northwind Traders","Five Wash/spin speed combinations, 5 Wash/Dry programs","NT Washer & Dryer 25.5in M2550 White","White","30.5 x 28.5 x 18.5",1989.9]
[null,null,null,null,"Washer/Dryer","Northwind Traders","Tumble action cleaning system, 4 Wash/Dry programs","NT Washer & Dryer 24in M2400 White","White","31 x 38.3 x 25.5",1818.9]
[null,null,null,null,"Washer/Dryer","Northwind Traders","7 washing programs, 5 Wash/Rinse temperature levels","NT Washer & Dryer 21in E2100 White","White","30 x 39 x 28.5",1599.9]
[null,null,null,null,"Washer/Dryer","Northwind Traders","15.5\" duet washer and dryer pedestal with drawer","NT Washer & Dryer 15.5in E1550 White","White","38  x 40  x 28",999.9]
[null,null,null,null,"Washer/Dryer","Northwind Traders","9 wash & 5 dry programs, full size steam washer and dryer","NT Washer & Dryer 27in L2700 Silver","Silver","42.5  x 39.8  x 26.5",2652.9]
[null,null,null,null,"Washer/Dryer","Northwind Traders","Five Wash/spin speed combinations, 5 Wash/Dry programs","NT Washer & Dryer 25.5in M2550 Silver","Silver","42  x 40.5  x 30",1989.9]
[null,null,null,null,"Washer/Dryer","Northwind Traders","Tumble action cleaning system, 4 Wash/Dry programs","NT Washer & Dryer 24in M2400 Silver","Silver","40.5  x 38  x 35",1818.9]
[null,null,null,null,"Washer/Dryer","Northwind Traders","7 washing programs, 5 Wash/Rinse temperature levels","NT Washer & Dryer 21in E2100 Silver","Silver","31.5 x 38.3 x 25.5",1599.9]
[null,null,null,null,"Washer/Dryer","Northwind Traders","15.5\" duet washer and dryer pedestal with drawer","NT Washer & Dryer 15.5in E1550 Silver","Silver","30 x 38.6 x 28.5",999.9]
[null,null,null,null,"Washer/Dryer","Northwind Traders","9 wash & 5 dry programs, full size steam washer and dryer","NT Washer & Dryer 27in L2700 Blue","Blue","38  x 40  x 28",2652.9]
[null,null,null,null,"Washer/Dryer","Northwind Traders","Five Wash/spin speed combinations, 5 Wash/Dry programs","NT Washer & Dryer 25.5in M2550 Blue","Blue","42.7  x 39.8  x 26.5",1989.9]
[null,null,null,null,"Washer/Dryer","Northwind Traders","Tumble action cleaning system, 4 Wash/Dry programs","NT Washer & Dryer 24in M2400 Blue","Blue","42.3  x 40.5  x 30",1818.9]
[null,null,null,null,"Washer/Dryer","Northwind Traders","7 washing programs, 5 Wash/Rinse temperature levels","NT Washer & Dryer 21in E2100 Blue","Blue","40.8  x 38.4  x 35",1599.9]
[null,null,null,null,"Washer/Dryer","Northwind Traders","15.5\" duet washer and dryer pedestal with drawer","NT Washer & Dryer 15.5in E1550 Blue","Blue","32.6 x 28.5 x 18.5",999.9]
[null,null,null,null,"Washer/Dryer","Northwind Traders","9 wash & 5 dry programs, full size steam washer and dryer","NT Washer & Dryer 27in L2700 Green","Green","33.9 x 38 x 25.5",2652.9]
[null,null,null,null,"Washer/Dryer","Northwind Traders","Five Wash/spin speed combinations, 5 Wash/Dry programs","NT Washer & Dryer 25.5in M2550 Green","Green","33.2 x 38 x 25.5",1989.9]
[null,null,null,null,"Washer/Dryer","Northwind Traders","Tumble action cleaning system, 4 Wash/Dry programs","NT Washer & Dryer 24in M2400 Green","Green","38.8  x 40.2  x 28.5",1818.9]
[null,null,null,null,"Washer/Dryer","Northwind Traders","7 washing programs, 5 Wash/Rinse temperature levels","NT Washer & Dryer 21in E2100 Green","Green","40.5  x 39  x 28.5",1599.9]
[null,null,null,null,"Washer/Dryer","Northwind Traders","15.5\" duet washer and dryer pedestal with drawer","NT Washer & Dryer 15.5in E1550 Green","Green","42.5  x 40.6  x 30.5",999.9]
[null,null,null,null,"Refrigerator","Fabrikam","Total capacity: 24.7cu.ft, Dispense-a-Can storage for easy access to drinks","Fabrikam Refrigerator 24.7CuFt X9800 White","White","21.6 x 18.1 x 46.1 ",3199.99]
[null,null,null,null,"Refrigerator","Fabrikam","19-cubic-foot refrigerator, Refrigerator Capacity: 12.6cu.ft., Freezer Capacity: 6.4cu.ft.","Fabrikam Refrigerator 19CuFt M7600 White","White","34.8 x 23.2 x 20.5",899]
[null,null,null,null,"Refrigerator","Fabrikam","9.7-cubic-foot refrigerator, four full glass shelves handle lots of snacks","Fabrikam Refrigerator 9.7CuFt M5600 White","White","36.8 x 40.2 x 28",493]
[null,null,null,null,"Refrigerator","Fabrikam","4.6-cubic-foot refrigerator, compressor cooled, space saving flat back design","Fabrikam Refrigerator 4.6CuFt E2800 White","White","18.3 x 19.3 x 20.2",299.99]
[null,null,null,null,"Refrigerator","Fabrikam","3.2-cubic-foot refrigerator, flush back space saving design","Fabrikam Refrigerator 3.2CuFt E1600 White","White","19.9 x 18.6 x 34.8",279.99]
[null,null,null,null,"Refrigerator","Fabrikam","1.7-cubic-foot refrigerator, soft line and reversible door, flush back design","Fabrikam Refrigerator 1.7CuFt E1200 White","White","22.5 x 21.5 x 33.5",129.99]
[null,null,null,null,"Refrigerator","Fabrikam","Total Capacity: 24.7cu.ft, Dispense-a-Can storage for easy access to drinks","Fabrikam Refrigerator 24.7CuFt X9800 Brown","Brown","20.8 x 19.9 x 18.8",3199.99]
[null,null,null,null,"Refrigerator","Fabrikam","19-cubic-foot refrigerator, Refrigerator Capacity: 12.6cu.ft. , Freezer Capacity: 6.4cu.ft.","Fabrikam Refrigerator 19CuFt M7600 Brown","Brown","21.7 x 17.1 x 46.2",899]
[null,null,null,null,"Refrigerator","Fabrikam","9.7-cubic-foot refrigerator, four full glass shelves handle lots of snacks","Fabrikam Refrigerator 9.7CuFt M5600 Brown","Brown","36.7 x 42.2 x 29",493]
[null,null,null,null,"Refrigerator","Fabrikam","4.6-cubic-foot refrigerator, compressor cooled, space saving flat back design","Fabrikam Refrigerator 4.6CuFt E2800 Brown","Brown","20.7 x 18.7 x 33.7",299.99]
[null,null,null,null,"Refrigerator","Fabrikam","3.2-cubic-foot refrigerator, flush back space saving design","Fabrikam Refrigerator 3.2CuFt E1600 Brown","Brown","22.8 x 19.9 x 36.1",279.99]
[null,null,null,null,"Refrigerator","Fabrikam","1.7-cubic-foot refrigerator, soft line and reversible door, flush back design","Fabrikam Refrigerator 1.7CuFt E1200 Brown","Brown","20.7 x 18.7 x 33.7",129.99]
[null,null,null,null,"Refrigerator","Fabrikam","Total Capacity: 24.7cu.ft, Dispense-a-Can storage for easy access to drinks","Fabrikam Refrigerator 24.7CuFt X9800 Silver","Silver","35.8 x 39.2 x 27",3199.99]
[null,null,null,null,"Refrigerator","Fabrikam","19-cubic-foot refrigerator, Refrigerator Capacity: 12.6cu.ft. ; Freezer Capacity: 6.4cu.ft.","Fabrikam Refrigerator 19CuFt M7600 Silver","Silver","20.7 x 18.7 x 33.7",899]
[null,null,null,null,"Refrigerator","Fabrikam","9.7-cubic-foot refrigerator, four full glass shelves handle lots of snacks","Fabrikam Refrigerator 9.7CuFt M5600 Silver","Silver","30.8 x 30.2 x 25",493]
[null,null,null,null,"Refrigerator","Fabrikam","4.6-cubic-foot refrigerator, compressor cooled, space saving flat back design","Fabrikam Refrigerator 4.6CuFt E2800 Silver","Silver","21.6 x 18.1 x 46",299.99]
[null,null,null,null,"Refrigerator","Fabrikam","3.2-cubic-foot refrigerator, flush back space saving design","Fabrikam Refrigerator 3.2CuFt E1600 Silver","Silver","34.8 x 23.2 x 20.5",279.99]
[null,null,null,null,"Refrigerator","Fabrikam","1.7-cubic-foot refrigerator, soft line and reversible door, flush back design","Fabrikam Refrigerator 1.7CuFt E1200 Silver","Silver","36.8 x 40.2 x 28",129.99]
[null,null,null,null,"Refrigerator","Fabrikam","Total Capacity: 24.7cu.ft, Dispense-a-Can storage for easy access to drinks","Fabrikam Refrigerator 24.7CuFt X9800 Green","Green","18.3 x 19.3 x 20.2",3199.99]
[null,null,null,null,"Refrigerator","Fabrikam","19-cubic-foot refrigerator, Refrigerator Capacity: 12.6cu.ft. ; Freezer Capacity: 6.4cu.ft.","Fabrikam Refrigerator 19CuFt M7600 Green","Green","19.8 x 17.6 x 34.8",899]
[null,null,null,null,"Refrigerator","Fabrikam","9.7-cubic-foot refrigerator, four full glass shelves handle lots of snacks.","Fabrikam Refrigerator 9.7CuFt M5600 Green","Green","22.5 x 21.5 x 33.5",493]
[null,null,null,null,"Refrigerator","Fabrikam","4.6-cubic-foot refrigerator, compressor cooled, space saving flat back design","Fabrikam Refrigerator 4.6CuFt E2800 Green","Green","20.8 x 19.6 x 18.6",299.99]
[null,null,null,null,"Refrigerator","Fabrikam","3.2-cubic-foot refrigerator, flush back space saving design","Fabrikam Refrigerator 3.2CuFt E1600 Green","Green","21.6 x 17.8 x 46.2",279.99]
[null,null,null,null,"Refrigerator","Fabrikam","1.7-cubic-foot refrigerator, soft line and reversible door, flush back design","Fabrikam Refrigerator 1.7CuFt E1200 Green","Green","36.7 x 42.2 x 29",129.99]
[null,null,null,null,"Refrigerator","Fabrikam","Total Capacity: 24.7cu.ft. Dispense-a-Can storage for easy access to drinks","Fabrikam Refrigerator 24.7CuFt X9800 Blue","Blue","20.7 x 18.7 x 33.7",3199.99]
[null,null,null,null,"Refrigerator","Fabrikam","19-cubic-foot refrigerator, Refrigerator Capacity: 12.6cu.ft. ; Freezer Capacity: 6.4cu.ft.","Fabrikam Refrigerator 19CuFt M7600 Blue","Blue","22.8 x 19.9 x 36.1",899]
[null,null,null,null,"Refrigerator","Fabrikam","9.7-cubic-foot refrigerator, four full glass shelves handle lots of snacks","Fabrikam Refrigerator 9.7CuFt M5600 Blue","Blue","20.7 x 18.7 x 33.7",493]
[null,null,null,null,"Refrigerator","Fabrikam","4.6-cubic-foot refrigerator, compressor cooled, space saving flat back design","Fabrikam Refrigerator 4.6CuFt E2800 Blue","Blue","35.8 x 39.2 x 25",299.99]
[null,null,null,null,"Refrigerator","Fabrikam","3.2-cubic-foot refrigerator, flush back space saving design","Fabrikam Refrigerator 3.2CuFt E1600 Blue","Blue","21.5x 18 x 46",279.99]
[null,null,null,null,"Refrigerator","Fabrikam","1.7-cubic-foot refrigerator, soft line and reversible door, flush back design","Fabrikam Refrigerator 1.7CuFt E1200 Blue","Blue","34 x 23 x 20",129.99]
[null,null,null,null,"Refrigerator","Fabrikam","Total Capacity: 24.7cu.ft. Dispense-a-Can storage for easy access to drinks","Fabrikam Refrigerator 24.7CuFt X9800 Grey","Grey","36 x 40 x 28",3199.99]
[null,null,null,null,"Refrigerator","Fabrikam","19-cubic-foot refrigerator, refrigerator Capacity: 12.6cu.ft. ; Freezer Capacity: 6.4cu.ft.","Fabrikam Refrigerator 19CuFt M7600 Grey","Grey","18 x 19 x 20.2",899]
[null,null,null,null,"Refrigerator","Fabrikam","9.7-cubic-foot refrigerator, four full glass shelves handle lots of snacks.","Fabrikam Refrigerator 9.7CuFt M5600 Grey","Grey","19 x 18 x 34",493]
[null,null,null,null,"Refrigerator","Fabrikam","4.6-cubic-foot refrigerator, compressor cooled, space saving flat back design","Fabrikam Refrigerator 4.6CuFt E2800 Grey","Grey","22 x 21 x 33",299.99]
[null,null,null,null,"Refrigerator","Fabrikam","3.2-cubic-foot refrigerator, flush back space saving design","Fabrikam Refrigerator 3.2CuFt E1600 Grey","Grey","20 x 19 x 18",279.99]
[null,null,null,null,"Refrigerator","Fabrikam","1.7-cubic-foot refrigerator, soft line and reversible door, flush back design","Fabrikam Refrigerator 1.7CuFt E1200 Grey","Grey","21 x 17 x 46",129.99]
[null,null,null,null,"Refrigerator","Fabrikam","Total Capacity: 24.7cu.ft. Dispense-a-Can storage for easy access to drinks","Fabrikam Refrigerator 24.7CuFt X9800 Orange","Orange","36 x 42 x 29",3199.99]
[null,null,null,null,"Refrigerator","Fabrikam","19-cubic-foot refrigerator, Refrigerator Capacity: 12.6cu.ft. ; Freezer Capacity: 6.4cu.ft.","Fabrikam Refrigerator 19CuFt M7600 Orange","Orange","20 x 18 x 33",899]
[null,null,null,null,"Refrigerator","Fabrikam","9.7-cubic-foot refrigerator, four full glass shelves handle lots of snacks","Fabrikam Refrigerator 9.7CuFt M5600 Orange","Orange","22 x 19 x 36",493]
[null,null,null,null,"Refrigerator","Fabrikam","4.6-cubic-foot refrigerator, compressor cooled, space saving flat back design","Fabrikam Refrigerator 4.6CuFt E2800 Orange","Orange","20 x 18 x 33",299.99]
[null,null,null,null,"Refrigerator","Fabrikam","3.2-cubic-foot refrigerator, flush back space saving design","Fabrikam Refrigerator 3.2CuFt E1600 Orange","Orange","35 x 39 x 27",279.99]
[null,null,null,null,"Refrigerator","Fabrikam","1.7-cubic-foot refrigerator, soft line and reversible door, flush back design","Fabrikam Refrigerator 1.7CuFt E1200 Orange","Orange","20 x 18 x 33",129.99]
[null,null,null,null,"Refrigerator","Litware","Total Capacity: 24.7cu.ft, Dispense-a-Can storage for easy access to drinks","Litware Refrigerator 24.7CuFt X980 White","White","30.5 x 30.2 x 25",3199.99]
[null,null,null,null,"Refrigerator","Litware","19-cubic-foot refrigerator, Refrigerator Capacity: 12.6cu.ft. ,Freezer Capacity: 6.4cu.ft.","Litware Refrigerator 19CuFt M760 White","White","21.6 x 18 x 46",899]
[null,null,null,null,"Refrigerator","Litware","9.7-cubic-foot refrigerator, four full glass shelves handle lots of snacks","Litware Refrigerator 9.7CuFt M560 White","White","34 x 23.2 x 20.5",493]
[null,null,null,null,"Refrigerator","Litware","4.6-cubic-foot refrigerator, compressor cooled, space saving flat back design","Litware Refrigerator 4.6CuFt E280 White","White","36 x 40.2 x 28",299.99]
[null,null,null,null,"Refrigerator","Litware","3.2-cubic-foot refrigerator, flush back space saving design","Litware Refrigerator 3.2CuFt E160 White","White","18 x 19.3 x 20",279.99]
[null,null,null,null,"Refrigerator","Litware","1.7-cubic-foot refrigerator, soft line and reversible door, flush back design","Litware Refrigerator 1.7CuFt E120 White","White","19 x 17 x 34.8",129.99]
[null,null,null,null,"Refrigerator","Litware","Total Capacity: 24.7cu.ft. Dispense-a-Can storage for easy access to drinks","Litware Refrigerator 24.7CuFt X980 Brown","Brown","22 x 21 x 33.5",3199.99]
[null,null,null,null,"Refrigerator","Litware","19-cubic-foot refrigerator, Refrigerator Capacity: 12.6cu.ft. ; Freezer Capacity: 6.4cu.ft.","Litware Refrigerator 19CuFt M760 Brown","Brown","20 x 19 x 18.6",899]
[null,null,null,null,"Refrigerator","Litware","9.7-cubic-foot refrigerator, four full glass shelves handle lots of snacks","Litware Refrigerator 9.7CuFt M560 Brown","Brown","21 x 17 x 46.2",493]
[null,null,null,null,"Refrigerator","Litware","4.6-cubic-foot refrigerator, compressor cooled, space saving flat back design","Litware Refrigerator 4.6CuFt E280 Brown","Brown","36 x 42.2 x 29",299.99]
[null,null,null,null,"Refrigerator","Litware","3.2-cubic-foot refrigerator, flush back space saving design","Litware Refrigerator 3.2CuFt E160 Brown","Brown","20 x 18 x 33.7",279.99]
[null,null,null,null,"Refrigerator","Litware","1.7-cubic-foot refrigerator, soft line and reversible door, flush back design","Litware Refrigerator 1.7CuFt E120 Brown","Brown","22 x 19 x 36",129.99]
[null,null,null,null,"Refrigerator","Litware","Total Capacity: 24.7cu.ft. Dispense-a-Can storage for easy access to drinks","Litware Refrigerator 24.7CuFt X980 Silver","Silver","20 x 18 x 33",3199.99]
[null,null,null,null,"Refrigerator","Litware","19-cubic-foot refrigerator, Refrigerator Capacity: 12.6cu.ft. ; Freezer Capacity: 6.4cu.ft.","Litware Refrigerator 19CuFt M760 Silver","Silver","35 x 39 x 25",899]
[null,null,null,null,"Refrigerator","Litware","9.7-cubic-foot refrigerator, four full glass shelves handle lots of snacks","Litware Refrigerator 9.7CuFt M560 Silver","Silver","20.7 x 18.7 x 33.7",493]
[null,null,null,null,"Refrigerator","Litware","4.6-cubic-foot refrigerator, compressor cooled, space saving flat back design","Litware Refrigerator 4.6CuFt E280 Silver","Silver","22.8 x 19.9 x 36.1",299.99]
[null,null,null,null,"Refrigerator","Litware","3.2-cubic-foot refrigerator, flush back space saving design","Litware Refrigerator 3.2CuFt E160 Silver","Silver","20.7 x 18.7 x 33.7",279.99]
[null,null,null,null,"Refrigerator","Litware","1.7-cubic-foot refrigerator, soft line and reversible door, flush back design","Litware Refrigerator 1.7CuFt E120 Silver","Silver","35.8 x 39.2 x 27",129.99]
[null,null,null,null,"Refrigerator","Litware","Total Capacity: 24.7cu.ft. Dispense-a-Can storage for easy access to drinks","Litware Refrigerator 24.7CuFt X980 Green","Green","20.7 x 18.7 x 33.7",3199.99]
[null,null,null,null,"Refrigerator","Litware","19-cubic-foot refrigerator, Refrigerator Capacity: 12.6cu.ft. ; Freezer Capacity: 6.4cu.ft.","Litware Refrigerator 19CuFt M760 Green","Green","30.8 x 30.2 x 25",899]
[null,null,null,null,"Refrigerator","Litware","9.7-cubic-foot refrigerator, four full glass shelves handle lots of snacks","Litware Refrigerator 9.7CuFt M560 Green","Green","21.6 x 18.1 x 46",493]
[null,null,null,null,"Refrigerator","Litware","4.6-cubic-foot refrigerator, compressor cooled, space saving flat back design","Litware Refrigerator 4.6CuFt E280 Green","Green","34.8 x 23 x 20.5",299.99]
[null,null,null,null,"Refrigerator","Litware","3.2-cubic-foot refrigerator, flush back space saving design","Litware Refrigerator 3.2CuFt E160 Green","Green","36.8 x 40.2 x 28",279.99]
[null,null,null,null,"Refrigerator","Litware","1.7-cubic-foot refrigerator, soft line and reversible door,flush back design.","Litware Refrigerator 1.7CuFt E120 Green","Green","18.3 x 19 x 20.2",129.99]
[null,null,null,null,"Refrigerator","Litware","Total Capacity: 24.7cu.ft. Dispense-a-Can storage for easy access to drinks","Litware Refrigerator 24.7CuFt X980 Blue","Blue","19.8 x 17.6 x 34",3199.99]
[null,null,null,null,"Refrigerator","Litware","19-cubic-foot refrigerator, Refrigerator Capacity: 12.6cu.ft. Freezer Capacity: 6.4cu.ft.","Litware Refrigerator 19CuFt M760 Blue","Blue","22 x 21.5 x 33.5",899]
[null,null,null,null,"Refrigerator","Litware","9.7-cubic-foot refrigerator, four full glass shelves handle lots of snacks","Litware Refrigerator 9.7CuFt M560 Blue","Blue","20.8 x 19.6 x 18",493]
[null,null,null,null,"Refrigerator","Litware","4.6-cubic-foot refrigerator, compressor cooled, space saving flat back design","Litware Refrigerator 4.6CuFt E280 Blue","Blue","21.6 x 17 x 46.2",299.99]
[null,null,null,null,"Refrigerator","Litware","3.2-cubic-foot refrigerator, flush back space saving design","Litware Refrigerator 3.2CuFt E160 Blue","Blue","36.7 x 42 x 29.5",279.99]
[null,null,null,null,"Refrigerator","Litware","1.7-cubic-foot refrigerator, soft line and reversible door, flush back design","Litware Refrigerator 1.7CuFt E120 Blue","Blue","20.7 x 18 x 33.7",129.99]
[null,null,null,null,"Refrigerator","Litware","Total Capacity: 24.7cu.ft. Dispense-a-Can storage for easy access to drinks","Litware Refrigerator 24.7CuFt X980 Grey","Grey","22.8 x 19 x 36.1",3199.99]
[null,null,null,null,"Refrigerator","Litware","19-cubic-foot refrigerator, Refrigerator Capacity: 12.6cu.ft. ; Freezer Capacity: 6.4cu.ft.","Litware Refrigerator 19CuFt M760 Grey","Grey","20.7 x 18 x 33.7",899]
[null,null,null,null,"Refrigerator","Litware","9.7-cubic-foot refrigerator, four full glass shelves handle lots of snacks","Litware Refrigerator 9.7CuFt M560 Grey","Grey","35 x 39.2 x 25",493]
[null,null,null,null,"Refrigerator","Litware","4.6-cubic-foot refrigerator, compressor cooled, space saving flat back design","Litware Refrigerator 4.6CuFt E280 Grey","Grey","21.5x 18 x 46.3",299.99]
[null,null,null,null,"Refrigerator","Litware","3.2-cubic-foot refrigerator, flush back space saving design","Litware Refrigerator 3.2CuFt E160 Grey","Grey","34 x 23 x 20",279.99]
[null,null,null,null,"Refrigerator","Litware","1.7-cubic-foot refrigerator, soft line and reversible door, flush back design","Litware Refrigerator 1.7CuFt E120 Grey","Grey","36 x 40 x 28",129.99]
[null,null,null,null,"Refrigerator","Litware","Total Capacity: 24.7cu.ft. Dispense-a-Can storage for easy access to drinks","Litware Refrigerator L1200 Orange","Orange","18 x 19 x 20",3199.99]
[null,null,null,null,"Refrigerator","Litware","19-cubic-foot refrigerator, Refrigerator Capacity: 12.6cu.ft. Freezer Capacity: 6.4cu.ft.","Litware Refrigerator 19CuFt M760 Orange","Orange","19 x 18 x 34",899]
[null,null,null,null,"Refrigerator","Litware","9.7-cubic-foot refrigerator, four full glass shelves handle lots of snacks","Litware Refrigerator 9.7CuFt M560 Orange","Orange","22 x 21 x 33",493]
[null,null,null,null,"Refrigerator","Litware","4.6-cubic-foot refrigerator, compressor cooled, space saving flat back design","Litware Refrigerator 4.6CuFt E280 Orange","Orange","20 x 19 x 18",299.99]
[null,null,null,null,"Refrigerator","Litware","3.2-cubic-foot refrigerator, flush back space saving design","Litware Refrigerator 3.2CuFt E160 Orange","Orange","21 x 17 x 46.5",279.99]
[null,null,null,null,"Refrigerator","Litware","1.7-cubic-foot refrigerator, soft line and reversible door, flush back design","Litware Refrigerator 1.7CuFt E120 Orange","Orange","36 x 42 x 29.6",129.99]
[null,null,null,null,"Refrigerator","Litware","19-cubic-foot refrigerator, Refrigerator Capacity: 12.6cu.ft. ; Freezer Capacity: 6.4cu.ft.","Litware Refrigerator 19CuFt M760 Red","Red","20 x 18 x 33.8",899]
[null,null,null,null,"Refrigerator","Litware","9.7-cubic-foot refrigerator, four full glass shelves handle lots of snacks","Litware Refrigerator 9.7CuFt M560 Red","Red","35 x 39 x 25.9",493]
[null,null,null,null,"Microwave","Contoso","1100-watt 1-1/2-cubic-foot convection microwave oven","Contoso Microwave 1.5CuFt X0110 White","White"," 22.5 x 17.5 x 14",665.94]
[null,null,null,null,"Microwave","Contoso","1250 watts of power for faster cooking, defrosting interior","Contoso Microwave 2.2CuFt M0125 White","White","18 x 39 x 31 ",199.99]
[null,null,null,null,"Microwave","Contoso","1250-watt full-sized microwave oven with 1-3/5-cubic-foot capacity","Contoso Microwave 1.6CuFt M0125 White","White","19 x 14.3 x 11.1",179.99]
[null,null,null,null,"Microwave","Contoso","1100-watt mid-sized microwave oven with 1-cubic-foot capacity","Contoso Microwave 1.0CuFt E0110 White","White","23 x 27 x 15 ",139.99]
[null,null,null,null,"Microwave","Contoso","Total output 900 watts. 10 power levels, 6 one touch cooking menu","Contoso Microwave 0.9CuFt E0090 White","White","23 x 27 x 17 ",99.99]
[null,null,null,null,"Microwave","Contoso","800-watt compact-size microwave oven with 4/5-cubic-foot capacity","Contoso Microwave 0.8CuFt E0080 White","White"," 22.5 x 17.5 x 14",94.99]
[null,null,null,null,"Microwave","Contoso","1100-watt 1-1/2-cubic-foot convection microwave oven","Contoso Microwave 1.5CuFt X0110 Silver","Silver","33.1 x 19.3 x 15.6",665.94]
[null,null,null,null,"Microwave","Contoso","1250 watts of power for faster cooking, defrosting interior","Contoso Microwave 2.2CuFt M0125 Silver","Silver","20 x 20 x 34 ",199.99]
[null,null,null,null,"Microwave","Contoso","1250-watt full-sized microwave oven with 1-3/5-cubic-foot capacity","Contoso Microwave 1.6CuFt M0125 Silver","Silver","19 x 24 x 14 ",179.99]
[null,null,null,null,"Microwave","Contoso","1100-watt mid-sized microwave oven with 1-cubic-foot capacity","Contoso Microwave 1.0CuFt E0110 Silver","Silver","19 x 14.3 x 11.1",139.99]
[null,null,null,null,"Microwave","Contoso","Total output 900 watts. 10 power levels, 6 one touch cooking menu","Contoso Microwave 0.9CuFt E0090 Silver","Silver","21 x 12 x 17 ",99.99]
[null,null,null,null,"Microwave","Contoso","800-watt compact-size microwave oven with 4/5-cubic-foot capacity","Contoso Microwave 0.8CuFt E0080 Silver","Silver","25.2 x 21.5 x 15.1 ",94.99]
[null,null,null,null,"Microwave","Contoso","1100-watt 1-1/2-cubic-foot convection microwave oven","Contoso Microwave 1.5CuFt X0110 Grey","Grey"," 22.5 x 17.5 x 14",665.94]
[null,null,null,null,"Microwave","Contoso","1250 watts of power for faster cooking, defrosting interior","Contoso Microwave 2.2CuFt M0125 Grey","Grey","13 x 19.4 x 16.5",199.99]
[null,null,null,null,"Microwave","Contoso","1250-watt full-sized microwave oven with 1-3/5-cubic-foot capacity","Contoso Microwave 2.2CuFt M0126 Grey","Grey","18 x 21 x 13 ",179.99]
[null,null,null,null,"Microwave","Contoso","1100-watt mid-sized microwave oven with 1-cubic-foot capacity","Contoso Microwave 1.0CuFt E0110 Grey","Grey","19 x 24 x 14 ",139.99]
[null,null,null,null,"Microwave","Contoso","Total output 900 watts, 10 power levels, 6 one touch cooking menu","Contoso Microwave 0.9CuFt E0090 Grey","Grey"," 17 x 22 x 15 ",99.99]
[null,null,null,null,"Microwave","Contoso","800-watt compact-size microwave oven with 4/5-cubic-foot capacity","Contoso Microwave 0.8CuFt E0080 Grey","Grey","19.4 x 21.9 x 11.9",94.99]
[null,null,null,null,"Microwave","Contoso","1100-watt 1-1/2-cubic-foot convection microwave oven","Contoso Microwave 1.5CuFt X0110 Red","Red","15 x 12 x 20   ",665.94]
[null,null,null,null,"Microwave","Contoso","1250 watts of power for faster cooking, defrosting interior","Contoso Microwave 2.2CuFt M0125 Red","Red","19 x 14.3 x 11.1",199.99]
[null,null,null,null,"Microwave","Contoso","1250-watt full-sized microwave oven with 1-3/5-cubic-foot capacity","Contoso Microwave 1.6CuFt M0125 Red","Red"," 24.7 x 21.4 x 15.4",179.99]
[null,null,null,null,"Microwave","Contoso","1100-watt mid-sized microwave oven with 1-cubic-foot capacity","Contoso Microwave 1.0CuFt E0110 Red","Red","22.5 x 16.8 x 13 ",139.99]
[null,null,null,null,"Microwave","Contoso","Total output 900 watts. 10 power levels, 6 one touch cooking menu","Contoso Microwave 0.9CuFt E0090 Red","Red","21.7 x 17.4 x 12.4",99.99]
[null,null,null,null,"Microwave","Contoso","800-watt compact-size microwave oven with 4/5-cubic-foot capacity","Contoso Microwave 0.8CuFt E0080 Red","Red"," 22.5 x 17.5 x 14",94.99]
[null,null,null,null,"Microwave","Contoso","1100-watt 1-1/2-cubic-foot convection microwave oven","Contoso Microwave 1.5CuFt X0110 Black","Black","18 x 39 x 31 ",665.94]
[null,null,null,null,"Microwave","Contoso","1250 watts of power for faster cooking, defrosting interior","Contoso Microwave 2.2CuFt M0125 Black","Black","19 x 14.3 x 11.1",199.99]
[null,null,null,null,"Microwave","Contoso","1250-watt full-sized microwave oven with 1-3/5-cubic-foot capacity","Contoso Microwave 1.6CuFt M0125 Black","Black","23 x 27 x 15 ",179.99]
[null,null,null,null,"Microwave","Contoso","1100-watt mid-sized microwave oven with 1-cubic-foot capacity","Contoso Microwave 1.0CuFt E0110 Black","Black","23 x 27 x 17 ",139.99]
[null,null,null,null,"Microwave","Contoso","Total output 900 watts, 10 power levels, 6 one touch cooking menu","Contoso Microwave 0.9CuFt E0090 Black","Black"," 22.5 x 17.5 x 14",99.99]
[null,null,null,null,"Microwave","Contoso","800-watt compact-size microwave oven with 4/5-cubic-foot capacity","Contoso Microwave 0.8CuFt E0080 Black","Black","33.1 x 19.3 x 15.6",94.99]
[null,null,null,null,"Microwave","Fabrikam","1100-watt 1-1/2-cubic-foot convection microwave oven","Fabrikam Microwave 1.5CuFt X1100 White","White","15 x 12 x 20   ",665.94]
[null,null,null,null,"Microwave","Fabrikam","1250 watts of power for faster cooking, defrosting interior","Fabrikam Microwave 2.2CuFt M1250 White","White","17.8 x 20.5 x 12.2",199.99]
[null,null,null,null,"Microwave","Fabrikam","1250-watt full-sized microwave oven with 1-3/5-cubic-foot capacity","Fabrikam Microwave 1.6CuFt M1250 White","White","15 x 12 x 20 ",179.99]
[null,null,null,null,"Microwave","Fabrikam","1100-watt mid-sized microwave oven with 1-cubic-foot capacity","Fabrikam Microwave 1.0CuFt E1100 White","White","16.1  x 6.5  x 1.8 ",139.99]
[null,null,null,null,"Microwave","Fabrikam","Total output 900 watts,. 10 power levels, 6 one touch cooking menu","Fabrikam Microwave 0.9CuFt E0900 White","White","15.9 x 20.4 x 11.9 ",99.99]
[null,null,null,null,"Microwave","Fabrikam","800-watt compact-size microwave oven with 4/5-cubic-foot capacity","Fabrikam Microwave 0.8CuFt E0800 White","White","15 x 12 x 20 ",94.99]
[null,null,null,null,"Microwave","Fabrikam","1100-watt 1-1/2-cubic-foot convection microwave oven","Fabrikam Microwave 1.5CuFt X1100 Silver","Silver","19 x 24 x 14  ",665.94]
[null,null,null,null,"Microwave","Fabrikam","1250 watts of power for faster cooking, defrosting interior","Fabrikam Microwave 2.2CuFt M1250 Silver","Silver","17 x 22 x 15 ",199.99]
[null,null,null,null,"Microwave","Fabrikam","1250-watt full-sized microwave oven with 1-3/5-cubic-foot capacity","Fabrikam Microwave 1.6CuFt M1250 Silver","Silver","19 x 14.3 x 11.1",179.99]
[null,null,null,null,"Microwave","Fabrikam","1100-watt mid-sized microwave oven with 1-cubic-foot capacity","Fabrikam Microwave 1.0CuFt E1100 Silver","Silver","19 x 14.3 x 11.1",139.99]
[null,null,null,null,"Microwave","Fabrikam","Total output 900 watts, 10 power levels, 6 one touch cooking menu","Fabrikam Microwave 0.9CuFt E0900 Silver","Silver","5.7  x 6.7  x 1.9  ",99.99]
[null,null,null,null,"Microwave","Fabrikam","800-watt compact-size microwave oven with 4/5-cubic-foot capacity","Fabrikam Microwave 0.8CuFt E0800 Silver","Silver"," 22.5 x 17.5 x 14",94.99]
[null,null,null,null,"Microwave","Fabrikam","1100-watt 1-1/2-cubic-foot convection microwave oven","Fabrikam Microwave 1.5CuFt X1100 Grey","Grey","19.4 x 21.9 x 11.9",665.94]
[null,null,null,null,"Microwave","Fabrikam","1250 watts of power for faster cooking, defrosting interior","Fabrikam Microwave 2.2CuFt M1250 Grey","Grey"," 22.5 x 17.5 x 14",199.99]
[null,null,null,null,"Microwave","Fabrikam","1250-watt full-sized microwave oven with 1-3/5-cubic-foot capacity","Fabrikam Microwave 1.6CuFt M1250 Grey","Grey","19 x 24 x 14 ",179.99]
[null,null,null,null,"Microwave","Fabrikam","1100-watt mid-sized microwave oven with 1-cubic-foot capacity","Fabrikam Microwave 1.0CuFt E1100 Grey","Grey","19 x 14.3 x 11.1",139.99]
[null,null,null,null,"Microwave","Fabrikam","Total output 900 watts. 10 power levels, 6 one touch cooking menu","Fabrikam Microwave 0.9CuFt E0900 Grey","Grey","21.6 x 12.4 x 17.5 ",99.99]
[null,null,null,null,"Microwave","Fabrikam","800-watt compact-size microwave oven with 4/5-cubic-foot capacity","Fabrikam Microwave 0.8CuFt E0800 Grey","Grey","19.4 x 23.9 x 14 ",94.99]
[null,null,null,null,"Microwave","Fabrikam","1100-watt 1-1/2-cubic-foot convection microwave oven","Fabrikam Microwave 1.5CuFt X1100 Red","Red"," 22.5 x 17.5 x 14",665.94]
[null,null,null,null,"Microwave","Fabrikam","1250 watts of power for faster cooking, defrosting interior","Fabrikam Microwave 2.2CuFt M1250 Red","Red","23.2 x 22.2 x 15.5",199.99]
[null,null,null,null,"Microwave","Fabrikam","1250-watt full-sized microwave oven with 1-3/5-cubic-foot capacity","Fabrikam Microwave 1.6CuFt M1250 Red","Red","21.6 x 12.4 x 17.5",179.99]
[null,null,null,null,"Microwave","Fabrikam","1100-watt mid-sized microwave oven with 1-cubic-foot capacity","Fabrikam Microwave 1.0CuFt E1100 Red","Red","19 x 24 x 15 ",139.99]
[null,null,null,null,"Microwave","Fabrikam","Total output 900 watts, 10 power levels. 6 one touch cooking menu","Fabrikam Microwave 0.9CuFt E0900 Red","Red","17.2 x 20.5 x 12.2",99.99]
[null,null,null,null,"Microwave","Fabrikam","800-watt compact-size microwave oven with 4/5-cubic-foot capacity","Fabrikam Microwave 0.8CuFt E0800 Red","Red","19 x 14.3 x 11.1",94.99]
[null,null,null,null,"Microwave","Fabrikam","1100-watt 1-1/2-cubic-foot convection microwave oven","Fabrikam Microwave 1.5CuFt X1100 Black","Black"," 24.7 x 21.4 x 15.4",665.94]
[null,null,null,null,"Microwave","Fabrikam","1250 watts of power for faster cooking, defrosting interior","Fabrikam Microwave 2.2CuFt M1250 Black","Black","22.5 x 16.8 x 13 ",199.99]
[null,null,null,null,"Microwave","Fabrikam","1250-watt full-sized microwave oven with 1-3/5-cubic-foot capacity","Fabrikam Microwave 1.6CuFt M1250 Black","Black","21.7 x 17.4 x 12.4",179.99]
[null,null,null,null,"Microwave","Fabrikam","1100-watt mid-sized microwave oven with 1-cubic-foot capacity","Fabrikam Microwave 1.0CuFt E1100 Black","Black"," 22.5 x 17.5 x 14",139.99]
[null,null,null,null,"Microwave","Fabrikam","Total output 900 watts. 10 power levels, 6 one touch cooking menu","Fabrikam Microwave 0.9CuFt E0900 Black","Black","18 x 39 x 31 ",99.99]
[null,null,null,null,"Microwave","Fabrikam","800-watt compact-size microwave oven with 4/5-cubic-foot capacity","Fabrikam Microwave 0.8CuFt E0800 Black","Black","19 x 14.3 x 11.1",94.99]
[null,null,null,null,"Microwave","Fabrikam","1100-watt 1-1/2-cubic-foot convection microwave oven","Fabrikam Microwave 1.5CuFt X1100 Blue","Blue","23 x 27 x 15 ",665.94]
[null,null,null,null,"Microwave","Fabrikam","1250 watts of power for faster cooking, defrosting interior","Fabrikam Microwave 2.2CuFt M1250 Blue","Blue","23 x 27 x 17 ",199.99]
[null,null,null,null,"Microwave","Fabrikam","1250-watt full-sized microwave oven with 1-3/5-cubic-foot capacity","Fabrikam Microwave 1.6CuFt M1250 Blue","Blue"," 22.5 x 17.5 x 14",179.99]
[null,null,null,null,"Microwave","Fabrikam","1100-watt mid-sized microwave oven with 1-cubic-foot capacity","Fabrikam Microwave 1.0CuFt E1100 Blue","Blue","33.1 x 19.3 x 15.6",139.99]
[null,null,null,null,"Microwave","Fabrikam","Total output 900 watts, 10 power levels, 6 one touch cooking menu","Fabrikam Microwave 0.9CuFt E0900 Blue","Blue","20 x 20 x 34 ",99.99]
[null,null,null,null,"Microwave","Fabrikam","800-watt compact-size microwave oven with 4/5-cubic-foot capacity","Fabrikam Microwave 0.8CuFt E0800 Blue","Blue","19 x 24 x 14 ",94.99]
[null,null,null,null,"Microwave","Litware","1100-watt 1-1/2-cubic-foot convection microwave oven","Litware Microwave 1.5CuFt X110 White","White","19 x 14.3 x 11.1",665.94]
[null,null,null,null,"Microwave","Litware","1250 watts of power for faster cooking, defrosting interior","Litware Microwave 2.2CuFt M125 White","White","21 x 12 x 17 ",199.99]
[null,null,null,null,"Microwave","Litware","1250-watt full-sized microwave oven with 1-3/5-cubic-foot capacity","Litware Microwave 1.6CuFt M125 White","White","25.2 x 21.5 x 15.1 ",179.99]
[null,null,null,null,"Microwave","Litware","1100-watt mid-sized microwave oven with 1-cubic-foot capacity","Litware Microwave 1.0CuFt E110 White","White"," 22.5 x 17.5 x 14",139.99]
[null,null,null,null,"Microwave","Litware","Total output 900 watts. 10 power levels, 6 one touch cooking menu","Litware Microwave 0.9CuFt E090 White","White","13 x 19.4 x 16.5",99.99]
[null,null,null,null,"Microwave","Litware","800-watt compact-size microwave oven with 4/5-cubic-foot capacity","Litware Microwave 0.8CuFt E080 White","White","18 x 21 x 13 ",94.99]
[null,null,null,null,"Microwave","Litware","1100-watt 1-1/2-cubic-foot convection microwave oven","Litware Microwave 1.5CuFt X110 Silver","Silver","19 x 24 x 14 ",665.94]
[null,null,null,null,"Microwave","Litware","1250 watts of power for faster cooking, defrosting interior","Litware Microwave 2.2CuFt M125 Silver","Silver"," 17 x 22 x 15 ",199.99]
[null,null,null,null,"Microwave","Litware","1250-watt full-sized microwave oven with 1-3/5-cubic-foot capacity","Litware Microwave 1.6CuFt M125 Silver","Silver","19.4 x 21.9 x 11.9",179.99]
[null,null,null,null,"Microwave","Litware","1100-watt mid-sized microwave oven with 1-cubic-foot capacity","Litware Microwave 1.0CuFt E110 Silver","Silver","15 x 12 x 20   ",139.99]
[null,null,null,null,"Microwave","Litware","Total output 900 watts. 10 power levels, 6 one touch cooking menu","Litware Microwave 0.9CuFt E090 Silver","Silver","17.8 x 20.5 x 12.2",99.99]
[null,null,null,null,"Microwave","Litware","800-watt compact-size microwave oven with 4/5-cubic-foot capacity","Litware Microwave 0.8CuFt E080 Silver","Silver","15 x 12 x 20 ",94.99]
[null,null,null,null,"Microwave","Litware","1100-watt 1-1/2-cubic-foot convection microwave oven","Litware Microwave 1.5CuFt X110 Grey","Grey","16.1  x 6.5  x 1.8 ",665.94]
[null,null,null,null,"Microwave","Litware","1250 watts of power for faster cooking, defrosting interior","Litware Microwave 2.2CuFt M125 Grey","Grey","15.9 x 20.4 x 11.9 ",199.99]
[null,null,null,null,"Microwave","Litware","1250-watt full-sized microwave oven with 1-3/5-cubic-foot capacity","Litware Microwave 1.6CuFt M125 Grey","Grey","15 x 12 x 20 ",179.99]
[null,null,null,null,"Microwave","Litware","1100-watt mid-sized microwave oven with 1-cubic-foot capacity","Litware Microwave 1.0CuFt E110 Grey","Grey","19 x 24 x 14  ",139.99]
[null,null,null,null,"Microwave","Litware","Total output 900 watts, 10 power levels. 6 one touch cooking menu","Litware Microwave 0.9CuFt E090 Grey","Grey","17 x 22 x 15 ",99.99]
[null,null,null,null,"Microwave","Litware","800-watt compact-size microwave oven with 4/5-cubic-foot capacity","Litware Microwave 0.8CuFt E080 Grey","Grey","19 x 14.3 x 11.1",94.99]
[null,null,null,null,"Microwave","Litware","1100-watt 1-1/2-cubic-foot convection microwave oven","Litware Microwave 1.5CuFt X110 Red","Red","19 x 14.3 x 11.1",665.94]
[null,null,null,null,"Microwave","Litware","1250 watts of power for faster cooking, defrosting interior","Litware Microwave 2.2CuFt M125 Red","Red","5.7  x 6.7  x 1.9  ",199.99]
[null,null,null,null,"Microwave","Litware","1250-watt full-sized microwave oven with 1-3/5-cubic-foot capacity","Litware Microwave 1.6CuFt M125 Red","Red"," 22.5 x 17.5 x 14",179.99]
[null,null,null,null,"Microwave","Litware","1100-watt mid-sized microwave oven with 1-cubic-foot capacity","Litware Microwave 1.0CuFt E110 Red","Red","19.4 x 21.9 x 11.9",139.99]
[null,null,null,null,"Microwave","Litware","Total output 900 watts. 10 power levels, 6 one touch cooking menu","Litware Microwave 0.9CuFt E090 Red","Red"," 22.5 x 17.5 x 14",99.99]
[null,null,null,null,"Microwave","Litware","800-watt compact-size microwave oven with 4/5-cubic-foot capacity","Litware Microwave 0.8CuFt E080 Red","Red","19 x 24 x 14 ",94.99]
[null,null,null,null,"Microwave","Litware","1100-watt 1-1/2-cubic-foot convection microwave oven","Litware Microwave 1.5CuFt X110 Black","Black","19 x 14.3 x 11.1",665.94]
[null,null,null,null,"Microwave","Litware","1250 watts of power for faster cooking, defrosting interior","Litware Microwave 2.2CuFt M125 Black","Black","21.6 x 12.4 x 17.5 ",199.99]
[null,null,null,null,"Microwave","Litware","1250-watt full-sized microwave oven with 1-3/5-cubic-foot capacity","Litware Microwave 1.6CuFt M125 Black","Black","19.4 x 23.9 x 14 ",179.99]
[null,null,null,null,"Microwave","Litware","1100-watt mid-sized microwave oven with 1-cubic-foot capacity","Litware Microwave 1.0CuFt E110 Black","Black"," 22.5 x 17.5 x 14",139.99]
[null,null,null,null,"Microwave","Litware","Total output 900 watts. 10 power levels, 6 one touch cooking menu","Litware Microwave 0.9CuFt E090 Black","Black","23.2 x 22.2 x 15.5",99.99]
[null,null,null,null,"Microwave","Litware","800-watt compact-size microwave oven with 4/5-cubic-foot capacity","Litware Microwave 0.8CuFt E080 Black","Black","21.6 x 12.4 x 17.5",94.99]
[null,null,null,null,"Microwave","Litware","1100-watt 1-1/2-cubic-foot convection microwave oven","Litware Microwave 1.5CuFt X110 Blue","Blue","19 x 24 x 15 ",665.94]
[null,null,null,null,"Microwave","Litware","1250 watts of power for faster cooking, defrosting interior","Litware Microwave 2.2CuFt M125 Blue","Blue","17.2 x 20.5 x 12.2",199.99]
[null,null,null,null,"Microwave","Litware","1250-watt full-sized microwave oven with 1-3/5-cubic-foot capacity","Litware Microwave 1.6CuFt M125 Blue","Blue","19 x 14.3 x 11.1",179.99]
[null,null,null,null,"Microwave","Litware","1100-watt mid-sized microwave oven with 1-cubic-foot capacity","Litware Microwave 1.0CuFt E110 Blue","Blue"," 24.7 x 21.4 x 15.4",139.99]
[null,null,null,null,"Microwave","Litware","Total output 900 watts, 10 power levels, 6 one touch cooking menu","Litware Microwave 0.9CuFt E090 Blue","Blue","22.5 x 16.8 x 13 ",99.99]
[null,null,null,null,"Microwave","Litware","800-watt compact-size microwave oven with 4/5-cubic-foot capacity","Litware Microwave 0.8CuFt E080 Blue","Blue","21.7 x 17.4 x 12.4",94.99]
[null,null,null,null,"Water Heater","Contoso ","Delivers 7.2 gallons per minute, can save up to 50% off utility costs annually","Contoso Water Heater 7.2GPM X1800 White","White","10.5 x 14 x 14   ",1475]
[null,null,null,null,"Water Heater","Contoso ","Delivers up to 4.3 gallons per minute, endless hot water","Contoso Water Heater 4.3GPM M1250 White","White","12.5  x 14  x 3.9 ",877.5]
[null,null,null,null,"Water Heater","Contoso ","Provides 4 gallons of hot water per minute, includes one water heater","Contoso Water Heater 4.0GPM M1250 White","White","12.2 x 14 x 14 ",791]
[null,null,null,null,"Water Heater","Contoso ","Provides 2.6 gallons of hot water per minute, average energy-efficiency rating of 90 percent","Contoso Water Heater 2.6GPM E0900 White","White","4.2 x 15.2 x 15.5 ",508]
[null,null,null,null,"Water Heater","Contoso ","Delivers 1.5 gallons per minute,99-percent efficient","Contoso Water Heater 1.5GPM E0800 White","White","11 x 2.5 x 8  ",257.5]
[null,null,null,null,"Water Heater","Contoso ","Delivers 7.2 gallons per minute, can save up to 50% off utility costs annually","Contoso Water Heater 7.2GPM X1800 Blue","Blue","8.5 x 12.2 x 22.8",1475]
[null,null,null,null,"Water Heater","Contoso ","Delivers up to 4.3 gallons per minute, endless hot water","Contoso Water Heater 4.3GPM M1250 Blue","Blue","8.5 x 16.8 x 25.8",877.5]
[null,null,null,null,"Water Heater","Contoso ","Provides 4 gallons of hot water per minute, includes one water heater","Contoso Water Heater 4.0GPM M1250 Blue","Blue","22 x 6 x 14 ",791]
[null,null,null,null,"Water Heater","Contoso ","Provides 2.6 gallons of hot water per minute, average energy-efficiency rating of 90 percent","Contoso Water Heater 2.6GPM E0900 Blue","Blue","3.2 x 7.5 x 6.5",508]
[null,null,null,null,"Water Heater","Contoso ","Delivers 1.5 gallons per minute,99-percent efficient","Contoso Water Heater 1.5GPM E0800 Blue","Blue","8.5 x 16.8 x 25.8",257.5]
[null,null,null,null,"Water Heater","Contoso ","Delivers 7.2 gallons per minute, Can save up to 50% off utility costs annually","Contoso Water Heater 7.2GPM X1800 Green","Green","12.5  x 14  x 3.9 ",1475]
[null,null,null,null,"Water Heater","Contoso ","Delivers up to 4.3 gallons per minute, Endless hot water","Contoso Water Heater 4.3GPM M1250 Green","Green","5.4  x 3.7  x 1.5 ",877.5]
[null,null,null,null,"Water Heater","Contoso ","Provides 4 gallons of hot water per minute, Includes one water heater","Contoso Water Heater 4.0GPM M1250 Green","Green","3.5  x 2  x 5  ",791]
[null,null,null,null,"Water Heater","Contoso ","Provides 2.6 gallons of hot water per minute, average energy-efficiency rating of 90 percent","Contoso Water Heater 2.6GPM E0900 Green","Green","6.5  x 4.5  x 4.5  ",508]
[null,null,null,null,"Water Heater","Contoso ","Delivers 1.5 gallons per minute, 99-percent efficient","Contoso Water Heater 1.5GPM E0800 Green","Green","4  x 2.5  x 5.5  ",257.5]
[null,null,null,null,"Water Heater","Contoso ","Delivers 7.2 gallons per minute, Can save up to 50% off utility costs annually","Contoso Water Heater 7.2GPM X1800 Silver","Silver","3.4  x 2.2  x 5  ",1475]
[null,null,null,null,"Water Heater","Contoso ","Delivers up to 4.3 gallons per minute. Endless hot water","Contoso Water Heater 4.3GPM M1250 Silver","Silver","3.2  x 5.4  x 3.2 ",877.5]
[null,null,null,null,"Water Heater","Contoso ","Provides 4 gallons of hot water per minute, Includes one water heater","Contoso Water Heater 4.0GPM M1250 Silver","Silver","2.6  x 5.4  x 2.8 ",791]
[null,null,null,null,"Water Heater","Contoso ","Provides 2.6 gallons of hot water per minute, average energy-efficiency rating of 90 percent","Contoso Water Heater 2.6GPM E0900 Silver","Silver","3.2  x 5.4  x 3.2 ",508]
[null,null,null,null,"Water Heater","Contoso ","Delivers 1.5 gallons per minute, 99-percent efficient","Contoso Water Heater 1.5GPM E0800 Silver","Silver","5  x 2.4  x 3.9 ",257.5]
[null,null,null,null,"Water Heater","Contoso ","Delivers 7.2 gallons per minute, can save up to 50% off utility costs annually","Contoso Water Heater 7.2GPM X1800 Grey","Grey","4.1 x 7.9 x 14.2 ",1475]
[null,null,null,null,"Water Heater","Contoso ","Delivers up to 4.3 gallons per minute, endless hot water","Contoso Water Heater 4.3GPM M1250 Grey","Grey","6.9  x 10.4  x 4 ",877.5]
[null,null,null,null,"Water Heater","Contoso ","Provides 4 gallons of hot water per minute, includes one water heater","Contoso Water Heater 4.0GPM M1250 Grey","Grey","4.1 x 7.9 x 14.8",791]
[null,null,null,null,"Water Heater","Contoso ","Provides 2.6 gallons of hot water per minute, average energy-efficiency rating of 90 percent","Contoso Water Heater 2.6GPM E0900 Grey","Grey","6.9  x 10.4  x 4 ",508]
[null,null,null,null,"Water Heater","Contoso ","Delivers 1.5 gallons per minute, 99-percent efficient","Contoso Water Heater 1.5GPM E0800 Grey","Grey","3.4  x 2.2  x 5  ",257.5]
[null,null,null,null,"Water Heater","Contoso ","Delivers 7.2 gallons per minute, can save up to 50% off utility costs annually","Contoso Water Heater 7.2GPM X1800 Red","Red","6.9  x 10.4  x 4 ",1475]
[null,null,null,null,"Water Heater","Contoso ","Delivers up to 4.3 gallons per minute, endless hot water","Contoso Water Heater 4.3GPM M1250 Red","Red","8.5 x 12.2 x 22.8",877.5]
[null,null,null,null,"Water Heater","Contoso ","Provides 4 gallons of hot water per minute, includes one water heater","Contoso Water Heater 4.0GPM M1250 Red","Red","5  x 2.4  x 3.9 ",791]
[null,null,null,null,"Water Heater","Contoso ","Provides 2.6 gallons of hot water per minute, average energy-efficiency rating of 90 percent","Contoso Water Heater 2.6GPM E0900 Red","Red","4.8  x 2.7  x 3.6 ",508]
[null,null,null,null,"Water Heater","Contoso ","Delivers 1.5 gallons per minute, 99-percent efficient","Contoso Water Heater 1.5GPM E0800 Red","Red","5  x 2.4  x 3.9 ",257.5]
[null,null,null,null,"Water Heater","Contoso ","Delivers up to 4.3 gallons per minute, endless hot water","Contoso Water Heater 4.3GPM M1250 Yellow","Yellow","5.1  x 2.4  x 3.7 ",877.5]
[null,null,null,null,"Coffee Maker","Adventure Works","Combination 12 cup Super-Auto coffee maker, 1250-watt super-automatic espresso machine","Adventure Works Coffee Maker Super-Auto 12C X125 Black","Black","12.5 x 8.8 x 12.8",1650]
[null,null,null,null,"Coffee Maker","Adventure Works","Combination 10 cup coffee maker & 15-bar Pump Espresso","Adventure Works Coffee Maker Auto 10C M100 Black","Black","12.5  x 14  x 3.9 ",745.99]
[null,null,null,null,"Coffee Maker","Adventure Works","Combination 12 cup coffee maker, 24-hour clock/timer for wake-up coffee","Adventure Works Coffee Maker 12C M100 Black","Black","11.3 x 17 x 14 ",445]
[null,null,null,null,"Coffee Maker","Adventure Works","Combination 5 cup auto coffee maker","Adventure Works Coffee Maker Auto 5C E090 Black","Black","8.6 x 12.4 x 13 ",163]
[null,null,null,null,"Coffee Maker","Adventure Works","5-Cup capacity with glass carafe, digital soft touch pad and automatic shut off","Adventure Works Coffee Maker 5C E090 Black","Black","5.8  x 7.8  x 1.7 ",149]
[null,null,null,null,"Coffee Maker","Adventure Works","4-cup-capacity steam-driven espresso/cappuccino machine","Adventure Works Coffee Maker 4C E080 Black","Black","5.8  x 7.8  x 1.7 ",129.9]
[null,null,null,null,"Coffee Maker","Adventure Works","Combination 12 cup Super-Auto coffee maker, 1250-watt super-automatic espresso machine","Adventure Works Coffee Maker Super-Auto 12C X125 Silver","Silver","22  x 20.5  x 3.4  ",1650]
[null,null,null,null,"Coffee Maker","Adventure Works","Combination 10 cup coffee maker & 15-bar pump espresso","Adventure Works Coffee Maker Auto 10C M100 Silver","Silver","16.1  x 6.5  x 1.8 ",745.99]
[null,null,null,null,"Coffee Maker","Adventure Works","Combination 12 cup coffee maker,24-hour clock/timer for wake-up coffee","Adventure Works Coffee Maker 12C M100 Silver","Silver","2.8  x 5.2  x 1.3 ",445]
[null,null,null,null,"Coffee Maker","Adventure Works","Combination 5 cup auto coffee maker","Adventure Works Coffee Maker Auto 5C E090 Silver","Silver","8.1  x 5  x 1.9 ",163]
[null,null,null,null,"Coffee Maker","Adventure Works","5-Cup Capacity with glass carafe, digital soft touch pad and automatic shut off","Adventure Works Coffee Maker 5C E090 Silver","Silver","17.2  x 7.5  x 3.5 ",149]
[null,null,null,null,"Coffee Maker","Adventure Works","4-cup-capacity steam-driven espresso/cappuccino machine","Adventure Works Coffee Maker 4C E080 Silver","Silver","8.1  x 5  x 1.9 ",129.9]
[null,null,null,null,"Coffee Maker","Adventure Works","Combination 12 cup Super-Auto coffee maker, 1250-watt super-automatic espresso machine","Adventure Works Coffee Maker Super-Auto 12C X125 White","White","1.7  x 3.5  x 0.9  ",1650]
[null,null,null,null,"Coffee Maker","Adventure Works","Combination 10 cup coffee maker & 15-bar pump espresso","Adventure Works Coffee Maker Auto 10C M100 White","White","17.2  x 7.5  x 3.5 ",745.99]
[null,null,null,null,"Coffee Maker","Adventure Works","Combination 12 cup coffee maker, 24-hour clock/timer for wake-up coffee","Adventure Works Coffee Maker 12C M100 White","White","8.1  x 5  x 1.9 ",445]
[null,null,null,null,"Coffee Maker","Adventure Works","Combination 5 cup auto coffee maker","Adventure Works Coffee Maker Auto 5C E090 White","White","3  x 3.8  x 0.3 ",163]
[null,null,null,null,"Coffee Maker","Adventure Works","5-Cup capacity with glass carafe, digital soft touch pad and automatic shut off","Adventure Works Coffee Maker 5C E090 White","White","20  x 20.5  x 3.4  ",149]
[null,null,null,null,"Coffee Maker","Adventure Works","4-cup-capacity steam-driven espresso/cappuccino machine","Adventure Works Coffee Maker 4C E080 White","White","12.5  x 14  x 3.11 ",129.9]
[null,null,null,null,"Coffee Maker","Adventure Works","Combination 12 cup Super-Auto coffee maker, 1250-watt super-automatic espresso machine","Adventure Works Coffee Maker Super-Auto 12C X125 Grey","Grey","2.1  x 3  x 0.9  ",1650]
[null,null,null,null,"Coffee Maker","Adventure Works","Combination 10 cup coffee maker & 15-bar pump espresso","Adventure Works Coffee Maker Auto 10C M100 Grey","Grey","1.3  x 1.1  x 3.5 ",745.99]
[null,null,null,null,"Coffee Maker","Adventure Works","Combination 12 cup coffee maker, 24-hour clock/timer for wake-up coffee","Adventure Works Coffee Maker 12C M100 Grey","Grey","17.5  x 28  x 3.5  ",445]
[null,null,null,null,"Coffee Maker","Adventure Works","Combination 5 cup auto coffee maker","Adventure Works Coffee Maker Auto 5C E090 Grey","Grey","17.5  x 28  x 3.5  ",163]
[null,null,null,null,"Coffee Maker","Adventure Works","5-Cup capacity with glass carafe, digital soft touch pad and automatic shut off","Adventure Works Coffee Maker 5C E090 Grey","Grey","17.4  x 12  x 1.9 ",149]
[null,null,null,null,"Coffee Maker","Adventure Works","4-cup-capacity steam-driven espresso/cappuccino machine","Adventure Works Coffee Maker 4C E080 Grey","Grey","1.3  x 1.1  x 3.5 ",129.9]
[null,null,null,null,"Coffee Maker","Contoso","Combination 12 cup Super-Auto coffee maker, 1250-watt super-automatic espresso machine","Contoso Coffee Maker Super-Auto 12C X1250 Black","Black","15.6 x 11 x 10.5",1650]
[null,null,null,null,"Coffee Maker","Contoso","Combination 10 cup coffee maker & 15-bar pump espresso","Contoso Coffee Maker Auto 10C M1000 Black","Black","16.6 x 12 x 10.4",745.99]
[null,null,null,null,"Coffee Maker","Contoso","Combination 12 cup coffee maker, 24-hour clock/timer for wake-up coffee","Contoso Coffee Maker 12C M1000 Black","Black","15 x 11 x 14 ",445]
[null,null,null,null,"Coffee Maker","Contoso","Combination 5 cup auto coffee maker","Contoso Coffee Maker Auto 5C E0900 Black","Black","12.5  x 14  x 3.9 ",163]
[null,null,null,null,"Coffee Maker","Contoso","5-Cup Capacity with glass carafe, digital soft touch pad and automatic shut off","Contoso Coffee Maker 5C E0900 Black","Black","9.2 x 9.5 x 12.5",149]
[null,null,null,null,"Coffee Maker","Contoso","4-cup-capacity steam-driven espresso/cappuccino machine","Contoso Coffee Maker 4C E0800 Black","Black","12.5  x 14  x 3.9 ",129.9]
[null,null,null,null,"Coffee Maker","Contoso","Combination 12 cup super-auto coffee maker, 1250-watt super-automatic espresso machine","Contoso Coffee Maker Super-Auto 12C X1250 Silver","Silver","15 x 16 x 13   ",1650]
[null,null,null,null,"Coffee Maker","Contoso","Combination 10 cup coffee maker & 15-bar pump espresso","Contoso Coffee Maker Auto 10C M1000 Silver","Silver","12 x 8.8 x 12.8",745.99]
[null,null,null,null,"Coffee Maker","Contoso","Combination 12 cup coffee maker, 24-hour clock/timer for wake-up coffee","Contoso Coffee Maker 12C M1000 Silver","Silver","12.5  x 14  x 3.9 ",445]
[null,null,null,null,"Coffee Maker","Contoso","Combination 5 cup auto coffee maker","Contoso Coffee Maker Auto 5C E0900 Silver","Silver","11 x 17 x 14 ",163]
[null,null,null,null,"Coffee Maker","Contoso","5-Cup Capacity with glass carafe, digital soft touch pad and automatic shut off","Contoso Coffee Maker 5C E0900 Silver","Silver"," 8.4 x 12.4 x 13 ",149]
[null,null,null,null,"Coffee Maker","Contoso","4-cup-capacity steam-driven espresso/cappuccino machine","Contoso Coffee Maker 4C E0800 Silver","Silver","16.8 x 12.3 x 10.4",129.9]
[null,null,null,null,"Coffee Maker","Contoso","Combination 12 cup Super-Auto coffee maker, 1250-watt super-automatic espresso machine","Contoso Coffee Maker Super-Auto 12C X1250 White","White","15.2 x 11 x 14.6",1650]
[null,null,null,null,"Coffee Maker","Contoso","Combination 10 cup coffee maker & 15-bar pump espresso","Contoso Coffee Maker Auto 10C M1000 White","White","12.4  x 14  x 3.9 ",745.99]
[null,null,null,null,"Coffee Maker","Contoso","Combination 12 cup coffee maker, 24-hour clock/timer for wake-up coffee","Contoso Coffee Maker 12C M1000 White","White","9 x 9.5 x 12.5",445]
[null,null,null,null,"Coffee Maker","Contoso","Combination 5 cup auto coffee maker","Contoso Coffee Maker Auto 5C E0900 White","White","12  x 14  x 3.9 ",163]
[null,null,null,null,"Coffee Maker","Contoso","5-Cup Capacity with glass carafe, digital soft touch pad and automatic shut off","Contoso Coffee Maker 5C E0900 White","White","15.3 x 16 x 13   ",149]
[null,null,null,null,"Coffee Maker","Contoso","4-cup-capacity steam-driven espresso/cappuccino machine","Contoso Coffee Maker 4C E0800 White","White","12.5 x 8.8 x 12.8",129.9]
[null,null,null,null,"Coffee Maker","Contoso","Combination 12 cup Super-Auto coffee maker, 1250-watt super-automatic espresso machine","Contoso Coffee Maker Super-Auto 12C X1250 Grey","Grey","12.5  x 14  x 3.9 ",1650]
[null,null,null,null,"Coffee Maker","Contoso","Combination 10 cup coffee maker & 15-bar pump espresso","Contoso Coffee Maker Auto 10C M1000 Grey","Grey","11.3 x 17 x 14 ",745.99]
[null,null,null,null,"Coffee Maker","Contoso","Combination 12 cup coffee maker, 24-hour clock/timer for wake-up coffee","Contoso Coffee Maker 12C M1000 Grey","Grey","8.6 x 12.4 x 13 ",445]
[null,null,null,null,"Coffee Maker","Contoso","Combination 5 cup auto coffee maker","Contoso Coffee Maker Auto 5C E0900 Grey","Grey","5.8  x 7.8  x 1.7 ",163]
[null,null,null,null,"Coffee Maker","Contoso","5-Cup capacity with glass carafe, digital soft touch pad and automatic shut off","Contoso Coffee Maker 5C E0900 Grey","Grey","5.8  x 7.8  x 1.7 ",149]
[null,null,null,null,"Coffee Maker","Contoso","4-cup-capacity steam-driven espresso/cappuccino machine","Contoso Coffee Maker 4C E0800 Grey","Grey","15.3 x 16 x 13   ",129.9]
[null,null,null,null,"Coffee Maker","Fabrikam","Combination 12 cup Super-Auto coffee maker, 1250-watt super-automatic espresso machine","Fabrikam Coffee Maker Super-Auto 12C X125 Black","Black","17.4  x 12  x 1.8 ",1650]
[null,null,null,null,"Coffee Maker","Fabrikam","Combination 10 cup coffee maker & 15-bar pump espresso","Fabrikam Coffee Maker Auto 10C M100 Black","Black","17.5  x 28  x 3.5  ",745.99]
[null,null,null,null,"Coffee Maker","Fabrikam","Combination 12 cup coffee maker, 24-hour clock/timer for wake-up coffee","Fabrikam Coffee Maker 12C M100 Black","Black","8.6 x 12.4 x 13 ",445]
[null,null,null,null,"Coffee Maker","Fabrikam","Combination 5 cup auto coffee maker","Fabrikam Coffee Maker Auto 5C E090 Black","Black","5.8  x 7.8  x 1.7 ",163]
[null,null,null,null,"Coffee Maker","Fabrikam","5-Cup Capacity with glass carafe, digital soft touch pad and automatic shut off","Fabrikam Coffee Maker 5C E090 Black","Black","5.8  x 7.8  x 1.7 ",149]
[null,null,null,null,"Coffee Maker","Fabrikam","4-cup-capacity steam-driven espresso/cappuccino machine","Fabrikam Coffee Maker 4C E080 Black","Black","22  x 20.5  x 3.4  ",129.9]
[null,null,null,null,"Coffee Maker","Fabrikam","Combination 12 cup Super-Auto coffee maker, 1250-watt super-automatic espresso machine","Fabrikam Coffee Maker Super-Auto 12C X125 Silver","Silver","16.1  x 6.5  x 1.8 ",1650]
[null,null,null,null,"Coffee Maker","Fabrikam","Combination 10 cup coffee maker & 15-bar pump espresso","Fabrikam Coffee Maker Auto 10C M100 Silver","Silver","2.8  x 5.2  x 1.3 ",745.99]
[null,null,null,null,"Coffee Maker","Fabrikam","Combination 12 cup coffee maker,24-hour clock/timer for wake-up coffee","Fabrikam Coffee Maker 12C M100 Silver","Silver","8.1  x 5  x 1.9 ",445]
[null,null,null,null,"Coffee Maker","Fabrikam","Combination 5 cup auto coffee maker","Fabrikam Coffee Maker Auto 5C E090 Silver","Silver","17.2  x 7.5  x 3.5 ",163]
[null,null,null,null,"Coffee Maker","Fabrikam","5-Cup Capacity with glass carafe, digital soft touch pad and automatic shut off","Fabrikam Coffee Maker 5C E090 Silver","Silver","8.1  x 5  x 1.9 ",149]
[null,null,null,null,"Coffee Maker","Fabrikam","4-cup-capacity steam-driven espresso/cappuccino machine","Fabrikam Coffee Maker 4C E080 Silver","Silver","1.7  x 3.5  x 0.9  ",129.9]
[null,null,null,null,"Coffee Maker","Fabrikam","Combination 12 cup Super-Auto coffee maker, 1250-watt super-automatic espresso machine","Fabrikam Coffee Maker Super-Auto 12C X125 White","White","17.2  x 7.5  x 3.5 ",1650]
[null,null,null,null,"Coffee Maker","Fabrikam","Combination 10 cup coffee maker & 15-bar pump espresso","Fabrikam Coffee Maker Auto 10C M100 White","White","8.1  x 5  x 1.9 ",745.99]
[null,null,null,null,"Coffee Maker","Fabrikam","Combination 12 cup coffee maker, 24-hour clock/timer for wake-up coffee","Fabrikam Coffee Maker 12C M100 White","White","3  x 3.8  x 0.3 ",445]
[null,null,null,null,"Coffee Maker","Fabrikam","Combination 5 cup auto coffee maker","Fabrikam Coffee Maker Auto 5C E090 White","White","20  x 20.5  x 3.4  ",163]
[null,null,null,null,"Coffee Maker","Fabrikam","5-Cup Capacity with glass carafe, digital soft touch pad and automatic shut off","Fabrikam Coffee Maker 5C E090 White","White","12.5  x 14  x 3.1 ",149]
[null,null,null,null,"Coffee Maker","Fabrikam","4-cup-capacity steam-driven espresso/cappuccino machine","Fabrikam Coffee Maker 4C E080 White","White","2.1  x 3  x 0.9  ",129.9]
[null,null,null,null,"Coffee Maker","Fabrikam","Combination 12 cup Super-Auto coffee maker, 1250-watt super-automatic espresso machine","Fabrikam Coffee Maker Super-Auto 12C X125 Grey","Grey","1.3  x 1.1  x 3.5 ",1650]
[null,null,null,null,"Coffee Maker","Fabrikam","Combination 10 cup coffee maker & 15-bar pump espresso","Fabrikam Coffee Maker Auto 10C M100 Grey","Grey","17.5  x 28  x 3.5  ",745.99]
[null,null,null,null,"Coffee Maker","Fabrikam","Combination 12 cup coffee maker, 24-hour clock/timer for wake-up coffee","Fabrikam Coffee Maker 12C M100 Grey","Grey","17.5  x 28  x 3.5  ",445]
[null,null,null,null,"Coffee Maker","Fabrikam","Combination 5 cup auto coffee maker","Fabrikam Coffee Maker Auto 5C E090 Grey","Grey","17.4  x 12  x 1.9 ",163]
[null,null,null,null,"Coffee Maker","Fabrikam","5-Cup Capacity with glass carafe, digital soft touch pad and automatic shut off","Fabrikam Coffee Maker 5C E090 Grey","Grey","1.3  x 1.1  x 3.5 ",149]
[null,null,null,null,"Coffee Maker","Fabrikam","4-cup-capacity steam-driven espresso/cappuccino machine","Fabrikam Coffee Maker 4C E080 Grey","Grey","17.4  x 12  x 1.8 ",129.9]
[null,null,null,null,"Coffee Maker","Fabrikam","Combination 12 cup coffee maker, 24-hour clock/timer for wake-up coffee","Fabrikam Coffee Maker 12C M100 Gold","Gold","17.5  x 28  x 3.5  ",445]
[null,null,null,null,"Coffee Maker","Fabrikam","Combination 5 cup auto coffee maker","Fabrikam Coffee Maker Auto 5C E090 Gold","Gold","12.4  x 14  x 3.8 ",163]
[null,null,null,null,"Lamp","Adventure Works","Collapsible rectangular natural silk shade, walnut box frame, 1 x 150 Watt","Adventure Works Floor Lamp X1150 Black","Black","15.2 x 13 x 14.2",635.99]
[null,null,null,null,"Lamp","Adventure Works","Home design barrel series floor lamp in sea blue, wrought iron frame","Adventure Works Floor Lamp M2150 Black","Black","8 x 7 x 23.5",339]
[null,null,null,null,"Lamp","Adventure Works","One-Light mini duo mount chandelier, British bronze with prismatic glass crystals","Adventure Works Chandelier M8150 Black","Black","8 x 8 x 28.5",268.5]
[null,null,null,null,"Lamp","Adventure Works","Globe marina Five-Light chandelier, antique bronze with opal globes","Adventure Works Chandelier M6150 Black","Black","7 x 7 x 12 ",229.99]
[null,null,null,null,"Lamp","Adventure Works","Brushed nickel two light wall sconce, mount up or down","Adventure Works Wall Lamp E2150 Black","Black","8 x 8 x 28.5",119.99]
[null,null,null,null,"Lamp","Adventure Works","Paradise east three-light wall bracket in burnished rattan","Adventure Works Wall Lamp E3150 Black","Black","14.3 x 10.7 x 10.5",101.99]
[null,null,null,null,"Lamp","Adventure Works","2-Way brightness control lets you adjust powerful light to suit your personal preferences","Adventure Works Desk Lamp E1300 Black","Black","14.3 x 10.7 x 10.5",79.95]
[null,null,null,null,"Lamp","Adventure Works","Measures 23-1/2 inches in height, Rocker on/off switch, sleek brushed steel finish,","Adventure Works Desk Lamp E1200 Black","Black","13.5x14.2x10",29.99]
[null,null,null,null,"Lamp","Adventure Works","Collapsible rectangular natural silk shade, walnut box frame, 1 x 150 Watt","Adventure Works Floor Lamp X1150 White","White","20 x 4.5 x 21 ",635.99]
[null,null,null,null,"Lamp","Adventure Works","Home design barrel series floor lamp in sea blue, wrought iron frame","Adventure Works Floor Lamp M2150 White","White","14 x 10 x 64 ",339]
[null,null,null,null,"Lamp","Adventure Works","One-Light mini duo mount chandelier, British bronze with prismatic glass crystals","Adventure Works Chandelier M8150 White","White","13.5x14.2x10",268.5]
[null,null,null,null,"Lamp","Adventure Works","Globe marina Five-Light chandelier, antique bronze with opal globes","Adventure Works Chandelier M6150 White","White","13x14x10",229.99]
[null,null,null,null,"Lamp","Adventure Works","Brushed nickel two light wall sconce, mount up or down","Adventure Works Wall Lamp E2150 White","White","14.3 x 10.7 x 10.5",119.99]
[null,null,null,null,"Lamp","Adventure Works","Paradise east three-light wall bracket in burnished rattan","Adventure Works Wall Lamp E3150 White","White","10.5 x 10.5 x 14.5",101.99]
[null,null,null,null,"Lamp","Adventure Works","2-Way brightness control lets you adjust powerful light to suit your personal preferences","Adventure Works Desk Lamp E1300 White","White","15.5 x 12.5 x 10.5",79.95]
[null,null,null,null,"Lamp","Adventure Works","Measures 23-1/2 inches in height, rocker on/off switch, sleek brushed steel finish","Adventure Works Desk Lamp E1200 White","White","12 x 12.8 x 10.5",29.99]
[null,null,null,null,"Lamp","Adventure Works","Collapsible rectangular natural silk shade, walnut box frame, 1 x 150 Watt","Adventure Works Floor Lamp X1150 Silver","Silver","5 x 4 x 6.5",635.99]
[null,null,null,null,"Lamp","Adventure Works","Home design barrel series floor Lamp in sea blue, wrought iron frame","Adventure Works Floor Lamp M2150 Silver","Silver","7 x 7 x 16.4",339]
[null,null,null,null,"Lamp","Adventure Works","One-Light mini duo mount chandelier, British bronze with prismatic glass crystals","Adventure Works Chandelier M8150 Silver","Silver","5 x 4 x 6.5",268.5]
[null,null,null,null,"Lamp","Adventure Works","Globe marina Five-Light chandelier, antique bronze with opal globes","Adventure Works Chandelier M6150 Silver","Silver","6 x 6 x 18 ",229.99]
[null,null,null,null,"Lamp","Adventure Works","Brushed nickel two light wall sconce, mount up or down","Adventure Works Wall Lamp E2150 Silver","Silver","5 x 4 x 6.5",119.99]
[null,null,null,null,"Lamp","Adventure Works","Paradise east Three-Light wall bracket in burnished rattan","Adventure Works Wall Lamp E3150 Silver","Silver","7 x 7 x 16.4",101.99]
[null,null,null,null,"Lamp","Adventure Works","2-Way brightness control lets you adjust powerful light to suit your personal preferences","Adventure Works Desk Lamp E1300 Silver","Silver","5 x 4 x 6.5",79.95]
[null,null,null,null,"Lamp","Adventure Works","Measures 23-1/2 inches in height, rocker on/off switch, sleek brushed steel finish","Adventure Works Desk Lamp E1200 Silver","Silver","7 x 7 x 16.4",29.99]
[null,null,null,null,"Lamp","Adventure Works","Collapsible rectangular natural silk shade, walnut box frame, 1 x 150 Watt","Adventure Works Floor Lamp X1150 Grey","Grey","5 x 5 x 7.5 ",635.99]
[null,null,null,null,"Lamp","Adventure Works","Home design barrel series floor lamp in sea blue, wrought iron frame","Adventure Works Floor Lamp M2150 Grey","Grey","14 x 5 x 5",339]
[null,null,null,null,"Lamp","Adventure Works","One-Light mini Duo mount chandelier, British bronze with prismatic glass crystals","Adventure Works Chandelier M8150 Grey","Grey","5 x 4 x 6.5",268.5]
[null,null,null,null,"Lamp","Adventure Works","Globe marina Five-Light chandelier, antique bronze with opal globes","Adventure Works Chandelier M6150 Grey","Grey","14 x 5 x 5",229.99]
[null,null,null,null,"Lamp","Adventure Works","Brushed nickel two light wall sconce, mount up or down","Adventure Works Wall Lamp E2150 Grey","Grey","5 x 4 x 6.5",119.99]
[null,null,null,null,"Lamp","Adventure Works","Paradise east Three-Light wall bracket in burnished rattan","Adventure Works Wall Lamp E3150 Grey","Grey","14 x 5 x 5",101.99]
[null,null,null,null,"Lamp","Adventure Works","2-Way brightness control lets you adjust powerful light to suit your personal preferences","Adventure Works Desk Lamp E1300 Grey","Grey","5 x 5 x 7.5 ",79.95]
[null,null,null,null,"Lamp","Adventure Works","Measures 23-1/2 inches in height, rocker on/off switch, sleek brushed steel finish","Adventure Works Desk Lamp E1200 Grey","Grey","10.5 x 10.5 x 14.5",29.99]
[null,null,null,null,"Lamp","Adventure Works","Collapsible rectangular natural silk shade, walnut box frame, 1 x 150 Watt","Adventure Works Floor Lamp X1150 Blue","Blue","14 x 5 x 5",635.99]
[null,null,null,null,"Lamp","Adventure Works","Home design barrel series floor lamp in sea blue, wrought iron frame","Adventure Works Floor Lamp M2150 Blue","Blue","10.2 x 10.6 x 14.4 ",339]
[null,null,null,null,"Lamp","Adventure Works","One-Light mini Duo mount chandelier, British bronze with prismatic glass crystals","Adventure Works Chandelier M8150 Blue","Blue","10 x 15 x 6",268.5]
[null,null,null,null,"Lamp","Adventure Works","Globe marina Five-Light chandelier, antique bronze with opal globes","Adventure Works Chandelier M6150 Blue","Blue","10.2 x 10.6 x 14.4 ",229.99]
[null,null,null,null,"Lamp","Adventure Works","Brushed nickel two light wall sconce, mount up or down","Adventure Works Wall Lamp E2150 Blue","Blue","10.2 x 10.2 x 63 ",119.99]
[null,null,null,null,"Lamp","Adventure Works","Paradise east Three-Light wall bracket in burnished rattan","Adventure Works Wall Lamp E3150 Blue","Blue","10.2 x 10.6 x 14.4 ",101.99]
[null,null,null,null,"Lamp","Adventure Works","2-Way brightness control lets you adjust powerful light to suit your personal preferences","Adventure Works Desk Lamp E1300 Blue","Blue","10 x 15 x 6",79.95]
[null,null,null,null,"Lamp","Adventure Works","Measures 23-1/2 inches in height, rocker on/off switch, sleek brushed steel finish","Adventure Works Desk Lamp E1200 Blue","Blue","10 x 10 x 16.5",29.99]
[null,null,null,null,"Lamp","Litware","Collapsible rectangular natural silk shade, walnut box frame, 1 x 150 Watt","Litware Floor Lamp X1015 Black","Black","20 x 10 x 50.5",635.99]
[null,null,null,null,"Lamp","Litware","Home design barrel series floor lamp in sea blue, wrought iron frame","Litware Floor Lamp M2015 Black","Black","10.5 x 10.5 x 14.5",339]
[null,null,null,null,"Lamp","Litware","One-Light mini Duo mount chandelier, British bronze with prismatic glass crystals","Litware Chandelier M8015 Black","Black","5 x 4 x 6.5",268.5]
[null,null,null,null,"Lamp","Litware","Globe marina Five-Light chandelier, antique bronze with opal globes","Litware Chandelier M6015 Black","Black","7 x 7 x 16.4",229.99]
[null,null,null,null,"Lamp","Litware","Brushed nickel two light wall sconce, mount up or down","Litware Wall Lamp E2015 Black","Black","5 x 4 x 6.5",119.99]
[null,null,null,null,"Lamp","Litware","Paradise east Three-Light wall bracket in burnished rattan","Litware Wall Lamp E3015 Black","Black","6 x 6 x 18 ",101.99]
[null,null,null,null,"Lamp","Litware","2-Way brightness control lets you adjust powerful light to suit your personal preferences","Litware Desk Lamp E1030 Black","Black","5 x 4 x 6.5",79.95]
[null,null,null,null,"Lamp","Litware","Measures 23-1/2 inches in height, rocker on/off switch, sleek brushed steel finish","Litware Desk Lamp E1020 Black","Black","7 x 7 x 16.4",29.99]
[null,null,null,null,"Lamp","Litware","Collapsible rectangular natural silk shade, walnut box frame, 1 x 150 Watt","Litware Floor Lamp X1015 White","White","5 x 4 x 6.5",635.99]
[null,null,null,null,"Lamp","Litware","Home design barrel series floor lamp in sea blue, wrought iron frame","Litware Floor Lamp M2015 White","White","7 x 7 x 16.4",339]
[null,null,null,null,"Lamp","Litware","One-Light mini Duo mount chandelier, British bronze with prismatic glass crystals","Litware Chandelier M8015 White","White","5 x 5 x 7.5 ",268.5]
[null,null,null,null,"Lamp","Litware","Globe marina Five-Light chandelier, antique bronze with opal globes","Litware Chandelier M6015 White","White","14 x 5 x 5",229.99]
[null,null,null,null,"Lamp","Litware","Brushed nickel two light wall sconce, mount up or down","Litware Wall Lamp E2015 White","White","5 x 4 x 6.5",119.99]
[null,null,null,null,"Lamp","Litware","Paradise east Three-Light wall bracket in burnished rattan","Litware Wall Lamp E3015 White","White","14 x 5 x 5",101.99]
[null,null,null,null,"Lamp","Litware","2-Way brightness control lets you adjust powerful light to suit your personal preferences","Litware Desk Lamp E1030 White","White","5 x 4 x 6.5",79.95]
[null,null,null,null,"Lamp","Litware","Measures 23-1/2 inches in height, rocker on/off switch, sleek brushed steel finish","Litware Desk Lamp E1020 White","White","14 x 5 x 5",29.99]
[null,null,null,null,"Lamp","Litware","Collapsible rectangular natural silk shade, walnut box frame, 1 x 150 Watt","Litware Floor Lamp X1015 Silver","Silver","5 x 5 x 7.5 ",635.99]
[null,null,null,null,"Lamp","Litware","Home design barrel series floor lamp in sea blue, wrought iron frame","Litware Floor Lamp M2015 Silver","Silver","10.5 x 10.5 x 14.5",339]
[null,null,null,null,"Lamp","Litware","One-Light mini Duo mount chandelier, British bronze with prismatic glass crystals","Litware Chandelier M8015 Silver","Silver","14 x 5 x 5",268.5]
[null,null,null,null,"Lamp","Litware","Globe marina Five-Light chandelier, antique bronze with opal globes","Litware Chandelier M6015 Silver","Silver","10.2 x 10.6 x 14.4 ",229.99]
[null,null,null,null,"Lamp","Litware","Brushed nickel two light wall sconce, mount up or down","Litware Wall Lamp E2015 Silver","Silver","10 x 15 x 6",119.99]
[null,null,null,null,"Lamp","Litware","Paradise east Three-Light wall bracket in burnished rattan","Litware Wall Lamp E3015 Silver","Silver","10.2 x 10.6 x 14.4 ",101.99]
[null,null,null,null,"Lamp","Litware","2-Way brightness control lets you adjust powerful light to suit your personal preferences","Litware Desk Lamp E1030 Silver","Silver","10.2 x 10.2 x 63 ",79.95]
[null,null,null,null,"Lamp","Litware","Measures 23-1/2 inches in height, rocker on/off switch, sleek brushed steel finish","Litware Desk Lamp E1020 Silver","Silver","10.2 x 10.6 x 14.4 ",29.99]
[null,null,null,null,"Lamp","Litware","Collapsible rectangular natural silk shade, walnut box frame, 1 x 150 Watt","Litware Floor Lamp X1015 Grey","Grey","10 x 15 x 6",635.99]
[null,null,null,null,"Lamp","Litware","Home design barrel series floor lamp in sea blue, wrought iron frame","Litware Floor Lamp M2015 Grey","Grey","10 x 10 x 16.5",339]
[null,null,null,null,"Lamp","Litware","One-Light mini Duo mount chandelier, British bronze with prismatic glass crystals","Litware Chandelier M8015 Grey","Grey","6.5 x 4 x 9",268.5]
[null,null,null,null,"Lamp","Litware","Globe marina Five-Light chandelier, antique bronze with opal globes","Litware Chandelier M6015 Grey","Grey","8 x 4 x 9",229.99]
[null,null,null,null,"Lamp","Litware","Brushed nickel two light wall sconce, mount up or down","Litware Wall Lamp E2015 Grey","Grey","12 x 10.5 x 14 ",119.99]
[null,null,null,null,"Lamp","Litware","Paradise east Three-Light wall bracket in burnished rattan","Litware Wall Lamp E3015 Grey","Grey","15.5 x 10.5 x 14 ",101.99]
[null,null,null,null,"Lamp","Litware","2-Way Brightness Control lets you adjust powerful light to suit your personal preferences","Litware Desk Lamp E1030 Grey","Grey","20 x 10 x 50.5",79.95]
[null,null,null,null,"Lamp","Litware","Measures 23-1/2 inches in height, rocker on/off switch, sleek brushed steel finish","Litware Desk Lamp E1020 Grey","Grey","10.5 x 10.5 x 14.5",29.99]
[null,null,null,null,"Lamp","Litware","Collapsible rectangular natural silk shade, walnut box frame, 1 x 150 Watt","Litware Floor Lamp X1015 Blue","Blue","5 x 4 x 6.5",635.99]
[null,null,null,null,"Lamp","Litware","Home design barrel series floor lamp in sea blue, wrought iron frame","Litware Floor Lamp M2015 Blue","Blue","7 x 7 x 16.4",339]
[null,null,null,null,"Lamp","Litware","One-Light Mini Duo Mount Chandelier, British Bronze with Prismatic Glass Crystals","Litware Chandelier M8015 Blue","Blue","5 x 4 x 6.5",268.5]
[null,null,null,null,"Lamp","Litware","Globe marina Five-Light chandelier, antique bronze with opal globes","Litware Chandelier M6015 Blue","Blue","6 x 6 x 18 ",229.99]
[null,null,null,null,"Lamp","Litware","Brushed nickel two light wall sconce, mount up or down","Litware Wall Lamp E2015 Blue","Blue","5 x 4 x 6.5",119.99]
[null,null,null,null,"Lamp","Litware","Paradise east Three-Light wall bracket in burnished rattan","Litware Wall Lamp E3015 Blue","Blue","7 x 7 x 16.4",101.99]
[null,null,null,null,"Lamp","Proseware","Collapsible rectangular natural silk shade, walnut box frame, 1 x 150 Watt","Proseware Floor Lamp X0115 Black","Black","10 x 15 x 6",635.99]
[null,null,null,null,"Lamp","Proseware","Home design barrel series floor lamp in sea blue, wrought iron frame","Proseware Floor Lamp M0215 Black","Black","10.2 x 10.6 x 14.4 ",339]
[null,null,null,null,"Lamp","Proseware","One-Light mini Duo mount chandelier, British bronze with prismatic glass crystals","Proseware Chandelier M0815 Black","Black","10.2 x 10.2 x 63 ",268.5]
[null,null,null,null,"Lamp","Proseware","Globe marina Five-Light chandelier, antique bronze with opal globes","Proseware Chandelier M0615 Black","Black","10.2 x 10.6 x 14.4 ",229.99]
[null,null,null,null,"Lamp","Proseware","Brushed nickel two light wall sconce, mount up or down","Proseware Wall Lamp E0215 Black","Black","10 x 15 x 6",119.99]
[null,null,null,null,"Lamp","Proseware","Paradise east Three-Light wall bracket in burnished rattan","Proseware Wall Lamp E0315 Black","Black","10 x 10 x 16.5",101.99]
[null,null,null,null,"Lamp","Proseware","2-Way brightness control lets you adjust powerful light to suit your personal preferences","Proseware Desk Lamp E0130 Black","Black","6.5 x 4 x 9",79.95]
[null,null,null,null,"Lamp","Proseware","Measures 23-1/2 inches in height, rocker on/off switch, sleek brushed steel finish","Proseware Desk Lamp E0120 Black","Black","8 x 4 x 9",29.99]
[null,null,null,null,"Lamp","Proseware","Collapsible rectangular natural silk shade, walnut box frame, 1 x 150 Watt","Proseware Floor Lamp X0115 White","White","12 x 10.5 x 14 ",635.99]
[null,null,null,null,"Lamp","Proseware","Home design barrel series floor lamp in sea blue, wrought iron frame","Proseware Floor Lamp M0215 White","White","15.5 x 10.5 x 14 ",339]
[null,null,null,null,"Lamp","Proseware","One-Light mini Duo mount chandelier, British bronze with prismatic glass crystals","Proseware Chandelier M0815 White","White","20 x 10 x 50.5",268.5]
[null,null,null,null,"Lamp","Proseware","Globe marina Five-Light chandelier, antique bronze with opal globes","Proseware Chandelier M0615 White","White","10.5 x 10.5 x 14.5",229.99]
[null,null,null,null,"Lamp","Proseware","Brushed nickel two light wall sconce, mount up or down","Proseware Wall Lamp E0215 White","White","5 x 4 x 6.5",119.99]
[null,null,null,null,"Lamp","Proseware","Paradise east Three-Light wall bracket in burnished rattan","Proseware Wall Lamp E0315 White","White","7 x 7 x 16.4",101.99]
[null,null,null,null,"Lamp","Proseware","2-Way brightness control lets you adjust powerful light to suit your personal preferences","Proseware Desk Lamp E0130 White","White","5 x 4 x 6.5",79.95]
[null,null,null,null,"Lamp","Proseware","Measures 23-1/2 inches in height, rocker on/off switch, sleek brushed steel finish","Proseware Desk Lamp E0120 White","White","6 x 6 x 18 ",29.99]
[null,null,null,null,"Lamp","Proseware","Collapsible rectangular natural silk shade, walnut box frame, 1 x 150 Watt","Proseware Floor Lamp X0115 Silver","Silver","5 x 4 x 6.5",635.99]
[null,null,null,null,"Lamp","Proseware","Home design barrel series floor lamp in sea blue, wrought iron frame","Proseware Floor Lamp M0215 Silver","Silver","7 x 7 x 16.4",339]
[null,null,null,null,"Lamp","Proseware","One-Light mini Duo mount chandelier, British bronze with prismatic glass crystals","Proseware Chandelier M0815 Silver","Silver","5 x 4 x 6.5",268.5]
[null,null,null,null,"Lamp","Proseware","Globe marina Five-Light chandelier, antique bronze with opal globes","Proseware Chandelier M0615 Silver","Silver","7 x 7 x 16.4",229.99]
[null,null,null,null,"Lamp","Proseware","Brushed nickel two light wall sconce, mount up or down","Proseware Wall Lamp E0215 Silver","Silver","5 x 5 x 7.5 ",119.99]
[null,null,null,null,"Lamp","Proseware","Paradise east Three-Light wall bracket in burnished rattan","Proseware Wall Lamp E0315 Silver","Silver","14 x 5 x 5",101.99]
[null,null,null,null,"Lamp","Proseware","2-Way brightness control lets you adjust powerful light to suit your personal preferences","Proseware Desk Lamp E0130 Silver","Silver","5 x 4 x 6.5",79.95]
[null,null,null,null,"Lamp","Proseware","Measures 23-1/2 inches in height, rocker on/off switch, sleek brushed steel finish","Proseware Desk Lamp E0120 Silver","Silver","14 x 5 x 5",29.99]
[null,null,null,null,"Lamp","Proseware","Collapsible rectangular natural silk shade, walnut box frame, 1 x 150 Watt","Proseware Floor Lamp X0115 Grey","Grey","5 x 4 x 6.5",635.99]
[null,null,null,null,"Lamp","Proseware","Home design barrel series floor lamp in sea blue, wrought iron frame","Proseware Floor Lamp M0215 Grey","Grey","14 x 5 x 5",339]
[null,null,null,null,"Lamp","Proseware","One-Light mini Duo mount chandelier, British bronze with prismatic glass crystals","Proseware Chandelier M0815 Grey","Grey","5 x 5 x 7.5 ",268.5]
[null,null,null,null,"Lamp","Proseware","Globe marina Five-Light chandelier, antique bronze with opal globes","Proseware Chandelier M0615 Grey","Grey","10.5 x 10.5 x 14.5",229.99]
[null,null,null,null,"Lamp","Proseware","Brushed nickel two light wall sconce, mount up or down","Proseware Wall Lamp E0215 Grey","Grey","14 x 5 x 5",119.99]
[null,null,null,null,"Lamp","Proseware","Paradise east Three-Light wall bracket in burnished rattan","Proseware Wall Lamp E0315 Grey","Grey","10.2 x 10.6 x 14.4 ",101.99]
[null,null,null,null,"Lamp","Proseware","2-Way brightness control lets you adjust powerful light to suit your personal preferences","Proseware Desk Lamp E0130 Grey","Grey","10 x 15 x 6",79.95]
[null,null,null,null,"Lamp","Proseware","Measures 23-1/2 inches in height, rocker on/off switch, sleek brushed steel finish","Proseware Desk Lamp E0120 Grey","Grey","10.2 x 10.6 x 14.4 ",29.99]
[null,null,null,null,"Lamp","Proseware","Collapsible rectangular natural silk shade, walnut box frame, 1 x 150 Watt","Proseware Floor Lamp X0115 Blue","Blue","10.2 x 10.2 x 63 ",635.99]
[null,null,null,null,"Lamp","Proseware","Home design barrel series floor lamp in sea blue, wrought iron frame","Proseware Floor Lamp M0215 Blue","Blue","10.2 x 10.6 x 14.4 ",339]
[null,null,null,null,"Lamp","Proseware","One-Light mini Duo mount chandelier, British bronze with prismatic glass crystals","Proseware Chandelier M0815 Blue","Blue","10 x 15 x 6",268.5]
[null,null,null,null,"Lamp","Proseware","Globe marina Five-Light chandelier, antique bronze with opal globes","Proseware Chandelier M0615 Blue","Blue","10 x 10 x 16.5",229.99]
[null,null,null,null,"Lamp","Proseware","Brushed nickel two light wall sconce, mount up or down","Proseware Wall Lamp E0215 Blue","Blue","6.5 x 4 x 9",119.99]
[null,null,null,null,"Lamp","Proseware","Paradise east Three-Light wall bracket in burnished rattan","Proseware Wall Lamp E0315 Blue","Blue","8 x 4 x 9",101.99]
[null,null,null,null,"Lamp","Proseware","2-Way brightness control lets you adjust powerful light to suit your personal preferences","Proseware Desk Lamp E0130 Blue","Blue","12 x 10.5 x 14 ",79.95]
[null,null,null,null,"Lamp","Proseware","Measures 23-1/2 inches in height, rocker on/off switch, sleek brushed steel finish","Proseware Desk Lamp E0120 Blue","Blue","15.5 x 10.5 x 14 ",29.99]
[null,null,null,null,"Lamp","Wide World Importers","Collapsible rectangular natural silk shade, walnut box frame, 1 x 150 Watt","WWI Floor Lamp X115 Black","Black","6.5 x 4 x 9",635.99]
[null,null,null,null,"Lamp","Wide World Importers","Home design barrel series floor lamp in sea blue, wrought iron frame","WWI Floor Lamp M215 Black","Black","8 x 4 x 9",339]
[null,null,null,null,"Lamp","Wide World Importers","One-Light mini Duo mount chandelier, British bronze with prismatic glass crystals","WWI Chandelier M815 Black","Black","12 x 10.5 x 14 ",268.5]
[null,null,null,null,"Lamp","Wide World Importers","Globe marina Five-Light chandelier, antique bronze with opal globes","WWI Chandelier M615 Black","Black","15.5 x 10.5 x 14 ",229.99]
[null,null,null,null,"Lamp","Wide World Importers","Brushed nickel two light wall sconce, mount up or down","WWI Wall Lamp E215 Black","Black","20 x 10 x 50.5",119.99]
[null,null,null,null,"Lamp","Wide World Importers","Paradise east Three-Light wall bracket in burnished rattan","WWI Wall Lamp E315 Black","Black","10.5 x 10.5 x 14.5",101.99]
[null,null,null,null,"Lamp","Wide World Importers","2-Way brightness control lets you adjust powerful light to suit your personal preferences","WWI Desk Lamp E130 Black","Black","15.2 x 13 x 14.2",79.95]
[null,null,null,null,"Lamp","Wide World Importers","Measures 23-1/2 inches in height, rocker on/off switch, sleek brushed steel finish","WWI Desk Lamp E120 Black","Black","8 x 7 x 23.5",29.99]
[null,null,null,null,"Lamp","Wide World Importers","Collapsible rectangular natural silk shade, walnut box frame, 1 x 150 Watt","WWI Floor Lamp X115 White","White","8 x 8 x 28.5",635.99]
[null,null,null,null,"Lamp","Wide World Importers","Home design barrel series floor lamp in sea blue, wrought iron frame","WWI Floor Lamp M215 White","White","7 x 7 x 12 ",339]
[null,null,null,null,"Lamp","Wide World Importers","One-Light mini Duo mount chandelier, British bronze with prismatic glass crystals","WWI Chandelier M815 White","White","8 x 8 x 28.5",268.5]
[null,null,null,null,"Lamp","Wide World Importers","Globe marina Five-Light chandelier, antique bronze with opal globes","WWI Chandelier M615 White","White","14.3 x 10.7 x 10.5",229.99]
[null,null,null,null,"Lamp","Wide World Importers","Brushed nickel two light wall sconce, mount up or down","WWI Wall Lamp E215 White","White","14.3 x 10.7 x 10.5",119.99]
[null,null,null,null,"Lamp","Wide World Importers","Paradise east Three-Light wall bracket in burnished rattan","WWI Wall Lamp E315 White","White","13.5x14.2x10",101.99]
[null,null,null,null,"Lamp","Wide World Importers","2-Way brightness control lets you adjust powerful light to suit your personal preferences","WWI Desk Lamp E130 White","White","20 x 4.5 x 21 ",79.95]
[null,null,null,null,"Lamp","Wide World Importers","Measures 23-1/2 inches in height, rocker on/off switch, sleek brushed steel finish","WWI Desk Lamp E120 White","White","14 x 10 x 64 ",29.99]
[null,null,null,null,"Lamp","Wide World Importers","Collapsible rectangular natural silk shade, walnut box frame, 1 x 150 Watt","WWI Floor Lamp X115 Silver","Silver","13.5x14.2x10",635.99]
[null,null,null,null,"Lamp","Wide World Importers","Home design barrel series floor lamp in sea blue, wrought iron frame","WWI Floor Lamp M215 Silver","Silver","13x14x10",339]
[null,null,null,null,"Lamp","Wide World Importers","One-Light mini Duo mount chandelier, British bronze with prismatic glass crystals","WWI Chandelier M815 Silver","Silver","14.3 x 10.7 x 10.5",268.5]
[null,null,null,null,"Lamp","Wide World Importers","Globe marina Five-Light chandelier, antique bronze with opal globes","WWI Chandelier M615 Silver","Silver","10.5 x 10.5 x 14.5",229.99]
[null,null,null,null,"Lamp","Wide World Importers","Brushed nickel two light wall sconce, mount up or down","WWI Wall Lamp E215 Silver","Silver","15.5 x 12.5 x 10.5",119.99]
[null,null,null,null,"Lamp","Wide World Importers","Paradise east Three-Light wall bracket in burnished rattan","WWI Wall Lamp E315 Silver","Silver","12 x 12.8 x 10.5",101.99]
[null,null,null,null,"Lamp","Wide World Importers","2-Way brightness control lets you adjust powerful light to suit your personal preferences","WWI Desk Lamp E130 Silver","Silver","5 x 4 x 6.5",79.95]
[null,null,null,null,"Lamp","Wide World Importers","Measures 23-1/2 inches in height, rocker on/off switch, sleek brushed steel finish","WWI Desk Lamp E120 Silver","Silver","7 x 7 x 16.4",29.99]
[null,null,null,null,"Lamp","Wide World Importers","Collapsible rectangular natural silk shade, walnut box frame, 1 x 150 Watt","WWI Floor Lamp X115 Grey","Grey","5 x 4 x 6.5",635.99]
[null,null,null,null,"Lamp","Wide World Importers","Home design barrel series floor lamp in sea blue, wrought iron frame","WWI Floor Lamp M215 Grey","Grey","6 x 6 x 18 ",339]
[null,null,null,null,"Lamp","Wide World Importers","One-Light mini Duo mount chandelier, British bronze with prismatic glass crystals","WWI Chandelier M815 Grey","Grey","5 x 4 x 6.5",268.5]
[null,null,null,null,"Lamp","Wide World Importers","Globe marina Five-Light chandelier, antique bronze with opal globes","WWI Chandelier M615 Grey","Grey","7 x 7 x 16.4",229.99]
[null,null,null,null,"Lamp","Wide World Importers","Brushed nickel two light wall sconce, mount up or down","WWI Wall Lamp E215 Grey","Grey","5 x 4 x 6.5",119.99]
[null,null,null,null,"Lamp","Wide World Importers","Paradise east Three-Light wall bracket in burnished rattan","WWI Wall Lamp E315 Grey","Grey","7 x 7 x 16.4",101.99]
[null,null,null,null,"Lamp","Wide World Importers","2-Way brightness control lets you adjust powerful light to suit your personal preferences","WWI Desk Lamp E130 Grey","Grey","5 x 5 x 7.5 ",79.95]
[null,null,null,null,"Lamp","Wide World Importers","Measures 23-1/2 inches in height, rocker on/off switch, sleek brushed steel finish","WWI Desk Lamp E120 Grey","Grey","14 x 5 x 5",29.99]
[null,null,null,null,"Lamp","Wide World Importers","Collapsible rectangular natural silk shade, walnut box frame, 1 x 150 Watt","WWI Floor Lamp X115 Blue","Blue","5 x 4 x 6.5",635.99]
[null,null,null,null,"Lamp","Wide World Importers","Home design barrel series floor lamp in sea blue, wrought iron frame","WWI Floor Lamp M215 Blue","Blue","14 x 5 x 5",339]
[null,null,null,null,"Lamp","Wide World Importers","One-Light mini Duo mount chandelier, British bronze with prismatic glass crystals","WWI Chandelier M815 Blue","Blue","5 x 4 x 6.5",268.5]
[null,null,null,null,"Lamp","Wide World Importers","Globe marina Five-Light chandelier, antique bronze with opal globes","WWI Chandelier M615 Blue","Blue","14 x 5 x 5",229.99]
[null,null,null,null,"Lamp","Wide World Importers","Brushed nickel two light wall sconce, mount up or down","WWI Wall Lamp E215 Blue","Blue","5 x 5 x 7.5 ",119.99]
[null,null,null,null,"Lamp","Wide World Importers","Paradise east Three-Light wall bracket in burnished rattan","WWI Wall Lamp E315 Blue","Blue","10.5 x 10.5 x 14.5",101.99]
[null,null,null,null,"Lamp","Wide World Importers","2-Way brightness control lets you adjust powerful light to suit your personal preferences","WWI Desk Lamp E130 Blue","Blue","14 x 5 x 5",79.95]
[null,null,null,null,"Lamp","Wide World Importers","Measures 23-1/2 inches in height, rocker on/off switch, sleek brushed steel finish","WWI Desk Lamp E120 Blue","Blue","10.2 x 10.6 x 14.4 ",29.99]
[null,null,null,null,"Air Conditioner","Contoso ","25,000-BTU air conditioner for large rooms up to 1672 square feet","Contoso Air conditioner 25000BTU L1672 White","White","19 x 34 x 21 ",635.99]
[null,null,null,null,"Air Conditioner","Contoso ","12,000-BTU air conditioner for rooms up to 640 square feet","Contoso Air conditioner 12000BTU M0640 White","White","15.5 x 18.5 x 12.5",459.99]
[null,null,null,null,"Air Conditioner","Contoso ","10,000-BTU air conditioner for rooms up to 490 square feet","Contoso Air conditioner 10000BTU M0490 White","White","15 x 25 x 18",429.99]
[null,null,null,null,"Air Conditioner","Contoso ","8,000-BTU air conditioner for rooms up to 320 square feet","Contoso Air conditioner 8000BTU M0320 White","White","14 x 26 x 18",399.99]
[null,null,null,null,"Air Conditioner","Contoso ","7,000-BTU air conditioner for rooms up to 260 square feet","Contoso Air conditioner 7000BTU E0260 White","White","11.4  x 8.9  x 21.1  ",299.99]
[null,null,null,null,"Air Conditioner","Contoso ","6,000-BTU air conditioner for rooms up to 180 square feet","Contoso Air conditioner 6000BTU E0180 White","White","15 x 25 x 17",199.99]
[null,null,null,null,"Air Conditioner","Contoso ","5,200-BTU air conditioner for rooms up to 100 square feet","Contoso Air conditioner 5200BTU E0100 White","White","14 x 26 x 19",109.99]
[null,null,null,null,"Air Conditioner","Contoso ","25,000-BTU air conditioner for large rooms up to 1672 square feet","Contoso Air conditioner 25000BTU L1672 Red","Red","21.2 x 19 x 14 ",635.99]
[null,null,null,null,"Air Conditioner","Contoso ","12,000-BTU air conditioner for rooms up to 640 square feet","Contoso Air conditioner 12000BTU M0640 Red","Red","21.7 x 20 x 15 ",459.99]
[null,null,null,null,"Air Conditioner","Contoso ","10,000-BTU air conditioner for rooms up to 490 square feet","Contoso Air conditioner 10000BTU M0490 Red","Red","21.2 x 19 x 14 ",429.99]
[null,null,null,null,"Air Conditioner","Contoso ","8,000-BTU air conditioner for rooms up to 320 square feet","Contoso Air conditioner 8000BTU M0320 Red","Red","12 x 15.5 x 11.8",399.99]
[null,null,null,null,"Air Conditioner","Contoso ","7,000-BTU air conditioner for rooms up to 260 square feet","Contoso Air conditioner 7000BTU E0260 Red","Red","14 x 26 x 19",299.99]
[null,null,null,null,"Air Conditioner","Contoso ","6,000-BTU air conditioner for rooms up to 180 square feet","Contoso Air conditioner 6000BTU E0180 Red","Red","21.2 x 19 x 14 ",199.99]
[null,null,null,null,"Air Conditioner","Contoso ","5,200-BTU air conditioner for rooms up to 100 square feet","Contoso Air conditioner 5200BTU E0100 Red","Red","21.7 x 20 x 15 ",109.99]
[null,null,null,null,"Air Conditioner","Contoso ","25,000-BTU air conditioner for large rooms up to 1672 square feet","Contoso Air conditioner 25000BTU L1672 Silver","Silver","21.2 x 19 x 14 ",635.99]
[null,null,null,null,"Air Conditioner","Contoso ","12,000-BTU air conditioner for rooms up to 640 square feet","Contoso Air conditioner 12000BTU M0640 Silver","Silver","21.2 x 19 x 14 ",459.99]
[null,null,null,null,"Air Conditioner","Contoso ","10,000-BTU air conditioner for rooms up to 490 square feet","Contoso Air conditioner 10000BTU M0490 Silver","Silver","21.7 x 20 x 15 ",429.99]
[null,null,null,null,"Air Conditioner","Contoso ","8,000-BTU air conditioner for rooms up to 320 square feet","Contoso Air conditioner 8000BTU M0320 Silver","Silver","21.7 x 20 x 15 ",399.99]
[null,null,null,null,"Air Conditioner","Contoso ","7,000-BTU air conditioner for rooms up to 260 square feet","Contoso Air conditioner 7000BTU E0260 Silver","Silver","24.5 x 23.8 x 17.8",299.99]
[null,null,null,null,"Air Conditioner","Contoso ","6,000-BTU air conditioner for rooms up to 180 square feet","Contoso Air conditioner 6000BTU E0180 Silver","Silver","21.2 x 19 x 14.2",199.99]
[null,null,null,null,"Air Conditioner","Contoso ","5,200-BTU air conditioner for rooms up to 100 square feet","Contoso Air conditioner 5200BTU E0100 Silver","Silver","21.7 x 20 x 15.3",109.99]
[null,null,null,null,"Air Conditioner","Contoso ","25,000-BTU air conditioner for large rooms up to 1672 square feet","Contoso Air conditioner 25000BTU L1672 Grey","Grey","21.2 x 19 x 14.2",635.99]
[null,null,null,null,"Air Conditioner","Contoso ","12,000-BTU air conditioner for rooms up to 640 square feet","Contoso Air conditioner 12000BTU M0640 Grey","Grey","21.2 x 19 x 14.1",459.99]
[null,null,null,null,"Air Conditioner","Contoso ","10,000-BTU air conditioner for rooms up to 490 square feet","Contoso Air conditioner 10000BTU M0490 Grey","Grey","21.7 x 20 x 15.4",429.99]
[null,null,null,null,"Air Conditioner","Contoso ","8,000-BTU air conditioner for rooms up to 320 square feet","Contoso Air conditioner 8000BTU M0320 Grey","Grey","21.7 x 20.5 x 15.7",399.99]
[null,null,null,null,"Air Conditioner","Contoso ","7,000-BTU air conditioner for rooms up to 260 square feet","Contoso Air conditioner 7000BTU E0260 Grey","Grey","21.2 x 19 x 14.8",299.99]
[null,null,null,null,"Air Conditioner","Contoso ","6,000-BTU air conditioner for rooms up to 180 square feet","Contoso Air conditioner 6000BTU E0180 Grey","Grey","21.7 x 20 x 15.5",199.99]
[null,null,null,null,"Air Conditioner","Contoso ","5,200-BTU air conditioner for rooms up to 100 square feet","Contoso Air conditioner 5200BTU E0100 Grey","Grey","21.2 x 19 x 14.2",109.99]
[null,null,null,null,"Air Conditioner","Contoso ","25,000-BTU air conditioner for large rooms up to 1672 square feet","Contoso Air conditioner 25000BTU L1672 Blue","Blue","21.2 x 19 x 14.3",635.99]
[null,null,null,null,"Air Conditioner","Contoso ","12,000-BTU air conditioner for rooms up to 640 square feet","Contoso Air conditioner 12000BTU M0640 Blue","Blue","18 x 34 x 21.5",459.99]
[null,null,null,null,"Air Conditioner","Contoso ","10,000-BTU air conditioner for rooms up to 490 square feet","Contoso Air conditioner 10000BTU M0490 Blue","Blue","21.7 x 20 x 15.8",429.99]
[null,null,null,null,"Air Conditioner","Contoso ","8,000-BTU air conditioner for rooms up to 320 square feet","Contoso Air conditioner 8000BTU M0320 Blue","Blue","19  x 20.5  x 3.4  ",399.99]
[null,null,null,null,"Air Conditioner","Contoso ","7,000-BTU air conditioner for rooms up to 260 square feet","Contoso Air conditioner 7000BTU E0260 Blue","Blue","18  x 20.5  x 3.4  ",299.99]
[null,null,null,null,"Air Conditioner","Contoso ","6,000-BTU air conditioner for rooms up to 180 square feet","Contoso Air conditioner 6000BTU E0180 Blue","Blue","21.2 x 19 x 14.1",199.99]
[null,null,null,null,"Air Conditioner","Contoso ","5,200-BTU air conditioner for rooms up to 100 square feet","Contoso Air conditioner 5200BTU E0100 Blue","Blue","21.7 x 20 x 15.4",109.99]
[null,null,null,null,"Air Conditioner","Proseware","25,000-BTU air conditioner for large rooms up to 1672 square feet","Proseware Air conditioner 25000BTU L167 White","White","25 x 23 x 17",635.99]
[null,null,null,null,"Air Conditioner","Proseware","12,000-BTU air conditioner for rooms up to 640 square feet","Proseware Air conditioner 12000BTU M640 White","White","24 x 23.8 x 18.8",459.99]
[null,null,null,null,"Air Conditioner","Proseware","10,000-BTU air conditioner for rooms up to 490 square feet","Proseware Air conditioner 10000BTU M490 White","White","25.4 x 23.3 x 17.9",429.99]
[null,null,null,null,"Air Conditioner","Proseware","8,000-BTU air conditioner for rooms up to 320 square feet","Proseware Air conditioner 8000BTU M320 White","White","25.1 x 27.8 x 17.2",399.99]
[null,null,null,null,"Air Conditioner","Proseware","7,000-BTU air conditioner for rooms up to 260 square feet","Proseware Air conditioner 7000BTU E260 White","White","24.5 x 14.2 x 20.2",299.99]
[null,null,null,null,"Air Conditioner","Proseware","6,000-BTU air conditioner for rooms up to 180 square feet","Proseware Air conditioner 6000BTU E180 White","White","21.7 x 20 x 15.8",199.99]
[null,null,null,null,"Air Conditioner","Proseware","5,200-BTU air conditioner for rooms up to 100 square feet","Proseware Air conditioner 5200BTU E100 White","White","19  x 20.5  x 3.4  ",109.99]
[null,null,null,null,"Air Conditioner","Proseware","25,000-BTU air conditioner for large rooms up to 1672 square feet","Proseware Air conditioner 25000BTU L167 Red","Red","18  x 20.5  x 3.4  ",635.99]
[null,null,null,null,"Air Conditioner","Proseware","12,000-BTU air conditioner for rooms up to 640 square feet","Proseware Air conditioner 12000BTU M640 Red","Red","21.2 x 19 x 14.1",459.99]
[null,null,null,null,"Air Conditioner","Proseware","10,000-BTU air conditioner for rooms up to 490 square feet","Proseware Air conditioner 10000BTU M490 Red","Red","21.7 x 20 x 15.4",429.99]
[null,null,null,null,"Air Conditioner","Proseware","8,000-BTU air conditioner for rooms up to 320 square feet","Proseware Air conditioner 8000BTU M320 Red","Red","25 x 23 x 17",399.99]
[null,null,null,null,"Air Conditioner","Proseware","7,000-BTU air conditioner for rooms up to 260 square feet","Proseware Air conditioner 7000BTU E260 Red","Red","24 x 23.8 x 18.8",299.99]
[null,null,null,null,"Air Conditioner","Proseware","6,000-BTU air conditioner for rooms up to 180 square feet","Proseware Air conditioner 6000BTU E180 Red","Red","23 x 19 x 15.5",199.99]
[null,null,null,null,"Air Conditioner","Proseware","5,200-BTU air conditioner for rooms up to 100 square feet","Proseware Air conditioner 5200BTU E100 Red","Red","24 x 17.5 x 15 ",109.99]
[null,null,null,null,"Air Conditioner","Proseware","25,000-BTU air conditioner for large rooms up to 1672 square feet","Proseware Air conditioner 25000BTU L167 Silver","Silver","25 x 23 x 17",635.99]
[null,null,null,null,"Air Conditioner","Proseware","12,000-BTU air conditioner for rooms up to 640 square feet","Proseware Air conditioner 12000BTU M640 Silver","Silver","24 x 23.8 x 18.8",459.99]
[null,null,null,null,"Air Conditioner","Proseware","10,000-BTU air conditioner for rooms up to 490 square feet","Proseware Air conditioner 10000BTU M490 Silver","Silver","23 x 19 x 15.5",429.99]
[null,null,null,null,"Air Conditioner","Proseware","8,000-BTU air conditioner for rooms up to 320 square feet","Proseware Air conditioner 8000BTU M320 Silver","Silver","24 x 17.5 x 15 ",399.99]
[null,null,null,null,"Air Conditioner","Proseware","7,000-BTU air conditioner for rooms up to 260 square feet","Proseware Air conditioner 7000BTU E260 Silver","Silver","18  x 20.5  x 3.4  ",299.99]
[null,null,null,null,"Air Conditioner","Proseware","6,000-BTU air conditioner for rooms up to 180 square feet","Proseware Air conditioner 6000BTU E180 Silver","Silver","21.2 x 19 x 14.1",199.99]
[null,null,null,null,"Air Conditioner","Proseware","5,200-BTU air conditioner for rooms up to 100 square feet","Proseware Air conditioner 5200BTU E100 Silver","Silver","21.7 x 20 x 15.8",109.99]
[null,null,null,null,"Air Conditioner","Proseware","25,000-BTU air conditioner for large rooms up to 1672 square feet","Proseware Air conditioner 25000BTU L167 Grey","Grey","19 x 34 x 21.7",635.99]
[null,null,null,null,"Air Conditioner","Proseware","12,000-BTU air conditioner for rooms up to 640 square feet","Proseware Air conditioner 12000BTU M640 Grey","Grey","21.7 x 20 x 15.4",459.99]
[null,null,null,null,"Air Conditioner","Proseware","10,000-BTU air conditioner for rooms up to 490 square feet","Proseware Air conditioner 10000BTU M490 Grey","Grey","25 x 23 x 17",429.99]
[null,null,null,null,"Air Conditioner","Proseware","8,000-BTU air conditioner for rooms up to 320 square feet","Proseware Air conditioner 8000BTU M320 Grey","Grey","24 x 23.8 x 18.8",399.99]
[null,null,null,null,"Air Conditioner","Proseware","7,000-BTU air conditioner for rooms up to 260 square feet","Proseware Air conditioner 7000BTU E260 Grey","Grey","23 x 19 x 15.5",299.99]
[null,null,null,null,"Air Conditioner","Proseware","6,000-BTU air conditioner for rooms up to 180 square feet","Proseware Air conditioner 6000BTU E180 Grey","Grey","25 x 23 x 17",199.99]
[null,null,null,null,"Fan","Litware","Powerful 3-speed fan provides whisper-quiet operation","Litware 3-Speed Oscillating High-Performance Fan E201 Black","Black","12.3 x 7.9 x 13.4",29.99]
[null,null,null,null,"Fan","Litware","Powerful 3-speed fan provides whisper-quiet operation","Litware 3-Speed Oscillating High-Performance Fan E201 White","White","16.6 x 12 x 10.4",29.99]
[null,null,null,null,"Fan","Litware","Powerful 3-speed fan provides whisper-quiet operation","Litware 3-Speed Oscillating High-Performance Fan E201 Silver","Silver","20.6 x 11.5 x 20.6",29.99]
[null,null,null,null,"Fan","Litware","18-inch pedestal fan provides 3 whisper-quiet speeds, 90-degree oscillation or stationary cooling","Litware 18'' Adjustable Oscillating Pedestal Fan E301 Black","Black","20.2 x 20.2 x 57.5",36.83]
[null,null,null,null,"Fan","Litware","18-inch pedestal fan provides 3 whisper-quiet speeds, 90-degree oscillation or stationary cooling","Litware 18'' Adjustable Oscillating Pedestal Fan E301 White","White","24.1 x 6.5 x 12.6",36.83]
[null,null,null,null,"Fan","Litware","18-inch pedestal fan provides 3 whisper-quiet speeds, 90-degree oscillation or stationary cooling","Litware 18'' Adjustable Oscillating Pedestal Fan E301 Silver","Silver","11.5 x 11.2 x 6.5",36.83]
[null,null,null,null,"Fan","Litware","High-velocity blower floor fan in a tall space-saving streamlined design,  ","Litware 3-Speed Oscillating Blower Fan M115 White","White","21.8 x 5.6 x 24.1",73.989999999999995]
[null,null,null,null,"Fan","Litware","High-velocity blower floor fan in a tall space-saving streamlined design,  ","Litware 3-Speed Oscillating Blower Fan M115 Black","Black","20.6 x 11.5 x 20.6",73.989999999999995]
[null,null,null,null,"Fan","Litware","High-velocity blower floor fan in a tall space-saving streamlined design,  ","Litware 3-Speed Oscillating Blower Fan M115 Silver","Silver","17.5 x 14.1 x 13.9",73.989999999999995]
[null,null,null,null,"Fan","Litware","170-watt 20-inch box fan with 3 whisper-quiet speeds","Litware 20'' Box Fan E401 Blue","Blue","21.8 x 5.6 x 24.1",25.99]
[null,null,null,null,"Fan","Litware","170-watt 20-inch box fan with 3 whisper-quiet speeds","Litware 20'' Box Fan E401 Black","Black","17.7 x 13.8 x 10 ",25.99]
[null,null,null,null,"Fan","Litware","170-watt 20-inch box fan with 3 whisper-quiet speeds","Litware 20'' Box Fan E401 White","White","25.5 x 14.1 x 6",25.99]
[null,null,null,null,"Fan","Litware","170-watt 20-inch box fan with 3 whisper-quiet speeds","Litware 20'' Box Fan E401 Yellow","Yellow","2.6 x 10.2 x 6.7",25.99]
[null,null,null,null,"Fan","Litware","Space saving tower design, top mounted control pane","Litware Tower Fan E501 Black","Black","8 x 7 x 10.3",39.99]
[null,null,null,null,"Fan","Litware","Space saving tower design, top mounted control pane","Litware Tower Fan E501 White","White","8 x 6.6 x 30.9",39.99]
[null,null,null,null,"Fan","Litware","Space saving tower design, top mounted control pane","Litware Tower Fan E501 Yellow","Yellow","7.2 x 5.3 x 6.6 ",39.99]
[null,null,null,null,"Fan","Litware","Space saving tower design, top mounted control pane","Litware Tower Fan E501 Silver","Silver","5.9 x 7.3 x 31.1",39.99]
[null,null,null,null,"Fan","Litware","80 x 80 x 25 mm, rated Voltage - 5V DC, started Voltage - 4V DC  ","Litware Mobile Fan External USB Cooling Fan E601 Silver","Silver","14.7 x 14.6 x 6.4",32.89]
[null,null,null,null,"Fan","Litware","80 x 80 x 25 mm, rated Voltage - 5V DC, started Voltage - 4V DC  ","Litware Mobile Fan External USB Cooling Fan E601 White","White","5.6 x 7.3 x 31.6",32.89]
[null,null,null,null,"Fan","Litware","80 x 80 x 25 mm, rated Voltage - 5V DC, started Voltage - 4V DC  ","Litware Mobile Fan External USB Cooling Fan E601 Pink","Pink","11.1 x 6.5 x 11.3",32.89]
[null,null,null,null,"Fan","Litware","80 x 80 x 25 mm, rated Voltage - 5V DC, started Voltage - 4V DC  ","Litware Mobile Fan External USB Cooling Fan E601 Black","Black","17.7 x 13.8 x 10 ",32.89]
[null,null,null,null,"Fan","Litware","16\" oscillating stand fan","Litware 16\" White Oscillating Stand Fan E701 White","White","22.7 x 11.7 x 5.3",29.09]
[null,null,null,null,"Fan","Litware","16\" oscillating stand fan","Litware 16\" White Oscillating Stand Fan E701 Black","Black","13 x 13 x 40.2",29.09]
[null,null,null,null,"Fan","Litware","16\" oscillating stand fan","Litware 16\" White Oscillating Stand Fan E701 Silver","Silver","11 x 8.5 x 7.2",29.09]
[null,null,null,null,"Fan","Litware","16\" oscillating stand fan","Litware 16\" White Oscillating Stand Fan E701 Grey","Grey","16.4 x 14.3 x 12.8",29.09]
[null,null,null,null,"Fan","Litware","High velocity volt, 3 Speeds","Litware 14\" High Velocity Floor Fan E801 Silver","Silver","22.7 x 11.7 x 5.3",44.99]
[null,null,null,null,"Fan","Litware","High velocity volt, 3 Speeds","Litware 14\" High Velocity Floor Fan E801 White","White","25.5 x 22.4 x 11.6",44.99]
[null,null,null,null,"Fan","Litware","High velocity volt, 3 Speeds","Litware 14\" High Velocity Floor Fan E801 Black","Black","6.5 x 11 x 11.5",44.99]
[null,null,null,null,"Fan","Litware","High velocity volt, 3 Speeds","Litware 14\" High Velocity Floor Fan E801 Pink","Pink","25.9 x 13.5 x 5.7",44.99]
[null,null,null,null,"Fan","Litware","Up to 69.69 CFM, 19dB-A silent application for CPU cooling","Litware 120mm Blue LED Case Fan E901 Black","Black","15 x 11 x 14 ",9.99]
[null,null,null,null,"Fan","Litware","Up to 69.69 CFM, 19dB-A silent application for CPU cooling","Litware 120mm Blue LED Case Fan E901 White","White","12 x 14 x 9",9.99]
[null,null,null,null,"Fan","Litware","Up to 69.69 CFM, 19dB-A silent application for CPU cooling","Litware 120mm Blue LED Case Fan E901 blue","blue","15.2 x 16.2 x 14.2",9.99]
[null,null,null,null,"Fan","Litware","Up to 69.69 CFM, 19dB-A silent application for CPU cooling","Litware 120mm Blue LED Case Fan E901 Grey","Grey","25.9 x 13.5 x 5.7",9.99]
[null,null,null,null,"Fan","Litware","Higher air flow to enhance cooling performance, silent operation for case cooling","Litware 80mm Dual Ball Bearing Case Fan E1001 Black","Black","3 x 3.5 x 10.5",4.99]
[null,null,null,null,"Fan","Litware","Higher air flow to enhance cooling performance, silent operation for case cooling","Litware 80mm Dual Ball Bearing Case Fan E1001 White","White","4.1 x 12 x 14.1",4.99]
[null,null,null,null,"Fan","Litware","Higher air flow to enhance cooling performance, silent operation for case cooling","Litware 80mm Dual Ball Bearing Case Fan E1001 Green","Green","3 x 3.8 x 11.5",4.99]
[null,null,null,null,"Fan","Litware","Higher air flow to enhance cooling performance, silent operation for case cooling","Litware 80mm Dual Ball Bearing Case Fan E1001 Pink","Pink","32 x 7.5 x 9.4",4.99]
[null,null,null,null,"Fan","Litware","92mm DBB case fan, 86.2 x 66.5 x 15.8 inches, 5.6 ounces","Litware 92mm DBB Case Fan E1101 Silver","Silver","12.5 x 14 .5x 9",14.99]
[null,null,null,null,"Fan","Litware","92mm DBB case fan, 86.2 x 66.5 x 15.8 inches, 5.6 ounces","Litware 92mm DBB Case Fan E1101 Black","Black","15.5 x 15 x 16.8 ",14.99]
[null,null,null,null,"Fan","Litware","92mm DBB case fan, 86.2 x 66.5 x 15.8 inches, 5.6 ounces","Litware 92mm DBB Case Fan E1101 White","White","12.3 x 7.9 x 13.4",14.99]
[null,null,null,null,"Fan","Litware","92mm DBB case fan, 86.2 x 66.5 x 15.8 inches, 5.6 ounces","Litware 92mm DBB Case Fan E1101 Grey","Grey","8 x 6.6 x 30.9",14.99]
[null,null,null,null,"Fan","Litware","Desktop fan with front-mounted electronic controls, 3 speeds","Litware Desktop Wind Tower Oscillating Fan E1201 Brown","Brown","20.6 x 11.5 x 20.6",29.99]
[null,null,null,null,"Fan","Litware","Desktop fan with front-mounted electronic controls, 3 speeds","Litware Desktop Wind Tower Oscillating Fan E1201 Purple","Purple","20.2 x 20.2 x 57.5",29.99]
[null,null,null,null,"Fan","Litware","Desktop fan with front-mounted electronic controls, 3 speeds","Litware Desktop Wind Tower Oscillating Fan E1201 Black","Black"," 24.1 x 6.5 x 12.6",29.99]
[null,null,null,null,"Fan","Litware","Desktop fan with front-mounted electronic controls, 3 speeds","Litware Desktop Wind Tower Oscillating Fan E1201 White","White","11.5 x 11.2 x 6.5",29.99]
[null,null,null,null,"Fan","Litware","Cold alternative to an under desk fan, child-safe blades","Litware USB Foam Fan E1301 Pink","Pink","21.8 x 5.6 x 24.1",19.989999999999998]
[null,null,null,null,"Fan","Litware","Cold alternative to an under desk fan, child-safe blades","Litware USB Foam Fan E1301 White","White","20.6 x 11.5 x 20.6",19.989999999999998]
[null,null,null,null,"Fan","Litware","Cold alternative to an under desk fan, child-safe blades","Litware USB Foam Fan E1301 Black","Black","12 x 9 x 30 ",19.989999999999998]
[null,null,null,null,"Fan","Litware","Cold alternative to an under desk fan, child-safe blades","Litware USB Foam Fan E1301 Red","Red","21.8 x 5.6 x 24.1",19.989999999999998]
[null,null,null,null,"Fan","Litware","Powerful and efficient vertical discharge fan","Litware 180 CFM Vertical Discharge Fan X450 Red","Red","17.7 x 13.8 x 10 ",215.62]
[null,null,null,null,"Fan","Litware","Powerful and efficient vertical discharge fan","Litware 180 CFM Vertical Discharge Fan X450 Black","Black","25.5 x 14.1 x 6",215.62]
[null,null,null,null,"Fan","Litware","Powerful and efficient vertical discharge fan","Litware 180 CFM Vertical Discharge Fan X450 White","White","2.6 x 10.2 x 6.7",215.62]
[null,null,null,null,"Fan","Litware","Powerful and efficient vertical discharge fan","Litware 180 CFM Vertical Discharge Fan X450 Blue","Blue","8 x 7 x 10.3",215.62]
[null,null,null,null,"Fan","Litware","3 speed settings, separate oscillation control provides oscillation option to increase air circulation","Litware USB Durable Desk Soft Fan E1401 White","White","8 x 6.6 x 30.9",30]
[null,null,null,null,"Fan","Litware","3 speed settings, separate oscillation control provides oscillation option to increase air circulation","Litware USB Durable Desk Soft Fan E1401 Black","Black","7.2 x 5.3 x 6.6 ",30]
[null,null,null,null,"Fan","Litware","3 speed settings, separate oscillation control provides oscillation option to increase air circulation","Litware USB Durable Desk Soft Fan E1401 Blue","Blue","5.9 x 7.3 x 31.1",30]
[null,null,null,null,"Fan","Litware","3 speed settings, separate oscillation control provides oscillation option to increase air circulation","Litware USB Durable Desk Soft Fan E1401 Red","Red","14.7 x 14.6 x 6.4",30]
[null,null,null,null,"Fan","Litware","7.2 X 4.8 x 1.7 inches, 8 ounces  ","Litware 80mm LED Dual PCI Slot Fan E1501 Yellow","Yellow","5.6 x 7.3 x 31.6",30.99]
[null,null,null,null,"Fan","Litware","7.2 X 4.8 x 1.7 inches, 8 ounces  ","Litware 80mm LED Dual PCI Slot Fan E1501 Red","Red","11.1 x 6.5 x 11.3",30.99]
[null,null,null,null,"Fan","Litware","7.2 X 4.8 x 1.7 inches, 8 ounces  ","Litware 80mm LED Dual PCI Slot Fan E1501 Blue","Blue","17.7 x 13.8 x 10 ",30.99]
[null,null,null,null,"Fan","Litware","7.2 X 4.8 x 1.7 inches, 8 ounces  ","Litware 80mm LED Dual PCI Slot Fan E1501 Pink","Pink","22.7 x 11.7 x 5.3",30.99]
[null,null,null,null,"Fan","Litware","7.2 X 4.8 x 1.7 inches, 8 ounces  ","Litware 80mm LED Dual PCI Slot Fan E1501 White","White","13 x 13 x 40.2",30.99]
[null,null,null,null,"Fan","Litware","20'' box fan with 3 whisper-quiet, energy-efficient speeds  ","Litware 20'' Weather-Shield Performance Box Fan E1601 Orange","Orange","11 x 8.5 x 7.2",29.99]
[null,null,null,null,"Fan","Litware","20'' box fan with 3 whisper-quiet, energy-efficient speeds  ","Litware 20'' Weather-Shield Performance Box Fan E1601 Yellow","Yellow","16.4 x 14.3 x 12.8",29.99]
[null,null,null,null,"Fan","Litware","20'' box fan with 3 whisper-quiet, energy-efficient speeds  ","Litware 20'' Weather-Shield Performance Box Fan E1601 White","White","22.7 x 11.7 x 5.3",29.99]
[null,null,null,null,"Fan","Litware","20'' box fan with 3 whisper-quiet, energy-efficient speeds  ","Litware 20'' Weather-Shield Performance Box Fan E1601 Black","Black","25.5 x 22.4 x 11.6",29.99]
[null,null,null,null,"Fan","Litware","17-inch oscillating pedestal fan with all-metal construction","Litware 17'' Oscillating Pedestal Fan M125 Pink","Pink","6.5 x 11 x 11.5",210]
[null,null,null,null,"Fan","Litware","17-inch oscillating pedestal fan with all-metal construction","Litware 17'' Oscillating Pedestal Fan M125 Yellow","Yellow","25.9 x 13.5 x 5.7",210]
[null,null,null,null,"Fan","Litware","17-inch oscillating pedestal fan with all-metal construction","Litware 17'' Oscillating Pedestal Fan M125 Blue","Blue","7 x 7.2 x 10.1",210]
[null,null,null,null,"Fan","Litware","17-inch oscillating pedestal fan with all-metal construction","Litware 17'' Oscillating Pedestal Fan M125 White","White","12 x 14 x 9",210]
[null,null,null,null,"Fan","Litware","18-inch oscillating pedestal fan with all-metal construction","Litware 18'' Oscillating Pedestal Fan M135 Pink","Pink","15.2 x 16.2 x 14.2",350]
[null,null,null,null,"Fan","Litware","18-inch oscillating pedestal fan with all-metal construction","Litware 18'' Oscillating Pedestal Fan M135 Yellow","Yellow","25.9 x 13.5 x 5.7",350]
[null,null,null,null,"Fan","Litware","18-inch oscillating pedestal fan with all-metal construction","Litware 18'' Oscillating Pedestal Fan M135 Blue","Blue","24.1 x 6.5 x 12.6",350]
[null,null,null,null,"Fan","Litware","18-inch oscillating pedestal fan with all-metal construction","Litware 18'' Oscillating Pedestal Fan M135 White","White","15 x 11 x 14 ",350]
[null,null,null,null,"Fan","Litware","19-inch oscillating pedestal fan with all-metal construction","Litware 18'' Oscillating Pedestal Fan M145 Pink","Pink","24.1 x 6.5 x 12.6",400]
[null,null,null,null,"Fan","Litware","19-inch oscillating pedestal fan with all-metal construction","Litware 18'' Oscillating Pedestal Fan M145 Yellow","Yellow","32 x 7.5 x 9.4",400]
[null,null,null,null,"Fan","Litware","19-inch oscillating pedestal fan with all-metal construction","Litware 18'' Oscillating Pedestal Fan M145 Blue","Blue","12.5 x 14 .5x 9",400]
[null,null,null,null,"Fan","Litware","19-inch oscillating pedestal fan with all-metal construction","Litware 18'' Oscillating Pedestal Fan M145 White","White","15.5 x 15 x 16.8 ",400]

{"sheet":"Error Checks","index":8,"n_rows":15,"n_cols":9,"rows_kept":15,"cut":false,"hidden":false,"merged":[[0,8,0,9],[2,0,2,4]]}
[{"$f":"IF(ISERROR(RIGHT(CELL(\"filename\",A1),LEN(CELL(\"filename\",A1))-FIND(\"]\",CELL(\"filename\",A1)))),\n\"\",\nRIGHT(CELL(\"filename\",A1),LEN(CELL(\"filename\",A1))-FIND(\"]\",CELL(\"filename\",A1))))","v":"Error Checks"}]
[{"$f":"Model_Name","v":"SP Multi-input Dependent DV Food.xlsm"}]
["Navigator"]
[null,"Error Checks:",null,null,null,{"$f":"Overall_Error_Check","v":0}]
[]
[null,{"$f":"MAX($B$5:$B5)+1","v":1},"Error Checks"]
[]
[null,null,"Summary of Errors"]
[]
[null,null,null,"Assumptions"]
[]
[null,null,null,null,"Basic Dpdnt Dv OK",null,null,null,{"$f":"BasicDpdntErrorCheck1_OK","v":0}]
[null,null,null,null,"Basic Dpdnt Dv OK",null,null,null,{"$f":"BasicDpdntErrorCheck2_OK","v":0}]
[]
[null,null,null,null,{"$f":"C8","v":"Summary of Errors"},null,null,null,{"$f":"MIN(1,SUM(I11:I13))","v":0}]